Workbook

Sheet Instructions
B2: Nutrient & Energy Assessment Tool - Wastewater Optimization Version 3.0 beta (March 2019)
B6: ABOUT THIS TOOL: This tool is intended to help wastewater operators track changes in energy usage, treatment costs, and nutrient discharge resulting from efforts to optimize their facilities. It calculates savings and displays them on summary charts, and plots related data to help identify trends. This information can be used to evaluate optimization efforts and identify further opportunities.
B11: Energy Data Entry
B12: 1) Enter some background information about the facility and the name and contact information for your energy providers 2) Select a month from which to measure progress and enter it into the "Beginning of Monitoring Period." This will adjust the "month" column across all sheets in the tool and determine how savings are calculated. For example, if optimization efforts began in late July 2017, it may be prudent to select August 2017 as the beginning of the monitoring period. Be mindful that if this date is adjusted after entering process or energy data, that data will no longer match the appropriate months and will need to be adjusted accordingly. 3) Enter electric billing data for each electric meter you wish to track. Up to five meters can be tracked. For usability, electric meters 2-5 can be shown or hidden by clicking the appropriate buttons. Depending on your computer settings, it may be necessary to "enable content" to allow the buttons to function. If significant natural gas is used at the facility, consider entering gas usage data in Columns AD-AG. 4) Not all electric bills will have all components listed on the data entry page. Usage (kWh) and total cost ($) are required for the tool to work properly. The other fields are optional but will activate additional features and can be useful in identifying further opportunities. It may be necessary to contact the electric power provider to obtain usage and demand information if it is not listed on the bill. 5) It is common that electrical billing dates do not align with a calendar month. If this is the case, simply assign the bill to the month that makes the most sense and be consistent going forward. For example, if the billing dates are July 20th - August 19th, it is prudent to assign that bill to August. Any inaccuracies due to misalignment will ultimately average out since energy savings are calculated on an annual basis. 6) For best results, once energy data is up to date, continue to the process data entry sheet and enter flow and BOD data for any months that have energy data.
B17: Process Data Entry
B18: 1) Enter the available process data for the appropriate months. It is best to ensure that any month with process data also has energy data, and vice versa. 2) Flow and BOD data will be used with the information on the Energy Data Entry sheet to track energy efficiency (kWh/MG and kWh/lb BOD), cost efficiency ($/MG and $/lb BOD), and savings (kWh/year and $/year). 3) Nitrogen and phosphorus data will be used to estimate nutrient removal provided sufficient data is available. For phosphorus, the tool needs flow, influent and effluent TP concentrations to calculate removal. If any of those three parameters are missing for a given month, that month will not count towards the total. For nitrogen, the tool needs influent TKN, effluent nitrate + nitrite, and either effluent TKN or effluent ammonia to work properly. Most facilities do not have significant influent nitrate or nitrite, but if that is the case, be sure to include it. In order to estimate removal on an annual basis, the above data needs to be entered at least quarterly.
B33: Summary Tables and Charts
B34: The remaining sheets display calculated savings and trends based on the data entered: Flow-based Summary: This table summarizes energy usage, energy costs, and flow treated for each year of the monitoring period. It also compares performance relative to the baseline data. Savings for each monitoring year are calculated by using the baseline kWh/MG (or $/MG) to estimate the energy (or cost) the plant would have required to treat the volume treated during that year, and comparing that value to the actual energy used. BOD-based Summary: This table functions similarly as the 'Flow-based Summary' but uses the quantity of BOD removed as the basis for comparison. Plants that have a significant amount of infiltration/inflow may find this a more reasonable basis of comparison. Nutrient Removal Summary: This table summarizes nutrient removal performance based on data from the 'Process Data Entry' sheet. Influent, effluent and % removal values are calculated from all availalble values. Mass removal values are calculated using only months which meet the criteria described in the 'Process Data Entry' section above. TN and TP removal: These charts display annual trends in influent and effluent nutrients, and overall removal. Baseline data is shaded. Flow and BOD Efficiency: These charts display annual trends in kWh/MG and kWh/lb BOD. Baseline data is shaded.
B36: Troubleshooting
B37: The Tool may display odd data, or it may unexpectedly display blanks. In these cases it may be helpful to check the following: 1) If process data has been entered for a month, ensure corresponding energy data has been entered, and vice versa. If data is missing and unavailable, either enter a reasonable estimate or delete the rest of the data for that month. 2) If the plant uses more than one electric meter, ensure that all meters have data entered for the appropriate months. 3) Ensure that nutrient data meets the criteria described in the 'Process Data Entry' section above, and that any month with nutrient data has a corresponding average daily flow. 4) If the issue is not resolved, try re-entering the data in a fresh copy of the tool, and a formula may have inadvertently been edited. 5) If none of the above resolve the issue, please use the contact information below to ask for help.
B39: The pages in this Tool are protected to minimize accidental changes in the formulas or charts. Each sheet can be unprotected under the "Review" tab. Additionally, some sheets have been hidden to improve usability. To unhide hidden sheets, right-click on any sheet title and select "Unhide..." Editing these sheets is discouraged as it could cause issues elsewhere in the Tool.
B40: Questions? Please contact Brendan Held at (404) 562-8018 or held.brendan@epa.gov

Sheet Energy Data Entry
B1: R4 Energy Assessment Tool for Water & Wastewater Facilities - EPA Region 4 Yellow-shaded cells indicate data entry fields
B5: ENTER PLANT NAME AND BRIEF DESCRIPTION OF PROCESSES: Design flow, Anoxic zones, Biosolids Processes, Activated Sludge Process, Fine/Coarse Bubble, etc.
B8: Name of Facility: | C8: Webinarville, Tennessee WWTP
B9: Major Unit Processes: | C9: Oxidation ditch, aerobic digester, UV disinfection, centerfuge
B11: Beginning of Monitoring Period (MM/YYYY) | D11: 2017-07-01 | E11: Ideally 24 months of baseline data is available prior to this date. Progress is measured beginning with this month.
B12: ENERGY DATA PROVIDER: | D12: Demo City Electric Co.
B13: PHONE/EMAIL: | D13: 865-555-0000
B15: Electric Meters: 1. Enter the Meter Number if shown and a Description: Whole Plant, Aeration, Pumping, Etc. 2. Enter the Monthly Usage: (kWh) for each meter. 3. Enter the Monthly Total Cost: The total charge for that meter, inclusive of demand charges, fees, taxes, etc. 4. If available, enter the "Actual" and "Billed" Demand in kW under the appropriate columns. (Optional) 5. If available, enter the Demand Charge as shown on the bill, under the "Demand Cost" column. (Optional) 6. If you have additional meters, click the appropriate "Show Meter" button to input additional data. Click "Hide Meter" to hide. 7. If there is significant natural gas use at the plant (e.g., for heating digesters or drying biosolids), use the gas meter table on the far right to enter the appropriate data.
AD21: GAS METER: Enter Monthly Gas Usage as ccf or Therms (1 ccf = 100 cu ft = 1 Therm)
C22: METER 1 | H22: METER 2 | M22: METER 3 | R22: METER 4 | W22: METER 5 | AD22: Enter Monthly Gas Usage as ccf or Therms: (1 ccf = 100 cu ft = 1 Therm)
C23: Equipment on this Meter: | H23: Equipment on this Meter: | M23: Equipment on this Meter: | R23: Equipment on this Meter: | W23: Equipment on this Meter: | AD23: For Multiple Gas Meters - Sum and Enter Totals
B24: MONTH (Auto-filled) | C24: MONTHLY ELECTRIC USE (kWh) | D24: TOTAL ELECTRIC BILL (incl. demand, taxes, etc.) ($) | E24: Actual kW Demand (if available) | F24: Billed kW Demand (if available) | G24: DEMAND COST (If known, else leave blank) | H24: MONTHLY kWh used #2 | I24: Total Electric Bill (incl. demand, taxes, etc.) ($) #2 | J24: Actual kW Demand #2 (if available) | K24: Billed kW Demand #2 (if available) | L24: DEMAND COST #2 (if known, else leave blank) | M24: MONTHLY kWh used #3 | N24: Total Electric Bill (incl. demand, taxes, etc.) ($) #3 | O24: Actual kW Demand #3 (if available) | P24: Billed kW Demand #3 (if available) | Q24: DEMAND COST #3 (if known, else leave blank) | R24: MONTHLY kWh used #4 | S24: Total Electric Bill (incl. demand, taxes, etc.) ($) #4 | T24: Actual kW Demand #4 (if available) | U24: Billed kW Demand #4 (if available) | V24: DEMAND COST #4 (if known, else leave blank) | W24: MONTHLY kWh used #5 | X24: Total Electric Bill (incl. demand, taxes, etc.) ($) #5 | Y24: Actual kW Demand #5 (if available) | Z24: Billed kW Demand #5 (if available) | AA24: DEMAND COST #5 (if known, else leave blank) | AD24: MONTH | AE24: Gas usage (ccf or therms) | AF24: Total gas cost ($) | AG24: Gas energy usage in kWh
B25: =DATE(YEAR(B26),MONTH(B26)-1,DAY(B26)) -> 2015-07-01 | C25: 155719.2 | D25: 12368.152 | E25: 275 | F25: 275 | G25: 3025 | AD25: =Table3[[#This Row],[MONTH (Auto-filled) ]] -> 2015-07-01 | AE25: 0 | AG25: =IF(Table5[[#This Row],[Gas usage (ccf or therms)]]=0,0,29.31*Table5[[#This Row],[Gas usage (ccf or therms)]]) -> 0
B26: 2015-08-01 | C26: 154828.8 | D26: 12358.728 | E26: 279 | F26: 279 | G26: 3069 | AD26: =Table3[[#This Row],[MONTH (Auto-filled) ]] -> 2015-08-01 | AE26: 0 | AG26: =IF(Table5[[#This Row],[Gas usage (ccf or therms)]]=0,0,29.31*Table5[[#This Row],[Gas usage (ccf or therms)]]) -> 0
B27: 2015-09-01 | C27: 176933.12 | D27: 14058.9872 | E27: 313 | F27: 313 | G27: 3443 | AD27: =Table3[[#This Row],[MONTH (Auto-filled) ]] -> 2015-09-01 | AE27: 0 | AG27: =IF(Table5[[#This Row],[Gas usage (ccf or therms)]]=0,0,29.31*Table5[[#This Row],[Gas usage (ccf or therms)]]) -> 0
B28: 2015-10-01 | C28: 156643.2 | D28: 12676.592 | E28: 298 | F28: 298 | G28: 3278 | AD28: =Table3[[#This Row],[MONTH (Auto-filled) ]] -> 2015-10-01 | AE28: 0 | AG28: =IF(Table5[[#This Row],[Gas usage (ccf or therms)]]=0,0,29.31*Table5[[#This Row],[Gas usage (ccf or therms)]]) -> 0
B29: 2015-11-01 | C29: 163322.88 | D29: 13022.3728 | E29: 293 | F29: 293 | G29: 3223 | AD29: =Table3[[#This Row],[MONTH (Auto-filled) ]] -> 2015-11-01 | AE29: 0 | AG29: =IF(Table5[[#This Row],[Gas usage (ccf or therms)]]=0,0,29.31*Table5[[#This Row],[Gas usage (ccf or therms)]]) -> 0
B30: 2015-12-01 | C30: 150198.72 | D30: 12014.9232 | E30: 273 | F30: 273 | G30: 3003 | AD30: =Table3[[#This Row],[MONTH (Auto-filled) ]] -> 2015-12-01 | AE30: 0 | AG30: =IF(Table5[[#This Row],[Gas usage (ccf or therms)]]=0,0,29.31*Table5[[#This Row],[Gas usage (ccf or therms)]]) -> 0
B31: 2016-01-01 | C31: 186760 | D31: 15308.6 | E31: 373 | F31: 373 | G31: 4103 | AD31: =Table3[[#This Row],[MONTH (Auto-filled) ]] -> 2016-01-01 | AE31: 0 | AG31: =IF(Table5[[#This Row],[Gas usage (ccf or therms)]]=0,0,29.31*Table5[[#This Row],[Gas usage (ccf or therms)]]) -> 0
B32: 2016-02-01 | C32: 134366.4 | D32: 10822.984 | E32: 251 | F32: 251 | G32: 2761 | AD32: =Table3[[#This Row],[MONTH (Auto-filled) ]] -> 2016-02-01 | AE32: 0 | AG32: =IF(Table5[[#This Row],[Gas usage (ccf or therms)]]=0,0,29.31*Table5[[#This Row],[Gas usage (ccf or therms)]]) -> 0
B33: 2016-03-01 | C33: 183120 | D33: 14529.2 | E33: 322 | F33: 322 | G33: 3542 | AD33: =Table3[[#This Row],[MONTH (Auto-filled) ]] -> 2016-03-01 | AE33: 0 | AG33: =IF(Table5[[#This Row],[Gas usage (ccf or therms)]]=0,0,29.31*Table5[[#This Row],[Gas usage (ccf or therms)]]) -> 0
B34: 2016-04-01 | C34: 147768.32 | D34: 11858.0992 | E34: 272 | F34: 272 | G34: 2992 | AD34: =Table3[[#This Row],[MONTH (Auto-filled) ]] -> 2016-04-01 | AE34: 0 | AG34: =IF(Table5[[#This Row],[Gas usage (ccf or therms)]]=0,0,29.31*Table5[[#This Row],[Gas usage (ccf or therms)]]) -> 0
B35: 2016-05-01 | C35: 199533.6 | D35: 15833.016 | E35: 351 | F35: 351 | G35: 3861 | AD35: =Table3[[#This Row],[MONTH (Auto-filled) ]] -> 2016-05-01 | AE35: 0 | AG35: =IF(Table5[[#This Row],[Gas usage (ccf or therms)]]=0,0,29.31*Table5[[#This Row],[Gas usage (ccf or therms)]]) -> 0
B36: 2016-06-01 | C36: 215784.8 | D36: 17149.088 | E36: 382 | F36: 382 | G36: 4202 | AD36: =Table3[[#This Row],[MONTH (Auto-filled) ]] -> 2016-06-01 | AE36: 0 | AG36: =IF(Table5[[#This Row],[Gas usage (ccf or therms)]]=0,0,29.31*Table5[[#This Row],[Gas usage (ccf or therms)]]) -> 0
B37: =DATE(YEAR(B38),MONTH(B38)-1,DAY(B38)) -> 2016-07-01 | C37: 156031.68 | D37: 12518.9008 | E37: 287 | F37: 287 | G37: 3157 | AD37: =Table3[[#This Row],[MONTH (Auto-filled) ]] -> 2016-07-01 | AE37: 0 | AG37: =IF(Table5[[#This Row],[Gas usage (ccf or therms)]]=0,0,29.31*Table5[[#This Row],[Gas usage (ccf or therms)]]) -> 0
B38: 2016-08-01 | C38: 241500 | D38: 19759 | E38: 479 | F38: 479 | G38: 5269 | AD38: =Table3[[#This Row],[MONTH (Auto-filled) ]] -> 2016-08-01 | AE38: 0 | AG38: =IF(Table5[[#This Row],[Gas usage (ccf or therms)]]=0,0,29.31*Table5[[#This Row],[Gas usage (ccf or therms)]]) -> 0
B39: 2016-09-01 | C39: 146084.4 | D39: 12450.064 | E39: 269 | F39: 335 | G39: 3685 | AD39: =Table3[[#This Row],[MONTH (Auto-filled) ]] -> 2016-09-01 | AE39: 0 | AG39: =IF(Table5[[#This Row],[Gas usage (ccf or therms)]]=0,0,29.31*Table5[[#This Row],[Gas usage (ccf or therms)]]) -> 0
B40: 2016-10-01 | C40: 178113.6 | D40: 14514.816 | E40: 348 | F40: 348 | G40: 3828 | AD40: =Table3[[#This Row],[MONTH (Auto-filled) ]] -> 2016-10-01 | AE40: 0 | AG40: =IF(Table5[[#This Row],[Gas usage (ccf or therms)]]=0,0,29.31*Table5[[#This Row],[Gas usage (ccf or therms)]]) -> 0
B41: 2016-11-01 | C41: 213736.32 | D41: 17279.1792 | E41: 405 | F41: 405 | G41: 4455 | AD41: =Table3[[#This Row],[MONTH (Auto-filled) ]] -> 2016-11-01 | AE41: 0 | AG41: =IF(Table5[[#This Row],[Gas usage (ccf or therms)]]=0,0,29.31*Table5[[#This Row],[Gas usage (ccf or therms)]]) -> 0
B42: 2016-12-01 | C42: 169694 | D42: 13866.64 | E42: 285 | F42: 335 | G42: 3685 | AD42: =Table3[[#This Row],[MONTH (Auto-filled) ]] -> 2016-12-01 | AE42: 0 | AG42: =IF(Table5[[#This Row],[Gas usage (ccf or therms)]]=0,0,29.31*Table5[[#This Row],[Gas usage (ccf or therms)]]) -> 0
B43: 2017-01-01 | C43: 186278.4 | D43: 15246.704 | E43: 370 | F43: 370 | G43: 4070 | AD43: =Table3[[#This Row],[MONTH (Auto-filled) ]] -> 2017-01-01 | AE43: 0 | AG43: =IF(Table5[[#This Row],[Gas usage (ccf or therms)]]=0,0,29.31*Table5[[#This Row],[Gas usage (ccf or therms)]]) -> 0
B44: 2017-02-01 | C44: 161135.52 | D44: 13353.1312 | E44: 309 | F44: 335 | G44: 3685 | AD44: =Table3[[#This Row],[MONTH (Auto-filled) ]] -> 2017-02-01 | AE44: 0 | AG44: =IF(Table5[[#This Row],[Gas usage (ccf or therms)]]=0,0,29.31*Table5[[#This Row],[Gas usage (ccf or therms)]]) -> 0
B45: 2017-03-01 | C45: 190612.8 | D45: 15264.768 | E45: 348 | F45: 348 | G45: 3828 | AD45: =Table3[[#This Row],[MONTH (Auto-filled) ]] -> 2017-03-01 | AE45: 0 | AG45: =IF(Table5[[#This Row],[Gas usage (ccf or therms)]]=0,0,29.31*Table5[[#This Row],[Gas usage (ccf or therms)]]) -> 0
B46: 2017-04-01 | C46: 139209.84 | D46: 12037.5904 | E46: 234 | F46: 335 | G46: 3685 | AD46: =Table3[[#This Row],[MONTH (Auto-filled) ]] -> 2017-04-01 | AE46: 0 | AG46: =IF(Table5[[#This Row],[Gas usage (ccf or therms)]]=0,0,29.31*Table5[[#This Row],[Gas usage (ccf or therms)]]) -> 0
B47: 2017-05-01 | C47: 190612.8 | D47: 15220.768 | E47: 344 | F47: 344 | G47: 3784 | AD47: =Table3[[#This Row],[MONTH (Auto-filled) ]] -> 2017-05-01 | AE47: 0 | AG47: =IF(Table5[[#This Row],[Gas usage (ccf or therms)]]=0,0,29.31*Table5[[#This Row],[Gas usage (ccf or therms)]]) -> 0
B48: =DATE(YEAR(D11),MONTH(D11)-1,DAY(D11)) -> 2017-06-01 | C48: 157976 | D48: 13163.56 | E48: 299 | F48: 335 | G48: 3685 | AD48: =Table3[[#This Row],[MONTH (Auto-filled) ]] -> 2017-06-01 | AE48: 0 | AG48: =IF(Table5[[#This Row],[Gas usage (ccf or therms)]]=0,0,29.31*Table5[[#This Row],[Gas usage (ccf or therms)]]) -> 0
B49: =EOMONTH(D11,-1)+1 -> 2017-07-01 | C49: 168895 | D49: 14957.175 | E49: 293 | F49: 335 | G49: 3979 | AD49: =Table3[[#This Row],[MONTH (Auto-filled) ]] -> 2017-07-01 | AE49: 0 | AG49: =IF(Table5[[#This Row],[Gas usage (ccf or therms)]]=0,0,29.31*Table5[[#This Row],[Gas usage (ccf or therms)]]) -> 0
B50: =DATE(YEAR(B49),MONTH(B49)+1,DAY(B49)) -> 2017-08-01 | C50: 167378 | D50: 15123.07 | E50: 294 | F50: 335 | G50: 4243.5 | AD50: =Table3[[#This Row],[MONTH (Auto-filled) ]] -> 2017-08-01 | AE50: 0 | AG50: =IF(Table5[[#This Row],[Gas usage (ccf or therms)]]=0,0,29.31*Table5[[#This Row],[Gas usage (ccf or therms)]]) -> 0
B51: =DATE(YEAR(B50),MONTH(B50)+1,DAY(B50)) -> 2017-09-01 | C51: 151568 | D51: 13324.92 | E51: 243 | F51: 284 | G51: 3473 | AD51: =Table3[[#This Row],[MONTH (Auto-filled) ]] -> 2017-09-01 | AE51: 0 | AG51: =IF(Table5[[#This Row],[Gas usage (ccf or therms)]]=0,0,29.31*Table5[[#This Row],[Gas usage (ccf or therms)]]) -> 0
B52: 2017-10-01 | C52: 116847 | D52: 10861.055 | E52: 211 | F52: 284 | G52: 3266 | AD52: =Table3[[#This Row],[MONTH (Auto-filled) ]] -> 2017-10-01 | AE52: 0 | AG52: =IF(Table5[[#This Row],[Gas usage (ccf or therms)]]=0,0,29.31*Table5[[#This Row],[Gas usage (ccf or therms)]]) -> 0
B53: 2017-11-01 | C53: 152131 | D53: 13465.015 | E53: 261 | F53: 284 | G53: 3576.5 | AD53: =Table3[[#This Row],[MONTH (Auto-filled) ]] -> 2017-11-01 | AE53: 0 | AG53: =IF(Table5[[#This Row],[Gas usage (ccf or therms)]]=0,0,29.31*Table5[[#This Row],[Gas usage (ccf or therms)]]) -> 0
B54: 2017-12-01 | C54: 172489 | D54: 14684.785 | E54: 302 | F54: 302 | G54: 3473 | AD54: =Table3[[#This Row],[MONTH (Auto-filled) ]] -> 2017-12-01 | AE54: 0 | AG54: =IF(Table5[[#This Row],[Gas usage (ccf or therms)]]=0,0,29.31*Table5[[#This Row],[Gas usage (ccf or therms)]]) -> 0
B55: 2018-01-01 | C55: 130395 | D55: 11454.175 | E55: 253 | F55: 259 | G55: 2978.5 | AD55: =Table3[[#This Row],[MONTH (Auto-filled) ]] -> 2018-01-01 | AE55: 0 | AG55: =IF(Table5[[#This Row],[Gas usage (ccf or therms)]]=0,0,29.31*Table5[[#This Row],[Gas usage (ccf or therms)]]) -> 0
B56: 2018-02-01 | C56: 153990 | D56: 12953.35 | E56: 256 | F56: 256 | G56: 2944 | AD56: =Table3[[#This Row],[MONTH (Auto-filled) ]] -> 2018-02-01 | AE56: 0 | AG56: =IF(Table5[[#This Row],[Gas usage (ccf or therms)]]=0,0,29.31*Table5[[#This Row],[Gas usage (ccf or therms)]]) -> 0
B57: 2018-03-01 | C57: 194594 | D57: 16696.61 | E57: 352 | F57: 352 | G57: 4048 | AD57: =Table3[[#This Row],[MONTH (Auto-filled) ]] -> 2018-03-01 | AE57: 0 | AG57: =IF(Table5[[#This Row],[Gas usage (ccf or therms)]]=0,0,29.31*Table5[[#This Row],[Gas usage (ccf or therms)]]) -> 0
B58: 2018-04-01 | C58: 165958 | D58: 13995.77 | E58: 279 | F58: 279 | G58: 3208.5 | AD58: =Table3[[#This Row],[MONTH (Auto-filled) ]] -> 2018-04-01 | AE58: 0 | AG58: =IF(Table5[[#This Row],[Gas usage (ccf or therms)]]=0,0,29.31*Table5[[#This Row],[Gas usage (ccf or therms)]]) -> 0
B59: 2018-05-01 | C59: 130758 | D59: 11328.27 | E59: 239 | F59: 246 | G59: 2829 | AD59: =Table3[[#This Row],[MONTH (Auto-filled) ]] -> 2018-05-01 | AE59: 0 | AG59: =IF(Table5[[#This Row],[Gas usage (ccf or therms)]]=0,0,29.31*Table5[[#This Row],[Gas usage (ccf or therms)]]) -> 0
B60: 2018-06-01 | C60: 131804 | D60: 11396.26 | E60: 221 | F60: 246 | G60: 2829 | AD60: =Table3[[#This Row],[MONTH (Auto-filled) ]] -> 2018-06-01 | AE60: 0 | AG60: =IF(Table5[[#This Row],[Gas usage (ccf or therms)]]=0,0,29.31*Table5[[#This Row],[Gas usage (ccf or therms)]]) -> 0
B61: 2018-07-01 | C61: 181848 | D61: 15523.12 | E61: 322 | F61: 322 | G61: 3703 | AD61: =Table3[[#This Row],[MONTH (Auto-filled) ]] -> 2018-07-01 | AE61: 0 | AG61: =IF(Table5[[#This Row],[Gas usage (ccf or therms)]]=0,0,29.31*Table5[[#This Row],[Gas usage (ccf or therms)]]) -> 0
B62: 2018-08-01 | C62: 160030 | D62: 13529.95 | E62: 272 | F62: 272 | G62: 3128 | AD62: =Table3[[#This Row],[MONTH (Auto-filled) ]] -> 2018-08-01 | AE62: 0 | AG62: =IF(Table5[[#This Row],[Gas usage (ccf or therms)]]=0,0,29.31*Table5[[#This Row],[Gas usage (ccf or therms)]]) -> 0
B63: 2018-09-01 | C63: 173426 | D63: 14527.19 | E63: 283 | F63: 283 | G63: 3254.5 | AD63: =Table3[[#This Row],[MONTH (Auto-filled) ]] -> 2018-09-01 | AE63: 0 | AG63: =IF(Table5[[#This Row],[Gas usage (ccf or therms)]]=0,0,29.31*Table5[[#This Row],[Gas usage (ccf or therms)]]) -> 0
B64: 2018-10-01 | C64: 146392 | D64: 12378.98 | E64: 249 | F64: 249 | G64: 2863.5 | AD64: =Table3[[#This Row],[MONTH (Auto-filled) ]] -> 2018-10-01 | AE64: 0 | AG64: =IF(Table5[[#This Row],[Gas usage (ccf or therms)]]=0,0,29.31*Table5[[#This Row],[Gas usage (ccf or therms)]]) -> 0
B65: 2018-11-01 | C65: 141007 | D65: 11994.455 | E65: 237 | F65: 246 | G65: 2829 | AD65: =Table3[[#This Row],[MONTH (Auto-filled) ]] -> 2018-11-01 | AE65: 0 | AG65: =IF(Table5[[#This Row],[Gas usage (ccf or therms)]]=0,0,29.31*Table5[[#This Row],[Gas usage (ccf or therms)]]) -> 0
B66: 2018-12-01 | C66: 218736 | D66: 18403.84 | E66: 364 | F66: 364 | G66: 4186 | AD66: =Table3[[#This Row],[MONTH (Auto-filled) ]] -> 2018-12-01 | AE66: 0 | AG66: =IF(Table5[[#This Row],[Gas usage (ccf or therms)]]=0,0,29.31*Table5[[#This Row],[Gas usage (ccf or therms)]]) -> 0
B67: 2019-01-01 | C67: 126444 | D67: 11151.36 | E67: 245 | F67: 255 | G67: 2932.5 | AD67: =Table3[[#This Row],[MONTH (Auto-filled) ]] -> 2019-01-01 | AE67: 0 | AG67: =IF(Table5[[#This Row],[Gas usage (ccf or therms)]]=0,0,29.31*Table5[[#This Row],[Gas usage (ccf or therms)]]) -> 0
B68: 2019-02-01 | C68: 143491 | D68: 12259.415 | E68: 254 | F68: 255 | G68: 2932.5 | AD68: =Table3[[#This Row],[MONTH (Auto-filled) ]] -> 2019-02-01 | AE68: 0 | AG68: =IF(Table5[[#This Row],[Gas usage (ccf or therms)]]=0,0,29.31*Table5[[#This Row],[Gas usage (ccf or therms)]]) -> 0
B69: 2019-03-01 | C69: 173396 | D69: 14916.24 | E69: 317 | F69: 317 | G69: 3645.5 | AD69: =Table3[[#This Row],[MONTH (Auto-filled) ]] -> 2019-03-01 | AE69: 0 | AG69: =IF(Table5[[#This Row],[Gas usage (ccf or therms)]]=0,0,29.31*Table5[[#This Row],[Gas usage (ccf or therms)]]) -> 0
B70: 2019-04-01 | C70: 151865 | D70: 12930.225 | E70: 266 | F70: 266 | G70: 3059 | AD70: =Table3[[#This Row],[MONTH (Auto-filled) ]] -> 2019-04-01 | AE70: 0 | AG70: =IF(Table5[[#This Row],[Gas usage (ccf or therms)]]=0,0,29.31*Table5[[#This Row],[Gas usage (ccf or therms)]]) -> 0
B71: 2019-05-01 | C71: 175135 | D71: 15063.775 | E71: 320 | F71: 320 | G71: 3680 | AD71: =Table3[[#This Row],[MONTH (Auto-filled) ]] -> 2019-05-01 | AE71: 0 | AG71: =IF(Table5[[#This Row],[Gas usage (ccf or therms)]]=0,0,29.31*Table5[[#This Row],[Gas usage (ccf or therms)]]) -> 0
B72: 2019-06-01 | C72: 130335 | D72: 11404.275 | E72: 221 | F72: 255 | G72: 2932.5 | AD72: =Table3[[#This Row],[MONTH (Auto-filled) ]] -> 2019-06-01 | AE72: 0 | AG72: =IF(Table5[[#This Row],[Gas usage (ccf or therms)]]=0,0,29.31*Table5[[#This Row],[Gas usage (ccf or therms)]]) -> 0
B73: 2019-07-01 | C73: 173301 | D73: 14680.065 | E73: 297 | F73: 297 | G73: 3415.5 | AD73: =Table3[[#This Row],[MONTH (Auto-filled) ]] -> 2019-07-01 | AE73: 0 | AG73: =IF(Table5[[#This Row],[Gas usage (ccf or therms)]]=0,0,29.31*Table5[[#This Row],[Gas usage (ccf or therms)]]) -> 0
B74: 2019-08-01 | C74: 163674 | D74: 14008.31 | E74: 293 | F74: 293 | G74: 3369.5 | AD74: =Table3[[#This Row],[MONTH (Auto-filled) ]] -> 2019-08-01 | AE74: 0 | AG74: =IF(Table5[[#This Row],[Gas usage (ccf or therms)]]=0,0,29.31*Table5[[#This Row],[Gas usage (ccf or therms)]]) -> 0
B75: 2019-09-01 | C75: 123151 | D75: 10937.315 | E75: 213 | F75: 255 | G75: 2932.5 | AD75: =Table3[[#This Row],[MONTH (Auto-filled) ]] -> 2019-09-01 | AE75: 0 | AG75: =IF(Table5[[#This Row],[Gas usage (ccf or therms)]]=0,0,29.31*Table5[[#This Row],[Gas usage (ccf or therms)]]) -> 0
B76: 2019-10-01 | C76: 127492 | D76: 11219.48 | E76: 226 | F76: 255 | G76: 2932.5 | AD76: =Table3[[#This Row],[MONTH (Auto-filled) ]] -> 2019-10-01 | AE76: 0 | AG76: =IF(Table5[[#This Row],[Gas usage (ccf or therms)]]=0,0,29.31*Table5[[#This Row],[Gas usage (ccf or therms)]]) -> 0
B77: 2019-11-01 | C77: 145542 | D77: 12392.73 | E77: 247 | F77: 255 | G77: 2932.5 | AD77: =Table3[[#This Row],[MONTH (Auto-filled) ]] -> 2019-11-01 | AE77: 0 | AG77: =IF(Table5[[#This Row],[Gas usage (ccf or therms)]]=0,0,29.31*Table5[[#This Row],[Gas usage (ccf or therms)]]) -> 0
B78: 2019-12-01 | C78: 163408 | D78: 14017.52 | E78: 283 | F78: 283 | G78: 3396 | AD78: =Table3[[#This Row],[MONTH (Auto-filled) ]] -> 2019-12-01 | AE78: 0 | AG78: =IF(Table5[[#This Row],[Gas usage (ccf or therms)]]=0,0,29.31*Table5[[#This Row],[Gas usage (ccf or therms)]]) -> 0
B79: 2020-01-01 | C79: 148401 | D79: 12694.065 | E79: 254 | F79: 254 | G79: 3048 | AD79: =Table3[[#This Row],[MONTH (Auto-filled) ]] -> 2020-01-01 | AE79: 0 | AG79: =IF(Table5[[#This Row],[Gas usage (ccf or therms)]]=0,0,29.31*Table5[[#This Row],[Gas usage (ccf or therms)]]) -> 0
B80: 2020-02-01 | C80: 145356 | D80: 12472.14 | E80: 252 | F80: 252 | G80: 3024 | AD80: =Table3[[#This Row],[MONTH (Auto-filled) ]] -> 2020-02-01 | AE80: 0 | AG80: =IF(Table5[[#This Row],[Gas usage (ccf or therms)]]=0,0,29.31*Table5[[#This Row],[Gas usage (ccf or therms)]]) -> 0
B81: 2020-03-01 | C81: 171406 | D81: 14897.39 | E81: 313 | F81: 313 | G81: 3756 | AD81: =Table3[[#This Row],[MONTH (Auto-filled) ]] -> 2020-03-01 | AE81: 0 | AG81: =IF(Table5[[#This Row],[Gas usage (ccf or therms)]]=0,0,29.31*Table5[[#This Row],[Gas usage (ccf or therms)]]) -> 0
B82: 2020-04-01 | C82: 142572 | D82: 12027.18 | E82: 230 | F82: 230 | G82: 2760 | AD82: =Table3[[#This Row],[MONTH (Auto-filled) ]] -> 2020-04-01 | AE82: 0 | AG82: =IF(Table5[[#This Row],[Gas usage (ccf or therms)]]=0,0,29.31*Table5[[#This Row],[Gas usage (ccf or therms)]]) -> 0
B83: 2020-05-01 | C83: 115539 | D83: 10198.035 | E83: 199 | F83: 224 | G83: 2688 | AD83: =Table3[[#This Row],[MONTH (Auto-filled) ]] -> 2020-05-01 | AE83: 0 | AG83: =IF(Table5[[#This Row],[Gas usage (ccf or therms)]]=0,0,29.31*Table5[[#This Row],[Gas usage (ccf or therms)]]) -> 0
B84: 2020-06-01 | C84: 104187 | D84: 9400.155 | E84: 182 | F84: 219 | G84: 2628 | AD84: =Table3[[#This Row],[MONTH (Auto-filled) ]] -> 2020-06-01 | AE84: 0 | AG84: =IF(Table5[[#This Row],[Gas usage (ccf or therms)]]=0,0,29.31*Table5[[#This Row],[Gas usage (ccf or therms)]]) -> 0
B85: 2020-07-01 | C85: 146616 | D85: 12398.04 | E85: 239 | F85: 239 | G85: 2868 | AD85: =Table3[[#This Row],[MONTH (Auto-filled) ]] -> 2020-07-01 | AE85: 0 | AG85: =IF(Table5[[#This Row],[Gas usage (ccf or therms)]]=0,0,29.31*Table5[[#This Row],[Gas usage (ccf or therms)]]) -> 0
B86: 2020-08-01 | C86: 144609 | D86: 12411.585 | E86: 251 | F86: 251 | G86: 3012 | AD86: =Table3[[#This Row],[MONTH (Auto-filled) ]] -> 2020-08-01 | AE86: 0 | AG86: =IF(Table5[[#This Row],[Gas usage (ccf or therms)]]=0,0,29.31*Table5[[#This Row],[Gas usage (ccf or therms)]]) -> 0
B87: 2020-09-01 | C87: 161764 | D87: 13706.66 | E87: 266 | F87: 266 | G87: 3192 | AD87: =Table3[[#This Row],[MONTH (Auto-filled) ]] -> 2020-09-01 | AE87: 0 | AG87: =IF(Table5[[#This Row],[Gas usage (ccf or therms)]]=0,0,29.31*Table5[[#This Row],[Gas usage (ccf or therms)]]) -> 0
B88: 2020-10-01 | C88: 167363 | D88: 14478.595 | E88: 300 | F88: 300 | G88: 3600 | AD88: =Table3[[#This Row],[MONTH (Auto-filled) ]] -> 2020-10-01 | AE88: 0 | AG88: =IF(Table5[[#This Row],[Gas usage (ccf or therms)]]=0,0,29.31*Table5[[#This Row],[Gas usage (ccf or therms)]]) -> 0
B89: 2020-11-01 | C89: 130176 | D89: 11089.44 | E89: 210 | F89: 219 | G89: 2628 | AD89: =Table3[[#This Row],[MONTH (Auto-filled) ]] -> 2020-11-01 | AE89: 0 | AG89: =IF(Table5[[#This Row],[Gas usage (ccf or therms)]]=0,0,29.31*Table5[[#This Row],[Gas usage (ccf or therms)]]) -> 0
B90: 2020-12-01 | C90: 129469 | D90: 12338.175 | E90: 213 | F90: 219 | G90: 2628 | AD90: =Table3[[#This Row],[MONTH (Auto-filled) ]] -> 2020-12-01 | AE90: 0 | AG90: =IF(Table5[[#This Row],[Gas usage (ccf or therms)]]=0,0,29.31*Table5[[#This Row],[Gas usage (ccf or therms)]]) -> 0
B91: 2021-01-01 | C91: 137644 | D91: 13563.3 | E91: 270 | F91: 270 | G91: 3240 | AD91: =Table3[[#This Row],[MONTH (Auto-filled) ]] -> 2021-01-01 | AE91: 0 | AG91: =IF(Table5[[#This Row],[Gas usage (ccf or therms)]]=0,0,29.31*Table5[[#This Row],[Gas usage (ccf or therms)]]) -> 0
B92: 2021-02-01 | C92: 103199 | D92: 10367.925 | E92: 183 | F92: 219 | G92: 2628 | AD92: =Table3[[#This Row],[MONTH (Auto-filled) ]] -> 2021-02-01 | AE92: 0 | AG92: =IF(Table5[[#This Row],[Gas usage (ccf or therms)]]=0,0,29.31*Table5[[#This Row],[Gas usage (ccf or therms)]]) -> 0
B93: 2021-03-01 | C93: 150511 | D93: 14456.325 | E93: 264 | F93: 264 | G93: 3168 | AD93: =Table3[[#This Row],[MONTH (Auto-filled) ]] -> 2021-03-01 | AE93: 0 | AG93: =IF(Table5[[#This Row],[Gas usage (ccf or therms)]]=0,0,29.31*Table5[[#This Row],[Gas usage (ccf or therms)]]) -> 0
B94: 2021-04-01 | C94: 114297 | D94: 11092.275 | E94: 202 | F94: 210 | G94: 2520 | AD94: =Table3[[#This Row],[MONTH (Auto-filled) ]] -> 2021-04-01 | AE94: 0 | AG94: =IF(Table5[[#This Row],[Gas usage (ccf or therms)]]=0,0,29.31*Table5[[#This Row],[Gas usage (ccf or therms)]]) -> 0
B95: 2021-05-01 | C95: 145775 | D95: 13969.125 | E95: 253 | F95: 253 | G95: 3036 | AD95: =Table3[[#This Row],[MONTH (Auto-filled) ]] -> 2021-05-01 | AE95: 0 | AG95: =IF(Table5[[#This Row],[Gas usage (ccf or therms)]]=0,0,29.31*Table5[[#This Row],[Gas usage (ccf or therms)]]) -> 0
B96: 2021-06-01 | C96: 165134 | D96: 15613.05 | E96: 269 | F96: 269 | G96: 3228 | AD96: =Table3[[#This Row],[MONTH (Auto-filled) ]] -> 2021-06-01 | AE96: 0 | AG96: =IF(Table5[[#This Row],[Gas usage (ccf or therms)]]=0,0,29.31*Table5[[#This Row],[Gas usage (ccf or therms)]]) -> 0
B97: 2021-07-01 | C97: 155420 | D97: 14848.5 | E97: 266 | F97: 266 | G97: 3192 | AD97: =Table3[[#This Row],[MONTH (Auto-filled) ]] -> 2021-07-01 | AE97: 0 | AG97: =IF(Table5[[#This Row],[Gas usage (ccf or therms)]]=0,0,29.31*Table5[[#This Row],[Gas usage (ccf or therms)]]) -> 0
B98: 2021-08-01 | C98: 112437 | D98: 10952.775 | E98: 193 | F98: 210 | G98: 2520 | AD98: =Table3[[#This Row],[MONTH (Auto-filled) ]] -> 2021-08-01 | AE98: 0 | AG98: =IF(Table5[[#This Row],[Gas usage (ccf or therms)]]=0,0,29.31*Table5[[#This Row],[Gas usage (ccf or therms)]]) -> 0
B99: 2021-09-01 | C99: 115687 | D99: 11196.525 | E99: 185 | F99: 210 | G99: 2520 | AD99: =Table3[[#This Row],[MONTH (Auto-filled) ]] -> 2021-09-01 | AE99: 0 | AG99: =IF(Table5[[#This Row],[Gas usage (ccf or therms)]]=0,0,29.31*Table5[[#This Row],[Gas usage (ccf or therms)]]) -> 0
B100: 2021-10-01 | C100: 126793 | D100: 12125.475 | E100: 218 | F100: 218 | G100: 2616 | AD100: =Table3[[#This Row],[MONTH (Auto-filled) ]] -> 2021-10-01 | AE100: 0 | AG100: =IF(Table5[[#This Row],[Gas usage (ccf or therms)]]=0,0,29.31*Table5[[#This Row],[Gas usage (ccf or therms)]]) -> 0
B101: 2021-11-01 | C101: 91661 | D101: 9142.575 | E101: 160 | F101: 189 | G101: 2268 | AD101: =Table3[[#This Row],[MONTH (Auto-filled) ]] -> 2021-11-01 | AE101: 0 | AG101: =IF(Table5[[#This Row],[Gas usage (ccf or therms)]]=0,0,29.31*Table5[[#This Row],[Gas usage (ccf or therms)]]) -> 0
B102: 2021-12-01 | C102: 144292 | D102: 13785.9 | E102: 247 | F102: 247 | G102: 2964 | AD102: =Table3[[#This Row],[MONTH (Auto-filled) ]] -> 2021-12-01 | AE102: 0 | AG102: =IF(Table5[[#This Row],[Gas usage (ccf or therms)]]=0,0,29.31*Table5[[#This Row],[Gas usage (ccf or therms)]]) -> 0
B103: 2022-01-01 | C103: 97105 | D103: 9550.875 | E103: 182 | F103: 189 | G103: 2268 | AD103: =Table3[[#This Row],[MONTH (Auto-filled) ]] -> 2022-01-01 | AE103: 0 | AG103: =IF(Table5[[#This Row],[Gas usage (ccf or therms)]]=0,0,29.31*Table5[[#This Row],[Gas usage (ccf or therms)]]) -> 0
B104: 2022-02-01 | C104: 113715 | D104: 10784.625 | E104: 182 | F104: 188 | G104: 2256 | AD104: =Table3[[#This Row],[MONTH (Auto-filled) ]] -> 2022-02-01 | AE104: 0 | AG104: =IF(Table5[[#This Row],[Gas usage (ccf or therms)]]=0,0,29.31*Table5[[#This Row],[Gas usage (ccf or therms)]]) -> 0
B105: 2022-03-01 | C105: 154354 | D105: 14888.55 | E105: 276 | F105: 276 | G105: 3312 | AD105: =Table3[[#This Row],[MONTH (Auto-filled) ]] -> 2022-03-01 | AE105: 0 | AG105: =IF(Table5[[#This Row],[Gas usage (ccf or therms)]]=0,0,29.31*Table5[[#This Row],[Gas usage (ccf or therms)]]) -> 0
B106: 2022-04-01 | C106: 157434 | D106: 15812.55 | E106: 267 | F106: 267 | G106: 4005 | AD106: =Table3[[#This Row],[MONTH (Auto-filled) ]] -> 2022-04-01 | AE106: 0 | AG106: =IF(Table5[[#This Row],[Gas usage (ccf or therms)]]=0,0,29.31*Table5[[#This Row],[Gas usage (ccf or therms)]]) -> 0
B107: 2022-05-01 | C107: 153539 | D107: 15685.425 | E107: 278 | F107: 278 | G107: 4170 | AD107: =Table3[[#This Row],[MONTH (Auto-filled) ]] -> 2022-05-01 | AE107: 0 | AG107: =IF(Table5[[#This Row],[Gas usage (ccf or therms)]]=0,0,29.31*Table5[[#This Row],[Gas usage (ccf or therms)]]) -> 0
B108: 2022-06-01 | C108: 113882 | D108: 11466.15 | E108: 179 | F108: 195 | G108: 2925 | AD108: =Table3[[#This Row],[MONTH (Auto-filled) ]] -> 2022-06-01 | AE108: 0 | AG108: =IF(Table5[[#This Row],[Gas usage (ccf or therms)]]=0,0,29.31*Table5[[#This Row],[Gas usage (ccf or therms)]]) -> 0

Sheet Process Data Entry
B5: MONTH (Auto-filled) | C5: Avg Daily Flow (MGD) | D5: Avg Influent CBOD (mg/L) | E5: Avg Effluent CBOD (mg/L) | F5: CBOD removal (lbs/d) | G5: Avg influent TKN (mg/L) | H5: Avg influent NH3 (mg/L) | I5: Avg influent NOx (mg/L) | J5: Avg effluent TKN (mg/L) | K5: Avg effluent NH3 (mg/L) | L5: Avg effluent NOx (mg/L) | M5: Avg influent TP (mg/L) | N5: Avg effluent TP (mg/L)
B6: ='Energy Data Entry'!B25 -> 2015-07-01 | C6: 1.56 | D6: 167.4 | E6: 4.05 | F6: =IF(C6*(D6-E6)*8.34=0,"",C6*(D6-E6)*8.34) -> 2125.24884 | G6: 31 | H6: 14 | J6: 3 | K6: 1.2 | L6: 17.4 | M6: 9.1 | N6: 0.8
B7: ='Energy Data Entry'!B26 -> 2015-08-01 | C7: 1.92 | D7: 196.2 | E7: 4.2 | F7: =IF(C7*(D7-E7)*8.34=0,"",C7*(D7-E7)*8.34) -> 3074.4576 | G7: 33 | H7: 18 | J7: 3.1 | K7: 1.2 | L7: 20.3 | M7: 7.9 | N7: 0.5
B8: ='Energy Data Entry'!B27 -> 2015-09-01 | C8: 2.08 | D8: 169.2 | E8: 5.25 | F8: 2844.07344 | G8: 36 | H8: 15 | J8: 3 | K8: 1.5 | L8: 13.7 | M8: 8.5 | N8: 1.2
B9: ='Energy Data Entry'!B28 -> 2015-10-01 | C9: 1.68 | D9: 156.6 | E9: 3.95 | F9: 2138.80968 | G9: 34 | H9: 14 | J9: 3 | K9: 1.2 | L9: 9.6 | M9: 6.9 | N9: 0.8
B10: ='Energy Data Entry'!B29 -> 2015-11-01 | C10: 1.92 | D10: 153 | E10: 6.1 | F10: 2352.28032 | G10: 31 | H10: 16 | J10: 3 | K10: 1.5 | L10: 10.5 | M10: 9.4 | N10: 0.8
B11: ='Energy Data Entry'!B30 -> 2015-12-01 | C11: 1.68 | D11: 214.2 | E11: 5.5 | F11: 2924.13744 | G11: 36 | H11: 12 | J11: 3.3 | K11: 1 | L11: 13.2 | M11: 7.2 | N11: 1
B12: ='Energy Data Entry'!B31 -> 2016-01-01 | C12: 2 | D12: 140.4 | E12: 4.75 | F12: 2262.642 | G12: 32 | H12: 12 | J12: 2.9 | K12: 1.5 | L12: 10.2 | M12: 8.6 | N12: 0.7
B13: ='Energy Data Entry'!B32 -> 2016-02-01 | C13: 1.8 | D13: 160.2 | E13: 4.35 | F13: 2339.6202 | G13: 36 | H13: 17 | J13: 2.9 | K13: 1 | L13: 15.6 | M13: 9.2 | N13: 0.8
B14: ='Energy Data Entry'!B33 -> 2016-03-01 | C14: 2.18 | D14: 136.8 | E14: 4.35 | F14: 2408.09994 | G14: 31 | H14: 12 | J14: 2.9 | K14: 1.1 | L14: 20.4 | M14: 9 | N14: 0.6
B15: ='Energy Data Entry'!B34 -> 2016-04-01 | C15: 1.52 | D15: 194.4 | E15: 5.2 | F15: 2398.45056 | G15: 40 | H15: 15 | J15: 2.9 | K15: 1.6 | L15: 19.4 | M15: 7.6 | N15: 1.5
B16: ='Energy Data Entry'!B35 -> 2016-05-01 | C16: 2.14 | D16: 169.2 | E16: 5.25 | F16: 2926.11402 | G16: 34 | H16: 11 | J16: 2.7 | K16: 0.8 | L16: 13.8 | M16: 7.2 | N16: 1.3
B17: ='Energy Data Entry'!B36 -> 2016-06-01 | C17: 2.2 | D17: 140.4 | E17: 4.5 | F17: 2493.4932 | G17: 34 | H17: 13 | J17: 2.9 | K17: 1 | L17: 20.1 | M17: 7.8 | N17: 1.5
B18: ='Energy Data Entry'!B37 -> 2016-07-01 | C18: 1.68 | D18: 149.4 | E18: 4.15 | F18: =IF(C18*(D18-E18)*8.34=0,"",C18*(D18-E18)*8.34) -> 2035.1268 | G18: 31 | H18: 18 | J18: 3.2 | K18: 1.3 | L18: 9.5 | M18: 7.2 | N18: 1
B19: ='Energy Data Entry'!B38 -> 2016-08-01 | C19: 2.5 | D19: 201.6 | E19: 5.35 | F19: =IF(C19*(D19-E19)*8.34=0,"",C19*(D19-E19)*8.34) -> 4091.8125 | G19: 40 | H19: 16 | J19: 2.7 | K19: 0.9 | L19: 13.4 | M19: 8.6 | N19: 1.2
B20: ='Energy Data Entry'!B39 -> 2016-09-01 | C20: 1.98 | D20: 219.6 | E20: 6 | F20: 3527.21952 | G20: 34 | H20: 15 | J20: 2.8 | K20: 1.3 | L20: 20.3 | M20: 9 | N20: 1.2
B21: ='Energy Data Entry'!B40 -> 2016-10-01 | C21: 2.28 | D21: 207 | E21: 3.75 | F21: 3864.8394 | G21: 35 | H21: 15 | J21: 2.9 | K21: 1.6 | L21: 20.1 | M21: 8 | N21: 1.2
B22: ='Energy Data Entry'!B41 -> 2016-11-01 | C22: 2.28 | D22: 221.4 | E22: 4.6 | F22: 4122.49536 | G22: 39 | H22: 11 | J22: 2.8 | K22: 1.6 | L22: 9.6 | M22: 7.4 | N22: 1.3
B23: ='Energy Data Entry'!B42 -> 2016-12-01 | C23: 2.3 | D23: 160.2 | E23: 5 | F23: 2977.0464 | G23: 31 | H23: 15 | J23: 3 | K23: 1.1 | L23: 11.7 | M23: 6.9 | N23: 1.3
B24: ='Energy Data Entry'!B43 -> 2017-01-01 | C24: 2.4 | D24: 172.8 | E24: 5.25 | F24: 3353.6808 | G24: 31 | H24: 14 | J24: 3.1 | K24: 1.6 | L24: 11.1 | M24: 7 | N24: 0.8
B25: ='Energy Data Entry'!B44 -> 2017-02-01 | C25: 1.82 | D25: 201.6 | E25: 4.8 | F25: 2987.18784 | G25: 33 | H25: 12 | J25: 3.1 | K25: 0.8 | L25: 21 | M25: 8.4 | N25: 0.7
B26: ='Energy Data Entry'!B45 -> 2017-03-01 | C26: 2.44 | D26: 181.8 | E26: 4.4 | F26: 3610.01904 | G26: 32 | H26: 11 | J26: 3.2 | K26: 1.4 | L26: 18.2 | M26: 8.6 | N26: 0.8
B27: ='Energy Data Entry'!B46 -> 2017-04-01 | C27: 1.62 | D27: 167.4 | E27: 5.95 | F27: 2181.31866 | G27: 33 | H27: 14 | J27: 2.8 | K27: 0.9 | L27: 11 | M27: 7.8 | N27: 1.5
B28: ='Energy Data Entry'!B47 -> 2017-05-01 | C28: 2.44 | D28: 145.8 | E28: 4.3 | F28: 2879.4684 | G28: 36 | H28: 11 | J28: 3 | K28: 0.8 | L28: 16.5 | M28: 7.8 | N28: 1.2
B29: ='Energy Data Entry'!B48 -> 2017-06-01 | C29: 2 | D29: 151.2 | E29: 3.85 | F29: 2457.798 | G29: 39 | H29: 14 | J29: 3.2 | K29: 1.5 | L29: 11.6 | M29: 8.5 | N29: 0.7
B30: ='Energy Data Entry'!B49 -> 2017-07-01 | C30: 1.88 | D30: 194.4 | E30: 3.75 | F30: 2989.23948 | G30: 39 | H30: 16 | J30: 2.9 | K30: 1.2 | L30: 11.5 | M30: 7.5 | N30: 1.3
B31: ='Energy Data Entry'!B50 -> 2017-08-01 | C31: 2.46 | D31: 187.2 | E31: 6.25 | F31: 3712.44258 | G31: 31 | H31: 18 | J31: 2.8 | K31: 0.8 | L31: 9.6 | M31: 8.3 | N31: 1.1
B32: ='Energy Data Entry'!B51 -> 2017-09-01 | C32: 2.18 | D32: 167.4 | E32: 4.85 | F32: 2955.35406 | G32: 37 | H32: 14 | J32: 2.9 | K32: 1.4 | L32: 9.8 | M32: 7.7 | N32: 1.1
B33: ='Energy Data Entry'!B52 -> 2017-10-01 | C33: 1.68 | D33: 194.4 | E33: 5.45 | F33: 2647.41624 | G33: 39 | H33: 11 | J33: 2.8 | K33: 1 | L33: 11.5 | M33: 8.8 | N33: 1.1
B34: ='Energy Data Entry'!B53 -> 2017-11-01 | C34: 1.82 | D34: 145.8 | E34: 6.05 | F34: 2121.2373 | G34: 31 | H34: 16 | J34: 2.7 | K34: 1.1 | L34: 11.3 | M34: 7.4 | N34: 1
B35: ='Energy Data Entry'!B54 -> 2017-12-01 | C35: 1.92 | D35: 198 | E35: 3.95 | F35: 3107.28384 | G35: 35 | H35: 17 | J35: 2.8 | K35: 1.2 | L35: 9.3 | M35: 7.3 | N35: 1.4
B36: ='Energy Data Entry'!B55 -> 2018-01-01 | C36: 1.68 | D36: 174.6 | E36: 4.2 | F36: 2387.50848 | G36: 30 | H36: 12 | J36: 2.9 | K36: 1.5 | L36: 8.6 | M36: 7 | N36: 1.3
B37: ='Energy Data Entry'!B56 -> 2018-02-01 | C37: 2.24 | D37: 201.6 | E37: 4.55 | F37: 3681.20928 | G37: 39 | H37: 12 | J37: 2.9 | K37: 0.8 | L37: 10.4 | M37: 8.1 | N37: 1.4
B38: ='Energy Data Entry'!B57 -> 2018-03-01 | C38: 2.34 | D38: 183.6 | E38: 4.2 | F38: 3501.09864 | G38: 36 | H38: 13 | J38: 2.9 | K38: 0.9 | L38: 11 | M38: 8.2 | N38: 1.1
B39: ='Energy Data Entry'!B58 -> 2018-04-01 | C39: 2.26 | D39: 153 | E39: 5.45 | F39: 2781.08142 | G39: 36 | H39: 13 | J39: 3.1 | K39: 1.2 | L39: 11.6 | M39: 7.1 | N39: 1.2
B40: ='Energy Data Entry'!B59 -> 2018-05-01 | C40: 1.88 | D40: 140.4 | E40: 4.55 | F40: 2130.01932 | G40: 35 | H40: 15 | J40: 3.2 | K40: 1.5 | L40: 9.2 | M40: 8.4 | N40: 1.2
B41: ='Energy Data Entry'!B60 -> 2018-06-01 | C41: 1.52 | D41: 225 | E41: 3.95 | F41: =IF(C41*(D41-E41)*8.34=0,"",C41*(D41-E41)*8.34) -> 2802.20664 | G41: 32 | H41: 11 | J41: 2.8 | K41: 1.4 | L41: 9.2 | M41: 8.9 | N41: 0.7
B42: ='Energy Data Entry'!B61 -> 2018-07-01 | C42: 2.06 | D42: 165.6 | E42: 4.25 | F42: 2772.05754 | G42: 30 | H42: 13 | J42: 3.2 | K42: 1 | L42: 10.5 | M42: 9.6 | N42: 1.2
B43: ='Energy Data Entry'!B62 -> 2018-08-01 | C43: 2.16 | D43: 183.6 | E43: 5.65 | F43: 3205.66248 | G43: 37 | H43: 14 | J43: 3 | K43: 1.3 | L43: 8.3 | M43: 7.8 | N43: 0.5
B44: ='Energy Data Entry'!B63 -> 2018-09-01 | C44: 2.22 | D44: 196.2 | E44: 3.75 | F44: 3563.17326 | G44: 35 | H44: 16 | J44: 2.9 | K44: 1.1 | L44: 10.3 | M44: 8.4 | N44: 1.2
B45: ='Energy Data Entry'!B64 -> 2018-10-01 | C45: 2.06 | D45: 190.8 | E45: 5.95 | F45: 3175.79694 | G45: 38 | H45: 17 | J45: 3.2 | K45: 1.6 | L45: 11.6 | M45: 7.4 | N45: 0.6
B46: ='Energy Data Entry'!B65 -> 2018-11-01 | C46: 1.9 | D46: 205.2 | E46: 5 | F46: 3172.3692 | G46: 32 | H46: 16 | J46: 3.3 | K46: 1.1 | L46: 8.6 | M46: 7.6 | N46: 1.2
B47: ='Energy Data Entry'!B66 -> 2018-12-01 | C47: 2.5 | D47: 214.2 | E47: 5.65 | F47: 4348.2675 | G47: 31 | H47: 12 | J47: 3.3 | K47: 1.5 | L47: 11.5 | M47: 8.7 | N47: 1.5
B48: ='Energy Data Entry'!B67 -> 2019-01-01 | C48: 1.6 | D48: 199.8 | E48: 3.9 | F48: 2614.0896 | G48: 37 | H48: 16 | J48: 3 | K48: 0.8 | L48: 9.5 | M48: 9.5 | N48: 0.8
B49: ='Energy Data Entry'!B68 -> 2019-02-01 | C49: 1.64 | D49: 144 | E49: 4.4 | F49: 1909.39296 | G49: 35 | H49: 11 | J49: 2.7 | K49: 1.1 | L49: 11.4 | M49: 6.8 | N49: 1.5
B50: ='Energy Data Entry'!B69 -> 2019-03-01 | C50: 2.44 | D50: 183.6 | E50: 5.1 | F50: 3632.4036 | G50: 35 | H50: 17 | J50: 3.1 | K50: 1.4 | L50: 8.4 | M50: 8.2 | N50: 1.2
B51: ='Energy Data Entry'!B70 -> 2019-04-01 | C51: 1.8 | D51: 142.2 | E51: 4 | F51: 2074.6584 | G51: 38 | H51: 14 | J51: 3.2 | K51: 1.3 | L51: 11.1 | M51: 8.6 | N51: 1.4
B52: ='Energy Data Entry'!B71 -> 2019-05-01 | C52: 2.34 | D52: 187.2 | E52: 4.8 | F52: 3559.64544 | G52: 35 | H52: 17 | J52: 3 | K52: 1.3 | L52: 11.9 | M52: 7 | N52: 0.5
B53: ='Energy Data Entry'!B72 -> 2019-06-01 | C53: 1.72 | D53: 169.2 | E53: 5.15 | F53: 2353.26444 | G53: 39 | H53: 11 | J53: 3.2 | K53: 1.1 | L53: 8.6 | M53: 7.1 | N53: 1.2
B54: ='Energy Data Entry'!B73 -> 2019-07-01 | C54: 2.36 | D54: 140.4 | E54: 6 | F54: 2645.31456 | G54: 40 | H54: 14 | J54: 3.2 | K54: 0.9 | L54: 9.3 | M54: 9.6 | N54: 0.8
B55: ='Energy Data Entry'!B74 -> 2019-08-01 | C55: 1.96 | D55: 214.2 | E55: 5.85 | F55: 3405.77244 | G55: 38 | H55: 11 | J55: 2.7 | K55: 1.3 | L55: 6.6 | M55: 8.2 | N55: 0.7
B56: ='Energy Data Entry'!B75 -> 2019-09-01 | C56: 1.92 | D56: 156.6 | E56: 5.6 | F56: 2417.9328 | G56: 30 | H56: 15 | J56: 2.9 | K56: 1.2 | L56: 7.6 | M56: 8.6 | N56: 0.6
B57: ='Energy Data Entry'!B76 -> 2019-10-01 | C57: 1.96 | D57: 212.4 | E57: 5.25 | F57: 3386.15676 | G57: 37 | H57: 13 | J57: 3.2 | K57: 1.1 | L57: 7.8 | M57: 7 | N57: 1.4
B58: ='Energy Data Entry'!B77 -> 2019-11-01 | C58: 2.26 | D58: 201.6 | E58: 3.8 | F58: 3728.21352 | G58: 34 | H58: 17 | J58: 3.2 | K58: 0.8 | L58: 7 | M58: 7.4 | N58: 1.4
B59: ='Energy Data Entry'!B78 -> 2019-12-01 | C59: 1.78 | D59: 153 | E59: 5.4 | F59: 2191.15152 | G59: 33 | H59: 16 | J59: 3.2 | K59: 1.6 | L59: 8.6 | M59: 7.5 | N59: 1.2
B60: ='Energy Data Entry'!B79 -> 2020-01-01 | C60: 2.34 | D60: 181.8 | E60: 5.6 | F60: 3438.64872 | G60: 37 | H60: 15 | J60: 3.3 | K60: 0.8 | L60: 7.8 | M60: 6.9 | N60: 1.1
B61: ='Energy Data Entry'!B80 -> 2020-02-01 | C61: 2.42 | D61: 194.4 | E61: 5.7 | F61: 3808.49436 | G61: 35 | H61: 15 | J61: 2.8 | K61: 1.4 | L61: 7.9 | M61: 7 | N61: 0.6
B62: ='Energy Data Entry'!B81 -> 2020-03-01 | C62: 1.92 | D62: 198 | E62: 4.7 | F62: 3095.27424 | G62: 30 | H62: 14 | J62: 3.2 | K62: 1 | L62: 7.9 | M62: 8 | N62: 1.3
B63: ='Energy Data Entry'!B82 -> 2020-04-01 | C63: 1.74 | D63: 165.6 | E63: 4.55 | F63: 2337.09318 | G63: 33 | H63: 18 | J63: 2.8 | K63: 1 | L63: 9 | M63: 9.3 | N63: 1
B64: ='Energy Data Entry'!B83 -> 2020-05-01 | C64: 1.52 | D64: 151.2 | E64: 4.8 | F64: 1855.88352 | G64: 38 | H64: 12 | J64: 2.8 | K64: 1 | L64: 9.3 | M64: 9 | N64: 1.5
B65: ='Energy Data Entry'!B84 -> 2020-06-01 | C65: 2.16 | D65: 154.8 | E65: 4.6 | F65: 2705.76288 | G65: 33 | H65: 18 | J65: 2.9 | K65: 1 | L65: 6.4 | M65: 7.4 | N65: 1.2
B66: ='Energy Data Entry'!B85 -> 2020-07-01 | C66: 1.96 | D66: 158.4 | E66: 5 | F66: 2507.53776 | G66: 38 | H66: 13 | J66: 3.2 | K66: 1.6 | L66: 7.1 | M66: 8.1 | N66: 0.9
B67: ='Energy Data Entry'!B86 -> 2020-08-01 | C67: 2.36 | D67: 178.2 | E67: 5.4 | F67: 3401.11872 | G67: 32 | H67: 14 | J67: 3.3 | K67: 0.9 | L67: 8.6 | M67: 9.1 | N67: 1
B68: ='Energy Data Entry'!B87 -> 2020-09-01 | C68: 2.12 | D68: 165.6 | E68: 4.2 | F68: 2853.68112 | G68: 37 | H68: 14 | J68: 3 | K68: 1.2 | L68: 9.6 | M68: 8.3 | N68: 1.1
B69: ='Energy Data Entry'!B88 -> 2020-10-01 | C69: 1.72 | D69: 183.6 | E69: 6.05 | F69: 2546.91924 | G69: 30 | H69: 12 | J69: 2.7 | K69: 1.6 | L69: 8.2 | M69: 8.6 | N69: 0.9
B70: ='Energy Data Entry'!B89 -> 2020-11-01 | C70: 1.64 | D70: 153 | E70: 6.05 | F70: 2009.92332 | G70: 38 | H70: 13 | J70: 3.3 | K70: 1.2 | L70: 7.4 | M70: 7.8 | N70: 1.4
B71: ='Energy Data Entry'!B90 -> 2020-12-01 | C71: 2.12 | D71: 225 | E71: 5.1 | F71: 3888.00792 | G71: 32 | H71: 15 | J71: 3.2 | K71: 1.5 | L71: 9.5 | M71: 8.2 | N71: 1.4
B72: ='Energy Data Entry'!B91 -> 2021-01-01 | C72: 1.78 | D72: 153 | E72: 4 | F72: 2211.9348 | G72: 38 | H72: 17 | J72: 3.2 | K72: 1.3 | L72: 7.8 | M72: 9.4 | N72: 0.8
B73: ='Energy Data Entry'!B92 -> 2021-02-01 | C73: 2.04 | D73: 151.2 | E73: 5.35 | F73: 2481.43356 | G73: 32 | H73: 16 | J73: 2.7 | K73: 1.2 | L73: 8.8 | M73: 9 | N73: 1.3
B74: ='Energy Data Entry'!B93 -> 2021-03-01 | C74: 1.74 | D74: 198 | E74: 3.75 | F74: 2818.8783 | G74: 35 | H74: 16 | J74: 3.2 | K74: 1 | L74: 7.8 | M74: 7.8 | N74: 0.6
B75: ='Energy Data Entry'!B94 -> 2021-04-01 | C75: 2.22 | D75: 189 | E75: 4.85 | F75: 3409.50042 | G75: 32 | H75: 18 | J75: 2.9 | K75: 1.3 | L75: 7.7 | M75: 8.2 | N75: 1
B76: ='Energy Data Entry'!B95 -> 2021-05-01 | C76: 2.36 | D76: 169.2 | E76: 3.8 | F76: 3255.46896 | G76: 32 | H76: 13 | J76: 3 | K76: 1.4 | L76: 8.6 | M76: 8.6 | N76: 1.5
B77: ='Energy Data Entry'!B96 -> 2021-06-01 | C77: 1.84 | D77: 153 | E77: 5.9 | F77: 2257.33776 | G77: 39 | H77: 13 | J77: 3.3 | K77: 1.3 | L77: 8.3 | M77: 7.4 | N77: 0.7
B78: ='Energy Data Entry'!B97 -> 2021-07-01 | C78: 1.7 | D78: 162 | E78: 6.15 | F78: 2209.6413 | G78: 40 | H78: 11 | J78: 3.1 | K78: 0.8 | L78: 8.9 | M78: 8.2 | N78: 1.3
B79: ='Energy Data Entry'!B98 -> 2021-08-01 | C79: 1.78 | D79: 192.6 | E79: 6 | F79: 2770.11432 | G79: 35 | H79: 16 | J79: 3 | K79: 1 | L79: 9.1 | M79: 8.3 | N79: 1.2
B80: ='Energy Data Entry'!B99 -> 2021-09-01 | C80: 1.5 | D80: 201.6 | E80: 6 | F80: 2446.956 | G80: 40 | H80: 16 | J80: 2.8 | K80: 1.2 | L80: 7 | M80: 9.1 | N80: 1.5
B81: ='Energy Data Entry'!B100 -> 2021-10-01 | C81: 2.44 | D81: 225 | E81: 4.95 | F81: 4477.92948 | G81: 40 | H81: 14 | J81: 2.9 | K81: 1.4 | L81: 9.4 | M81: 8.2 | N81: 0.7
B82: ='Energy Data Entry'!B101 -> 2021-11-01 | C82: 1.52 | D82: 199.8 | E82: 5.2 | F82: 2466.90528 | G82: 39 | H82: 15 | J82: 2.8 | K82: 1.4 | L82: 7.4 | M82: 9 | N82: 0.6
B83: ='Energy Data Entry'!B102 -> 2021-12-01 | C83: 1.84 | D83: 190.8 | E83: 4.5 | F83: =IF(C83*(D83-E83)*8.34=0,"",C83*(D83-E83)*8.34) -> 2858.88528 | G83: 38 | H83: 15 | J83: 2.9 | K83: 1.2 | L83: 7.1 | M83: 7.4 | N83: 1.3
B84: ='Energy Data Entry'!B103 -> 2022-01-01 | C84: 2.3 | D84: 162 | E84: 5.1 | F84: 3009.6558 | G84: 32 | H84: 16 | J84: 2.8 | K84: 1.3 | L84: 8.6 | M84: 8.8 | N84: 0.8
B85: ='Energy Data Entry'!B104 -> 2022-02-01 | C85: 2.08 | D85: 219.6 | E85: 3.75 | F85: 3744.39312 | G85: 37 | H85: 18 | J85: 2.8 | K85: 1.4 | L85: 6.9 | M85: 8.6 | N85: 1.1
B86: ='Energy Data Entry'!B105 -> 2022-03-01 | C86: 2.38 | D86: 208.8 | E86: 5.85 | F86: 4028.39514 | G86: 33 | H86: 12 | J86: 3.2 | K86: 0.8 | L86: 9.3 | M86: 7.7 | N86: 0.8
B87: ='Energy Data Entry'!B106 -> 2022-04-01 | C87: 1.64 | D87: 172.8 | E87: 6.25 | F87: 2278.00428 | G87: 32 | H87: 12 | J87: 3.1 | K87: 1 | L87: 6.6 | M87: 8.5 | N87: 1.1
B88: ='Energy Data Entry'!B107 -> 2022-05-01 | C88: 1.6 | D88: 158.4 | E88: 5.9 | F88: 2034.96 | G88: 31 | H88: 12 | J88: 2.9 | K88: 1.7 | L88: 7.3 | M88: 7.2 | N88: 0.6
B89: ='Energy Data Entry'!B108 -> 2022-06-01 | C89: 1.54 | D89: 142.2 | E89: 4.3 | F89: 1771.13244 | G89: 36 | H89: 16 | J89: 3.1 | K89: 1.5 | L89: 6.8 | M89: 8.1 | N89: 0.6

Sheet Flow-based Summary
B2: Flow-based Energy and Cost Savings
C5: ='Background Calculations'!C147 -> Baseline: Jul 2015 - Jun 2017 | D5: =CONCATENATE('Background Calculations'!C149,'Background Calculations'!H188) -> Jul 2017 - Jun 2018 | E5: =CONCATENATE('Background Calculations'!C150,'Background Calculations'!H189) -> Jul 2018 - Jun 2019 | F5: =CONCATENATE('Background Calculations'!C151,'Background Calculations'!H190) -> Jul 2019 - Jun 2020 (to date) | G5: =CONCATENATE('Background Calculations'!C152,'Background Calculations'!H191) -> Jul 2020 - Jun 2021 | H5: =CONCATENATE('Background Calculations'!C153,'Background Calculations'!H192) -> Jul 2021 - Jun 2022 | I5: Cumulative Change
B6: Avg energy usage (kWh/month) | C6: =IFERROR('Background Calculations'!F147,"") -> 173165.1833 | D6: =IFERROR('Background Calculations'!F149,"") -> 153067.25 | E6: =IFERROR('Background Calculations'!F150,"") -> 160175.4167 | F6: =IFERROR('Background Calculations'!F151,"") -> 143669.0833 | G6: =IFERROR('Background Calculations'!F152,"") -> 141379.75 | H6: =IFERROR('Background Calculations'!F153,"") -> 128026.5833 | I6: =IFERROR('Background Calculations'!F154,"") -> -0.1611268855
B7: % change from baseline | C7: N/A | D7: =IFERROR(ROUND((D6/$C$6-1)*100,1)&"%","") -> -11.6% | E7: =IFERROR(ROUND((E6/$C$6-1)*100,1)&"%","") -> -7.5% | F7: =IFERROR(ROUND((F6/$C$6-1)*100,1)&"%","") -> -17% | G7: =IFERROR(ROUND((G6/$C$6-1)*100,1)&"%","") -> -18.4% | H7: =IFERROR(ROUND((H6/$C$6-1)*100,1)&"%","") -> -26.1%
B8: Average Daily Flow (MGD) | C8: =IFERROR('Background Calculations'!D147,"") -> 2.0175 | D8: =IFERROR('Background Calculations'!D149,"") -> 1.988333333 | E8: =IFERROR('Background Calculations'!D150,"") -> 2.036666667 | F8: =IFERROR('Background Calculations'!D151,"") -> 2.028333333 | G8: =IFERROR('Background Calculations'!D152,"") -> 1.991666667 | H8: =IFERROR('Background Calculations'!D153,"") -> 1.86 | I8: =IFERROR('Background Calculations'!D154,"") -> -0.01809169765
B9: % change from baseline | C9: N/A | D9: =IFERROR(ROUND((D8/$C$8-1)*100,1)&"%","") -> -1.4% | E9: =IFERROR(ROUND((E8/$C$8-1)*100,1)&"%","") -> 1% | F9: =IFERROR(ROUND((F8/$C$8-1)*100,1)&"%","") -> 0.5% | G9: =IFERROR(ROUND((G8/$C$8-1)*100,1)&"%","") -> -1.3% | H9: =IFERROR(ROUND((H8/$C$8-1)*100,1)&"%","") -> -7.8%
B10: Energy Efficiency (kWh/MG) | C10: =IFERROR('Background Calculations'!G147,"") -> 2815.007451 | D10: =IFERROR('Background Calculations'!G149,"") -> 2532.967897 | E10: =IFERROR('Background Calculations'!G150,"") -> 2579.729693 | F10: =IFERROR('Background Calculations'!G151,"") -> 2324.679755 | G10: =IFERROR('Background Calculations'!G152,"") -> 2333.769396 | H10: =IFERROR('Background Calculations'!G153,"") -> 2261.021664 | I10: =IFERROR('Background Calculations'!G154,"") -> -0.1442951722
B11: % change from baseline | C11: N/A | D11: =IFERROR(ROUND((D10/$C$10-1)*100,1)&"%","") -> -10% | E11: =IFERROR(ROUND((E10/$C$10-1)*100,1)&"%","") -> -8.4% | F11: =IFERROR(ROUND((F10/$C$10-1)*100,1)&"%","") -> -17.4% | G11: =IFERROR(ROUND((G10/$C$10-1)*100,1)&"%","") -> -17.1% | H11: =IFERROR(ROUND((H10/$C$10-1)*100,1)&"%","") -> -19.7%
B12: Monthly Energy Cost ($/month) | C12: =IFERROR('Background Calculations'!H147,"") -> 14028.161 | D12: =IFERROR('Background Calculations'!H149,"") -> 13353.37125 | E12: =IFERROR('Background Calculations'!H150,"") -> 13673.56875 | F12: =IFERROR('Background Calculations'!H151,"") -> 12412.03208 | G12: =IFERROR('Background Calculations'!H152,"") -> 12957.04125 | H12: =IFERROR('Background Calculations'!H153,"") -> 12519.99375 | I12: =IFERROR('Background Calculations'!H154,"") -> -0.07449013333
B13: % change from baseline | C13: N/A | D13: =IFERROR(ROUND((D12/$C$12-1)*100,1)&"%","") -> -4.8% | E13: =IFERROR(ROUND((E12/$C$12-1)*100,1)&"%","") -> -2.5% | F13: =IFERROR(ROUND((F12/$C$12-1)*100,1)&"%","") -> -11.5% | G13: =IFERROR(ROUND((G12/$C$12-1)*100,1)&"%","") -> -7.6% | H13: =IFERROR(ROUND((H12/$C$12-1)*100,1)&"%","") -> -10.8%
B14: Energy Cost Efficiency ($/MG) | C14: =IFERROR('Background Calculations'!J147,"") -> 228.0445582 | D14: =IFERROR('Background Calculations'!J149,"") -> 220.9725509 | E14: =IFERROR('Background Calculations'!J150,"") -> 220.2217547 | F14: =IFERROR('Background Calculations'!J151,"") -> 200.8365268 | G14: =IFERROR('Background Calculations'!J152,"") -> 213.8831504 | H14: =IFERROR('Background Calculations'!J153,"") -> 221.1101504 | I14: =IFERROR('Background Calculations'!J154,"") -> -0.05592008212
B15: % change from baseline | C15: N/A | D15: =IFERROR(ROUND((D14/$C$14-1)*100,1)&"%","") -> -3.1% | E15: =IFERROR(ROUND((E14/$C$14-1)*100,1)&"%","") -> -3.4% | F15: =IFERROR(ROUND((F14/$C$14-1)*100,1)&"%","") -> -11.9% | G15: =IFERROR(ROUND((G14/$C$14-1)*100,1)&"%","") -> -6.2% | H15: =IFERROR(ROUND((H14/$C$14-1)*100,1)&"%","") -> -3%
B16: Cost of Electriciity ($/kWh) | C16: =IFERROR('Background Calculations'!I147,"") -> 0.08101028584 | D16: =IFERROR('Background Calculations'!I149,"") -> 0.08723859121 | E16: =IFERROR('Background Calculations'!I150,"") -> 0.08536621308 | F16: =IFERROR('Background Calculations'!I151,"") -> 0.08639320162 | G16: =IFERROR('Background Calculations'!I152,"") -> 0.09164707994 | H16: =IFERROR('Background Calculations'!I153,"") -> 0.09779214148 | I16: =IFERROR('Background Calculations'!I154,"") -> 0.1032775406
B17: % change from baseline | C17: N/A | D17: =IFERROR(ROUND((D16/$C$16-1)*100,1)&"%","") -> 7.7% | E17: =IFERROR(ROUND((E16/$C$16-1)*100,1)&"%","") -> 5.4% | F17: =IFERROR(ROUND((F16/$C$16-1)*100,1)&"%","") -> 6.6% | G17: =IFERROR(ROUND((G16/$C$16-1)*100,1)&"%","") -> 13.1% | H17: =IFERROR(ROUND((H16/$C$16-1)*100,1)&"%","") -> 20.7%
B18: ='Background Calculations'!N145 -> Avg Billed Electric Demand (kW) | C18: =IFERROR('Background Calculations'!N147,"") -> 330.75 | D18: =IFERROR('Background Calculations'!N149,"") -> 288.5 | E18: =IFERROR('Background Calculations'!N150,"") -> 283.6666667 | F18: =IFERROR('Background Calculations'!N151,"") -> 260.8333333 | G18: =IFERROR('Background Calculations'!N152,"") -> 248.25 | H18: =IFERROR('Background Calculations'!N153,"") -> 227.75 | I18: =IFERROR('Background Calculations'!N154,"") -> -0.2084656085
B19: % change from baseline | C19: N/A | D19: =IFERROR(ROUND((D18/$C$18-1)*100,1)&"%","") -> -12.8% | E19: =IFERROR(ROUND((E18/$C$18-1)*100,1)&"%","") -> -14.2% | F19: =IFERROR(ROUND((F18/$C$18-1)*100,1)&"%","") -> -21.1% | G19: =IFERROR(ROUND((G18/$C$18-1)*100,1)&"%","") -> -24.9% | H19: =IFERROR(ROUND((H18/$C$18-1)*100,1)&"%","") -> -31.1%
I20: Cumulative Savings
B21: Energy Savings (kWh) | C21: N/A | D21: =IFERROR('Background Calculations'!K149,"") -> 204523.803 | E21: =IFERROR('Background Calculations'!K150,"") -> 175300.7514 | F21: =IFERROR('Background Calculations'!K151,"") -> 363636.8256 | G21: =IFERROR('Background Calculations'!K152,"") -> 349840.8164 | H21: =IFERROR('Background Calculations'!K153,"") -> 376422.2626 | I21: =IF(SUM(D21:H21)=0,"",SUM(D21:H21)) -> 1469724.459
B22: Energy Cost Savings | C22: N/A | D22: =IFERROR('Background Calculations'!O149,"") -> 5128.336852 | E22: =IFERROR('Background Calculations'!O150,"") -> 5828.614452 | F22: =IFERROR('Background Calculations'!O151,"") -> 20178.02028 | G22: =IFERROR('Background Calculations'!O152,"") -> 10294.77706 | H22: =IFERROR('Background Calculations'!O153,"") -> 4711.791431 | I22: =IF(SUM(D22:H22)=0,"",SUM(D22:H22)) -> 46141.54007

Sheet BOD-based Summary
B2: BOD-based Energy and Cost Savings
C5: ='Background Calculations'!C147 -> Baseline: Jul 2015 - Jun 2017 | D5: =CONCATENATE('Background Calculations'!C149,'Background Calculations'!H188) -> Jul 2017 - Jun 2018 | E5: =CONCATENATE('Background Calculations'!C150,'Background Calculations'!H189) -> Jul 2018 - Jun 2019 | F5: =CONCATENATE('Background Calculations'!C151,'Background Calculations'!H190) -> Jul 2019 - Jun 2020 (to date) | G5: =CONCATENATE('Background Calculations'!C152,'Background Calculations'!H191) -> Jul 2020 - Jun 2021 | H5: =CONCATENATE('Background Calculations'!C153,'Background Calculations'!H192) -> Jul 2021 - Jun 2022 | I5: Cumulative Change
B6: Avg energy usage (kWh/month) | C6: =IFERROR('Background Calculations'!F160,"") -> 173165.1833 | D6: =IFERROR('Background Calculations'!F162,"") -> 153067.25 | E6: =IFERROR('Background Calculations'!F163,"") -> 160175.4167 | F6: =IFERROR('Background Calculations'!F164,"") -> 143669.0833 | G6: =IFERROR('Background Calculations'!F165,"") -> 141379.75 | H6: =IFERROR('Background Calculations'!F166,"") -> 128026.5833 | I6: =IFERROR('Background Calculations'!F167,"") -> -0.1611268855
B7: % change from baseline | C7: N/A | D7: =IFERROR(ROUND((D6/$C$6-1)*100,1)&"%","") -> -11.6% | E7: =IFERROR(ROUND((E6/$C$6-1)*100,1)&"%","") -> -7.5% | F7: =IFERROR(ROUND((F6/$C$6-1)*100,1)&"%","") -> -17% | G7: =IFERROR(ROUND((G6/$C$6-1)*100,1)&"%","") -> -18.4% | H7: =IFERROR(ROUND((H6/$C$6-1)*100,1)&"%","") -> -26.1%
B8: Average BOD removal (lbs/d) | C8: =IFERROR('Background Calculations'!D160,"") -> 2848.976665 | D8: =IFERROR('Background Calculations'!D162,"") -> 2901.34144 | E8: =IFERROR('Background Calculations'!D163,"") -> 3031.73178 | F8: =IFERROR('Background Calculations'!D164,"") -> 2917.974875 | G8: =IFERROR('Background Calculations'!D165,"") -> 2803.47849 | H8: =IFERROR('Background Calculations'!D166,"") -> 2841.41437 | I8: =IFERROR('Background Calculations'!D167,"") -> 0.0176244076
B9: % change from baseline | C9: N/A | D9: =IFERROR(ROUND((D8/$C$8-1)*100,1)&"%","") -> 1.8% | E9: =IFERROR(ROUND((E8/$C$8-1)*100,1)&"%","") -> 6.4% | F9: =IFERROR(ROUND((F8/$C$8-1)*100,1)&"%","") -> 2.4% | G9: =IFERROR(ROUND((G8/$C$8-1)*100,1)&"%","") -> -1.6% | H9: =IFERROR(ROUND((H8/$C$8-1)*100,1)&"%","") -> -0.3%
B10: Energy Efficiency (kWh/lb BOD) | C10: =IFERROR('Background Calculations'!G160,"") -> 1.994587781 | D10: =IFERROR('Background Calculations'!G162,"") -> 1.736776476 | E10: =IFERROR('Background Calculations'!G163,"") -> 1.730203652 | F10: =IFERROR('Background Calculations'!G164,"") -> 1.616255981 | G10: =IFERROR('Background Calculations'!G165,"") -> 1.655307959 | H10: =IFERROR('Background Calculations'!G166,"") -> 1.481774912 | I10: =IFERROR('Background Calculations'!G167,"") -> -0.1750422604
B11: % change from baseline | C11: N/A | D11: =IFERROR(ROUND((D10/$C$10-1)*100,1)&"%","") -> -12.9% | E11: =IFERROR(ROUND((E10/$C$10-1)*100,1)&"%","") -> -13.3% | F11: =IFERROR(ROUND((F10/$C$10-1)*100,1)&"%","") -> -19% | G11: =IFERROR(ROUND((G10/$C$10-1)*100,1)&"%","") -> -17% | H11: =IFERROR(ROUND((H10/$C$10-1)*100,1)&"%","") -> -25.7%
B12: Monthly Energy Cost ($/month) | C12: =IFERROR('Background Calculations'!H160,"") -> 14028.161 | D12: =IFERROR('Background Calculations'!H162,"") -> 13353.37125 | E12: =IFERROR('Background Calculations'!H163,"") -> 13673.56875 | F12: =IFERROR('Background Calculations'!H164,"") -> 12412.03208 | G12: =IFERROR('Background Calculations'!H165,"") -> 12957.04125 | H12: =IFERROR('Background Calculations'!H166,"") -> 12519.99375 | I12: =IFERROR('Background Calculations'!H167,"") -> -0.07449013333
B13: % change from baseline | C13: N/A | D13: =IFERROR(ROUND((D12/$C$12-1)*100,1)&"%","") -> -4.8% | E13: =IFERROR(ROUND((E12/$C$12-1)*100,1)&"%","") -> -2.5% | F13: =IFERROR(ROUND((F12/$C$12-1)*100,1)&"%","") -> -11.5% | G13: =IFERROR(ROUND((G12/$C$12-1)*100,1)&"%","") -> -7.6% | H13: =IFERROR(ROUND((H12/$C$12-1)*100,1)&"%","") -> -10.8%
B14: Energy Cost Efficiency ($/lb BOD) | C14: =IFERROR('Background Calculations'!J160,"") -> 0.1615821263 | D14: =IFERROR('Background Calculations'!J162,"") -> 0.151513933 | E14: =IFERROR('Background Calculations'!J163,"") -> 0.1477009337 | F14: =IFERROR('Background Calculations'!J164,"") -> 0.1396335288 | G14: =IFERROR('Background Calculations'!J165,"") -> 0.1517041408 | H14: =IFERROR('Background Calculations'!J166,"") -> 0.1449059419 | I14: =IFERROR('Background Calculations'!J167,"") -> -0.0898426539
B15: % change from baseline | C15: N/A | D15: =IFERROR(ROUND((D14/$C$14-1)*100,1)&"%","") -> -6.2% | E15: =IFERROR(ROUND((E14/$C$14-1)*100,1)&"%","") -> -8.6% | F15: =IFERROR(ROUND((F14/$C$14-1)*100,1)&"%","") -> -13.6% | G15: =IFERROR(ROUND((G14/$C$14-1)*100,1)&"%","") -> -6.1% | H15: =IFERROR(ROUND((H14/$C$14-1)*100,1)&"%","") -> -10.3%
B16: Cost of Electriciity ($/kWh) | C16: =IFERROR('Background Calculations'!I160,"") -> 0.08101028584 | D16: =IFERROR('Background Calculations'!I162,"") -> 0.08723859121 | E16: =IFERROR('Background Calculations'!I163,"") -> 0.08536621308 | F16: =IFERROR('Background Calculations'!I164,"") -> 0.08639320162 | G16: =IFERROR('Background Calculations'!I165,"") -> 0.09164707994 | H16: =IFERROR('Background Calculations'!I166,"") -> 0.09779214148 | I16: =IFERROR('Background Calculations'!I167,"") -> 0.1032775406
B17: % change from baseline | C17: N/A | D17: =IFERROR(ROUND((D16/$C$16-1)*100,1)&"%","") -> 7.7% | E17: =IFERROR(ROUND((E16/$C$16-1)*100,1)&"%","") -> 5.4% | F17: =IFERROR(ROUND((F16/$C$16-1)*100,1)&"%","") -> 6.6% | G17: =IFERROR(ROUND((G16/$C$16-1)*100,1)&"%","") -> 13.1% | H17: =IFERROR(ROUND((H16/$C$16-1)*100,1)&"%","") -> 20.7%
B18: Avg kW demand | C18: =IFERROR('Background Calculations'!N147,"") -> 330.75 | D18: =IFERROR('Background Calculations'!N149,"") -> 288.5 | E18: =IFERROR('Background Calculations'!N149,"") -> 288.5 | F18: =IFERROR('Background Calculations'!N151,"") -> 260.8333333 | G18: =IFERROR('Background Calculations'!N152,"") -> 248.25 | H18: =IFERROR('Background Calculations'!N153,"") -> 227.75 | I18: =IFERROR('Background Calculations'!N154,"") -> -0.2084656085
B19: % change from baseline | C19: N/A | D19: =IFERROR(ROUND((D18/$C$18-1)*100,1)&"%","") -> -12.8% | E19: =IFERROR(ROUND((E18/$C$18-1)*100,1)&"%","") -> -12.8% | F19: =IFERROR(ROUND((F18/$C$18-1)*100,1)&"%","") -> -21.1% | G19: =IFERROR(ROUND((G18/$C$18-1)*100,1)&"%","") -> -24.9% | H19: =IFERROR(ROUND((H18/$C$18-1)*100,1)&"%","") -> -31.1%
I20: Cumulative Savings
B21: Energy Savings (kWh) | C21: N/A | D21: =IFERROR('Background Calculations'!K162,"") -> 272660.0783 | E21: =IFERROR('Background Calculations'!K163,"") -> 293707.6538 | F21: =IFERROR('Background Calculations'!K164,"") -> 403559.2155 | G21: =IFERROR('Background Calculations'!K165,"") -> 347734.4225 | H21: =IFERROR('Background Calculations'!K166,"") -> 531689.494 | I21: =IF(SUM(D21:H21)=0,"",SUM(D21:H21)) -> 1849350.864
B22: Energy Cost Savings | C22: N/A | D22: =IFERROR('Background Calculations'!N162,"") -> 10648.07599 | E22: =IFERROR('Background Calculations'!N163,"") -> 15420.79146 | F22: =IFERROR('Background Calculations'!N164,"") -> 23412.14449 | G22: =IFERROR('Background Calculations'!N165,"") -> 10124.13748 | H22: =IFERROR('Background Calculations'!N166,"") -> 17290.03422 | I22: =IF(SUM(D22:H22)=0,"",SUM(D22:H22)) -> 76895.18365

Sheet Nutrient Removal Summary
B2: Nutrient Removal Summary
C5: ='Background Calculations'!C147 -> Baseline: Jul 2015 - Jun 2017 | D5: =CONCATENATE('Background Calculations'!C149,'Background Calculations'!H188) -> Jul 2017 - Jun 2018 | E5: =CONCATENATE('Background Calculations'!C150,'Background Calculations'!H189) -> Jul 2018 - Jun 2019 | F5: =CONCATENATE('Background Calculations'!C151,'Background Calculations'!H190) -> Jul 2019 - Jun 2020 (to date) | G5: =CONCATENATE('Background Calculations'!C152,'Background Calculations'!H191) -> Jul 2020 - Jun 2021 | H5: =CONCATENATE('Background Calculations'!C153,'Background Calculations'!H192) -> Jul 2021 - Jun 2022 | I5: Cumulative Change
B6: Avg Influent TN (mg/L) | C6: =IFERROR('Background Calculations'!D197,"") -> 34.25 | D6: =IFERROR('Background Calculations'!D199,"") -> 35 | E6: =IFERROR('Background Calculations'!D200,"") -> 35.16666667 | F6: =IFERROR('Background Calculations'!D201,"") -> 34.83333333 | G6: =IFERROR('Background Calculations'!D202,"") -> 34.58333333 | H6: =IFERROR('Background Calculations'!D203,"") -> 36.08333333 | I6: =IFERROR('Background Calculations'!D204,"") -> 0.02579075426
B7: % change from baseline | C7: N/A | D7: =IFERROR(ROUND((D6/$C$6-1)*100,1)&"%","") -> 2.2% | E7: =IFERROR(ROUND((E6/$C$6-1)*100,1)&"%","") -> 2.7% | F7: =IFERROR(ROUND((F6/$C$6-1)*100,1)&"%","") -> 1.7% | G7: =IFERROR(ROUND((G6/$C$6-1)*100,1)&"%","") -> 1% | H7: =IFERROR(ROUND((H6/$C$6-1)*100,1)&"%","") -> 5.4%
B8: =IFERROR('Background Calculations'!G196,"Insufficient effluent N data") -> Avg Effluent TKN (mg/L) | C8: =IFERROR('Background Calculations'!G197,"") -> 2.975 | D8: =IFERROR('Background Calculations'!G199,"") -> 2.891666667 | E8: =IFERROR('Background Calculations'!G200,"") -> 3.091666667 | F8: =IFERROR('Background Calculations'!G201,"") -> 3.016666667 | G8: =IFERROR('Background Calculations'!G202,"") -> 3.083333333 | H8: =IFERROR('Background Calculations'!G203,"") -> 2.95 | I8: =IFERROR('Background Calculations'!G204,"") -> 0.0106442577
B9: % change from baseline | C9: N/A | D9: =IFERROR(ROUND((D8/$C$8-1)*100,1)&"%","") -> -2.8% | E9: =IFERROR(ROUND((E8/$C$8-1)*100,1)&"%","") -> 3.9% | F9: =IFERROR(ROUND((F8/$C$8-1)*100,1)&"%","") -> 1.4% | G9: =IFERROR(ROUND((G8/$C$8-1)*100,1)&"%","") -> 3.6% | H9: =IFERROR(ROUND((H8/$C$8-1)*100,1)&"%","") -> -0.8%
B10: Avg Effluent NO3+NO2 (mg/L) | C10: =IFERROR('Background Calculations'!H197,"") -> 14.925 | D10: =IFERROR('Background Calculations'!H199,"") -> 10.25 | E10: =IFERROR('Background Calculations'!H200,"") -> 10.14166667 | F10: =IFERROR('Background Calculations'!H201,"") -> 7.933333333 | G10: =IFERROR('Background Calculations'!H202,"") -> 8.283333333 | H10: =IFERROR('Background Calculations'!H203,"") -> 7.866666667 | I10: =IFERROR('Background Calculations'!H204,"") -> -0.4040201005
B11: % change from baseline | C11: N/A | D11: =IFERROR(ROUND((D10/$C$10-1)*100,1)&"%","") -> -31.3% | E11: =IFERROR(ROUND((E10/$C$10-1)*100,1)&"%","") -> -32% | F11: =IFERROR(ROUND((F10/$C$10-1)*100,1)&"%","") -> -46.8% | G11: =IFERROR(ROUND((G10/$C$10-1)*100,1)&"%","") -> -44.5% | H11: =IFERROR(ROUND((H10/$C$10-1)*100,1)&"%","") -> -47.3%
B12: Avg TN removal (%) | C12: =IFERROR((C6-(C8+C10))/C6,"") -> 0.4773722628 | D12: 0.6245238095 | E12: 0.6236966825 | F12: 0.685645933 | G12: 0.6713253012 | H12: 0.7002309469 | I12: =IFERROR((AVERAGE(D12:H12)-C12)/C12,"") -> 0.3848406918
B13: Avg TN removal (lbs/mo) | C13: =IFERROR('Background Calculations'!I197,"") -> 8391.12698 | D13: =IFERROR('Background Calculations'!I199,"") -> 11030.14623 | E13: =IFERROR('Background Calculations'!I200,"") -> 11252.23348 | F13: =IFERROR('Background Calculations'!I201,"") -> 12380.74668 | G13: =IFERROR('Background Calculations'!I202,"") -> 11621.0533 | H13: =IFERROR('Background Calculations'!I203,"") -> 11821.76374
B14: Avg Influent TP (mg/L) | C14: =IFERROR('Background Calculations'!N197,"") -> 8.066666667 | D14: =IFERROR('Background Calculations'!N199,"") -> 7.891666667 | E14: =IFERROR('Background Calculations'!N200,"") -> 8.058333333 | F14: =IFERROR('Background Calculations'!N201,"") -> 7.991666667 | G14: =IFERROR('Background Calculations'!N202,"") -> 8.375 | H14: =IFERROR('Background Calculations'!N203,"") -> 8.258333333 | I14: =IFERROR('Background Calculations'!N204,"") -> 0.005991735537
B15: % change from baseline | C15: N/A | D15: =IFERROR(ROUND((D14/$C$14-1)*100,1)&"%","") -> -2.2% | E15: =IFERROR(ROUND((E14/$C$14-1)*100,1)&"%","") -> -0.1% | F15: =IFERROR(ROUND((F14/$C$14-1)*100,1)&"%","") -> -0.9% | G15: =IFERROR(ROUND((G14/$C$14-1)*100,1)&"%","") -> 3.8% | H15: =IFERROR(ROUND((H14/$C$14-1)*100,1)&"%","") -> 2.4%
B16: Avg Effluent TP (mg/L) | C16: =IFERROR('Background Calculations'!O197,"") -> 1.016666667 | D16: =IFERROR('Background Calculations'!O199,"") -> 1.158333333 | E16: =IFERROR('Background Calculations'!O200,"") -> 1.066666667 | F16: =IFERROR('Background Calculations'!O201,"") -> 1.066666667 | G16: =IFERROR('Background Calculations'!O202,"") -> 1.05 | H16: =IFERROR('Background Calculations'!O203,"") -> 0.9666666667 | I16: =IFERROR('Background Calculations'!O204,"") -> 0.04426229508
B17: % change from baseline | C17: N/A | D17: =IFERROR(ROUND((D16/$C$16-1)*100,1)&"%","") -> 13.9% | E17: =IFERROR(ROUND((E16/$C$16-1)*100,1)&"%","") -> 4.9% | F17: =IFERROR(ROUND((F16/$C$16-1)*100,1)&"%","") -> 4.9% | G17: =IFERROR(ROUND((G16/$C$16-1)*100,1)&"%","") -> 3.3% | H17: =IFERROR(ROUND((H16/$C$16-1)*100,1)&"%","") -> -4.9%
B18: Avg TP removed (%) | C18: =IFERROR((C14-C16)/C14,"") -> 0.8739669421 | D18: 0.8532206969 | E18: 0.8676318511 | F18: 0.866527633 | G18: 0.8746268657 | H18: 0.8829465187 | I18: =IFERROR(AVERAGE(D18:H18)/C18-1,"") -> -0.005693841318
B19: Avg TP removed (lbs/mo) | C19: =IFERROR('Background Calculations'!P197,"") -> 3610.019735 | D19: =IFERROR('Background Calculations'!P199,"") -> 3384.19269 | E19: =IFERROR('Background Calculations'!P200,"") -> 3635.49357 | F19: =IFERROR('Background Calculations'!P201,"") -> 3552.89977 | G19: =IFERROR('Background Calculations'!P202,"") -> 3705.64548 | H19: =IFERROR('Background Calculations'!P203,"") -> 3440.19023
I20: Approx. Additional Removal (lbs)
B21: Improvement in % TN removal (%) | C21: N/A | D21: =IFERROR(D12/C12-1,"") -> 0.3082532401 | E21: =IFERROR(E12/C12-1,"") -> 0.3065205734 | F21: =IFERROR(F12/C12-1,"") -> 0.4362919392 | G21: =IFERROR(G12/C12-1,"") -> 0.4062930622 | H21: =IFERROR(H12/C12-1,"") -> 0.4668446441 | I21: ='Background Calculations'!K204 -> 194232.6014
B22: Improvement in % TP removal (%) | C22: N/A | D22: =IFERROR(D18/C18-1,"") -> -0.02373802053 | E22: =IFERROR(E18/C18-1,"") -> -0.007248662115 | F22: =IFERROR(F18/C18-1,"") -> -0.00851211738 | G22: =IFERROR(G18/C18-1,"") -> 0.0007550897992 | H22: =IFERROR(H18/C18-1,"") -> 0.01027450363 | I22: ='Background Calculations'!Q204 -> -1221.368873

Sheet Calculation Notes (hidden)

Sheet Background Calculations
A3: Year | B3: Column2 | C3: Avg Daily Flow | D3: Monthly Flow | E3: BOD removed | F3: Total BOD removed | G3: Electric kWh usage | H3: Gas kWh usage | I3: Total Energy Usage | J3: Flow Efficiency | K3: BOD efficiency | L3: Total Electric Demand (Actual) | M3: Total Electric Demand (Billed) | N3: Electric Demand Cost | O3: Total electric cost | P3: Total Gas cost | Q3: Avg $/kWh | R3: Avg $/kW demand | S3: Total Energy Cost | T3: Column6 | U3: Energy Cost per Volume Treated | V3: Energy Cost per lb BOD | W3: Column7 | X3: Avg influent TKN | Y3: Avg influent NH3 | Z3: Avg influent NOx | AA3: Avg effluent TKN | AB3: Avg effluent NH3 | AC3: Avg effluent NOx | AD3: Approx TN removal (mg/L) | AE3: Approx TN removal (lbs) | AF3: Avg influent TP | AG3: Avg effluent TP | AH3: Calculated TP removal (lbs)
A4: 1 | B4: ='Energy Data Entry'!B25 -> 2015-07-01 | C4: =IF(OR('Process Data Entry'!C6="",'Process Data Entry'!C6=0),"",'Process Data Entry'!C6) -> 1.56 | D4: =IF(Table4[Avg Daily Flow]="","",_xlfn.DAYS(EOMONTH(B4,0),EOMONTH(B4,-1))*C4) -> 48.36 | E4: =IF('Process Data Entry'!F6="","",'Process Data Entry'!F6) -> 2125.24884 | F4: =IF(Table4[BOD removed]="","",Table4[BOD removed]*_xlfn.DAYS(EOMONTH(Table4[[#This Row],[Column2]],0),EOMONTH(Table4[[#This Row],[Column2]],-1))) -> 65882.71404 | G4: =IF(SUM('Energy Data Entry'!C25,'Energy Data Entry'!H25,'Energy Data Entry'!M25,'Energy Data Entry'!R25,'Energy Data Entry'!W25)=0,"",SUM('Energy Data Entry'!C25,'Energy Data Entry'!H25,'Energy Data Entry'!M25,'Energy Data Entry'!R25,'Energy Data Entry'!W25)) -> 155719.2 | H4: ='Energy Data Entry'!AG25 -> 0 | I4: =IF(Table4[[#This Row],[Electric kWh usage]]="","",Table4[[#This Row],[Gas kWh usage]]+Table4[[#This Row],[Electric kWh usage]]) -> 155719.2 | J4: =IF(OR(Table4[[#This Row],[Electric kWh usage]]="",Table4[[#This Row],[Monthly Flow]]=""),"",(Table4[[#This Row],[Electric kWh usage]]+Table4[[#This Row],[Gas kWh usage]])/Table4[[#This Row],[Monthly Flow]]) -> 3220 | K4: =IFERROR(IF(Table4[[#This Row],[Electric kWh usage]]="","",(Table4[[#This Row],[Electric kWh usage]]+Table4[[#This Row],[Gas kWh usage]])/Table4[[#This Row],[Total BOD removed]]),"") -> 2.363582045 | L4: =IF('Energy Data Entry'!E25+'Energy Data Entry'!J25+'Energy Data Entry'!O25+'Energy Data Entry'!T25+'Energy Data Entry'!Y25=0,"",'Energy Data Entry'!E25+'Energy Data Entry'!J25+'Energy Data Entry'!O25+'Energy Data Entry'!T25+'Energy Data Entry'!Y25) -> 275 | M4: =IF('Energy Data Entry'!F25+'Energy Data Entry'!K25+'Energy Data Entry'!P25++'Energy Data Entry'!U25+'Energy Data Entry'!Z25=0,"",'Energy Data Entry'!F25+'Energy Data Entry'!K25+'Energy Data Entry'!P25++'Energy Data Entry'!U25+'Energy Data Entry'!Z25) -> 275 | N4: =IF('Energy Data Entry'!G25+'Energy Data Entry'!L25+'Energy Data Entry'!Q25+'Energy Data Entry'!V25+'Energy Data Entry'!AA25=0,"",'Energy Data Entry'!G25+'Energy Data Entry'!L25+'Energy Data Entry'!Q25+'Energy Data Entry'!V25+'Energy Data Entry'!AA25) -> 3025 | O4: =IF('Energy Data Entry'!D25+'Energy Data Entry'!I25+'Energy Data Entry'!N25+'Energy Data Entry'!S25+'Energy Data Entry'!X25=0,"",'Energy Data Entry'!D25+'Energy Data Entry'!I25+'Energy Data Entry'!N25+'Energy Data Entry'!S25+'Energy Data Entry'!X25) -> 12368.152 | P4: ='Energy Data Entry'!AF25 -> 0 | Q4: =IFERROR(Table4[[#This Row],[Total electric cost]]/Table4[[#This Row],[Electric kWh usage]],"") -> 0.07942599243 | R4: =IFERROR(Table4[[#This Row],[Electric Demand Cost]]/Table4[[#This Row],[Total Electric Demand (Billed)]],IFERROR(Table4[[#This Row],[Electric Demand Cost]]/Table4[[#This Row],[Total Electric Demand (Actual)]],"")) -> 11 | S4: =IFERROR(Table4[[#This Row],[Total Gas cost]]+Table4[[#This Row],[Total electric cost]],"") -> 12368.152 | U4: =IFERROR(Table4[[#This Row],[Total Energy Cost]]/Table4[[#This Row],[Monthly Flow]],"") -> 255.7516956 | V4: =IFERROR(Table4[[#This Row],[Total Energy Cost]]/Table4[[#This Row],[Total BOD removed]],"") -> 0.1877298496 | X4: =IF('Process Data Entry'!G6="","",'Process Data Entry'!G6) -> 31 | Y4: =IF('Process Data Entry'!H6="","",'Process Data Entry'!H6) -> 14 | Z4: =IF('Process Data Entry'!I6="",0,'Process Data Entry'!I6) -> 0 | AA4: =IF('Process Data Entry'!J6="","",'Process Data Entry'!J6) -> 3 | AB4: =IF('Process Data Entry'!K6="","",'Process Data Entry'!K6) -> 1.2 | AC4: =IF('Process Data Entry'!L6="","",'Process Data Entry'!L6) -> 17.4 | AD4: =IFERROR(IF(OR(X4="",AC4="",AND(AA4="",AB4=""),((X4+Z4)-(MAX(AA4,AB4)+AC4))<0),"",(X4+Z4)-(MAX(AA4,AB4)+AC4)),"") -> 10.6 | AE4: =IF(OR(AD4="",D4=""),"",AD4*D4*8.34) -> 4275.21744 | AF4: =IF('Process Data Entry'!M6="","",'Process Data Entry'!M6) -> 9.1 | AG4: =IF('Process Data Entry'!N6="","",'Process Data Entry'!N6) -> 0.8 | AH4: =IF(OR(AF4="",AG4="",D4=""),"",8.34*D4*(AF4-AG4)) -> 3347.57592
A5: 1 | B5: ='Energy Data Entry'!B26 -> 2015-08-01 | C5: =IF(OR('Process Data Entry'!C7="",'Process Data Entry'!C7=0),"",'Process Data Entry'!C7) -> 1.92 | D5: =IF(Table4[Avg Daily Flow]="","",_xlfn.DAYS(EOMONTH(B5,0),EOMONTH(B5,-1))*C5) -> 59.52 | E5: =IF('Process Data Entry'!F7="","",'Process Data Entry'!F7) -> 3074.4576 | F5: =IF(Table4[BOD removed]="","",Table4[BOD removed]*_xlfn.DAYS(EOMONTH(Table4[[#This Row],[Column2]],0),EOMONTH(Table4[[#This Row],[Column2]],-1))) -> 95308.1856 | G5: =IF(SUM('Energy Data Entry'!C26,'Energy Data Entry'!H26,'Energy Data Entry'!M26,'Energy Data Entry'!R26,'Energy Data Entry'!W26)=0,"",SUM('Energy Data Entry'!C26,'Energy Data Entry'!H26,'Energy Data Entry'!M26,'Energy Data Entry'!R26,'Energy Data Entry'!W26)) -> 154828.8 | H5: ='Energy Data Entry'!AG26 -> 0 | I5: =IF(Table4[[#This Row],[Electric kWh usage]]="","",Table4[[#This Row],[Gas kWh usage]]+Table4[[#This Row],[Electric kWh usage]]) -> 154828.8 | J5: =IF(OR(Table4[[#This Row],[Electric kWh usage]]="",Table4[[#This Row],[Monthly Flow]]=""),"",(Table4[[#This Row],[Electric kWh usage]]+Table4[[#This Row],[Gas kWh usage]])/Table4[[#This Row],[Monthly Flow]]) -> 2601.290323 | K5: =IFERROR(IF(Table4[[#This Row],[Electric kWh usage]]="","",(Table4[[#This Row],[Electric kWh usage]]+Table4[[#This Row],[Gas kWh usage]])/Table4[[#This Row],[Total BOD removed]]),"") -> 1.624506846 | L5: =IF('Energy Data Entry'!E26+'Energy Data Entry'!J26+'Energy Data Entry'!O26+'Energy Data Entry'!T26+'Energy Data Entry'!Y26=0,"",'Energy Data Entry'!E26+'Energy Data Entry'!J26+'Energy Data Entry'!O26+'Energy Data Entry'!T26+'Energy Data Entry'!Y26) -> 279 | M5: =IF('Energy Data Entry'!F26+'Energy Data Entry'!K26+'Energy Data Entry'!P26++'Energy Data Entry'!U26+'Energy Data Entry'!Z26=0,"",'Energy Data Entry'!F26+'Energy Data Entry'!K26+'Energy Data Entry'!P26++'Energy Data Entry'!U26+'Energy Data Entry'!Z26) -> 279 | N5: =IF('Energy Data Entry'!G26+'Energy Data Entry'!L26+'Energy Data Entry'!Q26+'Energy Data Entry'!V26+'Energy Data Entry'!AA26=0,"",'Energy Data Entry'!G26+'Energy Data Entry'!L26+'Energy Data Entry'!Q26+'Energy Data Entry'!V26+'Energy Data Entry'!AA26) -> 3069 | O5: =IF('Energy Data Entry'!D26+'Energy Data Entry'!I26+'Energy Data Entry'!N26+'Energy Data Entry'!S26+'Energy Data Entry'!X26=0,"",'Energy Data Entry'!D26+'Energy Data Entry'!I26+'Energy Data Entry'!N26+'Energy Data Entry'!S26+'Energy Data Entry'!X26) -> 12358.728 | P5: ='Energy Data Entry'!AF26 -> 0 | Q5: =IFERROR(Table4[[#This Row],[Total electric cost]]/Table4[[#This Row],[Electric kWh usage]],"") -> 0.0798218936 | R5: =IFERROR(Table4[[#This Row],[Electric Demand Cost]]/Table4[[#This Row],[Total Electric Demand (Billed)]],IFERROR(Table4[[#This Row],[Electric Demand Cost]]/Table4[[#This Row],[Total Electric Demand (Actual)]],"")) -> 11 | S5: =IFERROR(Table4[[#This Row],[Total Gas cost]]+Table4[[#This Row],[Total electric cost]],"") -> 12358.728 | U5: =IFERROR(Table4[[#This Row],[Total Energy Cost]]/Table4[[#This Row],[Monthly Flow]],"") -> 207.6399194 | V5: =IFERROR(Table4[[#This Row],[Total Energy Cost]]/Table4[[#This Row],[Total BOD removed]],"") -> 0.1296712126 | X5: =IF('Process Data Entry'!G7="","",'Process Data Entry'!G7) -> 33 | Y5: =IF('Process Data Entry'!H7="","",'Process Data Entry'!H7) -> 18 | Z5: =IF('Process Data Entry'!I7="",0,'Process Data Entry'!I7) -> 0 | AA5: =IF('Process Data Entry'!J7="","",'Process Data Entry'!J7) -> 3.1 | AB5: =IF('Process Data Entry'!K7="","",'Process Data Entry'!K7) -> 1.2 | AC5: =IF('Process Data Entry'!L7="","",'Process Data Entry'!L7) -> 20.3 | AD5: 9.6 | AE5: 4765.40928 | AF5: =IF('Process Data Entry'!M7="","",'Process Data Entry'!M7) -> 7.9 | AG5: =IF('Process Data Entry'!N7="","",'Process Data Entry'!N7) -> 0.5 | AH5: 3673.33632
A6: 1 | B6: ='Energy Data Entry'!B27 -> 2015-09-01 | C6: =IF(OR('Process Data Entry'!C8="",'Process Data Entry'!C8=0),"",'Process Data Entry'!C8) -> 2.08 | D6: =IF(Table4[Avg Daily Flow]="","",_xlfn.DAYS(EOMONTH(B6,0),EOMONTH(B6,-1))*C6) -> 62.4 | E6: =IF('Process Data Entry'!F8="","",'Process Data Entry'!F8) -> 2844.07344 | F6: =IF(Table4[BOD removed]="","",Table4[BOD removed]*_xlfn.DAYS(EOMONTH(Table4[[#This Row],[Column2]],0),EOMONTH(Table4[[#This Row],[Column2]],-1))) -> 85322.2032 | G6: =IF(SUM('Energy Data Entry'!C27,'Energy Data Entry'!H27,'Energy Data Entry'!M27,'Energy Data Entry'!R27,'Energy Data Entry'!W27)=0,"",SUM('Energy Data Entry'!C27,'Energy Data Entry'!H27,'Energy Data Entry'!M27,'Energy Data Entry'!R27,'Energy Data Entry'!W27)) -> 176933.12 | H6: ='Energy Data Entry'!AG27 -> 0 | I6: =IF(Table4[[#This Row],[Electric kWh usage]]="","",Table4[[#This Row],[Gas kWh usage]]+Table4[[#This Row],[Electric kWh usage]]) -> 176933.12 | J6: =IF(OR(Table4[[#This Row],[Electric kWh usage]]="",Table4[[#This Row],[Monthly Flow]]=""),"",(Table4[[#This Row],[Electric kWh usage]]+Table4[[#This Row],[Gas kWh usage]])/Table4[[#This Row],[Monthly Flow]]) -> 2835.466667 | K6: =IFERROR(IF(Table4[[#This Row],[Electric kWh usage]]="","",(Table4[[#This Row],[Electric kWh usage]]+Table4[[#This Row],[Gas kWh usage]])/Table4[[#This Row],[Total BOD removed]]),"") -> 2.073705476 | L6: =IF('Energy Data Entry'!E27+'Energy Data Entry'!J27+'Energy Data Entry'!O27+'Energy Data Entry'!T27+'Energy Data Entry'!Y27=0,"",'Energy Data Entry'!E27+'Energy Data Entry'!J27+'Energy Data Entry'!O27+'Energy Data Entry'!T27+'Energy Data Entry'!Y27) -> 313 | M6: =IF('Energy Data Entry'!F27+'Energy Data Entry'!K27+'Energy Data Entry'!P27++'Energy Data Entry'!U27+'Energy Data Entry'!Z27=0,"",'Energy Data Entry'!F27+'Energy Data Entry'!K27+'Energy Data Entry'!P27++'Energy Data Entry'!U27+'Energy Data Entry'!Z27) -> 313 | N6: =IF('Energy Data Entry'!G27+'Energy Data Entry'!L27+'Energy Data Entry'!Q27+'Energy Data Entry'!V27+'Energy Data Entry'!AA27=0,"",'Energy Data Entry'!G27+'Energy Data Entry'!L27+'Energy Data Entry'!Q27+'Energy Data Entry'!V27+'Energy Data Entry'!AA27) -> 3443 | O6: =IF('Energy Data Entry'!D27+'Energy Data Entry'!I27+'Energy Data Entry'!N27+'Energy Data Entry'!S27+'Energy Data Entry'!X27=0,"",'Energy Data Entry'!D27+'Energy Data Entry'!I27+'Energy Data Entry'!N27+'Energy Data Entry'!S27+'Energy Data Entry'!X27) -> 14058.9872 | P6: ='Energy Data Entry'!AF27 -> 0 | Q6: =IFERROR(Table4[[#This Row],[Total electric cost]]/Table4[[#This Row],[Electric kWh usage]],"") -> 0.07945933017 | R6: =IFERROR(Table4[[#This Row],[Electric Demand Cost]]/Table4[[#This Row],[Total Electric Demand (Billed)]],IFERROR(Table4[[#This Row],[Electric Demand Cost]]/Table4[[#This Row],[Total Electric Demand (Actual)]],"")) -> 11 | S6: =IFERROR(Table4[[#This Row],[Total Gas cost]]+Table4[[#This Row],[Total electric cost]],"") -> 14058.9872 | U6: =IFERROR(Table4[[#This Row],[Total Energy Cost]]/Table4[[#This Row],[Monthly Flow]],"") -> 225.3042821 | V6: =IFERROR(Table4[[#This Row],[Total Energy Cost]]/Table4[[#This Row],[Total BOD removed]],"") -> 0.1647752481 | X6: =IF('Process Data Entry'!G8="","",'Process Data Entry'!G8) -> 36 | Y6: =IF('Process Data Entry'!H8="","",'Process Data Entry'!H8) -> 15 | Z6: =IF('Process Data Entry'!I8="",0,'Process Data Entry'!I8) -> 0 | AA6: =IF('Process Data Entry'!J8="","",'Process Data Entry'!J8) -> 3 | AB6: =IF('Process Data Entry'!K8="","",'Process Data Entry'!K8) -> 1.5 | AC6: =IF('Process Data Entry'!L8="","",'Process Data Entry'!L8) -> 13.7 | AD6: 19.3 | AE6: 10044.0288 | AF6: =IF('Process Data Entry'!M8="","",'Process Data Entry'!M8) -> 8.5 | AG6: =IF('Process Data Entry'!N8="","",'Process Data Entry'!N8) -> 1.2 | AH6: 3799.0368
A7: 1 | B7: ='Energy Data Entry'!B28 -> 2015-10-01 | C7: =IF(OR('Process Data Entry'!C9="",'Process Data Entry'!C9=0),"",'Process Data Entry'!C9) -> 1.68 | D7: =IF(Table4[Avg Daily Flow]="","",_xlfn.DAYS(EOMONTH(B7,0),EOMONTH(B7,-1))*C7) -> 52.08 | E7: =IF('Process Data Entry'!F9="","",'Process Data Entry'!F9) -> 2138.80968 | F7: =IF(Table4[BOD removed]="","",Table4[BOD removed]*_xlfn.DAYS(EOMONTH(Table4[[#This Row],[Column2]],0),EOMONTH(Table4[[#This Row],[Column2]],-1))) -> 66303.10008 | G7: =IF(SUM('Energy Data Entry'!C28,'Energy Data Entry'!H28,'Energy Data Entry'!M28,'Energy Data Entry'!R28,'Energy Data Entry'!W28)=0,"",SUM('Energy Data Entry'!C28,'Energy Data Entry'!H28,'Energy Data Entry'!M28,'Energy Data Entry'!R28,'Energy Data Entry'!W28)) -> 156643.2 | H7: ='Energy Data Entry'!AG28 -> 0 | I7: =IF(Table4[[#This Row],[Electric kWh usage]]="","",Table4[[#This Row],[Gas kWh usage]]+Table4[[#This Row],[Electric kWh usage]]) -> 156643.2 | J7: =IF(OR(Table4[[#This Row],[Electric kWh usage]]="",Table4[[#This Row],[Monthly Flow]]=""),"",(Table4[[#This Row],[Electric kWh usage]]+Table4[[#This Row],[Gas kWh usage]])/Table4[[#This Row],[Monthly Flow]]) -> 3007.741935 | K7: =IFERROR(IF(Table4[[#This Row],[Electric kWh usage]]="","",(Table4[[#This Row],[Electric kWh usage]]+Table4[[#This Row],[Gas kWh usage]])/Table4[[#This Row],[Total BOD removed]]),"") -> 2.362532066 | L7: =IF('Energy Data Entry'!E28+'Energy Data Entry'!J28+'Energy Data Entry'!O28+'Energy Data Entry'!T28+'Energy Data Entry'!Y28=0,"",'Energy Data Entry'!E28+'Energy Data Entry'!J28+'Energy Data Entry'!O28+'Energy Data Entry'!T28+'Energy Data Entry'!Y28) -> 298 | M7: =IF('Energy Data Entry'!F28+'Energy Data Entry'!K28+'Energy Data Entry'!P28++'Energy Data Entry'!U28+'Energy Data Entry'!Z28=0,"",'Energy Data Entry'!F28+'Energy Data Entry'!K28+'Energy Data Entry'!P28++'Energy Data Entry'!U28+'Energy Data Entry'!Z28) -> 298 | N7: =IF('Energy Data Entry'!G28+'Energy Data Entry'!L28+'Energy Data Entry'!Q28+'Energy Data Entry'!V28+'Energy Data Entry'!AA28=0,"",'Energy Data Entry'!G28+'Energy Data Entry'!L28+'Energy Data Entry'!Q28+'Energy Data Entry'!V28+'Energy Data Entry'!AA28) -> 3278 | O7: =IF('Energy Data Entry'!D28+'Energy Data Entry'!I28+'Energy Data Entry'!N28+'Energy Data Entry'!S28+'Energy Data Entry'!X28=0,"",'Energy Data Entry'!D28+'Energy Data Entry'!I28+'Energy Data Entry'!N28+'Energy Data Entry'!S28+'Energy Data Entry'!X28) -> 12676.592 | P7: ='Energy Data Entry'!AF28 -> 0 | Q7: =IFERROR(Table4[[#This Row],[Total electric cost]]/Table4[[#This Row],[Electric kWh usage]],"") -> 0.08092653878 | R7: =IFERROR(Table4[[#This Row],[Electric Demand Cost]]/Table4[[#This Row],[Total Electric Demand (Billed)]],IFERROR(Table4[[#This Row],[Electric Demand Cost]]/Table4[[#This Row],[Total Electric Demand (Actual)]],"")) -> 11 | S7: =IFERROR(Table4[[#This Row],[Total Gas cost]]+Table4[[#This Row],[Total electric cost]],"") -> 12676.592 | U7: =IFERROR(Table4[[#This Row],[Total Energy Cost]]/Table4[[#This Row],[Monthly Flow]],"") -> 243.4061444 | V7: =IFERROR(Table4[[#This Row],[Total Energy Cost]]/Table4[[#This Row],[Total BOD removed]],"") -> 0.1911915428 | X7: =IF('Process Data Entry'!G9="","",'Process Data Entry'!G9) -> 34 | Y7: =IF('Process Data Entry'!H9="","",'Process Data Entry'!H9) -> 14 | Z7: =IF('Process Data Entry'!I9="",0,'Process Data Entry'!I9) -> 0 | AA7: =IF('Process Data Entry'!J9="","",'Process Data Entry'!J9) -> 3 | AB7: =IF('Process Data Entry'!K9="","",'Process Data Entry'!K9) -> 1.2 | AC7: =IF('Process Data Entry'!L9="","",'Process Data Entry'!L9) -> 9.6 | AD7: 21.4 | AE7: 9295.03008 | AF7: =IF('Process Data Entry'!M9="","",'Process Data Entry'!M9) -> 6.9 | AG7: =IF('Process Data Entry'!N9="","",'Process Data Entry'!N9) -> 0.8 | AH7: 2649.51792
A8: 1 | B8: ='Energy Data Entry'!B29 -> 2015-11-01 | C8: =IF(OR('Process Data Entry'!C10="",'Process Data Entry'!C10=0),"",'Process Data Entry'!C10) -> 1.92 | D8: =IF(Table4[Avg Daily Flow]="","",_xlfn.DAYS(EOMONTH(B8,0),EOMONTH(B8,-1))*C8) -> 57.6 | E8: =IF('Process Data Entry'!F10="","",'Process Data Entry'!F10) -> 2352.28032 | F8: =IF(Table4[BOD removed]="","",Table4[BOD removed]*_xlfn.DAYS(EOMONTH(Table4[[#This Row],[Column2]],0),EOMONTH(Table4[[#This Row],[Column2]],-1))) -> 70568.4096 | G8: =IF(SUM('Energy Data Entry'!C29,'Energy Data Entry'!H29,'Energy Data Entry'!M29,'Energy Data Entry'!R29,'Energy Data Entry'!W29)=0,"",SUM('Energy Data Entry'!C29,'Energy Data Entry'!H29,'Energy Data Entry'!M29,'Energy Data Entry'!R29,'Energy Data Entry'!W29)) -> 163322.88 | H8: ='Energy Data Entry'!AG29 -> 0 | I8: =IF(Table4[[#This Row],[Electric kWh usage]]="","",Table4[[#This Row],[Gas kWh usage]]+Table4[[#This Row],[Electric kWh usage]]) -> 163322.88 | J8: =IF(OR(Table4[[#This Row],[Electric kWh usage]]="",Table4[[#This Row],[Monthly Flow]]=""),"",(Table4[[#This Row],[Electric kWh usage]]+Table4[[#This Row],[Gas kWh usage]])/Table4[[#This Row],[Monthly Flow]]) -> 2835.466667 | K8: =IFERROR(IF(Table4[[#This Row],[Electric kWh usage]]="","",(Table4[[#This Row],[Electric kWh usage]]+Table4[[#This Row],[Gas kWh usage]])/Table4[[#This Row],[Total BOD removed]]),"") -> 2.314390829 | L8: =IF('Energy Data Entry'!E29+'Energy Data Entry'!J29+'Energy Data Entry'!O29+'Energy Data Entry'!T29+'Energy Data Entry'!Y29=0,"",'Energy Data Entry'!E29+'Energy Data Entry'!J29+'Energy Data Entry'!O29+'Energy Data Entry'!T29+'Energy Data Entry'!Y29) -> 293 | M8: =IF('Energy Data Entry'!F29+'Energy Data Entry'!K29+'Energy Data Entry'!P29++'Energy Data Entry'!U29+'Energy Data Entry'!Z29=0,"",'Energy Data Entry'!F29+'Energy Data Entry'!K29+'Energy Data Entry'!P29++'Energy Data Entry'!U29+'Energy Data Entry'!Z29) -> 293 | N8: =IF('Energy Data Entry'!G29+'Energy Data Entry'!L29+'Energy Data Entry'!Q29+'Energy Data Entry'!V29+'Energy Data Entry'!AA29=0,"",'Energy Data Entry'!G29+'Energy Data Entry'!L29+'Energy Data Entry'!Q29+'Energy Data Entry'!V29+'Energy Data Entry'!AA29) -> 3223 | O8: =IF('Energy Data Entry'!D29+'Energy Data Entry'!I29+'Energy Data Entry'!N29+'Energy Data Entry'!S29+'Energy Data Entry'!X29=0,"",'Energy Data Entry'!D29+'Energy Data Entry'!I29+'Energy Data Entry'!N29+'Energy Data Entry'!S29+'Energy Data Entry'!X29) -> 13022.3728 | P8: ='Energy Data Entry'!AF29 -> 0 | Q8: =IFERROR(Table4[[#This Row],[Total electric cost]]/Table4[[#This Row],[Electric kWh usage]],"") -> 0.07973391603 | R8: =IFERROR(Table4[[#This Row],[Electric Demand Cost]]/Table4[[#This Row],[Total Electric Demand (Billed)]],IFERROR(Table4[[#This Row],[Electric Demand Cost]]/Table4[[#This Row],[Total Electric Demand (Actual)]],"")) -> 11 | S8: =IFERROR(Table4[[#This Row],[Total Gas cost]]+Table4[[#This Row],[Total electric cost]],"") -> 13022.3728 | U8: =IFERROR(Table4[[#This Row],[Total Energy Cost]]/Table4[[#This Row],[Monthly Flow]],"") -> 226.0828611 | V8: =IFERROR(Table4[[#This Row],[Total Energy Cost]]/Table4[[#This Row],[Total BOD removed]],"") -> 0.184535444 | X8: =IF('Process Data Entry'!G10="","",'Process Data Entry'!G10) -> 31 | Y8: =IF('Process Data Entry'!H10="","",'Process Data Entry'!H10) -> 16 | Z8: =IF('Process Data Entry'!I10="",0,'Process Data Entry'!I10) -> 0 | AA8: =IF('Process Data Entry'!J10="","",'Process Data Entry'!J10) -> 3 | AB8: =IF('Process Data Entry'!K10="","",'Process Data Entry'!K10) -> 1.5 | AC8: =IF('Process Data Entry'!L10="","",'Process Data Entry'!L10) -> 10.5 | AD8: 17.5 | AE8: 8406.72 | AF8: =IF('Process Data Entry'!M10="","",'Process Data Entry'!M10) -> 9.4 | AG8: =IF('Process Data Entry'!N10="","",'Process Data Entry'!N10) -> 0.8 | AH8: 4131.3024
A9: 1 | B9: ='Energy Data Entry'!B30 -> 2015-12-01 | C9: =IF(OR('Process Data Entry'!C11="",'Process Data Entry'!C11=0),"",'Process Data Entry'!C11) -> 1.68 | D9: =IF(Table4[Avg Daily Flow]="","",_xlfn.DAYS(EOMONTH(B9,0),EOMONTH(B9,-1))*C9) -> 52.08 | E9: =IF('Process Data Entry'!F11="","",'Process Data Entry'!F11) -> 2924.13744 | F9: =IF(Table4[BOD removed]="","",Table4[BOD removed]*_xlfn.DAYS(EOMONTH(Table4[[#This Row],[Column2]],0),EOMONTH(Table4[[#This Row],[Column2]],-1))) -> 90648.26064 | G9: =IF(SUM('Energy Data Entry'!C30,'Energy Data Entry'!H30,'Energy Data Entry'!M30,'Energy Data Entry'!R30,'Energy Data Entry'!W30)=0,"",SUM('Energy Data Entry'!C30,'Energy Data Entry'!H30,'Energy Data Entry'!M30,'Energy Data Entry'!R30,'Energy Data Entry'!W30)) -> 150198.72 | H9: ='Energy Data Entry'!AG30 -> 0 | I9: =IF(Table4[[#This Row],[Electric kWh usage]]="","",Table4[[#This Row],[Gas kWh usage]]+Table4[[#This Row],[Electric kWh usage]]) -> 150198.72 | J9: =IF(OR(Table4[[#This Row],[Electric kWh usage]]="",Table4[[#This Row],[Monthly Flow]]=""),"",(Table4[[#This Row],[Electric kWh usage]]+Table4[[#This Row],[Gas kWh usage]])/Table4[[#This Row],[Monthly Flow]]) -> 2884 | K9: =IFERROR(IF(Table4[[#This Row],[Electric kWh usage]]="","",(Table4[[#This Row],[Electric kWh usage]]+Table4[[#This Row],[Gas kWh usage]])/Table4[[#This Row],[Total BOD removed]]),"") -> 1.656939901 | L9: =IF('Energy Data Entry'!E30+'Energy Data Entry'!J30+'Energy Data Entry'!O30+'Energy Data Entry'!T30+'Energy Data Entry'!Y30=0,"",'Energy Data Entry'!E30+'Energy Data Entry'!J30+'Energy Data Entry'!O30+'Energy Data Entry'!T30+'Energy Data Entry'!Y30) -> 273 | M9: =IF('Energy Data Entry'!F30+'Energy Data Entry'!K30+'Energy Data Entry'!P30++'Energy Data Entry'!U30+'Energy Data Entry'!Z30=0,"",'Energy Data Entry'!F30+'Energy Data Entry'!K30+'Energy Data Entry'!P30++'Energy Data Entry'!U30+'Energy Data Entry'!Z30) -> 273 | N9: =IF('Energy Data Entry'!G30+'Energy Data Entry'!L30+'Energy Data Entry'!Q30+'Energy Data Entry'!V30+'Energy Data Entry'!AA30=0,"",'Energy Data Entry'!G30+'Energy Data Entry'!L30+'Energy Data Entry'!Q30+'Energy Data Entry'!V30+'Energy Data Entry'!AA30) -> 3003 | O9: =IF('Energy Data Entry'!D30+'Energy Data Entry'!I30+'Energy Data Entry'!N30+'Energy Data Entry'!S30+'Energy Data Entry'!X30=0,"",'Energy Data Entry'!D30+'Energy Data Entry'!I30+'Energy Data Entry'!N30+'Energy Data Entry'!S30+'Energy Data Entry'!X30) -> 12014.9232 | P9: ='Energy Data Entry'!AF30 -> 0 | Q9: =IFERROR(Table4[[#This Row],[Total electric cost]]/Table4[[#This Row],[Electric kWh usage]],"") -> 0.07999351259 | R9: =IFERROR(Table4[[#This Row],[Electric Demand Cost]]/Table4[[#This Row],[Total Electric Demand (Billed)]],IFERROR(Table4[[#This Row],[Electric Demand Cost]]/Table4[[#This Row],[Total Electric Demand (Actual)]],"")) -> 11 | S9: =IFERROR(Table4[[#This Row],[Total Gas cost]]+Table4[[#This Row],[Total electric cost]],"") -> 12014.9232 | U9: =IFERROR(Table4[[#This Row],[Total Energy Cost]]/Table4[[#This Row],[Monthly Flow]],"") -> 230.7012903 | V9: =IFERROR(Table4[[#This Row],[Total Energy Cost]]/Table4[[#This Row],[Total BOD removed]],"") -> 0.1325444428 | X9: =IF('Process Data Entry'!G11="","",'Process Data Entry'!G11) -> 36 | Y9: =IF('Process Data Entry'!H11="","",'Process Data Entry'!H11) -> 12 | Z9: =IF('Process Data Entry'!I11="",0,'Process Data Entry'!I11) -> 0 | AA9: =IF('Process Data Entry'!J11="","",'Process Data Entry'!J11) -> 3.3 | AB9: =IF('Process Data Entry'!K11="","",'Process Data Entry'!K11) -> 1 | AC9: =IF('Process Data Entry'!L11="","",'Process Data Entry'!L11) -> 13.2 | AD9: 19.5 | AE9: 8469.7704 | AF9: =IF('Process Data Entry'!M11="","",'Process Data Entry'!M11) -> 7.2 | AG9: =IF('Process Data Entry'!N11="","",'Process Data Entry'!N11) -> 1 | AH9: 2692.95264
A10: 1 | B10: ='Energy Data Entry'!B31 -> 2016-01-01 | C10: =IF(OR('Process Data Entry'!C12="",'Process Data Entry'!C12=0),"",'Process Data Entry'!C12) -> 2 | D10: =IF(Table4[Avg Daily Flow]="","",_xlfn.DAYS(EOMONTH(B10,0),EOMONTH(B10,-1))*C10) -> 62 | E10: =IF('Process Data Entry'!F12="","",'Process Data Entry'!F12) -> 2262.642 | F10: =IF(Table4[BOD removed]="","",Table4[BOD removed]*_xlfn.DAYS(EOMONTH(Table4[[#This Row],[Column2]],0),EOMONTH(Table4[[#This Row],[Column2]],-1))) -> 70141.902 | G10: =IF(SUM('Energy Data Entry'!C31,'Energy Data Entry'!H31,'Energy Data Entry'!M31,'Energy Data Entry'!R31,'Energy Data Entry'!W31)=0,"",SUM('Energy Data Entry'!C31,'Energy Data Entry'!H31,'Energy Data Entry'!M31,'Energy Data Entry'!R31,'Energy Data Entry'!W31)) -> 186760 | H10: ='Energy Data Entry'!AG31 -> 0 | I10: =IF(Table4[[#This Row],[Electric kWh usage]]="","",Table4[[#This Row],[Gas kWh usage]]+Table4[[#This Row],[Electric kWh usage]]) -> 186760 | J10: =IF(OR(Table4[[#This Row],[Electric kWh usage]]="",Table4[[#This Row],[Monthly Flow]]=""),"",(Table4[[#This Row],[Electric kWh usage]]+Table4[[#This Row],[Gas kWh usage]])/Table4[[#This Row],[Monthly Flow]]) -> 3012.258065 | K10: =IFERROR(IF(Table4[[#This Row],[Electric kWh usage]]="","",(Table4[[#This Row],[Electric kWh usage]]+Table4[[#This Row],[Gas kWh usage]])/Table4[[#This Row],[Total BOD removed]]),"") -> 2.662602448 | L10: =IF('Energy Data Entry'!E31+'Energy Data Entry'!J31+'Energy Data Entry'!O31+'Energy Data Entry'!T31+'Energy Data Entry'!Y31=0,"",'Energy Data Entry'!E31+'Energy Data Entry'!J31+'Energy Data Entry'!O31+'Energy Data Entry'!T31+'Energy Data Entry'!Y31) -> 373 | M10: =IF('Energy Data Entry'!F31+'Energy Data Entry'!K31+'Energy Data Entry'!P31++'Energy Data Entry'!U31+'Energy Data Entry'!Z31=0,"",'Energy Data Entry'!F31+'Energy Data Entry'!K31+'Energy Data Entry'!P31++'Energy Data Entry'!U31+'Energy Data Entry'!Z31) -> 373 | N10: =IF('Energy Data Entry'!G31+'Energy Data Entry'!L31+'Energy Data Entry'!Q31+'Energy Data Entry'!V31+'Energy Data Entry'!AA31=0,"",'Energy Data Entry'!G31+'Energy Data Entry'!L31+'Energy Data Entry'!Q31+'Energy Data Entry'!V31+'Energy Data Entry'!AA31) -> 4103 | O10: =IF('Energy Data Entry'!D31+'Energy Data Entry'!I31+'Energy Data Entry'!N31+'Energy Data Entry'!S31+'Energy Data Entry'!X31=0,"",'Energy Data Entry'!D31+'Energy Data Entry'!I31+'Energy Data Entry'!N31+'Energy Data Entry'!S31+'Energy Data Entry'!X31) -> 15308.6 | P10: ='Energy Data Entry'!AF31 -> 0 | Q10: =IFERROR(Table4[[#This Row],[Total electric cost]]/Table4[[#This Row],[Electric kWh usage]],"") -> 0.08196937246 | R10: =IFERROR(Table4[[#This Row],[Electric Demand Cost]]/Table4[[#This Row],[Total Electric Demand (Billed)]],IFERROR(Table4[[#This Row],[Electric Demand Cost]]/Table4[[#This Row],[Total Electric Demand (Actual)]],"")) -> 11 | S10: =IFERROR(Table4[[#This Row],[Total Gas cost]]+Table4[[#This Row],[Total electric cost]],"") -> 15308.6 | U10: =IFERROR(Table4[[#This Row],[Total Energy Cost]]/Table4[[#This Row],[Monthly Flow]],"") -> 246.9129032 | V10: =IFERROR(Table4[[#This Row],[Total Energy Cost]]/Table4[[#This Row],[Total BOD removed]],"") -> 0.2182518518 | X10: =IF('Process Data Entry'!G12="","",'Process Data Entry'!G12) -> 32 | Y10: =IF('Process Data Entry'!H12="","",'Process Data Entry'!H12) -> 12 | Z10: =IF('Process Data Entry'!I12="",0,'Process Data Entry'!I12) -> 0 | AA10: =IF('Process Data Entry'!J12="","",'Process Data Entry'!J12) -> 2.9 | AB10: =IF('Process Data Entry'!K12="","",'Process Data Entry'!K12) -> 1.5 | AC10: =IF('Process Data Entry'!L12="","",'Process Data Entry'!L12) -> 10.2 | AD10: 18.9 | AE10: 9772.812 | AF10: =IF('Process Data Entry'!M12="","",'Process Data Entry'!M12) -> 8.6 | AG10: =IF('Process Data Entry'!N12="","",'Process Data Entry'!N12) -> 0.7 | AH10: 4084.932
A11: 1 | B11: ='Energy Data Entry'!B32 -> 2016-02-01 | C11: =IF(OR('Process Data Entry'!C13="",'Process Data Entry'!C13=0),"",'Process Data Entry'!C13) -> 1.8 | D11: =IF(Table4[Avg Daily Flow]="","",_xlfn.DAYS(EOMONTH(B11,0),EOMONTH(B11,-1))*C11) -> 52.2 | E11: =IF('Process Data Entry'!F13="","",'Process Data Entry'!F13) -> 2339.6202 | F11: =IF(Table4[BOD removed]="","",Table4[BOD removed]*_xlfn.DAYS(EOMONTH(Table4[[#This Row],[Column2]],0),EOMONTH(Table4[[#This Row],[Column2]],-1))) -> 67848.9858 | G11: =IF(SUM('Energy Data Entry'!C32,'Energy Data Entry'!H32,'Energy Data Entry'!M32,'Energy Data Entry'!R32,'Energy Data Entry'!W32)=0,"",SUM('Energy Data Entry'!C32,'Energy Data Entry'!H32,'Energy Data Entry'!M32,'Energy Data Entry'!R32,'Energy Data Entry'!W32)) -> 134366.4 | H11: ='Energy Data Entry'!AG32 -> 0 | I11: =IF(Table4[[#This Row],[Electric kWh usage]]="","",Table4[[#This Row],[Gas kWh usage]]+Table4[[#This Row],[Electric kWh usage]]) -> 134366.4 | J11: =IF(OR(Table4[[#This Row],[Electric kWh usage]]="",Table4[[#This Row],[Monthly Flow]]=""),"",(Table4[[#This Row],[Electric kWh usage]]+Table4[[#This Row],[Gas kWh usage]])/Table4[[#This Row],[Monthly Flow]]) -> 2574.068966 | K11: =IFERROR(IF(Table4[[#This Row],[Electric kWh usage]]="","",(Table4[[#This Row],[Electric kWh usage]]+Table4[[#This Row],[Gas kWh usage]])/Table4[[#This Row],[Total BOD removed]]),"") -> 1.98037448 | L11: =IF('Energy Data Entry'!E32+'Energy Data Entry'!J32+'Energy Data Entry'!O32+'Energy Data Entry'!T32+'Energy Data Entry'!Y32=0,"",'Energy Data Entry'!E32+'Energy Data Entry'!J32+'Energy Data Entry'!O32+'Energy Data Entry'!T32+'Energy Data Entry'!Y32) -> 251 | M11: =IF('Energy Data Entry'!F32+'Energy Data Entry'!K32+'Energy Data Entry'!P32++'Energy Data Entry'!U32+'Energy Data Entry'!Z32=0,"",'Energy Data Entry'!F32+'Energy Data Entry'!K32+'Energy Data Entry'!P32++'Energy Data Entry'!U32+'Energy Data Entry'!Z32) -> 251 | N11: =IF('Energy Data Entry'!G32+'Energy Data Entry'!L32+'Energy Data Entry'!Q32+'Energy Data Entry'!V32+'Energy Data Entry'!AA32=0,"",'Energy Data Entry'!G32+'Energy Data Entry'!L32+'Energy Data Entry'!Q32+'Energy Data Entry'!V32+'Energy Data Entry'!AA32) -> 2761 | O11: =IF('Energy Data Entry'!D32+'Energy Data Entry'!I32+'Energy Data Entry'!N32+'Energy Data Entry'!S32+'Energy Data Entry'!X32=0,"",'Energy Data Entry'!D32+'Energy Data Entry'!I32+'Energy Data Entry'!N32+'Energy Data Entry'!S32+'Energy Data Entry'!X32) -> 10822.984 | P11: ='Energy Data Entry'!AF32 -> 0 | Q11: =IFERROR(Table4[[#This Row],[Total electric cost]]/Table4[[#This Row],[Electric kWh usage]],"") -> 0.08054829183 | R11: =IFERROR(Table4[[#This Row],[Electric Demand Cost]]/Table4[[#This Row],[Total Electric Demand (Billed)]],IFERROR(Table4[[#This Row],[Electric Demand Cost]]/Table4[[#This Row],[Total Electric Demand (Actual)]],"")) -> 11 | S11: =IFERROR(Table4[[#This Row],[Total Gas cost]]+Table4[[#This Row],[Total electric cost]],"") -> 10822.984 | U11: =IFERROR(Table4[[#This Row],[Total Energy Cost]]/Table4[[#This Row],[Monthly Flow]],"") -> 207.3368582 | V11: =IFERROR(Table4[[#This Row],[Total Energy Cost]]/Table4[[#This Row],[Total BOD removed]],"") -> 0.1595157816 | X11: =IF('Process Data Entry'!G13="","",'Process Data Entry'!G13) -> 36 | Y11: =IF('Process Data Entry'!H13="","",'Process Data Entry'!H13) -> 17 | Z11: =IF('Process Data Entry'!I13="",0,'Process Data Entry'!I13) -> 0 | AA11: =IF('Process Data Entry'!J13="","",'Process Data Entry'!J13) -> 2.9 | AB11: =IF('Process Data Entry'!K13="","",'Process Data Entry'!K13) -> 1 | AC11: =IF('Process Data Entry'!L13="","",'Process Data Entry'!L13) -> 15.6 | AD11: 17.5 | AE11: 7618.59 | AF11: =IF('Process Data Entry'!M13="","",'Process Data Entry'!M13) -> 9.2 | AG11: =IF('Process Data Entry'!N13="","",'Process Data Entry'!N13) -> 0.8 | AH11: 3656.9232
A12: 1 | B12: ='Energy Data Entry'!B33 -> 2016-03-01 | C12: =IF(OR('Process Data Entry'!C14="",'Process Data Entry'!C14=0),"",'Process Data Entry'!C14) -> 2.18 | D12: =IF(Table4[Avg Daily Flow]="","",_xlfn.DAYS(EOMONTH(B12,0),EOMONTH(B12,-1))*C12) -> 67.58 | E12: =IF('Process Data Entry'!F14="","",'Process Data Entry'!F14) -> 2408.09994 | F12: =IF(Table4[BOD removed]="","",Table4[BOD removed]*_xlfn.DAYS(EOMONTH(Table4[[#This Row],[Column2]],0),EOMONTH(Table4[[#This Row],[Column2]],-1))) -> 74651.09814 | G12: =IF(SUM('Energy Data Entry'!C33,'Energy Data Entry'!H33,'Energy Data Entry'!M33,'Energy Data Entry'!R33,'Energy Data Entry'!W33)=0,"",SUM('Energy Data Entry'!C33,'Energy Data Entry'!H33,'Energy Data Entry'!M33,'Energy Data Entry'!R33,'Energy Data Entry'!W33)) -> 183120 | H12: ='Energy Data Entry'!AG33 -> 0 | I12: =IF(Table4[[#This Row],[Electric kWh usage]]="","",Table4[[#This Row],[Gas kWh usage]]+Table4[[#This Row],[Electric kWh usage]]) -> 183120 | J12: =IF(OR(Table4[[#This Row],[Electric kWh usage]]="",Table4[[#This Row],[Monthly Flow]]=""),"",(Table4[[#This Row],[Electric kWh usage]]+Table4[[#This Row],[Gas kWh usage]])/Table4[[#This Row],[Monthly Flow]]) -> 2709.677419 | K12: =IFERROR(IF(Table4[[#This Row],[Electric kWh usage]]="","",(Table4[[#This Row],[Electric kWh usage]]+Table4[[#This Row],[Gas kWh usage]])/Table4[[#This Row],[Total BOD removed]]),"") -> 2.45301147 | L12: =IF('Energy Data Entry'!E33+'Energy Data Entry'!J33+'Energy Data Entry'!O33+'Energy Data Entry'!T33+'Energy Data Entry'!Y33=0,"",'Energy Data Entry'!E33+'Energy Data Entry'!J33+'Energy Data Entry'!O33+'Energy Data Entry'!T33+'Energy Data Entry'!Y33) -> 322 | M12: =IF('Energy Data Entry'!F33+'Energy Data Entry'!K33+'Energy Data Entry'!P33++'Energy Data Entry'!U33+'Energy Data Entry'!Z33=0,"",'Energy Data Entry'!F33+'Energy Data Entry'!K33+'Energy Data Entry'!P33++'Energy Data Entry'!U33+'Energy Data Entry'!Z33) -> 322 | N12: =IF('Energy Data Entry'!G33+'Energy Data Entry'!L33+'Energy Data Entry'!Q33+'Energy Data Entry'!V33+'Energy Data Entry'!AA33=0,"",'Energy Data Entry'!G33+'Energy Data Entry'!L33+'Energy Data Entry'!Q33+'Energy Data Entry'!V33+'Energy Data Entry'!AA33) -> 3542 | O12: =IF('Energy Data Entry'!D33+'Energy Data Entry'!I33+'Energy Data Entry'!N33+'Energy Data Entry'!S33+'Energy Data Entry'!X33=0,"",'Energy Data Entry'!D33+'Energy Data Entry'!I33+'Energy Data Entry'!N33+'Energy Data Entry'!S33+'Energy Data Entry'!X33) -> 14529.2 | P12: ='Energy Data Entry'!AF33 -> 0 | Q12: =IFERROR(Table4[[#This Row],[Total electric cost]]/Table4[[#This Row],[Electric kWh usage]],"") -> 0.07934250765 | R12: =IFERROR(Table4[[#This Row],[Electric Demand Cost]]/Table4[[#This Row],[Total Electric Demand (Billed)]],IFERROR(Table4[[#This Row],[Electric Demand Cost]]/Table4[[#This Row],[Total Electric Demand (Actual)]],"")) -> 11 | S12: =IFERROR(Table4[[#This Row],[Total Gas cost]]+Table4[[#This Row],[Total electric cost]],"") -> 14529.2 | U12: =IFERROR(Table4[[#This Row],[Total Energy Cost]]/Table4[[#This Row],[Monthly Flow]],"") -> 214.9926014 | V12: =IFERROR(Table4[[#This Row],[Total Energy Cost]]/Table4[[#This Row],[Total BOD removed]],"") -> 0.1946280813 | X12: =IF('Process Data Entry'!G14="","",'Process Data Entry'!G14) -> 31 | Y12: =IF('Process Data Entry'!H14="","",'Process Data Entry'!H14) -> 12 | Z12: =IF('Process Data Entry'!I14="",0,'Process Data Entry'!I14) -> 0 | AA12: =IF('Process Data Entry'!J14="","",'Process Data Entry'!J14) -> 2.9 | AB12: =IF('Process Data Entry'!K14="","",'Process Data Entry'!K14) -> 1.1 | AC12: =IF('Process Data Entry'!L14="","",'Process Data Entry'!L14) -> 20.4 | AD12: 7.7 | AE12: 4339.85244 | AF12: =IF('Process Data Entry'!M14="","",'Process Data Entry'!M14) -> 9 | AG12: =IF('Process Data Entry'!N14="","",'Process Data Entry'!N14) -> 0.6 | AH12: 4734.38448
A13: 1 | B13: ='Energy Data Entry'!B34 -> 2016-04-01 | C13: =IF(OR('Process Data Entry'!C15="",'Process Data Entry'!C15=0),"",'Process Data Entry'!C15) -> 1.52 | D13: =IF(Table4[Avg Daily Flow]="","",_xlfn.DAYS(EOMONTH(B13,0),EOMONTH(B13,-1))*C13) -> 45.6 | E13: =IF('Process Data Entry'!F15="","",'Process Data Entry'!F15) -> 2398.45056 | F13: =IF(Table4[BOD removed]="","",Table4[BOD removed]*_xlfn.DAYS(EOMONTH(Table4[[#This Row],[Column2]],0),EOMONTH(Table4[[#This Row],[Column2]],-1))) -> 71953.5168 | G13: =IF(SUM('Energy Data Entry'!C34,'Energy Data Entry'!H34,'Energy Data Entry'!M34,'Energy Data Entry'!R34,'Energy Data Entry'!W34)=0,"",SUM('Energy Data Entry'!C34,'Energy Data Entry'!H34,'Energy Data Entry'!M34,'Energy Data Entry'!R34,'Energy Data Entry'!W34)) -> 147768.32 | H13: ='Energy Data Entry'!AG34 -> 0 | I13: =IF(Table4[[#This Row],[Electric kWh usage]]="","",Table4[[#This Row],[Gas kWh usage]]+Table4[[#This Row],[Electric kWh usage]]) -> 147768.32 | J13: =IF(OR(Table4[[#This Row],[Electric kWh usage]]="",Table4[[#This Row],[Monthly Flow]]=""),"",(Table4[[#This Row],[Electric kWh usage]]+Table4[[#This Row],[Gas kWh usage]])/Table4[[#This Row],[Monthly Flow]]) -> 3240.533333 | K13: =IFERROR(IF(Table4[[#This Row],[Electric kWh usage]]="","",(Table4[[#This Row],[Electric kWh usage]]+Table4[[#This Row],[Gas kWh usage]])/Table4[[#This Row],[Total BOD removed]]),"") -> 2.053663623 | L13: =IF('Energy Data Entry'!E34+'Energy Data Entry'!J34+'Energy Data Entry'!O34+'Energy Data Entry'!T34+'Energy Data Entry'!Y34=0,"",'Energy Data Entry'!E34+'Energy Data Entry'!J34+'Energy Data Entry'!O34+'Energy Data Entry'!T34+'Energy Data Entry'!Y34) -> 272 | M13: =IF('Energy Data Entry'!F34+'Energy Data Entry'!K34+'Energy Data Entry'!P34++'Energy Data Entry'!U34+'Energy Data Entry'!Z34=0,"",'Energy Data Entry'!F34+'Energy Data Entry'!K34+'Energy Data Entry'!P34++'Energy Data Entry'!U34+'Energy Data Entry'!Z34) -> 272 | N13: =IF('Energy Data Entry'!G34+'Energy Data Entry'!L34+'Energy Data Entry'!Q34+'Energy Data Entry'!V34+'Energy Data Entry'!AA34=0,"",'Energy Data Entry'!G34+'Energy Data Entry'!L34+'Energy Data Entry'!Q34+'Energy Data Entry'!V34+'Energy Data Entry'!AA34) -> 2992 | O13: =IF('Energy Data Entry'!D34+'Energy Data Entry'!I34+'Energy Data Entry'!N34+'Energy Data Entry'!S34+'Energy Data Entry'!X34=0,"",'Energy Data Entry'!D34+'Energy Data Entry'!I34+'Energy Data Entry'!N34+'Energy Data Entry'!S34+'Energy Data Entry'!X34) -> 11858.0992 | P13: ='Energy Data Entry'!AF34 -> 0 | Q13: =IFERROR(Table4[[#This Row],[Total electric cost]]/Table4[[#This Row],[Electric kWh usage]],"") -> 0.08024791241 | R13: =IFERROR(Table4[[#This Row],[Electric Demand Cost]]/Table4[[#This Row],[Total Electric Demand (Billed)]],IFERROR(Table4[[#This Row],[Electric Demand Cost]]/Table4[[#This Row],[Total Electric Demand (Actual)]],"")) -> 11 | S13: =IFERROR(Table4[[#This Row],[Total Gas cost]]+Table4[[#This Row],[Total electric cost]],"") -> 11858.0992 | U13: =IFERROR(Table4[[#This Row],[Total Energy Cost]]/Table4[[#This Row],[Monthly Flow]],"") -> 260.0460351 | V13: =IFERROR(Table4[[#This Row],[Total Energy Cost]]/Table4[[#This Row],[Total BOD removed]],"") -> 0.1648022185 | X13: =IF('Process Data Entry'!G15="","",'Process Data Entry'!G15) -> 40 | Y13: =IF('Process Data Entry'!H15="","",'Process Data Entry'!H15) -> 15 | Z13: =IF('Process Data Entry'!I15="",0,'Process Data Entry'!I15) -> 0 | AA13: =IF('Process Data Entry'!J15="","",'Process Data Entry'!J15) -> 2.9 | AB13: =IF('Process Data Entry'!K15="","",'Process Data Entry'!K15) -> 1.6 | AC13: =IF('Process Data Entry'!L15="","",'Process Data Entry'!L15) -> 19.4 | AD13: 17.7 | AE13: 6731.3808 | AF13: =IF('Process Data Entry'!M15="","",'Process Data Entry'!M15) -> 7.6 | AG13: =IF('Process Data Entry'!N15="","",'Process Data Entry'!N15) -> 1.5 | AH13: 2319.8544
A14: 1 | B14: ='Energy Data Entry'!B35 -> 2016-05-01 | C14: =IF(OR('Process Data Entry'!C16="",'Process Data Entry'!C16=0),"",'Process Data Entry'!C16) -> 2.14 | D14: =IF(Table4[Avg Daily Flow]="","",_xlfn.DAYS(EOMONTH(B14,0),EOMONTH(B14,-1))*C14) -> 66.34 | E14: =IF('Process Data Entry'!F16="","",'Process Data Entry'!F16) -> 2926.11402 | F14: =IF(Table4[BOD removed]="","",Table4[BOD removed]*_xlfn.DAYS(EOMONTH(Table4[[#This Row],[Column2]],0),EOMONTH(Table4[[#This Row],[Column2]],-1))) -> 90709.53462 | G14: =IF(SUM('Energy Data Entry'!C35,'Energy Data Entry'!H35,'Energy Data Entry'!M35,'Energy Data Entry'!R35,'Energy Data Entry'!W35)=0,"",SUM('Energy Data Entry'!C35,'Energy Data Entry'!H35,'Energy Data Entry'!M35,'Energy Data Entry'!R35,'Energy Data Entry'!W35)) -> 199533.6 | H14: ='Energy Data Entry'!AG35 -> 0 | I14: =IF(Table4[[#This Row],[Electric kWh usage]]="","",Table4[[#This Row],[Gas kWh usage]]+Table4[[#This Row],[Electric kWh usage]]) -> 199533.6 | J14: =IF(OR(Table4[[#This Row],[Electric kWh usage]]="",Table4[[#This Row],[Monthly Flow]]=""),"",(Table4[[#This Row],[Electric kWh usage]]+Table4[[#This Row],[Gas kWh usage]])/Table4[[#This Row],[Monthly Flow]]) -> 3007.741935 | K14: =IFERROR(IF(Table4[[#This Row],[Electric kWh usage]]="","",(Table4[[#This Row],[Electric kWh usage]]+Table4[[#This Row],[Gas kWh usage]])/Table4[[#This Row],[Total BOD removed]]),"") -> 2.1996982 | L14: =IF('Energy Data Entry'!E35+'Energy Data Entry'!J35+'Energy Data Entry'!O35+'Energy Data Entry'!T35+'Energy Data Entry'!Y35=0,"",'Energy Data Entry'!E35+'Energy Data Entry'!J35+'Energy Data Entry'!O35+'Energy Data Entry'!T35+'Energy Data Entry'!Y35) -> 351 | M14: =IF('Energy Data Entry'!F35+'Energy Data Entry'!K35+'Energy Data Entry'!P35++'Energy Data Entry'!U35+'Energy Data Entry'!Z35=0,"",'Energy Data Entry'!F35+'Energy Data Entry'!K35+'Energy Data Entry'!P35++'Energy Data Entry'!U35+'Energy Data Entry'!Z35) -> 351 | N14: =IF('Energy Data Entry'!G35+'Energy Data Entry'!L35+'Energy Data Entry'!Q35+'Energy Data Entry'!V35+'Energy Data Entry'!AA35=0,"",'Energy Data Entry'!G35+'Energy Data Entry'!L35+'Energy Data Entry'!Q35+'Energy Data Entry'!V35+'Energy Data Entry'!AA35) -> 3861 | O14: =IF('Energy Data Entry'!D35+'Energy Data Entry'!I35+'Energy Data Entry'!N35+'Energy Data Entry'!S35+'Energy Data Entry'!X35=0,"",'Energy Data Entry'!D35+'Energy Data Entry'!I35+'Energy Data Entry'!N35+'Energy Data Entry'!S35+'Energy Data Entry'!X35) -> 15833.016 | P14: ='Energy Data Entry'!AF35 -> 0 | Q14: =IFERROR(Table4[[#This Row],[Total electric cost]]/Table4[[#This Row],[Electric kWh usage]],"") -> 0.07935012449 | R14: =IFERROR(Table4[[#This Row],[Electric Demand Cost]]/Table4[[#This Row],[Total Electric Demand (Billed)]],IFERROR(Table4[[#This Row],[Electric Demand Cost]]/Table4[[#This Row],[Total Electric Demand (Actual)]],"")) -> 11 | S14: =IFERROR(Table4[[#This Row],[Total Gas cost]]+Table4[[#This Row],[Total electric cost]],"") -> 15833.016 | U14: =IFERROR(Table4[[#This Row],[Total Energy Cost]]/Table4[[#This Row],[Monthly Flow]],"") -> 238.664697 | V14: =IFERROR(Table4[[#This Row],[Total Energy Cost]]/Table4[[#This Row],[Total BOD removed]],"") -> 0.174546326 | X14: =IF('Process Data Entry'!G16="","",'Process Data Entry'!G16) -> 34 | Y14: =IF('Process Data Entry'!H16="","",'Process Data Entry'!H16) -> 11 | Z14: =IF('Process Data Entry'!I16="",0,'Process Data Entry'!I16) -> 0 | AA14: =IF('Process Data Entry'!J16="","",'Process Data Entry'!J16) -> 2.7 | AB14: =IF('Process Data Entry'!K16="","",'Process Data Entry'!K16) -> 0.8 | AC14: =IF('Process Data Entry'!L16="","",'Process Data Entry'!L16) -> 13.8 | AD14: 17.5 | AE14: 9682.323 | AF14: =IF('Process Data Entry'!M16="","",'Process Data Entry'!M16) -> 7.2 | AG14: =IF('Process Data Entry'!N16="","",'Process Data Entry'!N16) -> 1.3 | AH14: 3264.32604
A15: 1 | B15: ='Energy Data Entry'!B36 -> 2016-06-01 | C15: =IF(OR('Process Data Entry'!C17="",'Process Data Entry'!C17=0),"",'Process Data Entry'!C17) -> 2.2 | D15: =IF(Table4[Avg Daily Flow]="","",_xlfn.DAYS(EOMONTH(B15,0),EOMONTH(B15,-1))*C15) -> 66 | E15: =IF('Process Data Entry'!F17="","",'Process Data Entry'!F17) -> 2493.4932 | F15: =IF(Table4[BOD removed]="","",Table4[BOD removed]*_xlfn.DAYS(EOMONTH(Table4[[#This Row],[Column2]],0),EOMONTH(Table4[[#This Row],[Column2]],-1))) -> 74804.796 | G15: =IF(SUM('Energy Data Entry'!C36,'Energy Data Entry'!H36,'Energy Data Entry'!M36,'Energy Data Entry'!R36,'Energy Data Entry'!W36)=0,"",SUM('Energy Data Entry'!C36,'Energy Data Entry'!H36,'Energy Data Entry'!M36,'Energy Data Entry'!R36,'Energy Data Entry'!W36)) -> 215784.8 | H15: ='Energy Data Entry'!AG36 -> 0 | I15: =IF(Table4[[#This Row],[Electric kWh usage]]="","",Table4[[#This Row],[Gas kWh usage]]+Table4[[#This Row],[Electric kWh usage]]) -> 215784.8 | J15: =IF(OR(Table4[[#This Row],[Electric kWh usage]]="",Table4[[#This Row],[Monthly Flow]]=""),"",(Table4[[#This Row],[Electric kWh usage]]+Table4[[#This Row],[Gas kWh usage]])/Table4[[#This Row],[Monthly Flow]]) -> 3269.466667 | K15: =IFERROR(IF(Table4[[#This Row],[Electric kWh usage]]="","",(Table4[[#This Row],[Electric kWh usage]]+Table4[[#This Row],[Gas kWh usage]])/Table4[[#This Row],[Total BOD removed]]),"") -> 2.884638573 | L15: =IF('Energy Data Entry'!E36+'Energy Data Entry'!J36+'Energy Data Entry'!O36+'Energy Data Entry'!T36+'Energy Data Entry'!Y36=0,"",'Energy Data Entry'!E36+'Energy Data Entry'!J36+'Energy Data Entry'!O36+'Energy Data Entry'!T36+'Energy Data Entry'!Y36) -> 382 | M15: =IF('Energy Data Entry'!F36+'Energy Data Entry'!K36+'Energy Data Entry'!P36++'Energy Data Entry'!U36+'Energy Data Entry'!Z36=0,"",'Energy Data Entry'!F36+'Energy Data Entry'!K36+'Energy Data Entry'!P36++'Energy Data Entry'!U36+'Energy Data Entry'!Z36) -> 382 | N15: =IF('Energy Data Entry'!G36+'Energy Data Entry'!L36+'Energy Data Entry'!Q36+'Energy Data Entry'!V36+'Energy Data Entry'!AA36=0,"",'Energy Data Entry'!G36+'Energy Data Entry'!L36+'Energy Data Entry'!Q36+'Energy Data Entry'!V36+'Energy Data Entry'!AA36) -> 4202 | O15: =IF('Energy Data Entry'!D36+'Energy Data Entry'!I36+'Energy Data Entry'!N36+'Energy Data Entry'!S36+'Energy Data Entry'!X36=0,"",'Energy Data Entry'!D36+'Energy Data Entry'!I36+'Energy Data Entry'!N36+'Energy Data Entry'!S36+'Energy Data Entry'!X36) -> 17149.088 | P15: ='Energy Data Entry'!AF36 -> 0 | Q15: =IFERROR(Table4[[#This Row],[Total electric cost]]/Table4[[#This Row],[Electric kWh usage]],"") -> 0.07947310469 | R15: =IFERROR(Table4[[#This Row],[Electric Demand Cost]]/Table4[[#This Row],[Total Electric Demand (Billed)]],IFERROR(Table4[[#This Row],[Electric Demand Cost]]/Table4[[#This Row],[Total Electric Demand (Actual)]],"")) -> 11 | S15: =IFERROR(Table4[[#This Row],[Total Gas cost]]+Table4[[#This Row],[Total electric cost]],"") -> 17149.088 | U15: =IFERROR(Table4[[#This Row],[Total Energy Cost]]/Table4[[#This Row],[Monthly Flow]],"") -> 259.8346667 | V15: =IFERROR(Table4[[#This Row],[Total Energy Cost]]/Table4[[#This Row],[Total BOD removed]],"") -> 0.2292511833 | X15: =IF('Process Data Entry'!G17="","",'Process Data Entry'!G17) -> 34 | Y15: =IF('Process Data Entry'!H17="","",'Process Data Entry'!H17) -> 13 | Z15: =IF('Process Data Entry'!I17="",0,'Process Data Entry'!I17) -> 0 | AA15: =IF('Process Data Entry'!J17="","",'Process Data Entry'!J17) -> 2.9 | AB15: =IF('Process Data Entry'!K17="","",'Process Data Entry'!K17) -> 1 | AC15: =IF('Process Data Entry'!L17="","",'Process Data Entry'!L17) -> 20.1 | AD15: 11 | AE15: 6054.84 | AF15: =IF('Process Data Entry'!M17="","",'Process Data Entry'!M17) -> 7.8 | AG15: =IF('Process Data Entry'!N17="","",'Process Data Entry'!N17) -> 1.5 | AH15: 3467.772
A16: 2 | B16: ='Energy Data Entry'!B37 -> 2016-07-01 | C16: =IF(OR('Process Data Entry'!C18="",'Process Data Entry'!C18=0),"",'Process Data Entry'!C18) -> 1.68 | D16: =IF(Table4[Avg Daily Flow]="","",_xlfn.DAYS(EOMONTH(B16,0),EOMONTH(B16,-1))*C16) -> 52.08 | E16: =IF('Process Data Entry'!F18="","",'Process Data Entry'!F18) -> 2035.1268 | F16: =IF(Table4[BOD removed]="","",Table4[BOD removed]*_xlfn.DAYS(EOMONTH(Table4[[#This Row],[Column2]],0),EOMONTH(Table4[[#This Row],[Column2]],-1))) -> 63088.9308 | G16: =IF(SUM('Energy Data Entry'!C37,'Energy Data Entry'!H37,'Energy Data Entry'!M37,'Energy Data Entry'!R37,'Energy Data Entry'!W37)=0,"",SUM('Energy Data Entry'!C37,'Energy Data Entry'!H37,'Energy Data Entry'!M37,'Energy Data Entry'!R37,'Energy Data Entry'!W37)) -> 156031.68 | H16: ='Energy Data Entry'!AG37 -> 0 | I16: =IF(Table4[[#This Row],[Electric kWh usage]]="","",Table4[[#This Row],[Gas kWh usage]]+Table4[[#This Row],[Electric kWh usage]]) -> 156031.68 | J16: =IF(OR(Table4[[#This Row],[Electric kWh usage]]="",Table4[[#This Row],[Monthly Flow]]=""),"",(Table4[[#This Row],[Electric kWh usage]]+Table4[[#This Row],[Gas kWh usage]])/Table4[[#This Row],[Monthly Flow]]) -> 2996 | K16: =IFERROR(IF(Table4[[#This Row],[Electric kWh usage]]="","",(Table4[[#This Row],[Electric kWh usage]]+Table4[[#This Row],[Gas kWh usage]])/Table4[[#This Row],[Total BOD removed]]),"") -> 2.473202161 | L16: =IF('Energy Data Entry'!E37+'Energy Data Entry'!J37+'Energy Data Entry'!O37+'Energy Data Entry'!T37+'Energy Data Entry'!Y37=0,"",'Energy Data Entry'!E37+'Energy Data Entry'!J37+'Energy Data Entry'!O37+'Energy Data Entry'!T37+'Energy Data Entry'!Y37) -> 287 | M16: =IF('Energy Data Entry'!F37+'Energy Data Entry'!K37+'Energy Data Entry'!P37++'Energy Data Entry'!U37+'Energy Data Entry'!Z37=0,"",'Energy Data Entry'!F37+'Energy Data Entry'!K37+'Energy Data Entry'!P37++'Energy Data Entry'!U37+'Energy Data Entry'!Z37) -> 287 | N16: =IF('Energy Data Entry'!G37+'Energy Data Entry'!L37+'Energy Data Entry'!Q37+'Energy Data Entry'!V37+'Energy Data Entry'!AA37=0,"",'Energy Data Entry'!G37+'Energy Data Entry'!L37+'Energy Data Entry'!Q37+'Energy Data Entry'!V37+'Energy Data Entry'!AA37) -> 3157 | O16: =IF('Energy Data Entry'!D37+'Energy Data Entry'!I37+'Energy Data Entry'!N37+'Energy Data Entry'!S37+'Energy Data Entry'!X37=0,"",'Energy Data Entry'!D37+'Energy Data Entry'!I37+'Energy Data Entry'!N37+'Energy Data Entry'!S37+'Energy Data Entry'!X37) -> 12518.9008 | P16: ='Energy Data Entry'!AF37 -> 0 | Q16: =IFERROR(Table4[[#This Row],[Total electric cost]]/Table4[[#This Row],[Electric kWh usage]],"") -> 0.08023307062 | R16: =IFERROR(Table4[[#This Row],[Electric Demand Cost]]/Table4[[#This Row],[Total Electric Demand (Billed)]],IFERROR(Table4[[#This Row],[Electric Demand Cost]]/Table4[[#This Row],[Total Electric Demand (Actual)]],"")) -> 11 | S16: =IFERROR(Table4[[#This Row],[Total Gas cost]]+Table4[[#This Row],[Total electric cost]],"") -> 12518.9008 | U16: =IFERROR(Table4[[#This Row],[Total Energy Cost]]/Table4[[#This Row],[Monthly Flow]],"") -> 240.3782796 | V16: =IFERROR(Table4[[#This Row],[Total Energy Cost]]/Table4[[#This Row],[Total BOD removed]],"") -> 0.1984326036 | X16: =IF('Process Data Entry'!G18="","",'Process Data Entry'!G18) -> 31 | Y16: =IF('Process Data Entry'!H18="","",'Process Data Entry'!H18) -> 18 | Z16: =IF('Process Data Entry'!I18="",0,'Process Data Entry'!I18) -> 0 | AA16: =IF('Process Data Entry'!J18="","",'Process Data Entry'!J18) -> 3.2 | AB16: =IF('Process Data Entry'!K18="","",'Process Data Entry'!K18) -> 1.3 | AC16: =IF('Process Data Entry'!L18="","",'Process Data Entry'!L18) -> 9.5 | AD16: 18.3 | AE16: 7948.55376 | AF16: =IF('Process Data Entry'!M18="","",'Process Data Entry'!M18) -> 7.2 | AG16: =IF('Process Data Entry'!N18="","",'Process Data Entry'!N18) -> 1 | AH16: 2692.95264
A17: 2 | B17: ='Energy Data Entry'!B38 -> 2016-08-01 | C17: =IF(OR('Process Data Entry'!C19="",'Process Data Entry'!C19=0),"",'Process Data Entry'!C19) -> 2.5 | D17: =IF(Table4[Avg Daily Flow]="","",_xlfn.DAYS(EOMONTH(B17,0),EOMONTH(B17,-1))*C17) -> 77.5 | E17: =IF('Process Data Entry'!F19="","",'Process Data Entry'!F19) -> 4091.8125 | F17: =IF(Table4[BOD removed]="","",Table4[BOD removed]*_xlfn.DAYS(EOMONTH(Table4[[#This Row],[Column2]],0),EOMONTH(Table4[[#This Row],[Column2]],-1))) -> 126846.1875 | G17: =IF(SUM('Energy Data Entry'!C38,'Energy Data Entry'!H38,'Energy Data Entry'!M38,'Energy Data Entry'!R38,'Energy Data Entry'!W38)=0,"",SUM('Energy Data Entry'!C38,'Energy Data Entry'!H38,'Energy Data Entry'!M38,'Energy Data Entry'!R38,'Energy Data Entry'!W38)) -> 241500 | H17: ='Energy Data Entry'!AG38 -> 0 | I17: =IF(Table4[[#This Row],[Electric kWh usage]]="","",Table4[[#This Row],[Gas kWh usage]]+Table4[[#This Row],[Electric kWh usage]]) -> 241500 | J17: =IF(OR(Table4[[#This Row],[Electric kWh usage]]="",Table4[[#This Row],[Monthly Flow]]=""),"",(Table4[[#This Row],[Electric kWh usage]]+Table4[[#This Row],[Gas kWh usage]])/Table4[[#This Row],[Monthly Flow]]) -> 3116.129032 | K17: =IFERROR(IF(Table4[[#This Row],[Electric kWh usage]]="","",(Table4[[#This Row],[Electric kWh usage]]+Table4[[#This Row],[Gas kWh usage]])/Table4[[#This Row],[Total BOD removed]]),"") -> 1.903880635 | L17: =IF('Energy Data Entry'!E38+'Energy Data Entry'!J38+'Energy Data Entry'!O38+'Energy Data Entry'!T38+'Energy Data Entry'!Y38=0,"",'Energy Data Entry'!E38+'Energy Data Entry'!J38+'Energy Data Entry'!O38+'Energy Data Entry'!T38+'Energy Data Entry'!Y38) -> 479 | M17: =IF('Energy Data Entry'!F38+'Energy Data Entry'!K38+'Energy Data Entry'!P38++'Energy Data Entry'!U38+'Energy Data Entry'!Z38=0,"",'Energy Data Entry'!F38+'Energy Data Entry'!K38+'Energy Data Entry'!P38++'Energy Data Entry'!U38+'Energy Data Entry'!Z38) -> 479 | N17: =IF('Energy Data Entry'!G38+'Energy Data Entry'!L38+'Energy Data Entry'!Q38+'Energy Data Entry'!V38+'Energy Data Entry'!AA38=0,"",'Energy Data Entry'!G38+'Energy Data Entry'!L38+'Energy Data Entry'!Q38+'Energy Data Entry'!V38+'Energy Data Entry'!AA38) -> 5269 | O17: =IF('Energy Data Entry'!D38+'Energy Data Entry'!I38+'Energy Data Entry'!N38+'Energy Data Entry'!S38+'Energy Data Entry'!X38=0,"",'Energy Data Entry'!D38+'Energy Data Entry'!I38+'Energy Data Entry'!N38+'Energy Data Entry'!S38+'Energy Data Entry'!X38) -> 19759 | P17: ='Energy Data Entry'!AF38 -> 0 | Q17: =IFERROR(Table4[[#This Row],[Total electric cost]]/Table4[[#This Row],[Electric kWh usage]],"") -> 0.08181780538 | R17: =IFERROR(Table4[[#This Row],[Electric Demand Cost]]/Table4[[#This Row],[Total Electric Demand (Billed)]],IFERROR(Table4[[#This Row],[Electric Demand Cost]]/Table4[[#This Row],[Total Electric Demand (Actual)]],"")) -> 11 | S17: =IFERROR(Table4[[#This Row],[Total Gas cost]]+Table4[[#This Row],[Total electric cost]],"") -> 19759 | U17: =IFERROR(Table4[[#This Row],[Total Energy Cost]]/Table4[[#This Row],[Monthly Flow]],"") -> 254.9548387 | V17: =IFERROR(Table4[[#This Row],[Total Energy Cost]]/Table4[[#This Row],[Total BOD removed]],"") -> 0.1557713353 | X17: =IF('Process Data Entry'!G19="","",'Process Data Entry'!G19) -> 40 | Y17: =IF('Process Data Entry'!H19="","",'Process Data Entry'!H19) -> 16 | Z17: =IF('Process Data Entry'!I19="",0,'Process Data Entry'!I19) -> 0 | AA17: =IF('Process Data Entry'!J19="","",'Process Data Entry'!J19) -> 2.7 | AB17: =IF('Process Data Entry'!K19="","",'Process Data Entry'!K19) -> 0.9 | AC17: =IF('Process Data Entry'!L19="","",'Process Data Entry'!L19) -> 13.4 | AD17: 23.9 | AE17: 15447.765 | AF17: =IF('Process Data Entry'!M19="","",'Process Data Entry'!M19) -> 8.6 | AG17: =IF('Process Data Entry'!N19="","",'Process Data Entry'!N19) -> 1.2 | AH17: 4782.99
A18: 2 | B18: ='Energy Data Entry'!B39 -> 2016-09-01 | C18: =IF(OR('Process Data Entry'!C20="",'Process Data Entry'!C20=0),"",'Process Data Entry'!C20) -> 1.98 | D18: =IF(Table4[Avg Daily Flow]="","",_xlfn.DAYS(EOMONTH(B18,0),EOMONTH(B18,-1))*C18) -> 59.4 | E18: =IF('Process Data Entry'!F20="","",'Process Data Entry'!F20) -> 3527.21952 | F18: =IF(Table4[BOD removed]="","",Table4[BOD removed]*_xlfn.DAYS(EOMONTH(Table4[[#This Row],[Column2]],0),EOMONTH(Table4[[#This Row],[Column2]],-1))) -> 105816.5856 | G18: =IF(SUM('Energy Data Entry'!C39,'Energy Data Entry'!H39,'Energy Data Entry'!M39,'Energy Data Entry'!R39,'Energy Data Entry'!W39)=0,"",SUM('Energy Data Entry'!C39,'Energy Data Entry'!H39,'Energy Data Entry'!M39,'Energy Data Entry'!R39,'Energy Data Entry'!W39)) -> 146084.4 | H18: ='Energy Data Entry'!AG39 -> 0 | I18: =IF(Table4[[#This Row],[Electric kWh usage]]="","",Table4[[#This Row],[Gas kWh usage]]+Table4[[#This Row],[Electric kWh usage]]) -> 146084.4 | J18: =IF(OR(Table4[[#This Row],[Electric kWh usage]]="",Table4[[#This Row],[Monthly Flow]]=""),"",(Table4[[#This Row],[Electric kWh usage]]+Table4[[#This Row],[Gas kWh usage]])/Table4[[#This Row],[Monthly Flow]]) -> 2459.333333 | K18: =IFERROR(IF(Table4[[#This Row],[Electric kWh usage]]="","",(Table4[[#This Row],[Electric kWh usage]]+Table4[[#This Row],[Gas kWh usage]])/Table4[[#This Row],[Total BOD removed]]),"") -> 1.380543505 | L18: =IF('Energy Data Entry'!E39+'Energy Data Entry'!J39+'Energy Data Entry'!O39+'Energy Data Entry'!T39+'Energy Data Entry'!Y39=0,"",'Energy Data Entry'!E39+'Energy Data Entry'!J39+'Energy Data Entry'!O39+'Energy Data Entry'!T39+'Energy Data Entry'!Y39) -> 269 | M18: =IF('Energy Data Entry'!F39+'Energy Data Entry'!K39+'Energy Data Entry'!P39++'Energy Data Entry'!U39+'Energy Data Entry'!Z39=0,"",'Energy Data Entry'!F39+'Energy Data Entry'!K39+'Energy Data Entry'!P39++'Energy Data Entry'!U39+'Energy Data Entry'!Z39) -> 335 | N18: =IF('Energy Data Entry'!G39+'Energy Data Entry'!L39+'Energy Data Entry'!Q39+'Energy Data Entry'!V39+'Energy Data Entry'!AA39=0,"",'Energy Data Entry'!G39+'Energy Data Entry'!L39+'Energy Data Entry'!Q39+'Energy Data Entry'!V39+'Energy Data Entry'!AA39) -> 3685 | O18: =IF('Energy Data Entry'!D39+'Energy Data Entry'!I39+'Energy Data Entry'!N39+'Energy Data Entry'!S39+'Energy Data Entry'!X39=0,"",'Energy Data Entry'!D39+'Energy Data Entry'!I39+'Energy Data Entry'!N39+'Energy Data Entry'!S39+'Energy Data Entry'!X39) -> 12450.064 | P18: ='Energy Data Entry'!AF39 -> 0 | Q18: =IFERROR(Table4[[#This Row],[Total electric cost]]/Table4[[#This Row],[Electric kWh usage]],"") -> 0.08522514382 | R18: =IFERROR(Table4[[#This Row],[Electric Demand Cost]]/Table4[[#This Row],[Total Electric Demand (Billed)]],IFERROR(Table4[[#This Row],[Electric Demand Cost]]/Table4[[#This Row],[Total Electric Demand (Actual)]],"")) -> 11 | S18: =IFERROR(Table4[[#This Row],[Total Gas cost]]+Table4[[#This Row],[Total electric cost]],"") -> 12450.064 | U18: =IFERROR(Table4[[#This Row],[Total Energy Cost]]/Table4[[#This Row],[Monthly Flow]],"") -> 209.597037 | V18: =IFERROR(Table4[[#This Row],[Total Energy Cost]]/Table4[[#This Row],[Total BOD removed]],"") -> 0.1176570188 | X18: =IF('Process Data Entry'!G20="","",'Process Data Entry'!G20) -> 34 | Y18: =IF('Process Data Entry'!H20="","",'Process Data Entry'!H20) -> 15 | Z18: =IF('Process Data Entry'!I20="",0,'Process Data Entry'!I20) -> 0 | AA18: =IF('Process Data Entry'!J20="","",'Process Data Entry'!J20) -> 2.8 | AB18: =IF('Process Data Entry'!K20="","",'Process Data Entry'!K20) -> 1.3 | AC18: =IF('Process Data Entry'!L20="","",'Process Data Entry'!L20) -> 20.3 | AD18: 10.9 | AE18: 5399.8164 | AF18: =IF('Process Data Entry'!M20="","",'Process Data Entry'!M20) -> 9 | AG18: =IF('Process Data Entry'!N20="","",'Process Data Entry'!N20) -> 1.2 | AH18: 3864.0888
A19: 2 | B19: ='Energy Data Entry'!B40 -> 2016-10-01 | C19: =IF(OR('Process Data Entry'!C21="",'Process Data Entry'!C21=0),"",'Process Data Entry'!C21) -> 2.28 | D19: =IF(Table4[Avg Daily Flow]="","",_xlfn.DAYS(EOMONTH(B19,0),EOMONTH(B19,-1))*C19) -> 70.68 | E19: =IF('Process Data Entry'!F21="","",'Process Data Entry'!F21) -> 3864.8394 | F19: =IF(Table4[BOD removed]="","",Table4[BOD removed]*_xlfn.DAYS(EOMONTH(Table4[[#This Row],[Column2]],0),EOMONTH(Table4[[#This Row],[Column2]],-1))) -> 119810.0214 | G19: =IF(SUM('Energy Data Entry'!C40,'Energy Data Entry'!H40,'Energy Data Entry'!M40,'Energy Data Entry'!R40,'Energy Data Entry'!W40)=0,"",SUM('Energy Data Entry'!C40,'Energy Data Entry'!H40,'Energy Data Entry'!M40,'Energy Data Entry'!R40,'Energy Data Entry'!W40)) -> 178113.6 | H19: ='Energy Data Entry'!AG40 -> 0 | I19: =IF(Table4[[#This Row],[Electric kWh usage]]="","",Table4[[#This Row],[Gas kWh usage]]+Table4[[#This Row],[Electric kWh usage]]) -> 178113.6 | J19: =IF(OR(Table4[[#This Row],[Electric kWh usage]]="",Table4[[#This Row],[Monthly Flow]]=""),"",(Table4[[#This Row],[Electric kWh usage]]+Table4[[#This Row],[Gas kWh usage]])/Table4[[#This Row],[Monthly Flow]]) -> 2520 | K19: =IFERROR(IF(Table4[[#This Row],[Electric kWh usage]]="","",(Table4[[#This Row],[Electric kWh usage]]+Table4[[#This Row],[Gas kWh usage]])/Table4[[#This Row],[Total BOD removed]]),"") -> 1.486633571 | L19: =IF('Energy Data Entry'!E40+'Energy Data Entry'!J40+'Energy Data Entry'!O40+'Energy Data Entry'!T40+'Energy Data Entry'!Y40=0,"",'Energy Data Entry'!E40+'Energy Data Entry'!J40+'Energy Data Entry'!O40+'Energy Data Entry'!T40+'Energy Data Entry'!Y40) -> 348 | M19: =IF('Energy Data Entry'!F40+'Energy Data Entry'!K40+'Energy Data Entry'!P40++'Energy Data Entry'!U40+'Energy Data Entry'!Z40=0,"",'Energy Data Entry'!F40+'Energy Data Entry'!K40+'Energy Data Entry'!P40++'Energy Data Entry'!U40+'Energy Data Entry'!Z40) -> 348 | N19: =IF('Energy Data Entry'!G40+'Energy Data Entry'!L40+'Energy Data Entry'!Q40+'Energy Data Entry'!V40+'Energy Data Entry'!AA40=0,"",'Energy Data Entry'!G40+'Energy Data Entry'!L40+'Energy Data Entry'!Q40+'Energy Data Entry'!V40+'Energy Data Entry'!AA40) -> 3828 | O19: =IF('Energy Data Entry'!D40+'Energy Data Entry'!I40+'Energy Data Entry'!N40+'Energy Data Entry'!S40+'Energy Data Entry'!X40=0,"",'Energy Data Entry'!D40+'Energy Data Entry'!I40+'Energy Data Entry'!N40+'Energy Data Entry'!S40+'Energy Data Entry'!X40) -> 14514.816 | P19: ='Energy Data Entry'!AF40 -> 0 | Q19: =IFERROR(Table4[[#This Row],[Total electric cost]]/Table4[[#This Row],[Electric kWh usage]],"") -> 0.0814919018 | R19: =IFERROR(Table4[[#This Row],[Electric Demand Cost]]/Table4[[#This Row],[Total Electric Demand (Billed)]],IFERROR(Table4[[#This Row],[Electric Demand Cost]]/Table4[[#This Row],[Total Electric Demand (Actual)]],"")) -> 11 | S19: =IFERROR(Table4[[#This Row],[Total Gas cost]]+Table4[[#This Row],[Total electric cost]],"") -> 14514.816 | U19: =IFERROR(Table4[[#This Row],[Total Energy Cost]]/Table4[[#This Row],[Monthly Flow]],"") -> 205.3595925 | V19: =IFERROR(Table4[[#This Row],[Total Energy Cost]]/Table4[[#This Row],[Total BOD removed]],"") -> 0.121148597 | X19: =IF('Process Data Entry'!G21="","",'Process Data Entry'!G21) -> 35 | Y19: =IF('Process Data Entry'!H21="","",'Process Data Entry'!H21) -> 15 | Z19: =IF('Process Data Entry'!I21="",0,'Process Data Entry'!I21) -> 0 | AA19: =IF('Process Data Entry'!J21="","",'Process Data Entry'!J21) -> 2.9 | AB19: =IF('Process Data Entry'!K21="","",'Process Data Entry'!K21) -> 1.6 | AC19: =IF('Process Data Entry'!L21="","",'Process Data Entry'!L21) -> 20.1 | AD19: 12 | AE19: 7073.6544 | AF19: =IF('Process Data Entry'!M21="","",'Process Data Entry'!M21) -> 8 | AG19: =IF('Process Data Entry'!N21="","",'Process Data Entry'!N21) -> 1.2 | AH19: 4008.40416
A20: 2 | B20: ='Energy Data Entry'!B41 -> 2016-11-01 | C20: =IF(OR('Process Data Entry'!C22="",'Process Data Entry'!C22=0),"",'Process Data Entry'!C22) -> 2.28 | D20: =IF(Table4[Avg Daily Flow]="","",_xlfn.DAYS(EOMONTH(B20,0),EOMONTH(B20,-1))*C20) -> 68.4 | E20: =IF('Process Data Entry'!F22="","",'Process Data Entry'!F22) -> 4122.49536 | F20: =IF(Table4[BOD removed]="","",Table4[BOD removed]*_xlfn.DAYS(EOMONTH(Table4[[#This Row],[Column2]],0),EOMONTH(Table4[[#This Row],[Column2]],-1))) -> 123674.8608 | G20: =IF(SUM('Energy Data Entry'!C41,'Energy Data Entry'!H41,'Energy Data Entry'!M41,'Energy Data Entry'!R41,'Energy Data Entry'!W41)=0,"",SUM('Energy Data Entry'!C41,'Energy Data Entry'!H41,'Energy Data Entry'!M41,'Energy Data Entry'!R41,'Energy Data Entry'!W41)) -> 213736.32 | H20: ='Energy Data Entry'!AG41 -> 0 | I20: =IF(Table4[[#This Row],[Electric kWh usage]]="","",Table4[[#This Row],[Gas kWh usage]]+Table4[[#This Row],[Electric kWh usage]]) -> 213736.32 | J20: =IF(OR(Table4[[#This Row],[Electric kWh usage]]="",Table4[[#This Row],[Monthly Flow]]=""),"",(Table4[[#This Row],[Electric kWh usage]]+Table4[[#This Row],[Gas kWh usage]])/Table4[[#This Row],[Monthly Flow]]) -> 3124.8 | K20: =IFERROR(IF(Table4[[#This Row],[Electric kWh usage]]="","",(Table4[[#This Row],[Electric kWh usage]]+Table4[[#This Row],[Gas kWh usage]])/Table4[[#This Row],[Total BOD removed]]),"") -> 1.728211527 | L20: =IF('Energy Data Entry'!E41+'Energy Data Entry'!J41+'Energy Data Entry'!O41+'Energy Data Entry'!T41+'Energy Data Entry'!Y41=0,"",'Energy Data Entry'!E41+'Energy Data Entry'!J41+'Energy Data Entry'!O41+'Energy Data Entry'!T41+'Energy Data Entry'!Y41) -> 405 | M20: =IF('Energy Data Entry'!F41+'Energy Data Entry'!K41+'Energy Data Entry'!P41++'Energy Data Entry'!U41+'Energy Data Entry'!Z41=0,"",'Energy Data Entry'!F41+'Energy Data Entry'!K41+'Energy Data Entry'!P41++'Energy Data Entry'!U41+'Energy Data Entry'!Z41) -> 405 | N20: =IF('Energy Data Entry'!G41+'Energy Data Entry'!L41+'Energy Data Entry'!Q41+'Energy Data Entry'!V41+'Energy Data Entry'!AA41=0,"",'Energy Data Entry'!G41+'Energy Data Entry'!L41+'Energy Data Entry'!Q41+'Energy Data Entry'!V41+'Energy Data Entry'!AA41) -> 4455 | O20: =IF('Energy Data Entry'!D41+'Energy Data Entry'!I41+'Energy Data Entry'!N41+'Energy Data Entry'!S41+'Energy Data Entry'!X41=0,"",'Energy Data Entry'!D41+'Energy Data Entry'!I41+'Energy Data Entry'!N41+'Energy Data Entry'!S41+'Energy Data Entry'!X41) -> 17279.1792 | P20: ='Energy Data Entry'!AF41 -> 0 | Q20: =IFERROR(Table4[[#This Row],[Total electric cost]]/Table4[[#This Row],[Electric kWh usage]],"") -> 0.08084343924 | R20: =IFERROR(Table4[[#This Row],[Electric Demand Cost]]/Table4[[#This Row],[Total Electric Demand (Billed)]],IFERROR(Table4[[#This Row],[Electric Demand Cost]]/Table4[[#This Row],[Total Electric Demand (Actual)]],"")) -> 11 | S20: =IFERROR(Table4[[#This Row],[Total Gas cost]]+Table4[[#This Row],[Total electric cost]],"") -> 17279.1792 | U20: =IFERROR(Table4[[#This Row],[Total Energy Cost]]/Table4[[#This Row],[Monthly Flow]],"") -> 252.6195789 | V20: =IFERROR(Table4[[#This Row],[Total Energy Cost]]/Table4[[#This Row],[Total BOD removed]],"") -> 0.1397145636 | X20: =IF('Process Data Entry'!G22="","",'Process Data Entry'!G22) -> 39 | Y20: =IF('Process Data Entry'!H22="","",'Process Data Entry'!H22) -> 11 | Z20: =IF('Process Data Entry'!I22="",0,'Process Data Entry'!I22) -> 0 | AA20: =IF('Process Data Entry'!J22="","",'Process Data Entry'!J22) -> 2.8 | AB20: =IF('Process Data Entry'!K22="","",'Process Data Entry'!K22) -> 1.6 | AC20: =IF('Process Data Entry'!L22="","",'Process Data Entry'!L22) -> 9.6 | AD20: 26.6 | AE20: 15174.1296 | AF20: =IF('Process Data Entry'!M22="","",'Process Data Entry'!M22) -> 7.4 | AG20: =IF('Process Data Entry'!N22="","",'Process Data Entry'!N22) -> 1.3 | AH20: 3479.7816
A21: 2 | B21: ='Energy Data Entry'!B42 -> 2016-12-01 | C21: =IF(OR('Process Data Entry'!C23="",'Process Data Entry'!C23=0),"",'Process Data Entry'!C23) -> 2.3 | D21: =IF(Table4[Avg Daily Flow]="","",_xlfn.DAYS(EOMONTH(B21,0),EOMONTH(B21,-1))*C21) -> 71.3 | E21: =IF('Process Data Entry'!F23="","",'Process Data Entry'!F23) -> 2977.0464 | F21: =IF(Table4[BOD removed]="","",Table4[BOD removed]*_xlfn.DAYS(EOMONTH(Table4[[#This Row],[Column2]],0),EOMONTH(Table4[[#This Row],[Column2]],-1))) -> 92288.4384 | G21: =IF(SUM('Energy Data Entry'!C42,'Energy Data Entry'!H42,'Energy Data Entry'!M42,'Energy Data Entry'!R42,'Energy Data Entry'!W42)=0,"",SUM('Energy Data Entry'!C42,'Energy Data Entry'!H42,'Energy Data Entry'!M42,'Energy Data Entry'!R42,'Energy Data Entry'!W42)) -> 169694 | H21: ='Energy Data Entry'!AG42 -> 0 | I21: =IF(Table4[[#This Row],[Electric kWh usage]]="","",Table4[[#This Row],[Gas kWh usage]]+Table4[[#This Row],[Electric kWh usage]]) -> 169694 | J21: =IF(OR(Table4[[#This Row],[Electric kWh usage]]="",Table4[[#This Row],[Monthly Flow]]=""),"",(Table4[[#This Row],[Electric kWh usage]]+Table4[[#This Row],[Gas kWh usage]])/Table4[[#This Row],[Monthly Flow]]) -> 2380 | K21: =IFERROR(IF(Table4[[#This Row],[Electric kWh usage]]="","",(Table4[[#This Row],[Electric kWh usage]]+Table4[[#This Row],[Gas kWh usage]])/Table4[[#This Row],[Total BOD removed]]),"") -> 1.838735197 | L21: =IF('Energy Data Entry'!E42+'Energy Data Entry'!J42+'Energy Data Entry'!O42+'Energy Data Entry'!T42+'Energy Data Entry'!Y42=0,"",'Energy Data Entry'!E42+'Energy Data Entry'!J42+'Energy Data Entry'!O42+'Energy Data Entry'!T42+'Energy Data Entry'!Y42) -> 285 | M21: =IF('Energy Data Entry'!F42+'Energy Data Entry'!K42+'Energy Data Entry'!P42++'Energy Data Entry'!U42+'Energy Data Entry'!Z42=0,"",'Energy Data Entry'!F42+'Energy Data Entry'!K42+'Energy Data Entry'!P42++'Energy Data Entry'!U42+'Energy Data Entry'!Z42) -> 335 | N21: =IF('Energy Data Entry'!G42+'Energy Data Entry'!L42+'Energy Data Entry'!Q42+'Energy Data Entry'!V42+'Energy Data Entry'!AA42=0,"",'Energy Data Entry'!G42+'Energy Data Entry'!L42+'Energy Data Entry'!Q42+'Energy Data Entry'!V42+'Energy Data Entry'!AA42) -> 3685 | O21: =IF('Energy Data Entry'!D42+'Energy Data Entry'!I42+'Energy Data Entry'!N42+'Energy Data Entry'!S42+'Energy Data Entry'!X42=0,"",'Energy Data Entry'!D42+'Energy Data Entry'!I42+'Energy Data Entry'!N42+'Energy Data Entry'!S42+'Energy Data Entry'!X42) -> 13866.64 | P21: ='Energy Data Entry'!AF42 -> 0 | Q21: =IFERROR(Table4[[#This Row],[Total electric cost]]/Table4[[#This Row],[Electric kWh usage]],"") -> 0.08171555859 | R21: =IFERROR(Table4[[#This Row],[Electric Demand Cost]]/Table4[[#This Row],[Total Electric Demand (Billed)]],IFERROR(Table4[[#This Row],[Electric Demand Cost]]/Table4[[#This Row],[Total Electric Demand (Actual)]],"")) -> 11 | S21: =IFERROR(Table4[[#This Row],[Total Gas cost]]+Table4[[#This Row],[Total electric cost]],"") -> 13866.64 | U21: =IFERROR(Table4[[#This Row],[Total Energy Cost]]/Table4[[#This Row],[Monthly Flow]],"") -> 194.4830295 | V21: =IFERROR(Table4[[#This Row],[Total Energy Cost]]/Table4[[#This Row],[Total BOD removed]],"") -> 0.1502532738 | X21: =IF('Process Data Entry'!G23="","",'Process Data Entry'!G23) -> 31 | Y21: =IF('Process Data Entry'!H23="","",'Process Data Entry'!H23) -> 15 | Z21: =IF('Process Data Entry'!I23="",0,'Process Data Entry'!I23) -> 0 | AA21: =IF('Process Data Entry'!J23="","",'Process Data Entry'!J23) -> 3 | AB21: =IF('Process Data Entry'!K23="","",'Process Data Entry'!K23) -> 1.1 | AC21: =IF('Process Data Entry'!L23="","",'Process Data Entry'!L23) -> 11.7 | AD21: 16.3 | AE21: 9692.6646 | AF21: =IF('Process Data Entry'!M23="","",'Process Data Entry'!M23) -> 6.9 | AG21: =IF('Process Data Entry'!N23="","",'Process Data Entry'!N23) -> 1.3 | AH21: 3329.9952
A22: 2 | B22: ='Energy Data Entry'!B43 -> 2017-01-01 | C22: =IF(OR('Process Data Entry'!C24="",'Process Data Entry'!C24=0),"",'Process Data Entry'!C24) -> 2.4 | D22: =IF(Table4[Avg Daily Flow]="","",_xlfn.DAYS(EOMONTH(B22,0),EOMONTH(B22,-1))*C22) -> 74.4 | E22: =IF('Process Data Entry'!F24="","",'Process Data Entry'!F24) -> 3353.6808 | F22: =IF(Table4[BOD removed]="","",Table4[BOD removed]*_xlfn.DAYS(EOMONTH(Table4[[#This Row],[Column2]],0),EOMONTH(Table4[[#This Row],[Column2]],-1))) -> 103964.1048 | G22: =IF(SUM('Energy Data Entry'!C43,'Energy Data Entry'!H43,'Energy Data Entry'!M43,'Energy Data Entry'!R43,'Energy Data Entry'!W43)=0,"",SUM('Energy Data Entry'!C43,'Energy Data Entry'!H43,'Energy Data Entry'!M43,'Energy Data Entry'!R43,'Energy Data Entry'!W43)) -> 186278.4 | H22: ='Energy Data Entry'!AG43 -> 0 | I22: =IF(Table4[[#This Row],[Electric kWh usage]]="","",Table4[[#This Row],[Gas kWh usage]]+Table4[[#This Row],[Electric kWh usage]]) -> 186278.4 | J22: =IF(OR(Table4[[#This Row],[Electric kWh usage]]="",Table4[[#This Row],[Monthly Flow]]=""),"",(Table4[[#This Row],[Electric kWh usage]]+Table4[[#This Row],[Gas kWh usage]])/Table4[[#This Row],[Monthly Flow]]) -> 2503.741935 | K22: =IFERROR(IF(Table4[[#This Row],[Electric kWh usage]]="","",(Table4[[#This Row],[Electric kWh usage]]+Table4[[#This Row],[Gas kWh usage]])/Table4[[#This Row],[Total BOD removed]]),"") -> 1.79175688 | L22: =IF('Energy Data Entry'!E43+'Energy Data Entry'!J43+'Energy Data Entry'!O43+'Energy Data Entry'!T43+'Energy Data Entry'!Y43=0,"",'Energy Data Entry'!E43+'Energy Data Entry'!J43+'Energy Data Entry'!O43+'Energy Data Entry'!T43+'Energy Data Entry'!Y43) -> 370 | M22: =IF('Energy Data Entry'!F43+'Energy Data Entry'!K43+'Energy Data Entry'!P43++'Energy Data Entry'!U43+'Energy Data Entry'!Z43=0,"",'Energy Data Entry'!F43+'Energy Data Entry'!K43+'Energy Data Entry'!P43++'Energy Data Entry'!U43+'Energy Data Entry'!Z43) -> 370 | N22: =IF('Energy Data Entry'!G43+'Energy Data Entry'!L43+'Energy Data Entry'!Q43+'Energy Data Entry'!V43+'Energy Data Entry'!AA43=0,"",'Energy Data Entry'!G43+'Energy Data Entry'!L43+'Energy Data Entry'!Q43+'Energy Data Entry'!V43+'Energy Data Entry'!AA43) -> 4070 | O22: =IF('Energy Data Entry'!D43+'Energy Data Entry'!I43+'Energy Data Entry'!N43+'Energy Data Entry'!S43+'Energy Data Entry'!X43=0,"",'Energy Data Entry'!D43+'Energy Data Entry'!I43+'Energy Data Entry'!N43+'Energy Data Entry'!S43+'Energy Data Entry'!X43) -> 15246.704 | P22: ='Energy Data Entry'!AF43 -> 0 | Q22: =IFERROR(Table4[[#This Row],[Total electric cost]]/Table4[[#This Row],[Electric kWh usage]],"") -> 0.08184901738 | R22: =IFERROR(Table4[[#This Row],[Electric Demand Cost]]/Table4[[#This Row],[Total Electric Demand (Billed)]],IFERROR(Table4[[#This Row],[Electric Demand Cost]]/Table4[[#This Row],[Total Electric Demand (Actual)]],"")) -> 11 | S22: =IFERROR(Table4[[#This Row],[Total Gas cost]]+Table4[[#This Row],[Total electric cost]],"") -> 15246.704 | U22: =IFERROR(Table4[[#This Row],[Total Energy Cost]]/Table4[[#This Row],[Monthly Flow]],"") -> 204.9288172 | V22: =IFERROR(Table4[[#This Row],[Total Energy Cost]]/Table4[[#This Row],[Total BOD removed]],"") -> 0.14665354 | X22: =IF('Process Data Entry'!G24="","",'Process Data Entry'!G24) -> 31 | Y22: =IF('Process Data Entry'!H24="","",'Process Data Entry'!H24) -> 14 | Z22: =IF('Process Data Entry'!I24="",0,'Process Data Entry'!I24) -> 0 | AA22: =IF('Process Data Entry'!J24="","",'Process Data Entry'!J24) -> 3.1 | AB22: =IF('Process Data Entry'!K24="","",'Process Data Entry'!K24) -> 1.6 | AC22: =IF('Process Data Entry'!L24="","",'Process Data Entry'!L24) -> 11.1 | AD22: 16.8 | AE22: 10424.3328 | AF22: =IF('Process Data Entry'!M24="","",'Process Data Entry'!M24) -> 7 | AG22: =IF('Process Data Entry'!N24="","",'Process Data Entry'!N24) -> 0.8 | AH22: 3847.0752
A23: 2 | B23: ='Energy Data Entry'!B44 -> 2017-02-01 | C23: =IF(OR('Process Data Entry'!C25="",'Process Data Entry'!C25=0),"",'Process Data Entry'!C25) -> 1.82 | D23: =IF(Table4[Avg Daily Flow]="","",_xlfn.DAYS(EOMONTH(B23,0),EOMONTH(B23,-1))*C23) -> 50.96 | E23: =IF('Process Data Entry'!F25="","",'Process Data Entry'!F25) -> 2987.18784 | F23: =IF(Table4[BOD removed]="","",Table4[BOD removed]*_xlfn.DAYS(EOMONTH(Table4[[#This Row],[Column2]],0),EOMONTH(Table4[[#This Row],[Column2]],-1))) -> 83641.25952 | G23: =IF(SUM('Energy Data Entry'!C44,'Energy Data Entry'!H44,'Energy Data Entry'!M44,'Energy Data Entry'!R44,'Energy Data Entry'!W44)=0,"",SUM('Energy Data Entry'!C44,'Energy Data Entry'!H44,'Energy Data Entry'!M44,'Energy Data Entry'!R44,'Energy Data Entry'!W44)) -> 161135.52 | H23: ='Energy Data Entry'!AG44 -> 0 | I23: =IF(Table4[[#This Row],[Electric kWh usage]]="","",Table4[[#This Row],[Gas kWh usage]]+Table4[[#This Row],[Electric kWh usage]]) -> 161135.52 | J23: =IF(OR(Table4[[#This Row],[Electric kWh usage]]="",Table4[[#This Row],[Monthly Flow]]=""),"",(Table4[[#This Row],[Electric kWh usage]]+Table4[[#This Row],[Gas kWh usage]])/Table4[[#This Row],[Monthly Flow]]) -> 3162 | K23: =IFERROR(IF(Table4[[#This Row],[Electric kWh usage]]="","",(Table4[[#This Row],[Electric kWh usage]]+Table4[[#This Row],[Gas kWh usage]])/Table4[[#This Row],[Total BOD removed]]),"") -> 1.926507574 | L23: =IF('Energy Data Entry'!E44+'Energy Data Entry'!J44+'Energy Data Entry'!O44+'Energy Data Entry'!T44+'Energy Data Entry'!Y44=0,"",'Energy Data Entry'!E44+'Energy Data Entry'!J44+'Energy Data Entry'!O44+'Energy Data Entry'!T44+'Energy Data Entry'!Y44) -> 309 | M23: =IF('Energy Data Entry'!F44+'Energy Data Entry'!K44+'Energy Data Entry'!P44++'Energy Data Entry'!U44+'Energy Data Entry'!Z44=0,"",'Energy Data Entry'!F44+'Energy Data Entry'!K44+'Energy Data Entry'!P44++'Energy Data Entry'!U44+'Energy Data Entry'!Z44) -> 335 | N23: =IF('Energy Data Entry'!G44+'Energy Data Entry'!L44+'Energy Data Entry'!Q44+'Energy Data Entry'!V44+'Energy Data Entry'!AA44=0,"",'Energy Data Entry'!G44+'Energy Data Entry'!L44+'Energy Data Entry'!Q44+'Energy Data Entry'!V44+'Energy Data Entry'!AA44) -> 3685 | O23: =IF('Energy Data Entry'!D44+'Energy Data Entry'!I44+'Energy Data Entry'!N44+'Energy Data Entry'!S44+'Energy Data Entry'!X44=0,"",'Energy Data Entry'!D44+'Energy Data Entry'!I44+'Energy Data Entry'!N44+'Energy Data Entry'!S44+'Energy Data Entry'!X44) -> 13353.1312 | P23: ='Energy Data Entry'!AF44 -> 0 | Q23: =IFERROR(Table4[[#This Row],[Total electric cost]]/Table4[[#This Row],[Electric kWh usage]],"") -> 0.08286894907 | R23: =IFERROR(Table4[[#This Row],[Electric Demand Cost]]/Table4[[#This Row],[Total Electric Demand (Billed)]],IFERROR(Table4[[#This Row],[Electric Demand Cost]]/Table4[[#This Row],[Total Electric Demand (Actual)]],"")) -> 11 | S23: =IFERROR(Table4[[#This Row],[Total Gas cost]]+Table4[[#This Row],[Total electric cost]],"") -> 13353.1312 | U23: =IFERROR(Table4[[#This Row],[Total Energy Cost]]/Table4[[#This Row],[Monthly Flow]],"") -> 262.031617 | V23: =IFERROR(Table4[[#This Row],[Total Energy Cost]]/Table4[[#This Row],[Total BOD removed]],"") -> 0.1596476581 | X23: =IF('Process Data Entry'!G25="","",'Process Data Entry'!G25) -> 33 | Y23: =IF('Process Data Entry'!H25="","",'Process Data Entry'!H25) -> 12 | Z23: =IF('Process Data Entry'!I25="",0,'Process Data Entry'!I25) -> 0 | AA23: =IF('Process Data Entry'!J25="","",'Process Data Entry'!J25) -> 3.1 | AB23: =IF('Process Data Entry'!K25="","",'Process Data Entry'!K25) -> 0.8 | AC23: =IF('Process Data Entry'!L25="","",'Process Data Entry'!L25) -> 21 | AD23: 8.9 | AE23: 3782.55696 | AF23: =IF('Process Data Entry'!M25="","",'Process Data Entry'!M25) -> 8.4 | AG23: =IF('Process Data Entry'!N25="","",'Process Data Entry'!N25) -> 0.7 | AH23: 3272.54928
A24: 2 | B24: ='Energy Data Entry'!B45 -> 2017-03-01 | C24: =IF(OR('Process Data Entry'!C26="",'Process Data Entry'!C26=0),"",'Process Data Entry'!C26) -> 2.44 | D24: =IF(Table4[Avg Daily Flow]="","",_xlfn.DAYS(EOMONTH(B24,0),EOMONTH(B24,-1))*C24) -> 75.64 | E24: =IF('Process Data Entry'!F26="","",'Process Data Entry'!F26) -> 3610.01904 | F24: =IF(Table4[BOD removed]="","",Table4[BOD removed]*_xlfn.DAYS(EOMONTH(Table4[[#This Row],[Column2]],0),EOMONTH(Table4[[#This Row],[Column2]],-1))) -> 111910.5902 | G24: =IF(SUM('Energy Data Entry'!C45,'Energy Data Entry'!H45,'Energy Data Entry'!M45,'Energy Data Entry'!R45,'Energy Data Entry'!W45)=0,"",SUM('Energy Data Entry'!C45,'Energy Data Entry'!H45,'Energy Data Entry'!M45,'Energy Data Entry'!R45,'Energy Data Entry'!W45)) -> 190612.8 | H24: ='Energy Data Entry'!AG45 -> 0 | I24: =IF(Table4[[#This Row],[Electric kWh usage]]="","",Table4[[#This Row],[Gas kWh usage]]+Table4[[#This Row],[Electric kWh usage]]) -> 190612.8 | J24: =IF(OR(Table4[[#This Row],[Electric kWh usage]]="",Table4[[#This Row],[Monthly Flow]]=""),"",(Table4[[#This Row],[Electric kWh usage]]+Table4[[#This Row],[Gas kWh usage]])/Table4[[#This Row],[Monthly Flow]]) -> 2520 | K24: =IFERROR(IF(Table4[[#This Row],[Electric kWh usage]]="","",(Table4[[#This Row],[Electric kWh usage]]+Table4[[#This Row],[Gas kWh usage]])/Table4[[#This Row],[Total BOD removed]]),"") -> 1.703259715 | L24: =IF('Energy Data Entry'!E45+'Energy Data Entry'!J45+'Energy Data Entry'!O45+'Energy Data Entry'!T45+'Energy Data Entry'!Y45=0,"",'Energy Data Entry'!E45+'Energy Data Entry'!J45+'Energy Data Entry'!O45+'Energy Data Entry'!T45+'Energy Data Entry'!Y45) -> 348 | M24: =IF('Energy Data Entry'!F45+'Energy Data Entry'!K45+'Energy Data Entry'!P45++'Energy Data Entry'!U45+'Energy Data Entry'!Z45=0,"",'Energy Data Entry'!F45+'Energy Data Entry'!K45+'Energy Data Entry'!P45++'Energy Data Entry'!U45+'Energy Data Entry'!Z45) -> 348 | N24: =IF('Energy Data Entry'!G45+'Energy Data Entry'!L45+'Energy Data Entry'!Q45+'Energy Data Entry'!V45+'Energy Data Entry'!AA45=0,"",'Energy Data Entry'!G45+'Energy Data Entry'!L45+'Energy Data Entry'!Q45+'Energy Data Entry'!V45+'Energy Data Entry'!AA45) -> 3828 | O24: =IF('Energy Data Entry'!D45+'Energy Data Entry'!I45+'Energy Data Entry'!N45+'Energy Data Entry'!S45+'Energy Data Entry'!X45=0,"",'Energy Data Entry'!D45+'Energy Data Entry'!I45+'Energy Data Entry'!N45+'Energy Data Entry'!S45+'Energy Data Entry'!X45) -> 15264.768 | P24: ='Energy Data Entry'!AF45 -> 0 | Q24: =IFERROR(Table4[[#This Row],[Total electric cost]]/Table4[[#This Row],[Electric kWh usage]],"") -> 0.08008259676 | R24: =IFERROR(Table4[[#This Row],[Electric Demand Cost]]/Table4[[#This Row],[Total Electric Demand (Billed)]],IFERROR(Table4[[#This Row],[Electric Demand Cost]]/Table4[[#This Row],[Total Electric Demand (Actual)]],"")) -> 11 | S24: =IFERROR(Table4[[#This Row],[Total Gas cost]]+Table4[[#This Row],[Total electric cost]],"") -> 15264.768 | U24: =IFERROR(Table4[[#This Row],[Total Energy Cost]]/Table4[[#This Row],[Monthly Flow]],"") -> 201.8081438 | V24: =IFERROR(Table4[[#This Row],[Total Energy Cost]]/Table4[[#This Row],[Total BOD removed]],"") -> 0.1364014609 | X24: =IF('Process Data Entry'!G26="","",'Process Data Entry'!G26) -> 32 | Y24: =IF('Process Data Entry'!H26="","",'Process Data Entry'!H26) -> 11 | Z24: =IF('Process Data Entry'!I26="",0,'Process Data Entry'!I26) -> 0 | AA24: =IF('Process Data Entry'!J26="","",'Process Data Entry'!J26) -> 3.2 | AB24: =IF('Process Data Entry'!K26="","",'Process Data Entry'!K26) -> 1.4 | AC24: =IF('Process Data Entry'!L26="","",'Process Data Entry'!L26) -> 18.2 | AD24: 10.6 | AE24: 6686.87856 | AF24: =IF('Process Data Entry'!M26="","",'Process Data Entry'!M26) -> 8.6 | AG24: =IF('Process Data Entry'!N26="","",'Process Data Entry'!N26) -> 0.8 | AH24: 4920.53328
A25: 2 | B25: ='Energy Data Entry'!B46 -> 2017-04-01 | C25: =IF(OR('Process Data Entry'!C27="",'Process Data Entry'!C27=0),"",'Process Data Entry'!C27) -> 1.62 | D25: =IF(Table4[Avg Daily Flow]="","",_xlfn.DAYS(EOMONTH(B25,0),EOMONTH(B25,-1))*C25) -> 48.6 | E25: =IF('Process Data Entry'!F27="","",'Process Data Entry'!F27) -> 2181.31866 | F25: =IF(Table4[BOD removed]="","",Table4[BOD removed]*_xlfn.DAYS(EOMONTH(Table4[[#This Row],[Column2]],0),EOMONTH(Table4[[#This Row],[Column2]],-1))) -> 65439.5598 | G25: =IF(SUM('Energy Data Entry'!C46,'Energy Data Entry'!H46,'Energy Data Entry'!M46,'Energy Data Entry'!R46,'Energy Data Entry'!W46)=0,"",SUM('Energy Data Entry'!C46,'Energy Data Entry'!H46,'Energy Data Entry'!M46,'Energy Data Entry'!R46,'Energy Data Entry'!W46)) -> 139209.84 | H25: ='Energy Data Entry'!AG46 -> 0 | I25: =IF(Table4[[#This Row],[Electric kWh usage]]="","",Table4[[#This Row],[Gas kWh usage]]+Table4[[#This Row],[Electric kWh usage]]) -> 139209.84 | J25: =IF(OR(Table4[[#This Row],[Electric kWh usage]]="",Table4[[#This Row],[Monthly Flow]]=""),"",(Table4[[#This Row],[Electric kWh usage]]+Table4[[#This Row],[Gas kWh usage]])/Table4[[#This Row],[Monthly Flow]]) -> 2864.4 | K25: =IFERROR(IF(Table4[[#This Row],[Electric kWh usage]]="","",(Table4[[#This Row],[Electric kWh usage]]+Table4[[#This Row],[Gas kWh usage]])/Table4[[#This Row],[Total BOD removed]]),"") -> 2.127304041 | L25: =IF('Energy Data Entry'!E46+'Energy Data Entry'!J46+'Energy Data Entry'!O46+'Energy Data Entry'!T46+'Energy Data Entry'!Y46=0,"",'Energy Data Entry'!E46+'Energy Data Entry'!J46+'Energy Data Entry'!O46+'Energy Data Entry'!T46+'Energy Data Entry'!Y46) -> 234 | M25: =IF('Energy Data Entry'!F46+'Energy Data Entry'!K46+'Energy Data Entry'!P46++'Energy Data Entry'!U46+'Energy Data Entry'!Z46=0,"",'Energy Data Entry'!F46+'Energy Data Entry'!K46+'Energy Data Entry'!P46++'Energy Data Entry'!U46+'Energy Data Entry'!Z46) -> 335 | N25: =IF('Energy Data Entry'!G46+'Energy Data Entry'!L46+'Energy Data Entry'!Q46+'Energy Data Entry'!V46+'Energy Data Entry'!AA46=0,"",'Energy Data Entry'!G46+'Energy Data Entry'!L46+'Energy Data Entry'!Q46+'Energy Data Entry'!V46+'Energy Data Entry'!AA46) -> 3685 | O25: =IF('Energy Data Entry'!D46+'Energy Data Entry'!I46+'Energy Data Entry'!N46+'Energy Data Entry'!S46+'Energy Data Entry'!X46=0,"",'Energy Data Entry'!D46+'Energy Data Entry'!I46+'Energy Data Entry'!N46+'Energy Data Entry'!S46+'Energy Data Entry'!X46) -> 12037.5904 | P25: ='Energy Data Entry'!AF46 -> 0 | Q25: =IFERROR(Table4[[#This Row],[Total electric cost]]/Table4[[#This Row],[Electric kWh usage]],"") -> 0.08647082994 | R25: =IFERROR(Table4[[#This Row],[Electric Demand Cost]]/Table4[[#This Row],[Total Electric Demand (Billed)]],IFERROR(Table4[[#This Row],[Electric Demand Cost]]/Table4[[#This Row],[Total Electric Demand (Actual)]],"")) -> 11 | S25: =IFERROR(Table4[[#This Row],[Total Gas cost]]+Table4[[#This Row],[Total electric cost]],"") -> 12037.5904 | U25: =IFERROR(Table4[[#This Row],[Total Energy Cost]]/Table4[[#This Row],[Monthly Flow]],"") -> 247.6870453 | V25: =IFERROR(Table4[[#This Row],[Total Energy Cost]]/Table4[[#This Row],[Total BOD removed]],"") -> 0.1839497459 | X25: =IF('Process Data Entry'!G27="","",'Process Data Entry'!G27) -> 33 | Y25: =IF('Process Data Entry'!H27="","",'Process Data Entry'!H27) -> 14 | Z25: =IF('Process Data Entry'!I27="",0,'Process Data Entry'!I27) -> 0 | AA25: =IF('Process Data Entry'!J27="","",'Process Data Entry'!J27) -> 2.8 | AB25: =IF('Process Data Entry'!K27="","",'Process Data Entry'!K27) -> 0.9 | AC25: =IF('Process Data Entry'!L27="","",'Process Data Entry'!L27) -> 11 | AD25: 19.2 | AE25: 7782.2208 | AF25: =IF('Process Data Entry'!M27="","",'Process Data Entry'!M27) -> 7.8 | AG25: =IF('Process Data Entry'!N27="","",'Process Data Entry'!N27) -> 1.5 | AH25: 2553.5412
A26: 2 | B26: ='Energy Data Entry'!B47 -> 2017-05-01 | C26: =IF(OR('Process Data Entry'!C28="",'Process Data Entry'!C28=0),"",'Process Data Entry'!C28) -> 2.44 | D26: =IF(Table4[Avg Daily Flow]="","",_xlfn.DAYS(EOMONTH(B26,0),EOMONTH(B26,-1))*C26) -> 75.64 | E26: =IF('Process Data Entry'!F28="","",'Process Data Entry'!F28) -> 2879.4684 | F26: =IF(Table4[BOD removed]="","",Table4[BOD removed]*_xlfn.DAYS(EOMONTH(Table4[[#This Row],[Column2]],0),EOMONTH(Table4[[#This Row],[Column2]],-1))) -> 89263.5204 | G26: =IF(SUM('Energy Data Entry'!C47,'Energy Data Entry'!H47,'Energy Data Entry'!M47,'Energy Data Entry'!R47,'Energy Data Entry'!W47)=0,"",SUM('Energy Data Entry'!C47,'Energy Data Entry'!H47,'Energy Data Entry'!M47,'Energy Data Entry'!R47,'Energy Data Entry'!W47)) -> 190612.8 | H26: ='Energy Data Entry'!AG47 -> 0 | I26: =IF(Table4[[#This Row],[Electric kWh usage]]="","",Table4[[#This Row],[Gas kWh usage]]+Table4[[#This Row],[Electric kWh usage]]) -> 190612.8 | J26: =IF(OR(Table4[[#This Row],[Electric kWh usage]]="",Table4[[#This Row],[Monthly Flow]]=""),"",(Table4[[#This Row],[Electric kWh usage]]+Table4[[#This Row],[Gas kWh usage]])/Table4[[#This Row],[Monthly Flow]]) -> 2520 | K26: =IFERROR(IF(Table4[[#This Row],[Electric kWh usage]]="","",(Table4[[#This Row],[Electric kWh usage]]+Table4[[#This Row],[Gas kWh usage]])/Table4[[#This Row],[Total BOD removed]]),"") -> 2.135394158 | L26: =IF('Energy Data Entry'!E47+'Energy Data Entry'!J47+'Energy Data Entry'!O47+'Energy Data Entry'!T47+'Energy Data Entry'!Y47=0,"",'Energy Data Entry'!E47+'Energy Data Entry'!J47+'Energy Data Entry'!O47+'Energy Data Entry'!T47+'Energy Data Entry'!Y47) -> 344 | M26: =IF('Energy Data Entry'!F47+'Energy Data Entry'!K47+'Energy Data Entry'!P47++'Energy Data Entry'!U47+'Energy Data Entry'!Z47=0,"",'Energy Data Entry'!F47+'Energy Data Entry'!K47+'Energy Data Entry'!P47++'Energy Data Entry'!U47+'Energy Data Entry'!Z47) -> 344 | N26: =IF('Energy Data Entry'!G47+'Energy Data Entry'!L47+'Energy Data Entry'!Q47+'Energy Data Entry'!V47+'Energy Data Entry'!AA47=0,"",'Energy Data Entry'!G47+'Energy Data Entry'!L47+'Energy Data Entry'!Q47+'Energy Data Entry'!V47+'Energy Data Entry'!AA47) -> 3784 | O26: =IF('Energy Data Entry'!D47+'Energy Data Entry'!I47+'Energy Data Entry'!N47+'Energy Data Entry'!S47+'Energy Data Entry'!X47=0,"",'Energy Data Entry'!D47+'Energy Data Entry'!I47+'Energy Data Entry'!N47+'Energy Data Entry'!S47+'Energy Data Entry'!X47) -> 15220.768 | P26: ='Energy Data Entry'!AF47 -> 0 | Q26: =IFERROR(Table4[[#This Row],[Total electric cost]]/Table4[[#This Row],[Electric kWh usage]],"") -> 0.07985176232 | R26: =IFERROR(Table4[[#This Row],[Electric Demand Cost]]/Table4[[#This Row],[Total Electric Demand (Billed)]],IFERROR(Table4[[#This Row],[Electric Demand Cost]]/Table4[[#This Row],[Total Electric Demand (Actual)]],"")) -> 11 | S26: =IFERROR(Table4[[#This Row],[Total Gas cost]]+Table4[[#This Row],[Total electric cost]],"") -> 15220.768 | U26: =IFERROR(Table4[[#This Row],[Total Energy Cost]]/Table4[[#This Row],[Monthly Flow]],"") -> 201.226441 | V26: =IFERROR(Table4[[#This Row],[Total Energy Cost]]/Table4[[#This Row],[Total BOD removed]],"") -> 0.1705149868 | X26: =IF('Process Data Entry'!G28="","",'Process Data Entry'!G28) -> 36 | Y26: =IF('Process Data Entry'!H28="","",'Process Data Entry'!H28) -> 11 | Z26: =IF('Process Data Entry'!I28="",0,'Process Data Entry'!I28) -> 0 | AA26: =IF('Process Data Entry'!J28="","",'Process Data Entry'!J28) -> 3 | AB26: =IF('Process Data Entry'!K28="","",'Process Data Entry'!K28) -> 0.8 | AC26: =IF('Process Data Entry'!L28="","",'Process Data Entry'!L28) -> 16.5 | AD26: 16.5 | AE26: 10408.8204 | AF26: =IF('Process Data Entry'!M28="","",'Process Data Entry'!M28) -> 7.8 | AG26: =IF('Process Data Entry'!N28="","",'Process Data Entry'!N28) -> 1.2 | AH26: 4163.52816
A27: 2 | B27: ='Energy Data Entry'!B48 -> 2017-06-01 | C27: =IF(OR('Process Data Entry'!C29="",'Process Data Entry'!C29=0),"",'Process Data Entry'!C29) -> 2 | D27: =IF(Table4[Avg Daily Flow]="","",_xlfn.DAYS(EOMONTH(B27,0),EOMONTH(B27,-1))*C27) -> 60 | E27: =IF('Process Data Entry'!F29="","",'Process Data Entry'!F29) -> 2457.798 | F27: =IF(Table4[BOD removed]="","",Table4[BOD removed]*_xlfn.DAYS(EOMONTH(Table4[[#This Row],[Column2]],0),EOMONTH(Table4[[#This Row],[Column2]],-1))) -> 73733.94 | G27: =IF(SUM('Energy Data Entry'!C48,'Energy Data Entry'!H48,'Energy Data Entry'!M48,'Energy Data Entry'!R48,'Energy Data Entry'!W48)=0,"",SUM('Energy Data Entry'!C48,'Energy Data Entry'!H48,'Energy Data Entry'!M48,'Energy Data Entry'!R48,'Energy Data Entry'!W48)) -> 157976 | H27: ='Energy Data Entry'!AG48 -> 0 | I27: =IF(Table4[[#This Row],[Electric kWh usage]]="","",Table4[[#This Row],[Gas kWh usage]]+Table4[[#This Row],[Electric kWh usage]]) -> 157976 | J27: =IF(OR(Table4[[#This Row],[Electric kWh usage]]="",Table4[[#This Row],[Monthly Flow]]=""),"",(Table4[[#This Row],[Electric kWh usage]]+Table4[[#This Row],[Gas kWh usage]])/Table4[[#This Row],[Monthly Flow]]) -> 2632.933333 | K27: =IFERROR(IF(Table4[[#This Row],[Electric kWh usage]]="","",(Table4[[#This Row],[Electric kWh usage]]+Table4[[#This Row],[Gas kWh usage]])/Table4[[#This Row],[Total BOD removed]]),"") -> 2.142514017 | L27: =IF('Energy Data Entry'!E48+'Energy Data Entry'!J48+'Energy Data Entry'!O48+'Energy Data Entry'!T48+'Energy Data Entry'!Y48=0,"",'Energy Data Entry'!E48+'Energy Data Entry'!J48+'Energy Data Entry'!O48+'Energy Data Entry'!T48+'Energy Data Entry'!Y48) -> 299 | M27: =IF('Energy Data Entry'!F48+'Energy Data Entry'!K48+'Energy Data Entry'!P48++'Energy Data Entry'!U48+'Energy Data Entry'!Z48=0,"",'Energy Data Entry'!F48+'Energy Data Entry'!K48+'Energy Data Entry'!P48++'Energy Data Entry'!U48+'Energy Data Entry'!Z48) -> 335 | N27: =IF('Energy Data Entry'!G48+'Energy Data Entry'!L48+'Energy Data Entry'!Q48+'Energy Data Entry'!V48+'Energy Data Entry'!AA48=0,"",'Energy Data Entry'!G48+'Energy Data Entry'!L48+'Energy Data Entry'!Q48+'Energy Data Entry'!V48+'Energy Data Entry'!AA48) -> 3685 | O27: =IF('Energy Data Entry'!D48+'Energy Data Entry'!I48+'Energy Data Entry'!N48+'Energy Data Entry'!S48+'Energy Data Entry'!X48=0,"",'Energy Data Entry'!D48+'Energy Data Entry'!I48+'Energy Data Entry'!N48+'Energy Data Entry'!S48+'Energy Data Entry'!X48) -> 13163.56 | P27: ='Energy Data Entry'!AF48 -> 0 | Q27: =IFERROR(Table4[[#This Row],[Total electric cost]]/Table4[[#This Row],[Electric kWh usage]],"") -> 0.08332632805 | R27: =IFERROR(Table4[[#This Row],[Electric Demand Cost]]/Table4[[#This Row],[Total Electric Demand (Billed)]],IFERROR(Table4[[#This Row],[Electric Demand Cost]]/Table4[[#This Row],[Total Electric Demand (Actual)]],"")) -> 11 | S27: =IFERROR(Table4[[#This Row],[Total Gas cost]]+Table4[[#This Row],[Total electric cost]],"") -> 13163.56 | U27: =IFERROR(Table4[[#This Row],[Total Energy Cost]]/Table4[[#This Row],[Monthly Flow]],"") -> 219.3926667 | V27: =IFERROR(Table4[[#This Row],[Total Energy Cost]]/Table4[[#This Row],[Total BOD removed]],"") -> 0.1785278259 | X27: =IF('Process Data Entry'!G29="","",'Process Data Entry'!G29) -> 39 | Y27: =IF('Process Data Entry'!H29="","",'Process Data Entry'!H29) -> 14 | Z27: =IF('Process Data Entry'!I29="",0,'Process Data Entry'!I29) -> 0 | AA27: =IF('Process Data Entry'!J29="","",'Process Data Entry'!J29) -> 3.2 | AB27: =IF('Process Data Entry'!K29="","",'Process Data Entry'!K29) -> 1.5 | AC27: =IF('Process Data Entry'!L29="","",'Process Data Entry'!L29) -> 11.6 | AD27: 24.2 | AE27: 12109.68 | AF27: =IF('Process Data Entry'!M29="","",'Process Data Entry'!M29) -> 8.5 | AG27: =IF('Process Data Entry'!N29="","",'Process Data Entry'!N29) -> 0.7 | AH27: 3903.12
A28: 3 | B28: ='Energy Data Entry'!B49 -> 2017-07-01 | C28: =IF(OR('Process Data Entry'!C30="",'Process Data Entry'!C30=0),"",'Process Data Entry'!C30) -> 1.88 | D28: =IF(Table4[Avg Daily Flow]="","",_xlfn.DAYS(EOMONTH(B28,0),EOMONTH(B28,-1))*C28) -> 58.28 | E28: =IF('Process Data Entry'!F30="","",'Process Data Entry'!F30) -> 2989.23948 | F28: =IF(Table4[BOD removed]="","",Table4[BOD removed]*_xlfn.DAYS(EOMONTH(Table4[[#This Row],[Column2]],0),EOMONTH(Table4[[#This Row],[Column2]],-1))) -> 92666.42388 | G28: =IF(SUM('Energy Data Entry'!C49,'Energy Data Entry'!H49,'Energy Data Entry'!M49,'Energy Data Entry'!R49,'Energy Data Entry'!W49)=0,"",SUM('Energy Data Entry'!C49,'Energy Data Entry'!H49,'Energy Data Entry'!M49,'Energy Data Entry'!R49,'Energy Data Entry'!W49)) -> 168895 | H28: ='Energy Data Entry'!AG49 -> 0 | I28: =IF(Table4[[#This Row],[Electric kWh usage]]="","",Table4[[#This Row],[Gas kWh usage]]+Table4[[#This Row],[Electric kWh usage]]) -> 168895 | J28: =IF(OR(Table4[[#This Row],[Electric kWh usage]]="",Table4[[#This Row],[Monthly Flow]]=""),"",(Table4[[#This Row],[Electric kWh usage]]+Table4[[#This Row],[Gas kWh usage]])/Table4[[#This Row],[Monthly Flow]]) -> 2897.99245 | K28: =IFERROR(IF(Table4[[#This Row],[Electric kWh usage]]="","",(Table4[[#This Row],[Electric kWh usage]]+Table4[[#This Row],[Gas kWh usage]])/Table4[[#This Row],[Total BOD removed]]),"") -> 1.822612689 | L28: =IF('Energy Data Entry'!E49+'Energy Data Entry'!J49+'Energy Data Entry'!O49+'Energy Data Entry'!T49+'Energy Data Entry'!Y49=0,"",'Energy Data Entry'!E49+'Energy Data Entry'!J49+'Energy Data Entry'!O49+'Energy Data Entry'!T49+'Energy Data Entry'!Y49) -> 293 | M28: =IF('Energy Data Entry'!F49+'Energy Data Entry'!K49+'Energy Data Entry'!P49++'Energy Data Entry'!U49+'Energy Data Entry'!Z49=0,"",'Energy Data Entry'!F49+'Energy Data Entry'!K49+'Energy Data Entry'!P49++'Energy Data Entry'!U49+'Energy Data Entry'!Z49) -> 335 | N28: =IF('Energy Data Entry'!G49+'Energy Data Entry'!L49+'Energy Data Entry'!Q49+'Energy Data Entry'!V49+'Energy Data Entry'!AA49=0,"",'Energy Data Entry'!G49+'Energy Data Entry'!L49+'Energy Data Entry'!Q49+'Energy Data Entry'!V49+'Energy Data Entry'!AA49) -> 3979 | O28: =IF('Energy Data Entry'!D49+'Energy Data Entry'!I49+'Energy Data Entry'!N49+'Energy Data Entry'!S49+'Energy Data Entry'!X49=0,"",'Energy Data Entry'!D49+'Energy Data Entry'!I49+'Energy Data Entry'!N49+'Energy Data Entry'!S49+'Energy Data Entry'!X49) -> 14957.175 | P28: ='Energy Data Entry'!AF49 -> 0 | Q28: =IFERROR(Table4[[#This Row],[Total electric cost]]/Table4[[#This Row],[Electric kWh usage]],"") -> 0.08855901596 | R28: =IFERROR(Table4[[#This Row],[Electric Demand Cost]]/Table4[[#This Row],[Total Electric Demand (Billed)]],IFERROR(Table4[[#This Row],[Electric Demand Cost]]/Table4[[#This Row],[Total Electric Demand (Actual)]],"")) -> 11.87761194 | S28: =IFERROR(Table4[[#This Row],[Total Gas cost]]+Table4[[#This Row],[Total electric cost]],"") -> 14957.175 | U28: =IFERROR(Table4[[#This Row],[Total Energy Cost]]/Table4[[#This Row],[Monthly Flow]],"") -> 256.6433596 | V28: =IFERROR(Table4[[#This Row],[Total Energy Cost]]/Table4[[#This Row],[Total BOD removed]],"") -> 0.1614087862 | X28: =IF('Process Data Entry'!G30="","",'Process Data Entry'!G30) -> 39 | Y28: =IF('Process Data Entry'!H30="","",'Process Data Entry'!H30) -> 16 | Z28: =IF('Process Data Entry'!I30="",0,'Process Data Entry'!I30) -> 0 | AA28: =IF('Process Data Entry'!J30="","",'Process Data Entry'!J30) -> 2.9 | AB28: =IF('Process Data Entry'!K30="","",'Process Data Entry'!K30) -> 1.2 | AC28: =IF('Process Data Entry'!L30="","",'Process Data Entry'!L30) -> 11.5 | AD28: 24.6 | AE28: 11956.95792 | AF28: =IF('Process Data Entry'!M30="","",'Process Data Entry'!M30) -> 7.5 | AG28: =IF('Process Data Entry'!N30="","",'Process Data Entry'!N30) -> 1.3 | AH28: 3013.54224
A29: 3 | B29: ='Energy Data Entry'!B50 -> 2017-08-01 | C29: =IF(OR('Process Data Entry'!C31="",'Process Data Entry'!C31=0),"",'Process Data Entry'!C31) -> 2.46 | D29: =IF(Table4[Avg Daily Flow]="","",_xlfn.DAYS(EOMONTH(B29,0),EOMONTH(B29,-1))*C29) -> 76.26 | E29: =IF('Process Data Entry'!F31="","",'Process Data Entry'!F31) -> 3712.44258 | F29: =IF(Table4[BOD removed]="","",Table4[BOD removed]*_xlfn.DAYS(EOMONTH(Table4[[#This Row],[Column2]],0),EOMONTH(Table4[[#This Row],[Column2]],-1))) -> 115085.72 | G29: =IF(SUM('Energy Data Entry'!C50,'Energy Data Entry'!H50,'Energy Data Entry'!M50,'Energy Data Entry'!R50,'Energy Data Entry'!W50)=0,"",SUM('Energy Data Entry'!C50,'Energy Data Entry'!H50,'Energy Data Entry'!M50,'Energy Data Entry'!R50,'Energy Data Entry'!W50)) -> 167378 | H29: ='Energy Data Entry'!AG50 -> 0 | I29: =IF(Table4[[#This Row],[Electric kWh usage]]="","",Table4[[#This Row],[Gas kWh usage]]+Table4[[#This Row],[Electric kWh usage]]) -> 167378 | J29: =IF(OR(Table4[[#This Row],[Electric kWh usage]]="",Table4[[#This Row],[Monthly Flow]]=""),"",(Table4[[#This Row],[Electric kWh usage]]+Table4[[#This Row],[Gas kWh usage]])/Table4[[#This Row],[Monthly Flow]]) -> 2194.833464 | K29: =IFERROR(IF(Table4[[#This Row],[Electric kWh usage]]="","",(Table4[[#This Row],[Electric kWh usage]]+Table4[[#This Row],[Gas kWh usage]])/Table4[[#This Row],[Total BOD removed]]),"") -> 1.45437679 | L29: =IF('Energy Data Entry'!E50+'Energy Data Entry'!J50+'Energy Data Entry'!O50+'Energy Data Entry'!T50+'Energy Data Entry'!Y50=0,"",'Energy Data Entry'!E50+'Energy Data Entry'!J50+'Energy Data Entry'!O50+'Energy Data Entry'!T50+'Energy Data Entry'!Y50) -> 294 | M29: =IF('Energy Data Entry'!F50+'Energy Data Entry'!K50+'Energy Data Entry'!P50++'Energy Data Entry'!U50+'Energy Data Entry'!Z50=0,"",'Energy Data Entry'!F50+'Energy Data Entry'!K50+'Energy Data Entry'!P50++'Energy Data Entry'!U50+'Energy Data Entry'!Z50) -> 335 | N29: =IF('Energy Data Entry'!G50+'Energy Data Entry'!L50+'Energy Data Entry'!Q50+'Energy Data Entry'!V50+'Energy Data Entry'!AA50=0,"",'Energy Data Entry'!G50+'Energy Data Entry'!L50+'Energy Data Entry'!Q50+'Energy Data Entry'!V50+'Energy Data Entry'!AA50) -> 4243.5 | O29: =IF('Energy Data Entry'!D50+'Energy Data Entry'!I50+'Energy Data Entry'!N50+'Energy Data Entry'!S50+'Energy Data Entry'!X50=0,"",'Energy Data Entry'!D50+'Energy Data Entry'!I50+'Energy Data Entry'!N50+'Energy Data Entry'!S50+'Energy Data Entry'!X50) -> 15123.07 | P29: ='Energy Data Entry'!AF50 -> 0 | Q29: =IFERROR(Table4[[#This Row],[Total electric cost]]/Table4[[#This Row],[Electric kWh usage]],"") -> 0.09035279427 | R29: =IFERROR(Table4[[#This Row],[Electric Demand Cost]]/Table4[[#This Row],[Total Electric Demand (Billed)]],IFERROR(Table4[[#This Row],[Electric Demand Cost]]/Table4[[#This Row],[Total Electric Demand (Actual)]],"")) -> 12.66716418 | S29: =IFERROR(Table4[[#This Row],[Total Gas cost]]+Table4[[#This Row],[Total electric cost]],"") -> 15123.07 | U29: =IFERROR(Table4[[#This Row],[Total Energy Cost]]/Table4[[#This Row],[Monthly Flow]],"") -> 198.3093365 | V29: =IFERROR(Table4[[#This Row],[Total Energy Cost]]/Table4[[#This Row],[Total BOD removed]],"") -> 0.1314070069 | X29: =IF('Process Data Entry'!G31="","",'Process Data Entry'!G31) -> 31 | Y29: =IF('Process Data Entry'!H31="","",'Process Data Entry'!H31) -> 18 | Z29: =IF('Process Data Entry'!I31="",0,'Process Data Entry'!I31) -> 0 | AA29: =IF('Process Data Entry'!J31="","",'Process Data Entry'!J31) -> 2.8 | AB29: =IF('Process Data Entry'!K31="","",'Process Data Entry'!K31) -> 0.8 | AC29: =IF('Process Data Entry'!L31="","",'Process Data Entry'!L31) -> 9.6 | AD29: 18.6 | AE29: 11829.75624 | AF29: =IF('Process Data Entry'!M31="","",'Process Data Entry'!M31) -> 8.3 | AG29: =IF('Process Data Entry'!N31="","",'Process Data Entry'!N31) -> 1.1 | AH29: 4579.26048
A30: 3 | B30: ='Energy Data Entry'!B51 -> 2017-09-01 | C30: =IF(OR('Process Data Entry'!C32="",'Process Data Entry'!C32=0),"",'Process Data Entry'!C32) -> 2.18 | D30: =IF(Table4[Avg Daily Flow]="","",_xlfn.DAYS(EOMONTH(B30,0),EOMONTH(B30,-1))*C30) -> 65.4 | E30: =IF('Process Data Entry'!F32="","",'Process Data Entry'!F32) -> 2955.35406 | F30: =IF(Table4[BOD removed]="","",Table4[BOD removed]*_xlfn.DAYS(EOMONTH(Table4[[#This Row],[Column2]],0),EOMONTH(Table4[[#This Row],[Column2]],-1))) -> 88660.6218 | G30: =IF(SUM('Energy Data Entry'!C51,'Energy Data Entry'!H51,'Energy Data Entry'!M51,'Energy Data Entry'!R51,'Energy Data Entry'!W51)=0,"",SUM('Energy Data Entry'!C51,'Energy Data Entry'!H51,'Energy Data Entry'!M51,'Energy Data Entry'!R51,'Energy Data Entry'!W51)) -> 151568 | H30: ='Energy Data Entry'!AG51 -> 0 | I30: =IF(Table4[[#This Row],[Electric kWh usage]]="","",Table4[[#This Row],[Gas kWh usage]]+Table4[[#This Row],[Electric kWh usage]]) -> 151568 | J30: =IF(OR(Table4[[#This Row],[Electric kWh usage]]="",Table4[[#This Row],[Monthly Flow]]=""),"",(Table4[[#This Row],[Electric kWh usage]]+Table4[[#This Row],[Gas kWh usage]])/Table4[[#This Row],[Monthly Flow]]) -> 2317.553517 | K30: =IFERROR(IF(Table4[[#This Row],[Electric kWh usage]]="","",(Table4[[#This Row],[Electric kWh usage]]+Table4[[#This Row],[Gas kWh usage]])/Table4[[#This Row],[Total BOD removed]]),"") -> 1.709530081 | L30: =IF('Energy Data Entry'!E51+'Energy Data Entry'!J51+'Energy Data Entry'!O51+'Energy Data Entry'!T51+'Energy Data Entry'!Y51=0,"",'Energy Data Entry'!E51+'Energy Data Entry'!J51+'Energy Data Entry'!O51+'Energy Data Entry'!T51+'Energy Data Entry'!Y51) -> 243 | M30: =IF('Energy Data Entry'!F51+'Energy Data Entry'!K51+'Energy Data Entry'!P51++'Energy Data Entry'!U51+'Energy Data Entry'!Z51=0,"",'Energy Data Entry'!F51+'Energy Data Entry'!K51+'Energy Data Entry'!P51++'Energy Data Entry'!U51+'Energy Data Entry'!Z51) -> 284 | N30: =IF('Energy Data Entry'!G51+'Energy Data Entry'!L51+'Energy Data Entry'!Q51+'Energy Data Entry'!V51+'Energy Data Entry'!AA51=0,"",'Energy Data Entry'!G51+'Energy Data Entry'!L51+'Energy Data Entry'!Q51+'Energy Data Entry'!V51+'Energy Data Entry'!AA51) -> 3473 | O30: =IF('Energy Data Entry'!D51+'Energy Data Entry'!I51+'Energy Data Entry'!N51+'Energy Data Entry'!S51+'Energy Data Entry'!X51=0,"",'Energy Data Entry'!D51+'Energy Data Entry'!I51+'Energy Data Entry'!N51+'Energy Data Entry'!S51+'Energy Data Entry'!X51) -> 13324.92 | P30: ='Energy Data Entry'!AF51 -> 0 | Q30: =IFERROR(Table4[[#This Row],[Total electric cost]]/Table4[[#This Row],[Electric kWh usage]],"") -> 0.08791380766 | R30: =IFERROR(Table4[[#This Row],[Electric Demand Cost]]/Table4[[#This Row],[Total Electric Demand (Billed)]],IFERROR(Table4[[#This Row],[Electric Demand Cost]]/Table4[[#This Row],[Total Electric Demand (Actual)]],"")) -> 12.22887324 | S30: =IFERROR(Table4[[#This Row],[Total Gas cost]]+Table4[[#This Row],[Total electric cost]],"") -> 13324.92 | U30: =IFERROR(Table4[[#This Row],[Total Energy Cost]]/Table4[[#This Row],[Monthly Flow]],"") -> 203.7449541 | V30: =IFERROR(Table4[[#This Row],[Total Energy Cost]]/Table4[[#This Row],[Total BOD removed]],"") -> 0.1502912988 | X30: =IF('Process Data Entry'!G32="","",'Process Data Entry'!G32) -> 37 | Y30: =IF('Process Data Entry'!H32="","",'Process Data Entry'!H32) -> 14 | Z30: =IF('Process Data Entry'!I32="",0,'Process Data Entry'!I32) -> 0 | AA30: =IF('Process Data Entry'!J32="","",'Process Data Entry'!J32) -> 2.9 | AB30: =IF('Process Data Entry'!K32="","",'Process Data Entry'!K32) -> 1.4 | AC30: =IF('Process Data Entry'!L32="","",'Process Data Entry'!L32) -> 9.8 | AD30: 24.3 | AE30: 13254.0948 | AF30: =IF('Process Data Entry'!M32="","",'Process Data Entry'!M32) -> 7.7 | AG30: =IF('Process Data Entry'!N32="","",'Process Data Entry'!N32) -> 1.1 | AH30: 3599.8776
A31: 3 | B31: ='Energy Data Entry'!B52 -> 2017-10-01 | C31: =IF(OR('Process Data Entry'!C33="",'Process Data Entry'!C33=0),"",'Process Data Entry'!C33) -> 1.68 | D31: =IF(Table4[Avg Daily Flow]="","",_xlfn.DAYS(EOMONTH(B31,0),EOMONTH(B31,-1))*C31) -> 52.08 | E31: =IF('Process Data Entry'!F33="","",'Process Data Entry'!F33) -> 2647.41624 | F31: =IF(Table4[BOD removed]="","",Table4[BOD removed]*_xlfn.DAYS(EOMONTH(Table4[[#This Row],[Column2]],0),EOMONTH(Table4[[#This Row],[Column2]],-1))) -> 82069.90344 | G31: =IF(SUM('Energy Data Entry'!C52,'Energy Data Entry'!H52,'Energy Data Entry'!M52,'Energy Data Entry'!R52,'Energy Data Entry'!W52)=0,"",SUM('Energy Data Entry'!C52,'Energy Data Entry'!H52,'Energy Data Entry'!M52,'Energy Data Entry'!R52,'Energy Data Entry'!W52)) -> 116847 | H31: ='Energy Data Entry'!AG52 -> 0 | I31: =IF(Table4[[#This Row],[Electric kWh usage]]="","",Table4[[#This Row],[Gas kWh usage]]+Table4[[#This Row],[Electric kWh usage]]) -> 116847 | J31: =IF(OR(Table4[[#This Row],[Electric kWh usage]]="",Table4[[#This Row],[Monthly Flow]]=""),"",(Table4[[#This Row],[Electric kWh usage]]+Table4[[#This Row],[Gas kWh usage]])/Table4[[#This Row],[Monthly Flow]]) -> 2243.605991 | K31: =IFERROR(IF(Table4[[#This Row],[Electric kWh usage]]="","",(Table4[[#This Row],[Electric kWh usage]]+Table4[[#This Row],[Gas kWh usage]])/Table4[[#This Row],[Total BOD removed]]),"") -> 1.423749695 | L31: =IF('Energy Data Entry'!E52+'Energy Data Entry'!J52+'Energy Data Entry'!O52+'Energy Data Entry'!T52+'Energy Data Entry'!Y52=0,"",'Energy Data Entry'!E52+'Energy Data Entry'!J52+'Energy Data Entry'!O52+'Energy Data Entry'!T52+'Energy Data Entry'!Y52) -> 211 | M31: =IF('Energy Data Entry'!F52+'Energy Data Entry'!K52+'Energy Data Entry'!P52++'Energy Data Entry'!U52+'Energy Data Entry'!Z52=0,"",'Energy Data Entry'!F52+'Energy Data Entry'!K52+'Energy Data Entry'!P52++'Energy Data Entry'!U52+'Energy Data Entry'!Z52) -> 284 | N31: =IF('Energy Data Entry'!G52+'Energy Data Entry'!L52+'Energy Data Entry'!Q52+'Energy Data Entry'!V52+'Energy Data Entry'!AA52=0,"",'Energy Data Entry'!G52+'Energy Data Entry'!L52+'Energy Data Entry'!Q52+'Energy Data Entry'!V52+'Energy Data Entry'!AA52) -> 3266 | O31: =IF('Energy Data Entry'!D52+'Energy Data Entry'!I52+'Energy Data Entry'!N52+'Energy Data Entry'!S52+'Energy Data Entry'!X52=0,"",'Energy Data Entry'!D52+'Energy Data Entry'!I52+'Energy Data Entry'!N52+'Energy Data Entry'!S52+'Energy Data Entry'!X52) -> 10861.055 | P31: ='Energy Data Entry'!AF52 -> 0 | Q31: =IFERROR(Table4[[#This Row],[Total electric cost]]/Table4[[#This Row],[Electric kWh usage]],"") -> 0.09295108133 | R31: =IFERROR(Table4[[#This Row],[Electric Demand Cost]]/Table4[[#This Row],[Total Electric Demand (Billed)]],IFERROR(Table4[[#This Row],[Electric Demand Cost]]/Table4[[#This Row],[Total Electric Demand (Actual)]],"")) -> 11.5 | S31: =IFERROR(Table4[[#This Row],[Total Gas cost]]+Table4[[#This Row],[Total electric cost]],"") -> 10861.055 | U31: =IFERROR(Table4[[#This Row],[Total Energy Cost]]/Table4[[#This Row],[Monthly Flow]],"") -> 208.5456029 | V31: =IFERROR(Table4[[#This Row],[Total Energy Cost]]/Table4[[#This Row],[Total BOD removed]],"") -> 0.1323390737 | X31: =IF('Process Data Entry'!G33="","",'Process Data Entry'!G33) -> 39 | Y31: =IF('Process Data Entry'!H33="","",'Process Data Entry'!H33) -> 11 | Z31: =IF('Process Data Entry'!I33="",0,'Process Data Entry'!I33) -> 0 | AA31: =IF('Process Data Entry'!J33="","",'Process Data Entry'!J33) -> 2.8 | AB31: =IF('Process Data Entry'!K33="","",'Process Data Entry'!K33) -> 1 | AC31: =IF('Process Data Entry'!L33="","",'Process Data Entry'!L33) -> 11.5 | AD31: 24.7 | AE31: 10728.37584 | AF31: =IF('Process Data Entry'!M33="","",'Process Data Entry'!M33) -> 8.8 | AG31: =IF('Process Data Entry'!N33="","",'Process Data Entry'!N33) -> 1.1 | AH31: 3344.47344
A32: 3 | B32: ='Energy Data Entry'!B53 -> 2017-11-01 | C32: =IF(OR('Process Data Entry'!C34="",'Process Data Entry'!C34=0),"",'Process Data Entry'!C34) -> 1.82 | D32: =IF(Table4[Avg Daily Flow]="","",_xlfn.DAYS(EOMONTH(B32,0),EOMONTH(B32,-1))*C32) -> 54.6 | E32: =IF('Process Data Entry'!F34="","",'Process Data Entry'!F34) -> 2121.2373 | F32: =IF(Table4[BOD removed]="","",Table4[BOD removed]*_xlfn.DAYS(EOMONTH(Table4[[#This Row],[Column2]],0),EOMONTH(Table4[[#This Row],[Column2]],-1))) -> 63637.119 | G32: =IF(SUM('Energy Data Entry'!C53,'Energy Data Entry'!H53,'Energy Data Entry'!M53,'Energy Data Entry'!R53,'Energy Data Entry'!W53)=0,"",SUM('Energy Data Entry'!C53,'Energy Data Entry'!H53,'Energy Data Entry'!M53,'Energy Data Entry'!R53,'Energy Data Entry'!W53)) -> 152131 | H32: ='Energy Data Entry'!AG53 -> 0 | I32: =IF(Table4[[#This Row],[Electric kWh usage]]="","",Table4[[#This Row],[Gas kWh usage]]+Table4[[#This Row],[Electric kWh usage]]) -> 152131 | J32: =IF(OR(Table4[[#This Row],[Electric kWh usage]]="",Table4[[#This Row],[Monthly Flow]]=""),"",(Table4[[#This Row],[Electric kWh usage]]+Table4[[#This Row],[Gas kWh usage]])/Table4[[#This Row],[Monthly Flow]]) -> 2786.282051 | K32: =IFERROR(IF(Table4[[#This Row],[Electric kWh usage]]="","",(Table4[[#This Row],[Electric kWh usage]]+Table4[[#This Row],[Gas kWh usage]])/Table4[[#This Row],[Total BOD removed]]),"") -> 2.390601624 | L32: =IF('Energy Data Entry'!E53+'Energy Data Entry'!J53+'Energy Data Entry'!O53+'Energy Data Entry'!T53+'Energy Data Entry'!Y53=0,"",'Energy Data Entry'!E53+'Energy Data Entry'!J53+'Energy Data Entry'!O53+'Energy Data Entry'!T53+'Energy Data Entry'!Y53) -> 261 | M32: =IF('Energy Data Entry'!F53+'Energy Data Entry'!K53+'Energy Data Entry'!P53++'Energy Data Entry'!U53+'Energy Data Entry'!Z53=0,"",'Energy Data Entry'!F53+'Energy Data Entry'!K53+'Energy Data Entry'!P53++'Energy Data Entry'!U53+'Energy Data Entry'!Z53) -> 284 | N32: =IF('Energy Data Entry'!G53+'Energy Data Entry'!L53+'Energy Data Entry'!Q53+'Energy Data Entry'!V53+'Energy Data Entry'!AA53=0,"",'Energy Data Entry'!G53+'Energy Data Entry'!L53+'Energy Data Entry'!Q53+'Energy Data Entry'!V53+'Energy Data Entry'!AA53) -> 3576.5 | O32: =IF('Energy Data Entry'!D53+'Energy Data Entry'!I53+'Energy Data Entry'!N53+'Energy Data Entry'!S53+'Energy Data Entry'!X53=0,"",'Energy Data Entry'!D53+'Energy Data Entry'!I53+'Energy Data Entry'!N53+'Energy Data Entry'!S53+'Energy Data Entry'!X53) -> 13465.015 | P32: ='Energy Data Entry'!AF53 -> 0 | Q32: =IFERROR(Table4[[#This Row],[Total electric cost]]/Table4[[#This Row],[Electric kWh usage]],"") -> 0.08850934392 | R32: =IFERROR(Table4[[#This Row],[Electric Demand Cost]]/Table4[[#This Row],[Total Electric Demand (Billed)]],IFERROR(Table4[[#This Row],[Electric Demand Cost]]/Table4[[#This Row],[Total Electric Demand (Actual)]],"")) -> 12.59330986 | S32: =IFERROR(Table4[[#This Row],[Total Gas cost]]+Table4[[#This Row],[Total electric cost]],"") -> 13465.015 | U32: =IFERROR(Table4[[#This Row],[Total Energy Cost]]/Table4[[#This Row],[Monthly Flow]],"") -> 246.6119963 | V32: =IFERROR(Table4[[#This Row],[Total Energy Cost]]/Table4[[#This Row],[Total BOD removed]],"") -> 0.2115905813 | X32: =IF('Process Data Entry'!G34="","",'Process Data Entry'!G34) -> 31 | Y32: =IF('Process Data Entry'!H34="","",'Process Data Entry'!H34) -> 16 | Z32: =IF('Process Data Entry'!I34="",0,'Process Data Entry'!I34) -> 0 | AA32: =IF('Process Data Entry'!J34="","",'Process Data Entry'!J34) -> 2.7 | AB32: =IF('Process Data Entry'!K34="","",'Process Data Entry'!K34) -> 1.1 | AC32: =IF('Process Data Entry'!L34="","",'Process Data Entry'!L34) -> 11.3 | AD32: 17 | AE32: 7741.188 | AF32: =IF('Process Data Entry'!M34="","",'Process Data Entry'!M34) -> 7.4 | AG32: =IF('Process Data Entry'!N34="","",'Process Data Entry'!N34) -> 1 | AH32: 2914.3296
A33: 3 | B33: ='Energy Data Entry'!B54 -> 2017-12-01 | C33: =IF(OR('Process Data Entry'!C35="",'Process Data Entry'!C35=0),"",'Process Data Entry'!C35) -> 1.92 | D33: =IF(Table4[Avg Daily Flow]="","",_xlfn.DAYS(EOMONTH(B33,0),EOMONTH(B33,-1))*C33) -> 59.52 | E33: =IF('Process Data Entry'!F35="","",'Process Data Entry'!F35) -> 3107.28384 | F33: =IF(Table4[BOD removed]="","",Table4[BOD removed]*_xlfn.DAYS(EOMONTH(Table4[[#This Row],[Column2]],0),EOMONTH(Table4[[#This Row],[Column2]],-1))) -> 96325.79904 | G33: =IF(SUM('Energy Data Entry'!C54,'Energy Data Entry'!H54,'Energy Data Entry'!M54,'Energy Data Entry'!R54,'Energy Data Entry'!W54)=0,"",SUM('Energy Data Entry'!C54,'Energy Data Entry'!H54,'Energy Data Entry'!M54,'Energy Data Entry'!R54,'Energy Data Entry'!W54)) -> 172489 | H33: ='Energy Data Entry'!AG54 -> 0 | I33: =IF(Table4[[#This Row],[Electric kWh usage]]="","",Table4[[#This Row],[Gas kWh usage]]+Table4[[#This Row],[Electric kWh usage]]) -> 172489 | J33: =IF(OR(Table4[[#This Row],[Electric kWh usage]]="",Table4[[#This Row],[Monthly Flow]]=""),"",(Table4[[#This Row],[Electric kWh usage]]+Table4[[#This Row],[Gas kWh usage]])/Table4[[#This Row],[Monthly Flow]]) -> 2898.000672 | K33: =IFERROR(IF(Table4[[#This Row],[Electric kWh usage]]="","",(Table4[[#This Row],[Electric kWh usage]]+Table4[[#This Row],[Gas kWh usage]])/Table4[[#This Row],[Total BOD removed]]),"") -> 1.790683303 | L33: =IF('Energy Data Entry'!E54+'Energy Data Entry'!J54+'Energy Data Entry'!O54+'Energy Data Entry'!T54+'Energy Data Entry'!Y54=0,"",'Energy Data Entry'!E54+'Energy Data Entry'!J54+'Energy Data Entry'!O54+'Energy Data Entry'!T54+'Energy Data Entry'!Y54) -> 302 | M33: =IF('Energy Data Entry'!F54+'Energy Data Entry'!K54+'Energy Data Entry'!P54++'Energy Data Entry'!U54+'Energy Data Entry'!Z54=0,"",'Energy Data Entry'!F54+'Energy Data Entry'!K54+'Energy Data Entry'!P54++'Energy Data Entry'!U54+'Energy Data Entry'!Z54) -> 302 | N33: =IF('Energy Data Entry'!G54+'Energy Data Entry'!L54+'Energy Data Entry'!Q54+'Energy Data Entry'!V54+'Energy Data Entry'!AA54=0,"",'Energy Data Entry'!G54+'Energy Data Entry'!L54+'Energy Data Entry'!Q54+'Energy Data Entry'!V54+'Energy Data Entry'!AA54) -> 3473 | O33: =IF('Energy Data Entry'!D54+'Energy Data Entry'!I54+'Energy Data Entry'!N54+'Energy Data Entry'!S54+'Energy Data Entry'!X54=0,"",'Energy Data Entry'!D54+'Energy Data Entry'!I54+'Energy Data Entry'!N54+'Energy Data Entry'!S54+'Energy Data Entry'!X54) -> 14684.785 | P33: ='Energy Data Entry'!AF54 -> 0 | Q33: =IFERROR(Table4[[#This Row],[Total electric cost]]/Table4[[#This Row],[Electric kWh usage]],"") -> 0.08513461728 | R33: =IFERROR(Table4[[#This Row],[Electric Demand Cost]]/Table4[[#This Row],[Total Electric Demand (Billed)]],IFERROR(Table4[[#This Row],[Electric Demand Cost]]/Table4[[#This Row],[Total Electric Demand (Actual)]],"")) -> 11.5 | S33: =IFERROR(Table4[[#This Row],[Total Gas cost]]+Table4[[#This Row],[Total electric cost]],"") -> 14684.785 | U33: =IFERROR(Table4[[#This Row],[Total Energy Cost]]/Table4[[#This Row],[Monthly Flow]],"") -> 246.7201781 | V33: =IFERROR(Table4[[#This Row],[Total Energy Cost]]/Table4[[#This Row],[Total BOD removed]],"") -> 0.1524491377 | X33: =IF('Process Data Entry'!G35="","",'Process Data Entry'!G35) -> 35 | Y33: =IF('Process Data Entry'!H35="","",'Process Data Entry'!H35) -> 17 | Z33: =IF('Process Data Entry'!I35="",0,'Process Data Entry'!I35) -> 0 | AA33: =IF('Process Data Entry'!J35="","",'Process Data Entry'!J35) -> 2.8 | AB33: =IF('Process Data Entry'!K35="","",'Process Data Entry'!K35) -> 1.2 | AC33: =IF('Process Data Entry'!L35="","",'Process Data Entry'!L35) -> 9.3 | AD33: 22.9 | AE33: 11367.48672 | AF33: =IF('Process Data Entry'!M35="","",'Process Data Entry'!M35) -> 7.3 | AG33: =IF('Process Data Entry'!N35="","",'Process Data Entry'!N35) -> 1.4 | AH33: 2928.74112
A34: 3 | B34: ='Energy Data Entry'!B55 -> 2018-01-01 | C34: =IF(OR('Process Data Entry'!C36="",'Process Data Entry'!C36=0),"",'Process Data Entry'!C36) -> 1.68 | D34: =IF(Table4[Avg Daily Flow]="","",_xlfn.DAYS(EOMONTH(B34,0),EOMONTH(B34,-1))*C34) -> 52.08 | E34: =IF('Process Data Entry'!F36="","",'Process Data Entry'!F36) -> 2387.50848 | F34: =IF(Table4[BOD removed]="","",Table4[BOD removed]*_xlfn.DAYS(EOMONTH(Table4[[#This Row],[Column2]],0),EOMONTH(Table4[[#This Row],[Column2]],-1))) -> 74012.76288 | G34: =IF(SUM('Energy Data Entry'!C55,'Energy Data Entry'!H55,'Energy Data Entry'!M55,'Energy Data Entry'!R55,'Energy Data Entry'!W55)=0,"",SUM('Energy Data Entry'!C55,'Energy Data Entry'!H55,'Energy Data Entry'!M55,'Energy Data Entry'!R55,'Energy Data Entry'!W55)) -> 130395 | H34: ='Energy Data Entry'!AG55 -> 0 | I34: =IF(Table4[[#This Row],[Electric kWh usage]]="","",Table4[[#This Row],[Gas kWh usage]]+Table4[[#This Row],[Electric kWh usage]]) -> 130395 | J34: =IF(OR(Table4[[#This Row],[Electric kWh usage]]="",Table4[[#This Row],[Monthly Flow]]=""),"",(Table4[[#This Row],[Electric kWh usage]]+Table4[[#This Row],[Gas kWh usage]])/Table4[[#This Row],[Monthly Flow]]) -> 2503.74424 | K34: =IFERROR(IF(Table4[[#This Row],[Electric kWh usage]]="","",(Table4[[#This Row],[Electric kWh usage]]+Table4[[#This Row],[Gas kWh usage]])/Table4[[#This Row],[Total BOD removed]]),"") -> 1.761790736 | L34: =IF('Energy Data Entry'!E55+'Energy Data Entry'!J55+'Energy Data Entry'!O55+'Energy Data Entry'!T55+'Energy Data Entry'!Y55=0,"",'Energy Data Entry'!E55+'Energy Data Entry'!J55+'Energy Data Entry'!O55+'Energy Data Entry'!T55+'Energy Data Entry'!Y55) -> 253 | M34: =IF('Energy Data Entry'!F55+'Energy Data Entry'!K55+'Energy Data Entry'!P55++'Energy Data Entry'!U55+'Energy Data Entry'!Z55=0,"",'Energy Data Entry'!F55+'Energy Data Entry'!K55+'Energy Data Entry'!P55++'Energy Data Entry'!U55+'Energy Data Entry'!Z55) -> 259 | N34: =IF('Energy Data Entry'!G55+'Energy Data Entry'!L55+'Energy Data Entry'!Q55+'Energy Data Entry'!V55+'Energy Data Entry'!AA55=0,"",'Energy Data Entry'!G55+'Energy Data Entry'!L55+'Energy Data Entry'!Q55+'Energy Data Entry'!V55+'Energy Data Entry'!AA55) -> 2978.5 | O34: =IF('Energy Data Entry'!D55+'Energy Data Entry'!I55+'Energy Data Entry'!N55+'Energy Data Entry'!S55+'Energy Data Entry'!X55=0,"",'Energy Data Entry'!D55+'Energy Data Entry'!I55+'Energy Data Entry'!N55+'Energy Data Entry'!S55+'Energy Data Entry'!X55) -> 11454.175 | P34: ='Energy Data Entry'!AF55 -> 0 | Q34: =IFERROR(Table4[[#This Row],[Total electric cost]]/Table4[[#This Row],[Electric kWh usage]],"") -> 0.08784213352 | R34: =IFERROR(Table4[[#This Row],[Electric Demand Cost]]/Table4[[#This Row],[Total Electric Demand (Billed)]],IFERROR(Table4[[#This Row],[Electric Demand Cost]]/Table4[[#This Row],[Total Electric Demand (Actual)]],"")) -> 11.5 | S34: =IFERROR(Table4[[#This Row],[Total Gas cost]]+Table4[[#This Row],[Total electric cost]],"") -> 11454.175 | U34: =IFERROR(Table4[[#This Row],[Total Energy Cost]]/Table4[[#This Row],[Monthly Flow]],"") -> 219.9342358 | V34: =IFERROR(Table4[[#This Row],[Total Energy Cost]]/Table4[[#This Row],[Total BOD removed]],"") -> 0.1547594571 | X34: =IF('Process Data Entry'!G36="","",'Process Data Entry'!G36) -> 30 | Y34: =IF('Process Data Entry'!H36="","",'Process Data Entry'!H36) -> 12 | Z34: =IF('Process Data Entry'!I36="",0,'Process Data Entry'!I36) -> 0 | AA34: =IF('Process Data Entry'!J36="","",'Process Data Entry'!J36) -> 2.9 | AB34: =IF('Process Data Entry'!K36="","",'Process Data Entry'!K36) -> 1.5 | AC34: =IF('Process Data Entry'!L36="","",'Process Data Entry'!L36) -> 8.6 | AD34: 18.5 | AE34: 8035.4232 | AF34: =IF('Process Data Entry'!M36="","",'Process Data Entry'!M36) -> 7 | AG34: =IF('Process Data Entry'!N36="","",'Process Data Entry'!N36) -> 1.3 | AH34: 2475.77904
A35: 3 | B35: ='Energy Data Entry'!B56 -> 2018-02-01 | C35: =IF(OR('Process Data Entry'!C37="",'Process Data Entry'!C37=0),"",'Process Data Entry'!C37) -> 2.24 | D35: =IF(Table4[Avg Daily Flow]="","",_xlfn.DAYS(EOMONTH(B35,0),EOMONTH(B35,-1))*C35) -> 62.72 | E35: =IF('Process Data Entry'!F37="","",'Process Data Entry'!F37) -> 3681.20928 | F35: =IF(Table4[BOD removed]="","",Table4[BOD removed]*_xlfn.DAYS(EOMONTH(Table4[[#This Row],[Column2]],0),EOMONTH(Table4[[#This Row],[Column2]],-1))) -> 103073.8598 | G35: =IF(SUM('Energy Data Entry'!C56,'Energy Data Entry'!H56,'Energy Data Entry'!M56,'Energy Data Entry'!R56,'Energy Data Entry'!W56)=0,"",SUM('Energy Data Entry'!C56,'Energy Data Entry'!H56,'Energy Data Entry'!M56,'Energy Data Entry'!R56,'Energy Data Entry'!W56)) -> 153990 | H35: ='Energy Data Entry'!AG56 -> 0 | I35: =IF(Table4[[#This Row],[Electric kWh usage]]="","",Table4[[#This Row],[Gas kWh usage]]+Table4[[#This Row],[Electric kWh usage]]) -> 153990 | J35: =IF(OR(Table4[[#This Row],[Electric kWh usage]]="",Table4[[#This Row],[Monthly Flow]]=""),"",(Table4[[#This Row],[Electric kWh usage]]+Table4[[#This Row],[Gas kWh usage]])/Table4[[#This Row],[Monthly Flow]]) -> 2455.197704 | K35: =IFERROR(IF(Table4[[#This Row],[Electric kWh usage]]="","",(Table4[[#This Row],[Electric kWh usage]]+Table4[[#This Row],[Gas kWh usage]])/Table4[[#This Row],[Total BOD removed]]),"") -> 1.493977234 | L35: =IF('Energy Data Entry'!E56+'Energy Data Entry'!J56+'Energy Data Entry'!O56+'Energy Data Entry'!T56+'Energy Data Entry'!Y56=0,"",'Energy Data Entry'!E56+'Energy Data Entry'!J56+'Energy Data Entry'!O56+'Energy Data Entry'!T56+'Energy Data Entry'!Y56) -> 256 | M35: =IF('Energy Data Entry'!F56+'Energy Data Entry'!K56+'Energy Data Entry'!P56++'Energy Data Entry'!U56+'Energy Data Entry'!Z56=0,"",'Energy Data Entry'!F56+'Energy Data Entry'!K56+'Energy Data Entry'!P56++'Energy Data Entry'!U56+'Energy Data Entry'!Z56) -> 256 | N35: =IF('Energy Data Entry'!G56+'Energy Data Entry'!L56+'Energy Data Entry'!Q56+'Energy Data Entry'!V56+'Energy Data Entry'!AA56=0,"",'Energy Data Entry'!G56+'Energy Data Entry'!L56+'Energy Data Entry'!Q56+'Energy Data Entry'!V56+'Energy Data Entry'!AA56) -> 2944 | O35: =IF('Energy Data Entry'!D56+'Energy Data Entry'!I56+'Energy Data Entry'!N56+'Energy Data Entry'!S56+'Energy Data Entry'!X56=0,"",'Energy Data Entry'!D56+'Energy Data Entry'!I56+'Energy Data Entry'!N56+'Energy Data Entry'!S56+'Energy Data Entry'!X56) -> 12953.35 | P35: ='Energy Data Entry'!AF56 -> 0 | Q35: =IFERROR(Table4[[#This Row],[Total electric cost]]/Table4[[#This Row],[Electric kWh usage]],"") -> 0.08411812455 | R35: =IFERROR(Table4[[#This Row],[Electric Demand Cost]]/Table4[[#This Row],[Total Electric Demand (Billed)]],IFERROR(Table4[[#This Row],[Electric Demand Cost]]/Table4[[#This Row],[Total Electric Demand (Actual)]],"")) -> 11.5 | S35: =IFERROR(Table4[[#This Row],[Total Gas cost]]+Table4[[#This Row],[Total electric cost]],"") -> 12953.35 | U35: =IFERROR(Table4[[#This Row],[Total Energy Cost]]/Table4[[#This Row],[Monthly Flow]],"") -> 206.5266263 | V35: =IFERROR(Table4[[#This Row],[Total Energy Cost]]/Table4[[#This Row],[Total BOD removed]],"") -> 0.125670563 | X35: =IF('Process Data Entry'!G37="","",'Process Data Entry'!G37) -> 39 | Y35: =IF('Process Data Entry'!H37="","",'Process Data Entry'!H37) -> 12 | Z35: =IF('Process Data Entry'!I37="",0,'Process Data Entry'!I37) -> 0 | AA35: =IF('Process Data Entry'!J37="","",'Process Data Entry'!J37) -> 2.9 | AB35: =IF('Process Data Entry'!K37="","",'Process Data Entry'!K37) -> 0.8 | AC35: =IF('Process Data Entry'!L37="","",'Process Data Entry'!L37) -> 10.4 | AD35: 25.7 | AE35: 13443.27936 | AF35: =IF('Process Data Entry'!M37="","",'Process Data Entry'!M37) -> 8.1 | AG35: =IF('Process Data Entry'!N37="","",'Process Data Entry'!N37) -> 1.4 | AH35: 3504.66816
A36: 3 | B36: ='Energy Data Entry'!B57 -> 2018-03-01 | C36: =IF(OR('Process Data Entry'!C38="",'Process Data Entry'!C38=0),"",'Process Data Entry'!C38) -> 2.34 | D36: =IF(Table4[Avg Daily Flow]="","",_xlfn.DAYS(EOMONTH(B36,0),EOMONTH(B36,-1))*C36) -> 72.54 | E36: =IF('Process Data Entry'!F38="","",'Process Data Entry'!F38) -> 3501.09864 | F36: =IF(Table4[BOD removed]="","",Table4[BOD removed]*_xlfn.DAYS(EOMONTH(Table4[[#This Row],[Column2]],0),EOMONTH(Table4[[#This Row],[Column2]],-1))) -> 108534.0578 | G36: =IF(SUM('Energy Data Entry'!C57,'Energy Data Entry'!H57,'Energy Data Entry'!M57,'Energy Data Entry'!R57,'Energy Data Entry'!W57)=0,"",SUM('Energy Data Entry'!C57,'Energy Data Entry'!H57,'Energy Data Entry'!M57,'Energy Data Entry'!R57,'Energy Data Entry'!W57)) -> 194594 | H36: ='Energy Data Entry'!AG57 -> 0 | I36: =IF(Table4[[#This Row],[Electric kWh usage]]="","",Table4[[#This Row],[Gas kWh usage]]+Table4[[#This Row],[Electric kWh usage]]) -> 194594 | J36: =IF(OR(Table4[[#This Row],[Electric kWh usage]]="",Table4[[#This Row],[Monthly Flow]]=""),"",(Table4[[#This Row],[Electric kWh usage]]+Table4[[#This Row],[Gas kWh usage]])/Table4[[#This Row],[Monthly Flow]]) -> 2682.575131 | K36: =IFERROR(IF(Table4[[#This Row],[Electric kWh usage]]="","",(Table4[[#This Row],[Electric kWh usage]]+Table4[[#This Row],[Gas kWh usage]])/Table4[[#This Row],[Total BOD removed]]),"") -> 1.792930292 | L36: =IF('Energy Data Entry'!E57+'Energy Data Entry'!J57+'Energy Data Entry'!O57+'Energy Data Entry'!T57+'Energy Data Entry'!Y57=0,"",'Energy Data Entry'!E57+'Energy Data Entry'!J57+'Energy Data Entry'!O57+'Energy Data Entry'!T57+'Energy Data Entry'!Y57) -> 352 | M36: =IF('Energy Data Entry'!F57+'Energy Data Entry'!K57+'Energy Data Entry'!P57++'Energy Data Entry'!U57+'Energy Data Entry'!Z57=0,"",'Energy Data Entry'!F57+'Energy Data Entry'!K57+'Energy Data Entry'!P57++'Energy Data Entry'!U57+'Energy Data Entry'!Z57) -> 352 | N36: =IF('Energy Data Entry'!G57+'Energy Data Entry'!L57+'Energy Data Entry'!Q57+'Energy Data Entry'!V57+'Energy Data Entry'!AA57=0,"",'Energy Data Entry'!G57+'Energy Data Entry'!L57+'Energy Data Entry'!Q57+'Energy Data Entry'!V57+'Energy Data Entry'!AA57) -> 4048 | O36: =IF('Energy Data Entry'!D57+'Energy Data Entry'!I57+'Energy Data Entry'!N57+'Energy Data Entry'!S57+'Energy Data Entry'!X57=0,"",'Energy Data Entry'!D57+'Energy Data Entry'!I57+'Energy Data Entry'!N57+'Energy Data Entry'!S57+'Energy Data Entry'!X57) -> 16696.61 | P36: ='Energy Data Entry'!AF57 -> 0 | Q36: =IFERROR(Table4[[#This Row],[Total electric cost]]/Table4[[#This Row],[Electric kWh usage]],"") -> 0.08580228578 | R36: =IFERROR(Table4[[#This Row],[Electric Demand Cost]]/Table4[[#This Row],[Total Electric Demand (Billed)]],IFERROR(Table4[[#This Row],[Electric Demand Cost]]/Table4[[#This Row],[Total Electric Demand (Actual)]],"")) -> 11.5 | S36: =IFERROR(Table4[[#This Row],[Total Gas cost]]+Table4[[#This Row],[Total electric cost]],"") -> 16696.61 | U36: =IFERROR(Table4[[#This Row],[Total Energy Cost]]/Table4[[#This Row],[Monthly Flow]],"") -> 230.171078 | V36: =IFERROR(Table4[[#This Row],[Total Energy Cost]]/Table4[[#This Row],[Total BOD removed]],"") -> 0.1538375173 | X36: =IF('Process Data Entry'!G38="","",'Process Data Entry'!G38) -> 36 | Y36: =IF('Process Data Entry'!H38="","",'Process Data Entry'!H38) -> 13 | Z36: =IF('Process Data Entry'!I38="",0,'Process Data Entry'!I38) -> 0 | AA36: =IF('Process Data Entry'!J38="","",'Process Data Entry'!J38) -> 2.9 | AB36: =IF('Process Data Entry'!K38="","",'Process Data Entry'!K38) -> 0.9 | AC36: =IF('Process Data Entry'!L38="","",'Process Data Entry'!L38) -> 11 | AD36: =IFERROR(IF(OR(X36="",AC36="",AND(AA36="",AB36=""),((X36+Z36)-(MAX(AA36,AB36)+AC36))<0),"",(X36+Z36)-(MAX(AA36,AB36)+AC36)),"") -> 22.1 | AE36: =IF(OR(AD36="",D36=""),"",AD36*D36*8.34) -> 13370.13756 | AF36: =IF('Process Data Entry'!M38="","",'Process Data Entry'!M38) -> 8.2 | AG36: =IF('Process Data Entry'!N38="","",'Process Data Entry'!N38) -> 1.1 | AH36: =IF(OR(AF36="",AG36="",D36=""),"",8.34*D36*(AF36-AG36)) -> 4295.38356
A37: 3 | B37: ='Energy Data Entry'!B58 -> 2018-04-01 | C37: =IF(OR('Process Data Entry'!C39="",'Process Data Entry'!C39=0),"",'Process Data Entry'!C39) -> 2.26 | D37: =IF(Table4[Avg Daily Flow]="","",_xlfn.DAYS(EOMONTH(B37,0),EOMONTH(B37,-1))*C37) -> 67.8 | E37: =IF('Process Data Entry'!F39="","",'Process Data Entry'!F39) -> 2781.08142 | F37: =IF(Table4[BOD removed]="","",Table4[BOD removed]*_xlfn.DAYS(EOMONTH(Table4[[#This Row],[Column2]],0),EOMONTH(Table4[[#This Row],[Column2]],-1))) -> 83432.4426 | G37: =IF(SUM('Energy Data Entry'!C58,'Energy Data Entry'!H58,'Energy Data Entry'!M58,'Energy Data Entry'!R58,'Energy Data Entry'!W58)=0,"",SUM('Energy Data Entry'!C58,'Energy Data Entry'!H58,'Energy Data Entry'!M58,'Energy Data Entry'!R58,'Energy Data Entry'!W58)) -> 165958 | H37: ='Energy Data Entry'!AG58 -> 0 | I37: =IF(Table4[[#This Row],[Electric kWh usage]]="","",Table4[[#This Row],[Gas kWh usage]]+Table4[[#This Row],[Electric kWh usage]]) -> 165958 | J37: =IF(OR(Table4[[#This Row],[Electric kWh usage]]="",Table4[[#This Row],[Monthly Flow]]=""),"",(Table4[[#This Row],[Electric kWh usage]]+Table4[[#This Row],[Gas kWh usage]])/Table4[[#This Row],[Monthly Flow]]) -> 2447.758112 | K37: =IFERROR(IF(Table4[[#This Row],[Electric kWh usage]]="","",(Table4[[#This Row],[Electric kWh usage]]+Table4[[#This Row],[Gas kWh usage]])/Table4[[#This Row],[Total BOD removed]]),"") -> 1.989130305 | L37: =IF('Energy Data Entry'!E58+'Energy Data Entry'!J58+'Energy Data Entry'!O58+'Energy Data Entry'!T58+'Energy Data Entry'!Y58=0,"",'Energy Data Entry'!E58+'Energy Data Entry'!J58+'Energy Data Entry'!O58+'Energy Data Entry'!T58+'Energy Data Entry'!Y58) -> 279 | M37: =IF('Energy Data Entry'!F58+'Energy Data Entry'!K58+'Energy Data Entry'!P58++'Energy Data Entry'!U58+'Energy Data Entry'!Z58=0,"",'Energy Data Entry'!F58+'Energy Data Entry'!K58+'Energy Data Entry'!P58++'Energy Data Entry'!U58+'Energy Data Entry'!Z58) -> 279 | N37: =IF('Energy Data Entry'!G58+'Energy Data Entry'!L58+'Energy Data Entry'!Q58+'Energy Data Entry'!V58+'Energy Data Entry'!AA58=0,"",'Energy Data Entry'!G58+'Energy Data Entry'!L58+'Energy Data Entry'!Q58+'Energy Data Entry'!V58+'Energy Data Entry'!AA58) -> 3208.5 | O37: =IF('Energy Data Entry'!D58+'Energy Data Entry'!I58+'Energy Data Entry'!N58+'Energy Data Entry'!S58+'Energy Data Entry'!X58=0,"",'Energy Data Entry'!D58+'Energy Data Entry'!I58+'Energy Data Entry'!N58+'Energy Data Entry'!S58+'Energy Data Entry'!X58) -> 13995.77 | P37: ='Energy Data Entry'!AF58 -> 0 | Q37: =IFERROR(Table4[[#This Row],[Total electric cost]]/Table4[[#This Row],[Electric kWh usage]],"") -> 0.08433320479 | R37: =IFERROR(Table4[[#This Row],[Electric Demand Cost]]/Table4[[#This Row],[Total Electric Demand (Billed)]],IFERROR(Table4[[#This Row],[Electric Demand Cost]]/Table4[[#This Row],[Total Electric Demand (Actual)]],"")) -> 11.5 | S37: =IFERROR(Table4[[#This Row],[Total Gas cost]]+Table4[[#This Row],[Total electric cost]],"") -> 13995.77 | U37: =IFERROR(Table4[[#This Row],[Total Energy Cost]]/Table4[[#This Row],[Monthly Flow]],"") -> 206.4272861 | V37: =IFERROR(Table4[[#This Row],[Total Energy Cost]]/Table4[[#This Row],[Total BOD removed]],"") -> 0.1677497334 | X37: =IF('Process Data Entry'!G39="","",'Process Data Entry'!G39) -> 36 | Y37: =IF('Process Data Entry'!H39="","",'Process Data Entry'!H39) -> 13 | Z37: =IF('Process Data Entry'!I39="",0,'Process Data Entry'!I39) -> 0 | AA37: =IF('Process Data Entry'!J39="","",'Process Data Entry'!J39) -> 3.1 | AB37: =IF('Process Data Entry'!K39="","",'Process Data Entry'!K39) -> 1.2 | AC37: =IF('Process Data Entry'!L39="","",'Process Data Entry'!L39) -> 11.6 | AD37: 21.3 | AE37: 12044.1276 | AF37: =IF('Process Data Entry'!M39="","",'Process Data Entry'!M39) -> 7.1 | AG37: =IF('Process Data Entry'!N39="","",'Process Data Entry'!N39) -> 1.2 | AH37: 3336.1668
A38: 3 | B38: ='Energy Data Entry'!B59 -> 2018-05-01 | C38: =IF(OR('Process Data Entry'!C40="",'Process Data Entry'!C40=0),"",'Process Data Entry'!C40) -> 1.88 | D38: =IF(Table4[Avg Daily Flow]="","",_xlfn.DAYS(EOMONTH(B38,0),EOMONTH(B38,-1))*C38) -> 58.28 | E38: =IF('Process Data Entry'!F40="","",'Process Data Entry'!F40) -> 2130.01932 | F38: =IF(Table4[BOD removed]="","",Table4[BOD removed]*_xlfn.DAYS(EOMONTH(Table4[[#This Row],[Column2]],0),EOMONTH(Table4[[#This Row],[Column2]],-1))) -> 66030.59892 | G38: =IF(SUM('Energy Data Entry'!C59,'Energy Data Entry'!H59,'Energy Data Entry'!M59,'Energy Data Entry'!R59,'Energy Data Entry'!W59)=0,"",SUM('Energy Data Entry'!C59,'Energy Data Entry'!H59,'Energy Data Entry'!M59,'Energy Data Entry'!R59,'Energy Data Entry'!W59)) -> 130758 | H38: ='Energy Data Entry'!AG59 -> 0 | I38: =IF(Table4[[#This Row],[Electric kWh usage]]="","",Table4[[#This Row],[Gas kWh usage]]+Table4[[#This Row],[Electric kWh usage]]) -> 130758 | J38: =IF(OR(Table4[[#This Row],[Electric kWh usage]]="",Table4[[#This Row],[Monthly Flow]]=""),"",(Table4[[#This Row],[Electric kWh usage]]+Table4[[#This Row],[Gas kWh usage]])/Table4[[#This Row],[Monthly Flow]]) -> 2243.617021 | K38: =IFERROR(IF(Table4[[#This Row],[Electric kWh usage]]="","",(Table4[[#This Row],[Electric kWh usage]]+Table4[[#This Row],[Gas kWh usage]])/Table4[[#This Row],[Total BOD removed]]),"") -> 1.980263728 | L38: =IF('Energy Data Entry'!E59+'Energy Data Entry'!J59+'Energy Data Entry'!O59+'Energy Data Entry'!T59+'Energy Data Entry'!Y59=0,"",'Energy Data Entry'!E59+'Energy Data Entry'!J59+'Energy Data Entry'!O59+'Energy Data Entry'!T59+'Energy Data Entry'!Y59) -> 239 | M38: =IF('Energy Data Entry'!F59+'Energy Data Entry'!K59+'Energy Data Entry'!P59++'Energy Data Entry'!U59+'Energy Data Entry'!Z59=0,"",'Energy Data Entry'!F59+'Energy Data Entry'!K59+'Energy Data Entry'!P59++'Energy Data Entry'!U59+'Energy Data Entry'!Z59) -> 246 | N38: =IF('Energy Data Entry'!G59+'Energy Data Entry'!L59+'Energy Data Entry'!Q59+'Energy Data Entry'!V59+'Energy Data Entry'!AA59=0,"",'Energy Data Entry'!G59+'Energy Data Entry'!L59+'Energy Data Entry'!Q59+'Energy Data Entry'!V59+'Energy Data Entry'!AA59) -> 2829 | O38: =IF('Energy Data Entry'!D59+'Energy Data Entry'!I59+'Energy Data Entry'!N59+'Energy Data Entry'!S59+'Energy Data Entry'!X59=0,"",'Energy Data Entry'!D59+'Energy Data Entry'!I59+'Energy Data Entry'!N59+'Energy Data Entry'!S59+'Energy Data Entry'!X59) -> 11328.27 | P38: ='Energy Data Entry'!AF59 -> 0 | Q38: =IFERROR(Table4[[#This Row],[Total electric cost]]/Table4[[#This Row],[Electric kWh usage]],"") -> 0.08663538751 | R38: =IFERROR(Table4[[#This Row],[Electric Demand Cost]]/Table4[[#This Row],[Total Electric Demand (Billed)]],IFERROR(Table4[[#This Row],[Electric Demand Cost]]/Table4[[#This Row],[Total Electric Demand (Actual)]],"")) -> 11.5 | S38: =IFERROR(Table4[[#This Row],[Total Gas cost]]+Table4[[#This Row],[Total electric cost]],"") -> 11328.27 | U38: =IFERROR(Table4[[#This Row],[Total Energy Cost]]/Table4[[#This Row],[Monthly Flow]],"") -> 194.3766301 | V38: =IFERROR(Table4[[#This Row],[Total Energy Cost]]/Table4[[#This Row],[Total BOD removed]],"") -> 0.1715609155 | X38: =IF('Process Data Entry'!G40="","",'Process Data Entry'!G40) -> 35 | Y38: =IF('Process Data Entry'!H40="","",'Process Data Entry'!H40) -> 15 | Z38: =IF('Process Data Entry'!I40="",0,'Process Data Entry'!I40) -> 0 | AA38: =IF('Process Data Entry'!J40="","",'Process Data Entry'!J40) -> 3.2 | AB38: =IF('Process Data Entry'!K40="","",'Process Data Entry'!K40) -> 1.5 | AC38: =IF('Process Data Entry'!L40="","",'Process Data Entry'!L40) -> 9.2 | AD38: 22.6 | AE38: 10984.84752 | AF38: =IF('Process Data Entry'!M40="","",'Process Data Entry'!M40) -> 8.4 | AG38: =IF('Process Data Entry'!N40="","",'Process Data Entry'!N40) -> 1.2 | AH38: 3499.59744
A39: 3 | B39: ='Energy Data Entry'!B60 -> 2018-06-01 | C39: =IF(OR('Process Data Entry'!C41="",'Process Data Entry'!C41=0),"",'Process Data Entry'!C41) -> 1.52 | D39: =IF(Table4[Avg Daily Flow]="","",_xlfn.DAYS(EOMONTH(B39,0),EOMONTH(B39,-1))*C39) -> 45.6 | E39: =IF('Process Data Entry'!F41="","",'Process Data Entry'!F41) -> 2802.20664 | F39: =IF(Table4[BOD removed]="","",Table4[BOD removed]*_xlfn.DAYS(EOMONTH(Table4[[#This Row],[Column2]],0),EOMONTH(Table4[[#This Row],[Column2]],-1))) -> 84066.1992 | G39: =IF(SUM('Energy Data Entry'!C60,'Energy Data Entry'!H60,'Energy Data Entry'!M60,'Energy Data Entry'!R60,'Energy Data Entry'!W60)=0,"",SUM('Energy Data Entry'!C60,'Energy Data Entry'!H60,'Energy Data Entry'!M60,'Energy Data Entry'!R60,'Energy Data Entry'!W60)) -> 131804 | H39: ='Energy Data Entry'!AG60 -> 0 | I39: =IF(Table4[[#This Row],[Electric kWh usage]]="","",Table4[[#This Row],[Gas kWh usage]]+Table4[[#This Row],[Electric kWh usage]]) -> 131804 | J39: =IF(OR(Table4[[#This Row],[Electric kWh usage]]="",Table4[[#This Row],[Monthly Flow]]=""),"",(Table4[[#This Row],[Electric kWh usage]]+Table4[[#This Row],[Gas kWh usage]])/Table4[[#This Row],[Monthly Flow]]) -> 2890.438596 | K39: =IFERROR(IF(Table4[[#This Row],[Electric kWh usage]]="","",(Table4[[#This Row],[Electric kWh usage]]+Table4[[#This Row],[Gas kWh usage]])/Table4[[#This Row],[Total BOD removed]]),"") -> 1.56785963 | L39: =IF('Energy Data Entry'!E60+'Energy Data Entry'!J60+'Energy Data Entry'!O60+'Energy Data Entry'!T60+'Energy Data Entry'!Y60=0,"",'Energy Data Entry'!E60+'Energy Data Entry'!J60+'Energy Data Entry'!O60+'Energy Data Entry'!T60+'Energy Data Entry'!Y60) -> 221 | M39: =IF('Energy Data Entry'!F60+'Energy Data Entry'!K60+'Energy Data Entry'!P60++'Energy Data Entry'!U60+'Energy Data Entry'!Z60=0,"",'Energy Data Entry'!F60+'Energy Data Entry'!K60+'Energy Data Entry'!P60++'Energy Data Entry'!U60+'Energy Data Entry'!Z60) -> 246 | N39: =IF('Energy Data Entry'!G60+'Energy Data Entry'!L60+'Energy Data Entry'!Q60+'Energy Data Entry'!V60+'Energy Data Entry'!AA60=0,"",'Energy Data Entry'!G60+'Energy Data Entry'!L60+'Energy Data Entry'!Q60+'Energy Data Entry'!V60+'Energy Data Entry'!AA60) -> 2829 | O39: =IF('Energy Data Entry'!D60+'Energy Data Entry'!I60+'Energy Data Entry'!N60+'Energy Data Entry'!S60+'Energy Data Entry'!X60=0,"",'Energy Data Entry'!D60+'Energy Data Entry'!I60+'Energy Data Entry'!N60+'Energy Data Entry'!S60+'Energy Data Entry'!X60) -> 11396.26 | P39: ='Energy Data Entry'!AF60 -> 0 | Q39: =IFERROR(Table4[[#This Row],[Total electric cost]]/Table4[[#This Row],[Electric kWh usage]],"") -> 0.08646368851 | R39: =IFERROR(Table4[[#This Row],[Electric Demand Cost]]/Table4[[#This Row],[Total Electric Demand (Billed)]],IFERROR(Table4[[#This Row],[Electric Demand Cost]]/Table4[[#This Row],[Total Electric Demand (Actual)]],"")) -> 11.5 | S39: =IFERROR(Table4[[#This Row],[Total Gas cost]]+Table4[[#This Row],[Total electric cost]],"") -> 11396.26 | U39: =IFERROR(Table4[[#This Row],[Total Energy Cost]]/Table4[[#This Row],[Monthly Flow]],"") -> 249.9179825 | V39: =IFERROR(Table4[[#This Row],[Total Energy Cost]]/Table4[[#This Row],[Total BOD removed]],"") -> 0.1355629267 | X39: =IF('Process Data Entry'!G41="","",'Process Data Entry'!G41) -> 32 | Y39: =IF('Process Data Entry'!H41="","",'Process Data Entry'!H41) -> 11 | Z39: =IF('Process Data Entry'!I41="",0,'Process Data Entry'!I41) -> 0 | AA39: =IF('Process Data Entry'!J41="","",'Process Data Entry'!J41) -> 2.8 | AB39: =IF('Process Data Entry'!K41="","",'Process Data Entry'!K41) -> 1.4 | AC39: =IF('Process Data Entry'!L41="","",'Process Data Entry'!L41) -> 9.2 | AD39: 20 | AE39: 7606.08 | AF39: =IF('Process Data Entry'!M41="","",'Process Data Entry'!M41) -> 8.9 | AG39: =IF('Process Data Entry'!N41="","",'Process Data Entry'!N41) -> 0.7 | AH39: 3118.4928
A40: 4 | B40: ='Energy Data Entry'!B61 -> 2018-07-01 | C40: =IF(OR('Process Data Entry'!C42="",'Process Data Entry'!C42=0),"",'Process Data Entry'!C42) -> 2.06 | D40: =IF(Table4[Avg Daily Flow]="","",_xlfn.DAYS(EOMONTH(B40,0),EOMONTH(B40,-1))*C40) -> 63.86 | E40: =IF('Process Data Entry'!F42="","",'Process Data Entry'!F42) -> 2772.05754 | F40: =IF(Table4[BOD removed]="","",Table4[BOD removed]*_xlfn.DAYS(EOMONTH(Table4[[#This Row],[Column2]],0),EOMONTH(Table4[[#This Row],[Column2]],-1))) -> 85933.78374 | G40: =IF(SUM('Energy Data Entry'!C61,'Energy Data Entry'!H61,'Energy Data Entry'!M61,'Energy Data Entry'!R61,'Energy Data Entry'!W61)=0,"",SUM('Energy Data Entry'!C61,'Energy Data Entry'!H61,'Energy Data Entry'!M61,'Energy Data Entry'!R61,'Energy Data Entry'!W61)) -> 181848 | H40: ='Energy Data Entry'!AG61 -> 0 | I40: =IF(Table4[[#This Row],[Electric kWh usage]]="","",Table4[[#This Row],[Gas kWh usage]]+Table4[[#This Row],[Electric kWh usage]]) -> 181848 | J40: =IF(OR(Table4[[#This Row],[Electric kWh usage]]="",Table4[[#This Row],[Monthly Flow]]=""),"",(Table4[[#This Row],[Electric kWh usage]]+Table4[[#This Row],[Gas kWh usage]])/Table4[[#This Row],[Monthly Flow]]) -> 2847.604134 | K40: =IFERROR(IF(Table4[[#This Row],[Electric kWh usage]]="","",(Table4[[#This Row],[Electric kWh usage]]+Table4[[#This Row],[Gas kWh usage]])/Table4[[#This Row],[Total BOD removed]]),"") -> 2.116140964 | L40: =IF('Energy Data Entry'!E61+'Energy Data Entry'!J61+'Energy Data Entry'!O61+'Energy Data Entry'!T61+'Energy Data Entry'!Y61=0,"",'Energy Data Entry'!E61+'Energy Data Entry'!J61+'Energy Data Entry'!O61+'Energy Data Entry'!T61+'Energy Data Entry'!Y61) -> 322 | M40: =IF('Energy Data Entry'!F61+'Energy Data Entry'!K61+'Energy Data Entry'!P61++'Energy Data Entry'!U61+'Energy Data Entry'!Z61=0,"",'Energy Data Entry'!F61+'Energy Data Entry'!K61+'Energy Data Entry'!P61++'Energy Data Entry'!U61+'Energy Data Entry'!Z61) -> 322 | N40: =IF('Energy Data Entry'!G61+'Energy Data Entry'!L61+'Energy Data Entry'!Q61+'Energy Data Entry'!V61+'Energy Data Entry'!AA61=0,"",'Energy Data Entry'!G61+'Energy Data Entry'!L61+'Energy Data Entry'!Q61+'Energy Data Entry'!V61+'Energy Data Entry'!AA61) -> 3703 | O40: =IF('Energy Data Entry'!D61+'Energy Data Entry'!I61+'Energy Data Entry'!N61+'Energy Data Entry'!S61+'Energy Data Entry'!X61=0,"",'Energy Data Entry'!D61+'Energy Data Entry'!I61+'Energy Data Entry'!N61+'Energy Data Entry'!S61+'Energy Data Entry'!X61) -> 15523.12 | P40: ='Energy Data Entry'!AF61 -> 0 | Q40: =IFERROR(Table4[[#This Row],[Total electric cost]]/Table4[[#This Row],[Electric kWh usage]],"") -> 0.08536316044 | R40: =IFERROR(Table4[[#This Row],[Electric Demand Cost]]/Table4[[#This Row],[Total Electric Demand (Billed)]],IFERROR(Table4[[#This Row],[Electric Demand Cost]]/Table4[[#This Row],[Total Electric Demand (Actual)]],"")) -> 11.5 | S40: =IFERROR(Table4[[#This Row],[Total Gas cost]]+Table4[[#This Row],[Total electric cost]],"") -> 15523.12 | U40: =IFERROR(Table4[[#This Row],[Total Energy Cost]]/Table4[[#This Row],[Monthly Flow]],"") -> 243.0804886 | V40: =IFERROR(Table4[[#This Row],[Total Energy Cost]]/Table4[[#This Row],[Total BOD removed]],"") -> 0.1806404807 | X40: =IF('Process Data Entry'!G42="","",'Process Data Entry'!G42) -> 30 | Y40: =IF('Process Data Entry'!H42="","",'Process Data Entry'!H42) -> 13 | Z40: =IF('Process Data Entry'!I42="",0,'Process Data Entry'!I42) -> 0 | AA40: =IF('Process Data Entry'!J42="","",'Process Data Entry'!J42) -> 3.2 | AB40: =IF('Process Data Entry'!K42="","",'Process Data Entry'!K42) -> 1 | AC40: =IF('Process Data Entry'!L42="","",'Process Data Entry'!L42) -> 10.5 | AD40: 16.3 | AE40: 8681.25612 | AF40: =IF('Process Data Entry'!M42="","",'Process Data Entry'!M42) -> 9.6 | AG40: =IF('Process Data Entry'!N42="","",'Process Data Entry'!N42) -> 1.2 | AH40: 4473.77616
A41: 4 | B41: ='Energy Data Entry'!B62 -> 2018-08-01 | C41: =IF(OR('Process Data Entry'!C43="",'Process Data Entry'!C43=0),"",'Process Data Entry'!C43) -> 2.16 | D41: =IF(Table4[Avg Daily Flow]="","",_xlfn.DAYS(EOMONTH(B41,0),EOMONTH(B41,-1))*C41) -> 66.96 | E41: =IF('Process Data Entry'!F43="","",'Process Data Entry'!F43) -> 3205.66248 | F41: =IF(Table4[BOD removed]="","",Table4[BOD removed]*_xlfn.DAYS(EOMONTH(Table4[[#This Row],[Column2]],0),EOMONTH(Table4[[#This Row],[Column2]],-1))) -> 99375.53688 | G41: =IF(SUM('Energy Data Entry'!C62,'Energy Data Entry'!H62,'Energy Data Entry'!M62,'Energy Data Entry'!R62,'Energy Data Entry'!W62)=0,"",SUM('Energy Data Entry'!C62,'Energy Data Entry'!H62,'Energy Data Entry'!M62,'Energy Data Entry'!R62,'Energy Data Entry'!W62)) -> 160030 | H41: ='Energy Data Entry'!AG62 -> 0 | I41: =IF(Table4[[#This Row],[Electric kWh usage]]="","",Table4[[#This Row],[Gas kWh usage]]+Table4[[#This Row],[Electric kWh usage]]) -> 160030 | J41: =IF(OR(Table4[[#This Row],[Electric kWh usage]]="",Table4[[#This Row],[Monthly Flow]]=""),"",(Table4[[#This Row],[Electric kWh usage]]+Table4[[#This Row],[Gas kWh usage]])/Table4[[#This Row],[Monthly Flow]]) -> 2389.934289 | K41: =IFERROR(IF(Table4[[#This Row],[Electric kWh usage]]="","",(Table4[[#This Row],[Electric kWh usage]]+Table4[[#This Row],[Gas kWh usage]])/Table4[[#This Row],[Total BOD removed]]),"") -> 1.61035608 | L41: =IF('Energy Data Entry'!E62+'Energy Data Entry'!J62+'Energy Data Entry'!O62+'Energy Data Entry'!T62+'Energy Data Entry'!Y62=0,"",'Energy Data Entry'!E62+'Energy Data Entry'!J62+'Energy Data Entry'!O62+'Energy Data Entry'!T62+'Energy Data Entry'!Y62) -> 272 | M41: =IF('Energy Data Entry'!F62+'Energy Data Entry'!K62+'Energy Data Entry'!P62++'Energy Data Entry'!U62+'Energy Data Entry'!Z62=0,"",'Energy Data Entry'!F62+'Energy Data Entry'!K62+'Energy Data Entry'!P62++'Energy Data Entry'!U62+'Energy Data Entry'!Z62) -> 272 | N41: =IF('Energy Data Entry'!G62+'Energy Data Entry'!L62+'Energy Data Entry'!Q62+'Energy Data Entry'!V62+'Energy Data Entry'!AA62=0,"",'Energy Data Entry'!G62+'Energy Data Entry'!L62+'Energy Data Entry'!Q62+'Energy Data Entry'!V62+'Energy Data Entry'!AA62) -> 3128 | O41: =IF('Energy Data Entry'!D62+'Energy Data Entry'!I62+'Energy Data Entry'!N62+'Energy Data Entry'!S62+'Energy Data Entry'!X62=0,"",'Energy Data Entry'!D62+'Energy Data Entry'!I62+'Energy Data Entry'!N62+'Energy Data Entry'!S62+'Energy Data Entry'!X62) -> 13529.95 | P41: ='Energy Data Entry'!AF62 -> 0 | Q41: =IFERROR(Table4[[#This Row],[Total electric cost]]/Table4[[#This Row],[Electric kWh usage]],"") -> 0.08454633506 | R41: =IFERROR(Table4[[#This Row],[Electric Demand Cost]]/Table4[[#This Row],[Total Electric Demand (Billed)]],IFERROR(Table4[[#This Row],[Electric Demand Cost]]/Table4[[#This Row],[Total Electric Demand (Actual)]],"")) -> 11.5 | S41: =IFERROR(Table4[[#This Row],[Total Gas cost]]+Table4[[#This Row],[Total electric cost]],"") -> 13529.95 | U41: =IFERROR(Table4[[#This Row],[Total Energy Cost]]/Table4[[#This Row],[Monthly Flow]],"") -> 202.0601852 | V41: =IFERROR(Table4[[#This Row],[Total Energy Cost]]/Table4[[#This Row],[Total BOD removed]],"") -> 0.1361497047 | X41: =IF('Process Data Entry'!G43="","",'Process Data Entry'!G43) -> 37 | Y41: =IF('Process Data Entry'!H43="","",'Process Data Entry'!H43) -> 14 | Z41: =IF('Process Data Entry'!I43="",0,'Process Data Entry'!I43) -> 0 | AA41: =IF('Process Data Entry'!J43="","",'Process Data Entry'!J43) -> 3 | AB41: =IF('Process Data Entry'!K43="","",'Process Data Entry'!K43) -> 1.3 | AC41: =IF('Process Data Entry'!L43="","",'Process Data Entry'!L43) -> 8.3 | AD41: 25.7 | AE41: 14352.07248 | AF41: =IF('Process Data Entry'!M43="","",'Process Data Entry'!M43) -> 7.8 | AG41: =IF('Process Data Entry'!N43="","",'Process Data Entry'!N43) -> 0.5 | AH41: 4076.65872
A42: 4 | B42: ='Energy Data Entry'!B63 -> 2018-09-01 | C42: =IF(OR('Process Data Entry'!C44="",'Process Data Entry'!C44=0),"",'Process Data Entry'!C44) -> 2.22 | D42: =IF(Table4[Avg Daily Flow]="","",_xlfn.DAYS(EOMONTH(B42,0),EOMONTH(B42,-1))*C42) -> 66.6 | E42: =IF('Process Data Entry'!F44="","",'Process Data Entry'!F44) -> 3563.17326 | F42: =IF(Table4[BOD removed]="","",Table4[BOD removed]*_xlfn.DAYS(EOMONTH(Table4[[#This Row],[Column2]],0),EOMONTH(Table4[[#This Row],[Column2]],-1))) -> 106895.1978 | G42: =IF(SUM('Energy Data Entry'!C63,'Energy Data Entry'!H63,'Energy Data Entry'!M63,'Energy Data Entry'!R63,'Energy Data Entry'!W63)=0,"",SUM('Energy Data Entry'!C63,'Energy Data Entry'!H63,'Energy Data Entry'!M63,'Energy Data Entry'!R63,'Energy Data Entry'!W63)) -> 173426 | H42: ='Energy Data Entry'!AG63 -> 0 | I42: =IF(Table4[[#This Row],[Electric kWh usage]]="","",Table4[[#This Row],[Gas kWh usage]]+Table4[[#This Row],[Electric kWh usage]]) -> 173426 | J42: =IF(OR(Table4[[#This Row],[Electric kWh usage]]="",Table4[[#This Row],[Monthly Flow]]=""),"",(Table4[[#This Row],[Electric kWh usage]]+Table4[[#This Row],[Gas kWh usage]])/Table4[[#This Row],[Monthly Flow]]) -> 2603.993994 | K42: =IFERROR(IF(Table4[[#This Row],[Electric kWh usage]]="","",(Table4[[#This Row],[Electric kWh usage]]+Table4[[#This Row],[Gas kWh usage]])/Table4[[#This Row],[Total BOD removed]]),"") -> 1.622392807 | L42: =IF('Energy Data Entry'!E63+'Energy Data Entry'!J63+'Energy Data Entry'!O63+'Energy Data Entry'!T63+'Energy Data Entry'!Y63=0,"",'Energy Data Entry'!E63+'Energy Data Entry'!J63+'Energy Data Entry'!O63+'Energy Data Entry'!T63+'Energy Data Entry'!Y63) -> 283 | M42: =IF('Energy Data Entry'!F63+'Energy Data Entry'!K63+'Energy Data Entry'!P63++'Energy Data Entry'!U63+'Energy Data Entry'!Z63=0,"",'Energy Data Entry'!F63+'Energy Data Entry'!K63+'Energy Data Entry'!P63++'Energy Data Entry'!U63+'Energy Data Entry'!Z63) -> 283 | N42: =IF('Energy Data Entry'!G63+'Energy Data Entry'!L63+'Energy Data Entry'!Q63+'Energy Data Entry'!V63+'Energy Data Entry'!AA63=0,"",'Energy Data Entry'!G63+'Energy Data Entry'!L63+'Energy Data Entry'!Q63+'Energy Data Entry'!V63+'Energy Data Entry'!AA63) -> 3254.5 | O42: =IF('Energy Data Entry'!D63+'Energy Data Entry'!I63+'Energy Data Entry'!N63+'Energy Data Entry'!S63+'Energy Data Entry'!X63=0,"",'Energy Data Entry'!D63+'Energy Data Entry'!I63+'Energy Data Entry'!N63+'Energy Data Entry'!S63+'Energy Data Entry'!X63) -> 14527.19 | P42: ='Energy Data Entry'!AF63 -> 0 | Q42: =IFERROR(Table4[[#This Row],[Total electric cost]]/Table4[[#This Row],[Electric kWh usage]],"") -> 0.08376592898 | R42: =IFERROR(Table4[[#This Row],[Electric Demand Cost]]/Table4[[#This Row],[Total Electric Demand (Billed)]],IFERROR(Table4[[#This Row],[Electric Demand Cost]]/Table4[[#This Row],[Total Electric Demand (Actual)]],"")) -> 11.5 | S42: =IFERROR(Table4[[#This Row],[Total Gas cost]]+Table4[[#This Row],[Total electric cost]],"") -> 14527.19 | U42: =IFERROR(Table4[[#This Row],[Total Energy Cost]]/Table4[[#This Row],[Monthly Flow]],"") -> 218.125976 | V42: =IFERROR(Table4[[#This Row],[Total Energy Cost]]/Table4[[#This Row],[Total BOD removed]],"") -> 0.1359012406 | X42: =IF('Process Data Entry'!G44="","",'Process Data Entry'!G44) -> 35 | Y42: =IF('Process Data Entry'!H44="","",'Process Data Entry'!H44) -> 16 | Z42: =IF('Process Data Entry'!I44="",0,'Process Data Entry'!I44) -> 0 | AA42: =IF('Process Data Entry'!J44="","",'Process Data Entry'!J44) -> 2.9 | AB42: =IF('Process Data Entry'!K44="","",'Process Data Entry'!K44) -> 1.1 | AC42: =IF('Process Data Entry'!L44="","",'Process Data Entry'!L44) -> 10.3 | AD42: 21.8 | AE42: 12108.6792 | AF42: =IF('Process Data Entry'!M44="","",'Process Data Entry'!M44) -> 8.4 | AG42: =IF('Process Data Entry'!N44="","",'Process Data Entry'!N44) -> 1.2 | AH42: 3999.1968
A43: 4 | B43: ='Energy Data Entry'!B64 -> 2018-10-01 | C43: =IF(OR('Process Data Entry'!C45="",'Process Data Entry'!C45=0),"",'Process Data Entry'!C45) -> 2.06 | D43: =IF(Table4[Avg Daily Flow]="","",_xlfn.DAYS(EOMONTH(B43,0),EOMONTH(B43,-1))*C43) -> 63.86 | E43: =IF('Process Data Entry'!F45="","",'Process Data Entry'!F45) -> 3175.79694 | F43: =IF(Table4[BOD removed]="","",Table4[BOD removed]*_xlfn.DAYS(EOMONTH(Table4[[#This Row],[Column2]],0),EOMONTH(Table4[[#This Row],[Column2]],-1))) -> 98449.70514 | G43: =IF(SUM('Energy Data Entry'!C64,'Energy Data Entry'!H64,'Energy Data Entry'!M64,'Energy Data Entry'!R64,'Energy Data Entry'!W64)=0,"",SUM('Energy Data Entry'!C64,'Energy Data Entry'!H64,'Energy Data Entry'!M64,'Energy Data Entry'!R64,'Energy Data Entry'!W64)) -> 146392 | H43: ='Energy Data Entry'!AG64 -> 0 | I43: =IF(Table4[[#This Row],[Electric kWh usage]]="","",Table4[[#This Row],[Gas kWh usage]]+Table4[[#This Row],[Electric kWh usage]]) -> 146392 | J43: =IF(OR(Table4[[#This Row],[Electric kWh usage]]="",Table4[[#This Row],[Monthly Flow]]=""),"",(Table4[[#This Row],[Electric kWh usage]]+Table4[[#This Row],[Gas kWh usage]])/Table4[[#This Row],[Monthly Flow]]) -> 2292.389602 | K43: =IFERROR(IF(Table4[[#This Row],[Electric kWh usage]]="","",(Table4[[#This Row],[Electric kWh usage]]+Table4[[#This Row],[Gas kWh usage]])/Table4[[#This Row],[Total BOD removed]]),"") -> 1.486972458 | L43: =IF('Energy Data Entry'!E64+'Energy Data Entry'!J64+'Energy Data Entry'!O64+'Energy Data Entry'!T64+'Energy Data Entry'!Y64=0,"",'Energy Data Entry'!E64+'Energy Data Entry'!J64+'Energy Data Entry'!O64+'Energy Data Entry'!T64+'Energy Data Entry'!Y64) -> 249 | M43: =IF('Energy Data Entry'!F64+'Energy Data Entry'!K64+'Energy Data Entry'!P64++'Energy Data Entry'!U64+'Energy Data Entry'!Z64=0,"",'Energy Data Entry'!F64+'Energy Data Entry'!K64+'Energy Data Entry'!P64++'Energy Data Entry'!U64+'Energy Data Entry'!Z64) -> 249 | N43: =IF('Energy Data Entry'!G64+'Energy Data Entry'!L64+'Energy Data Entry'!Q64+'Energy Data Entry'!V64+'Energy Data Entry'!AA64=0,"",'Energy Data Entry'!G64+'Energy Data Entry'!L64+'Energy Data Entry'!Q64+'Energy Data Entry'!V64+'Energy Data Entry'!AA64) -> 2863.5 | O43: =IF('Energy Data Entry'!D64+'Energy Data Entry'!I64+'Energy Data Entry'!N64+'Energy Data Entry'!S64+'Energy Data Entry'!X64=0,"",'Energy Data Entry'!D64+'Energy Data Entry'!I64+'Energy Data Entry'!N64+'Energy Data Entry'!S64+'Energy Data Entry'!X64) -> 12378.98 | P43: ='Energy Data Entry'!AF64 -> 0 | Q43: =IFERROR(Table4[[#This Row],[Total electric cost]]/Table4[[#This Row],[Electric kWh usage]],"") -> 0.08456049511 | R43: =IFERROR(Table4[[#This Row],[Electric Demand Cost]]/Table4[[#This Row],[Total Electric Demand (Billed)]],IFERROR(Table4[[#This Row],[Electric Demand Cost]]/Table4[[#This Row],[Total Electric Demand (Actual)]],"")) -> 11.5 | S43: =IFERROR(Table4[[#This Row],[Total Gas cost]]+Table4[[#This Row],[Total electric cost]],"") -> 12378.98 | U43: =IFERROR(Table4[[#This Row],[Total Energy Cost]]/Table4[[#This Row],[Monthly Flow]],"") -> 193.8455997 | V43: =IFERROR(Table4[[#This Row],[Total Energy Cost]]/Table4[[#This Row],[Total BOD removed]],"") -> 0.1257391272 | X43: =IF('Process Data Entry'!G45="","",'Process Data Entry'!G45) -> 38 | Y43: =IF('Process Data Entry'!H45="","",'Process Data Entry'!H45) -> 17 | Z43: =IF('Process Data Entry'!I45="",0,'Process Data Entry'!I45) -> 0 | AA43: =IF('Process Data Entry'!J45="","",'Process Data Entry'!J45) -> 3.2 | AB43: =IF('Process Data Entry'!K45="","",'Process Data Entry'!K45) -> 1.6 | AC43: =IF('Process Data Entry'!L45="","",'Process Data Entry'!L45) -> 11.6 | AD43: 23.2 | AE43: 12356.14368 | AF43: =IF('Process Data Entry'!M45="","",'Process Data Entry'!M45) -> 7.4 | AG43: =IF('Process Data Entry'!N45="","",'Process Data Entry'!N45) -> 0.6 | AH43: 3621.62832
A44: 4 | B44: ='Energy Data Entry'!B65 -> 2018-11-01 | C44: =IF(OR('Process Data Entry'!C46="",'Process Data Entry'!C46=0),"",'Process Data Entry'!C46) -> 1.9 | D44: =IF(Table4[Avg Daily Flow]="","",_xlfn.DAYS(EOMONTH(B44,0),EOMONTH(B44,-1))*C44) -> 57 | E44: =IF('Process Data Entry'!F46="","",'Process Data Entry'!F46) -> 3172.3692 | F44: =IF(Table4[BOD removed]="","",Table4[BOD removed]*_xlfn.DAYS(EOMONTH(Table4[[#This Row],[Column2]],0),EOMONTH(Table4[[#This Row],[Column2]],-1))) -> 95171.076 | G44: =IF(SUM('Energy Data Entry'!C65,'Energy Data Entry'!H65,'Energy Data Entry'!M65,'Energy Data Entry'!R65,'Energy Data Entry'!W65)=0,"",SUM('Energy Data Entry'!C65,'Energy Data Entry'!H65,'Energy Data Entry'!M65,'Energy Data Entry'!R65,'Energy Data Entry'!W65)) -> 141007 | H44: ='Energy Data Entry'!AG65 -> 0 | I44: =IF(Table4[[#This Row],[Electric kWh usage]]="","",Table4[[#This Row],[Gas kWh usage]]+Table4[[#This Row],[Electric kWh usage]]) -> 141007 | J44: =IF(OR(Table4[[#This Row],[Electric kWh usage]]="",Table4[[#This Row],[Monthly Flow]]=""),"",(Table4[[#This Row],[Electric kWh usage]]+Table4[[#This Row],[Gas kWh usage]])/Table4[[#This Row],[Monthly Flow]]) -> 2473.807018 | K44: =IFERROR(IF(Table4[[#This Row],[Electric kWh usage]]="","",(Table4[[#This Row],[Electric kWh usage]]+Table4[[#This Row],[Gas kWh usage]])/Table4[[#This Row],[Total BOD removed]]),"") -> 1.481616116 | L44: =IF('Energy Data Entry'!E65+'Energy Data Entry'!J65+'Energy Data Entry'!O65+'Energy Data Entry'!T65+'Energy Data Entry'!Y65=0,"",'Energy Data Entry'!E65+'Energy Data Entry'!J65+'Energy Data Entry'!O65+'Energy Data Entry'!T65+'Energy Data Entry'!Y65) -> 237 | M44: =IF('Energy Data Entry'!F65+'Energy Data Entry'!K65+'Energy Data Entry'!P65++'Energy Data Entry'!U65+'Energy Data Entry'!Z65=0,"",'Energy Data Entry'!F65+'Energy Data Entry'!K65+'Energy Data Entry'!P65++'Energy Data Entry'!U65+'Energy Data Entry'!Z65) -> 246 | N44: =IF('Energy Data Entry'!G65+'Energy Data Entry'!L65+'Energy Data Entry'!Q65+'Energy Data Entry'!V65+'Energy Data Entry'!AA65=0,"",'Energy Data Entry'!G65+'Energy Data Entry'!L65+'Energy Data Entry'!Q65+'Energy Data Entry'!V65+'Energy Data Entry'!AA65) -> 2829 | O44: =IF('Energy Data Entry'!D65+'Energy Data Entry'!I65+'Energy Data Entry'!N65+'Energy Data Entry'!S65+'Energy Data Entry'!X65=0,"",'Energy Data Entry'!D65+'Energy Data Entry'!I65+'Energy Data Entry'!N65+'Energy Data Entry'!S65+'Energy Data Entry'!X65) -> 11994.455 | P44: ='Energy Data Entry'!AF65 -> 0 | Q44: =IFERROR(Table4[[#This Row],[Total electric cost]]/Table4[[#This Row],[Electric kWh usage]],"") -> 0.08506283376 | R44: =IFERROR(Table4[[#This Row],[Electric Demand Cost]]/Table4[[#This Row],[Total Electric Demand (Billed)]],IFERROR(Table4[[#This Row],[Electric Demand Cost]]/Table4[[#This Row],[Total Electric Demand (Actual)]],"")) -> 11.5 | S44: =IFERROR(Table4[[#This Row],[Total Gas cost]]+Table4[[#This Row],[Total electric cost]],"") -> 11994.455 | U44: =IFERROR(Table4[[#This Row],[Total Energy Cost]]/Table4[[#This Row],[Monthly Flow]],"") -> 210.4290351 | V44: =IFERROR(Table4[[#This Row],[Total Energy Cost]]/Table4[[#This Row],[Total BOD removed]],"") -> 0.1260304654 | X44: =IF('Process Data Entry'!G46="","",'Process Data Entry'!G46) -> 32 | Y44: =IF('Process Data Entry'!H46="","",'Process Data Entry'!H46) -> 16 | Z44: =IF('Process Data Entry'!I46="",0,'Process Data Entry'!I46) -> 0 | AA44: =IF('Process Data Entry'!J46="","",'Process Data Entry'!J46) -> 3.3 | AB44: =IF('Process Data Entry'!K46="","",'Process Data Entry'!K46) -> 1.1 | AC44: =IF('Process Data Entry'!L46="","",'Process Data Entry'!L46) -> 8.6 | AD44: 20.1 | AE44: 9555.138 | AF44: =IF('Process Data Entry'!M46="","",'Process Data Entry'!M46) -> 7.6 | AG44: =IF('Process Data Entry'!N46="","",'Process Data Entry'!N46) -> 1.2 | AH44: 3042.432
A45: 4 | B45: ='Energy Data Entry'!B66 -> 2018-12-01 | C45: =IF(OR('Process Data Entry'!C47="",'Process Data Entry'!C47=0),"",'Process Data Entry'!C47) -> 2.5 | D45: =IF(Table4[Avg Daily Flow]="","",_xlfn.DAYS(EOMONTH(B45,0),EOMONTH(B45,-1))*C45) -> 77.5 | E45: =IF('Process Data Entry'!F47="","",'Process Data Entry'!F47) -> 4348.2675 | F45: =IF(Table4[BOD removed]="","",Table4[BOD removed]*_xlfn.DAYS(EOMONTH(Table4[[#This Row],[Column2]],0),EOMONTH(Table4[[#This Row],[Column2]],-1))) -> 134796.2925 | G45: =IF(SUM('Energy Data Entry'!C66,'Energy Data Entry'!H66,'Energy Data Entry'!M66,'Energy Data Entry'!R66,'Energy Data Entry'!W66)=0,"",SUM('Energy Data Entry'!C66,'Energy Data Entry'!H66,'Energy Data Entry'!M66,'Energy Data Entry'!R66,'Energy Data Entry'!W66)) -> 218736 | H45: ='Energy Data Entry'!AG66 -> 0 | I45: =IF(Table4[[#This Row],[Electric kWh usage]]="","",Table4[[#This Row],[Gas kWh usage]]+Table4[[#This Row],[Electric kWh usage]]) -> 218736 | J45: =IF(OR(Table4[[#This Row],[Electric kWh usage]]="",Table4[[#This Row],[Monthly Flow]]=""),"",(Table4[[#This Row],[Electric kWh usage]]+Table4[[#This Row],[Gas kWh usage]])/Table4[[#This Row],[Monthly Flow]]) -> 2822.4 | K45: =IFERROR(IF(Table4[[#This Row],[Electric kWh usage]]="","",(Table4[[#This Row],[Electric kWh usage]]+Table4[[#This Row],[Gas kWh usage]])/Table4[[#This Row],[Total BOD removed]]),"") -> 1.622715254 | L45: =IF('Energy Data Entry'!E66+'Energy Data Entry'!J66+'Energy Data Entry'!O66+'Energy Data Entry'!T66+'Energy Data Entry'!Y66=0,"",'Energy Data Entry'!E66+'Energy Data Entry'!J66+'Energy Data Entry'!O66+'Energy Data Entry'!T66+'Energy Data Entry'!Y66) -> 364 | M45: =IF('Energy Data Entry'!F66+'Energy Data Entry'!K66+'Energy Data Entry'!P66++'Energy Data Entry'!U66+'Energy Data Entry'!Z66=0,"",'Energy Data Entry'!F66+'Energy Data Entry'!K66+'Energy Data Entry'!P66++'Energy Data Entry'!U66+'Energy Data Entry'!Z66) -> 364 | N45: =IF('Energy Data Entry'!G66+'Energy Data Entry'!L66+'Energy Data Entry'!Q66+'Energy Data Entry'!V66+'Energy Data Entry'!AA66=0,"",'Energy Data Entry'!G66+'Energy Data Entry'!L66+'Energy Data Entry'!Q66+'Energy Data Entry'!V66+'Energy Data Entry'!AA66) -> 4186 | O45: =IF('Energy Data Entry'!D66+'Energy Data Entry'!I66+'Energy Data Entry'!N66+'Energy Data Entry'!S66+'Energy Data Entry'!X66=0,"",'Energy Data Entry'!D66+'Energy Data Entry'!I66+'Energy Data Entry'!N66+'Energy Data Entry'!S66+'Energy Data Entry'!X66) -> 18403.84 | P45: ='Energy Data Entry'!AF66 -> 0 | Q45: =IFERROR(Table4[[#This Row],[Total electric cost]]/Table4[[#This Row],[Electric kWh usage]],"") -> 0.08413722478 | R45: =IFERROR(Table4[[#This Row],[Electric Demand Cost]]/Table4[[#This Row],[Total Electric Demand (Billed)]],IFERROR(Table4[[#This Row],[Electric Demand Cost]]/Table4[[#This Row],[Total Electric Demand (Actual)]],"")) -> 11.5 | S45: =IFERROR(Table4[[#This Row],[Total Gas cost]]+Table4[[#This Row],[Total electric cost]],"") -> 18403.84 | U45: =IFERROR(Table4[[#This Row],[Total Energy Cost]]/Table4[[#This Row],[Monthly Flow]],"") -> 237.4689032 | V45: =IFERROR(Table4[[#This Row],[Total Energy Cost]]/Table4[[#This Row],[Total BOD removed]],"") -> 0.1365307581 | X45: =IF('Process Data Entry'!G47="","",'Process Data Entry'!G47) -> 31 | Y45: =IF('Process Data Entry'!H47="","",'Process Data Entry'!H47) -> 12 | Z45: =IF('Process Data Entry'!I47="",0,'Process Data Entry'!I47) -> 0 | AA45: =IF('Process Data Entry'!J47="","",'Process Data Entry'!J47) -> 3.3 | AB45: =IF('Process Data Entry'!K47="","",'Process Data Entry'!K47) -> 1.5 | AC45: =IF('Process Data Entry'!L47="","",'Process Data Entry'!L47) -> 11.5 | AD45: 16.2 | AE45: 10470.87 | AF45: =IF('Process Data Entry'!M47="","",'Process Data Entry'!M47) -> 8.7 | AG45: =IF('Process Data Entry'!N47="","",'Process Data Entry'!N47) -> 1.5 | AH45: 4653.72
A46: 4 | B46: ='Energy Data Entry'!B67 -> 2019-01-01 | C46: =IF(OR('Process Data Entry'!C48="",'Process Data Entry'!C48=0),"",'Process Data Entry'!C48) -> 1.6 | D46: =IF(Table4[Avg Daily Flow]="","",_xlfn.DAYS(EOMONTH(B46,0),EOMONTH(B46,-1))*C46) -> 49.6 | E46: =IF('Process Data Entry'!F48="","",'Process Data Entry'!F48) -> 2614.0896 | F46: =IF(Table4[BOD removed]="","",Table4[BOD removed]*_xlfn.DAYS(EOMONTH(Table4[[#This Row],[Column2]],0),EOMONTH(Table4[[#This Row],[Column2]],-1))) -> 81036.7776 | G46: =IF(SUM('Energy Data Entry'!C67,'Energy Data Entry'!H67,'Energy Data Entry'!M67,'Energy Data Entry'!R67,'Energy Data Entry'!W67)=0,"",SUM('Energy Data Entry'!C67,'Energy Data Entry'!H67,'Energy Data Entry'!M67,'Energy Data Entry'!R67,'Energy Data Entry'!W67)) -> 126444 | H46: ='Energy Data Entry'!AG67 -> 0 | I46: =IF(Table4[[#This Row],[Electric kWh usage]]="","",Table4[[#This Row],[Gas kWh usage]]+Table4[[#This Row],[Electric kWh usage]]) -> 126444 | J46: =IF(OR(Table4[[#This Row],[Electric kWh usage]]="",Table4[[#This Row],[Monthly Flow]]=""),"",(Table4[[#This Row],[Electric kWh usage]]+Table4[[#This Row],[Gas kWh usage]])/Table4[[#This Row],[Monthly Flow]]) -> 2549.274194 | K46: =IFERROR(IF(Table4[[#This Row],[Electric kWh usage]]="","",(Table4[[#This Row],[Electric kWh usage]]+Table4[[#This Row],[Gas kWh usage]])/Table4[[#This Row],[Total BOD removed]]),"") -> 1.560328579 | L46: =IF('Energy Data Entry'!E67+'Energy Data Entry'!J67+'Energy Data Entry'!O67+'Energy Data Entry'!T67+'Energy Data Entry'!Y67=0,"",'Energy Data Entry'!E67+'Energy Data Entry'!J67+'Energy Data Entry'!O67+'Energy Data Entry'!T67+'Energy Data Entry'!Y67) -> 245 | M46: =IF('Energy Data Entry'!F67+'Energy Data Entry'!K67+'Energy Data Entry'!P67++'Energy Data Entry'!U67+'Energy Data Entry'!Z67=0,"",'Energy Data Entry'!F67+'Energy Data Entry'!K67+'Energy Data Entry'!P67++'Energy Data Entry'!U67+'Energy Data Entry'!Z67) -> 255 | N46: =IF('Energy Data Entry'!G67+'Energy Data Entry'!L67+'Energy Data Entry'!Q67+'Energy Data Entry'!V67+'Energy Data Entry'!AA67=0,"",'Energy Data Entry'!G67+'Energy Data Entry'!L67+'Energy Data Entry'!Q67+'Energy Data Entry'!V67+'Energy Data Entry'!AA67) -> 2932.5 | O46: =IF('Energy Data Entry'!D67+'Energy Data Entry'!I67+'Energy Data Entry'!N67+'Energy Data Entry'!S67+'Energy Data Entry'!X67=0,"",'Energy Data Entry'!D67+'Energy Data Entry'!I67+'Energy Data Entry'!N67+'Energy Data Entry'!S67+'Energy Data Entry'!X67) -> 11151.36 | P46: ='Energy Data Entry'!AF67 -> 0 | Q46: =IFERROR(Table4[[#This Row],[Total electric cost]]/Table4[[#This Row],[Electric kWh usage]],"") -> 0.08819208503 | R46: =IFERROR(Table4[[#This Row],[Electric Demand Cost]]/Table4[[#This Row],[Total Electric Demand (Billed)]],IFERROR(Table4[[#This Row],[Electric Demand Cost]]/Table4[[#This Row],[Total Electric Demand (Actual)]],"")) -> 11.5 | S46: =IFERROR(Table4[[#This Row],[Total Gas cost]]+Table4[[#This Row],[Total electric cost]],"") -> 11151.36 | U46: =IFERROR(Table4[[#This Row],[Total Energy Cost]]/Table4[[#This Row],[Monthly Flow]],"") -> 224.8258065 | V46: =IFERROR(Table4[[#This Row],[Total Energy Cost]]/Table4[[#This Row],[Total BOD removed]],"") -> 0.1376086307 | X46: =IF('Process Data Entry'!G48="","",'Process Data Entry'!G48) -> 37 | Y46: =IF('Process Data Entry'!H48="","",'Process Data Entry'!H48) -> 16 | Z46: =IF('Process Data Entry'!I48="",0,'Process Data Entry'!I48) -> 0 | AA46: =IF('Process Data Entry'!J48="","",'Process Data Entry'!J48) -> 3 | AB46: =IF('Process Data Entry'!K48="","",'Process Data Entry'!K48) -> 0.8 | AC46: =IF('Process Data Entry'!L48="","",'Process Data Entry'!L48) -> 9.5 | AD46: 24.5 | AE46: 10134.768 | AF46: =IF('Process Data Entry'!M48="","",'Process Data Entry'!M48) -> 9.5 | AG46: =IF('Process Data Entry'!N48="","",'Process Data Entry'!N48) -> 0.8 | AH46: 3598.8768
A47: 4 | B47: ='Energy Data Entry'!B68 -> 2019-02-01 | C47: =IF(OR('Process Data Entry'!C49="",'Process Data Entry'!C49=0),"",'Process Data Entry'!C49) -> 1.64 | D47: =IF(Table4[Avg Daily Flow]="","",_xlfn.DAYS(EOMONTH(B47,0),EOMONTH(B47,-1))*C47) -> 45.92 | E47: =IF('Process Data Entry'!F49="","",'Process Data Entry'!F49) -> 1909.39296 | F47: =IF(Table4[BOD removed]="","",Table4[BOD removed]*_xlfn.DAYS(EOMONTH(Table4[[#This Row],[Column2]],0),EOMONTH(Table4[[#This Row],[Column2]],-1))) -> 53463.00288 | G47: =IF(SUM('Energy Data Entry'!C68,'Energy Data Entry'!H68,'Energy Data Entry'!M68,'Energy Data Entry'!R68,'Energy Data Entry'!W68)=0,"",SUM('Energy Data Entry'!C68,'Energy Data Entry'!H68,'Energy Data Entry'!M68,'Energy Data Entry'!R68,'Energy Data Entry'!W68)) -> 143491 | H47: ='Energy Data Entry'!AG68 -> 0 | I47: =IF(Table4[[#This Row],[Electric kWh usage]]="","",Table4[[#This Row],[Gas kWh usage]]+Table4[[#This Row],[Electric kWh usage]]) -> 143491 | J47: =IF(OR(Table4[[#This Row],[Electric kWh usage]]="",Table4[[#This Row],[Monthly Flow]]=""),"",(Table4[[#This Row],[Electric kWh usage]]+Table4[[#This Row],[Gas kWh usage]])/Table4[[#This Row],[Monthly Flow]]) -> 3124.804007 | K47: =IFERROR(IF(Table4[[#This Row],[Electric kWh usage]]="","",(Table4[[#This Row],[Electric kWh usage]]+Table4[[#This Row],[Gas kWh usage]])/Table4[[#This Row],[Total BOD removed]]),"") -> 2.683930798 | L47: =IF('Energy Data Entry'!E68+'Energy Data Entry'!J68+'Energy Data Entry'!O68+'Energy Data Entry'!T68+'Energy Data Entry'!Y68=0,"",'Energy Data Entry'!E68+'Energy Data Entry'!J68+'Energy Data Entry'!O68+'Energy Data Entry'!T68+'Energy Data Entry'!Y68) -> 254 | M47: =IF('Energy Data Entry'!F68+'Energy Data Entry'!K68+'Energy Data Entry'!P68++'Energy Data Entry'!U68+'Energy Data Entry'!Z68=0,"",'Energy Data Entry'!F68+'Energy Data Entry'!K68+'Energy Data Entry'!P68++'Energy Data Entry'!U68+'Energy Data Entry'!Z68) -> 255 | N47: =IF('Energy Data Entry'!G68+'Energy Data Entry'!L68+'Energy Data Entry'!Q68+'Energy Data Entry'!V68+'Energy Data Entry'!AA68=0,"",'Energy Data Entry'!G68+'Energy Data Entry'!L68+'Energy Data Entry'!Q68+'Energy Data Entry'!V68+'Energy Data Entry'!AA68) -> 2932.5 | O47: =IF('Energy Data Entry'!D68+'Energy Data Entry'!I68+'Energy Data Entry'!N68+'Energy Data Entry'!S68+'Energy Data Entry'!X68=0,"",'Energy Data Entry'!D68+'Energy Data Entry'!I68+'Energy Data Entry'!N68+'Energy Data Entry'!S68+'Energy Data Entry'!X68) -> 12259.415 | P47: ='Energy Data Entry'!AF68 -> 0 | Q47: =IFERROR(Table4[[#This Row],[Total electric cost]]/Table4[[#This Row],[Electric kWh usage]],"") -> 0.08543682182 | R47: =IFERROR(Table4[[#This Row],[Electric Demand Cost]]/Table4[[#This Row],[Total Electric Demand (Billed)]],IFERROR(Table4[[#This Row],[Electric Demand Cost]]/Table4[[#This Row],[Total Electric Demand (Actual)]],"")) -> 11.5 | S47: =IFERROR(Table4[[#This Row],[Total Gas cost]]+Table4[[#This Row],[Total electric cost]],"") -> 12259.415 | U47: =IFERROR(Table4[[#This Row],[Total Energy Cost]]/Table4[[#This Row],[Monthly Flow]],"") -> 266.9733232 | V47: =IFERROR(Table4[[#This Row],[Total Energy Cost]]/Table4[[#This Row],[Total BOD removed]],"") -> 0.2293065174 | X47: =IF('Process Data Entry'!G49="","",'Process Data Entry'!G49) -> 35 | Y47: =IF('Process Data Entry'!H49="","",'Process Data Entry'!H49) -> 11 | Z47: =IF('Process Data Entry'!I49="",0,'Process Data Entry'!I49) -> 0 | AA47: =IF('Process Data Entry'!J49="","",'Process Data Entry'!J49) -> 2.7 | AB47: =IF('Process Data Entry'!K49="","",'Process Data Entry'!K49) -> 1.1 | AC47: =IF('Process Data Entry'!L49="","",'Process Data Entry'!L49) -> 11.4 | AD47: 20.9 | AE47: 8004.13152 | AF47: =IF('Process Data Entry'!M49="","",'Process Data Entry'!M49) -> 6.8 | AG47: =IF('Process Data Entry'!N49="","",'Process Data Entry'!N49) -> 1.5 | AH47: 2029.75584
A48: 4 | B48: ='Energy Data Entry'!B69 -> 2019-03-01 | C48: =IF(OR('Process Data Entry'!C50="",'Process Data Entry'!C50=0),"",'Process Data Entry'!C50) -> 2.44 | D48: =IF(Table4[Avg Daily Flow]="","",_xlfn.DAYS(EOMONTH(B48,0),EOMONTH(B48,-1))*C48) -> 75.64 | E48: =IF('Process Data Entry'!F50="","",'Process Data Entry'!F50) -> 3632.4036 | F48: =IF(Table4[BOD removed]="","",Table4[BOD removed]*_xlfn.DAYS(EOMONTH(Table4[[#This Row],[Column2]],0),EOMONTH(Table4[[#This Row],[Column2]],-1))) -> 112604.5116 | G48: =IF(SUM('Energy Data Entry'!C69,'Energy Data Entry'!H69,'Energy Data Entry'!M69,'Energy Data Entry'!R69,'Energy Data Entry'!W69)=0,"",SUM('Energy Data Entry'!C69,'Energy Data Entry'!H69,'Energy Data Entry'!M69,'Energy Data Entry'!R69,'Energy Data Entry'!W69)) -> 173396 | H48: ='Energy Data Entry'!AG69 -> 0 | I48: =IF(Table4[[#This Row],[Electric kWh usage]]="","",Table4[[#This Row],[Gas kWh usage]]+Table4[[#This Row],[Electric kWh usage]]) -> 173396 | J48: =IF(OR(Table4[[#This Row],[Electric kWh usage]]="",Table4[[#This Row],[Monthly Flow]]=""),"",(Table4[[#This Row],[Electric kWh usage]]+Table4[[#This Row],[Gas kWh usage]])/Table4[[#This Row],[Monthly Flow]]) -> 2292.384981 | K48: =IFERROR(IF(Table4[[#This Row],[Electric kWh usage]]="","",(Table4[[#This Row],[Electric kWh usage]]+Table4[[#This Row],[Gas kWh usage]])/Table4[[#This Row],[Total BOD removed]]),"") -> 1.539867253 | L48: =IF('Energy Data Entry'!E69+'Energy Data Entry'!J69+'Energy Data Entry'!O69+'Energy Data Entry'!T69+'Energy Data Entry'!Y69=0,"",'Energy Data Entry'!E69+'Energy Data Entry'!J69+'Energy Data Entry'!O69+'Energy Data Entry'!T69+'Energy Data Entry'!Y69) -> 317 | M48: =IF('Energy Data Entry'!F69+'Energy Data Entry'!K69+'Energy Data Entry'!P69++'Energy Data Entry'!U69+'Energy Data Entry'!Z69=0,"",'Energy Data Entry'!F69+'Energy Data Entry'!K69+'Energy Data Entry'!P69++'Energy Data Entry'!U69+'Energy Data Entry'!Z69) -> 317 | N48: =IF('Energy Data Entry'!G69+'Energy Data Entry'!L69+'Energy Data Entry'!Q69+'Energy Data Entry'!V69+'Energy Data Entry'!AA69=0,"",'Energy Data Entry'!G69+'Energy Data Entry'!L69+'Energy Data Entry'!Q69+'Energy Data Entry'!V69+'Energy Data Entry'!AA69) -> 3645.5 | O48: =IF('Energy Data Entry'!D69+'Energy Data Entry'!I69+'Energy Data Entry'!N69+'Energy Data Entry'!S69+'Energy Data Entry'!X69=0,"",'Energy Data Entry'!D69+'Energy Data Entry'!I69+'Energy Data Entry'!N69+'Energy Data Entry'!S69+'Energy Data Entry'!X69) -> 14916.24 | P48: ='Energy Data Entry'!AF69 -> 0 | Q48: =IFERROR(Table4[[#This Row],[Total electric cost]]/Table4[[#This Row],[Electric kWh usage]],"") -> 0.08602412974 | R48: =IFERROR(Table4[[#This Row],[Electric Demand Cost]]/Table4[[#This Row],[Total Electric Demand (Billed)]],IFERROR(Table4[[#This Row],[Electric Demand Cost]]/Table4[[#This Row],[Total Electric Demand (Actual)]],"")) -> 11.5 | S48: =IFERROR(Table4[[#This Row],[Total Gas cost]]+Table4[[#This Row],[Total electric cost]],"") -> 14916.24 | U48: =IFERROR(Table4[[#This Row],[Total Energy Cost]]/Table4[[#This Row],[Monthly Flow]],"") -> 197.2004231 | V48: =IFERROR(Table4[[#This Row],[Total Energy Cost]]/Table4[[#This Row],[Total BOD removed]],"") -> 0.1324657404 | X48: =IF('Process Data Entry'!G50="","",'Process Data Entry'!G50) -> 35 | Y48: =IF('Process Data Entry'!H50="","",'Process Data Entry'!H50) -> 17 | Z48: =IF('Process Data Entry'!I50="",0,'Process Data Entry'!I50) -> 0 | AA48: =IF('Process Data Entry'!J50="","",'Process Data Entry'!J50) -> 3.1 | AB48: =IF('Process Data Entry'!K50="","",'Process Data Entry'!K50) -> 1.4 | AC48: =IF('Process Data Entry'!L50="","",'Process Data Entry'!L50) -> 8.4 | AD48: 23.5 | AE48: 14824.6836 | AF48: =IF('Process Data Entry'!M50="","",'Process Data Entry'!M50) -> 8.2 | AG48: =IF('Process Data Entry'!N50="","",'Process Data Entry'!N50) -> 1.2 | AH48: 4415.8632
A49: 4 | B49: ='Energy Data Entry'!B70 -> 2019-04-01 | C49: =IF(OR('Process Data Entry'!C51="",'Process Data Entry'!C51=0),"",'Process Data Entry'!C51) -> 1.8 | D49: =IF(Table4[Avg Daily Flow]="","",_xlfn.DAYS(EOMONTH(B49,0),EOMONTH(B49,-1))*C49) -> 54 | E49: =IF('Process Data Entry'!F51="","",'Process Data Entry'!F51) -> 2074.6584 | F49: =IF(Table4[BOD removed]="","",Table4[BOD removed]*_xlfn.DAYS(EOMONTH(Table4[[#This Row],[Column2]],0),EOMONTH(Table4[[#This Row],[Column2]],-1))) -> 62239.752 | G49: =IF(SUM('Energy Data Entry'!C70,'Energy Data Entry'!H70,'Energy Data Entry'!M70,'Energy Data Entry'!R70,'Energy Data Entry'!W70)=0,"",SUM('Energy Data Entry'!C70,'Energy Data Entry'!H70,'Energy Data Entry'!M70,'Energy Data Entry'!R70,'Energy Data Entry'!W70)) -> 151865 | H49: ='Energy Data Entry'!AG70 -> 0 | I49: =IF(Table4[[#This Row],[Electric kWh usage]]="","",Table4[[#This Row],[Gas kWh usage]]+Table4[[#This Row],[Electric kWh usage]]) -> 151865 | J49: =IF(OR(Table4[[#This Row],[Electric kWh usage]]="",Table4[[#This Row],[Monthly Flow]]=""),"",(Table4[[#This Row],[Electric kWh usage]]+Table4[[#This Row],[Gas kWh usage]])/Table4[[#This Row],[Monthly Flow]]) -> 2812.314815 | K49: =IFERROR(IF(Table4[[#This Row],[Electric kWh usage]]="","",(Table4[[#This Row],[Electric kWh usage]]+Table4[[#This Row],[Gas kWh usage]])/Table4[[#This Row],[Total BOD removed]]),"") -> 2.440000082 | L49: =IF('Energy Data Entry'!E70+'Energy Data Entry'!J70+'Energy Data Entry'!O70+'Energy Data Entry'!T70+'Energy Data Entry'!Y70=0,"",'Energy Data Entry'!E70+'Energy Data Entry'!J70+'Energy Data Entry'!O70+'Energy Data Entry'!T70+'Energy Data Entry'!Y70) -> 266 | M49: =IF('Energy Data Entry'!F70+'Energy Data Entry'!K70+'Energy Data Entry'!P70++'Energy Data Entry'!U70+'Energy Data Entry'!Z70=0,"",'Energy Data Entry'!F70+'Energy Data Entry'!K70+'Energy Data Entry'!P70++'Energy Data Entry'!U70+'Energy Data Entry'!Z70) -> 266 | N49: =IF('Energy Data Entry'!G70+'Energy Data Entry'!L70+'Energy Data Entry'!Q70+'Energy Data Entry'!V70+'Energy Data Entry'!AA70=0,"",'Energy Data Entry'!G70+'Energy Data Entry'!L70+'Energy Data Entry'!Q70+'Energy Data Entry'!V70+'Energy Data Entry'!AA70) -> 3059 | O49: =IF('Energy Data Entry'!D70+'Energy Data Entry'!I70+'Energy Data Entry'!N70+'Energy Data Entry'!S70+'Energy Data Entry'!X70=0,"",'Energy Data Entry'!D70+'Energy Data Entry'!I70+'Energy Data Entry'!N70+'Energy Data Entry'!S70+'Energy Data Entry'!X70) -> 12930.225 | P49: ='Energy Data Entry'!AF70 -> 0 | Q49: =IFERROR(Table4[[#This Row],[Total electric cost]]/Table4[[#This Row],[Electric kWh usage]],"") -> 0.08514289007 | R49: =IFERROR(Table4[[#This Row],[Electric Demand Cost]]/Table4[[#This Row],[Total Electric Demand (Billed)]],IFERROR(Table4[[#This Row],[Electric Demand Cost]]/Table4[[#This Row],[Total Electric Demand (Actual)]],"")) -> 11.5 | S49: =IFERROR(Table4[[#This Row],[Total Gas cost]]+Table4[[#This Row],[Total electric cost]],"") -> 12930.225 | U49: =IFERROR(Table4[[#This Row],[Total Energy Cost]]/Table4[[#This Row],[Monthly Flow]],"") -> 239.4486111 | V49: =IFERROR(Table4[[#This Row],[Total Energy Cost]]/Table4[[#This Row],[Total BOD removed]],"") -> 0.2077486588 | X49: =IF('Process Data Entry'!G51="","",'Process Data Entry'!G51) -> 38 | Y49: =IF('Process Data Entry'!H51="","",'Process Data Entry'!H51) -> 14 | Z49: =IF('Process Data Entry'!I51="",0,'Process Data Entry'!I51) -> 0 | AA49: =IF('Process Data Entry'!J51="","",'Process Data Entry'!J51) -> 3.2 | AB49: =IF('Process Data Entry'!K51="","",'Process Data Entry'!K51) -> 1.3 | AC49: =IF('Process Data Entry'!L51="","",'Process Data Entry'!L51) -> 11.1 | AD49: 23.7 | AE49: 10673.532 | AF49: =IF('Process Data Entry'!M51="","",'Process Data Entry'!M51) -> 8.6 | AG49: =IF('Process Data Entry'!N51="","",'Process Data Entry'!N51) -> 1.4 | AH49: 3242.592
A50: 4 | B50: ='Energy Data Entry'!B71 -> 2019-05-01 | C50: =IF(OR('Process Data Entry'!C52="",'Process Data Entry'!C52=0),"",'Process Data Entry'!C52) -> 2.34 | D50: =IF(Table4[Avg Daily Flow]="","",_xlfn.DAYS(EOMONTH(B50,0),EOMONTH(B50,-1))*C50) -> 72.54 | E50: =IF('Process Data Entry'!F52="","",'Process Data Entry'!F52) -> 3559.64544 | F50: =IF(Table4[BOD removed]="","",Table4[BOD removed]*_xlfn.DAYS(EOMONTH(Table4[[#This Row],[Column2]],0),EOMONTH(Table4[[#This Row],[Column2]],-1))) -> 110349.0086 | G50: =IF(SUM('Energy Data Entry'!C71,'Energy Data Entry'!H71,'Energy Data Entry'!M71,'Energy Data Entry'!R71,'Energy Data Entry'!W71)=0,"",SUM('Energy Data Entry'!C71,'Energy Data Entry'!H71,'Energy Data Entry'!M71,'Energy Data Entry'!R71,'Energy Data Entry'!W71)) -> 175135 | H50: ='Energy Data Entry'!AG71 -> 0 | I50: =IF(Table4[[#This Row],[Electric kWh usage]]="","",Table4[[#This Row],[Gas kWh usage]]+Table4[[#This Row],[Electric kWh usage]]) -> 175135 | J50: =IF(OR(Table4[[#This Row],[Electric kWh usage]]="",Table4[[#This Row],[Monthly Flow]]=""),"",(Table4[[#This Row],[Electric kWh usage]]+Table4[[#This Row],[Gas kWh usage]])/Table4[[#This Row],[Monthly Flow]]) -> 2414.323132 | K50: =IFERROR(IF(Table4[[#This Row],[Electric kWh usage]]="","",(Table4[[#This Row],[Electric kWh usage]]+Table4[[#This Row],[Gas kWh usage]])/Table4[[#This Row],[Total BOD removed]]),"") -> 1.587100801 | L50: =IF('Energy Data Entry'!E71+'Energy Data Entry'!J71+'Energy Data Entry'!O71+'Energy Data Entry'!T71+'Energy Data Entry'!Y71=0,"",'Energy Data Entry'!E71+'Energy Data Entry'!J71+'Energy Data Entry'!O71+'Energy Data Entry'!T71+'Energy Data Entry'!Y71) -> 320 | M50: =IF('Energy Data Entry'!F71+'Energy Data Entry'!K71+'Energy Data Entry'!P71++'Energy Data Entry'!U71+'Energy Data Entry'!Z71=0,"",'Energy Data Entry'!F71+'Energy Data Entry'!K71+'Energy Data Entry'!P71++'Energy Data Entry'!U71+'Energy Data Entry'!Z71) -> 320 | N50: =IF('Energy Data Entry'!G71+'Energy Data Entry'!L71+'Energy Data Entry'!Q71+'Energy Data Entry'!V71+'Energy Data Entry'!AA71=0,"",'Energy Data Entry'!G71+'Energy Data Entry'!L71+'Energy Data Entry'!Q71+'Energy Data Entry'!V71+'Energy Data Entry'!AA71) -> 3680 | O50: =IF('Energy Data Entry'!D71+'Energy Data Entry'!I71+'Energy Data Entry'!N71+'Energy Data Entry'!S71+'Energy Data Entry'!X71=0,"",'Energy Data Entry'!D71+'Energy Data Entry'!I71+'Energy Data Entry'!N71+'Energy Data Entry'!S71+'Energy Data Entry'!X71) -> 15063.775 | P50: ='Energy Data Entry'!AF71 -> 0 | Q50: =IFERROR(Table4[[#This Row],[Total electric cost]]/Table4[[#This Row],[Electric kWh usage]],"") -> 0.08601236189 | R50: =IFERROR(Table4[[#This Row],[Electric Demand Cost]]/Table4[[#This Row],[Total Electric Demand (Billed)]],IFERROR(Table4[[#This Row],[Electric Demand Cost]]/Table4[[#This Row],[Total Electric Demand (Actual)]],"")) -> 11.5 | S50: =IFERROR(Table4[[#This Row],[Total Gas cost]]+Table4[[#This Row],[Total electric cost]],"") -> 15063.775 | U50: =IFERROR(Table4[[#This Row],[Total Energy Cost]]/Table4[[#This Row],[Monthly Flow]],"") -> 207.661635 | V50: =IFERROR(Table4[[#This Row],[Total Energy Cost]]/Table4[[#This Row],[Total BOD removed]],"") -> 0.1365102885 | X50: =IF('Process Data Entry'!G52="","",'Process Data Entry'!G52) -> 35 | Y50: =IF('Process Data Entry'!H52="","",'Process Data Entry'!H52) -> 17 | Z50: =IF('Process Data Entry'!I52="",0,'Process Data Entry'!I52) -> 0 | AA50: =IF('Process Data Entry'!J52="","",'Process Data Entry'!J52) -> 3 | AB50: =IF('Process Data Entry'!K52="","",'Process Data Entry'!K52) -> 1.3 | AC50: =IF('Process Data Entry'!L52="","",'Process Data Entry'!L52) -> 11.9 | AD50: 20.1 | AE50: 12160.17036 | AF50: =IF('Process Data Entry'!M52="","",'Process Data Entry'!M52) -> 7 | AG50: =IF('Process Data Entry'!N52="","",'Process Data Entry'!N52) -> 0.5 | AH50: 3932.3934
A51: 4 | B51: ='Energy Data Entry'!B72 -> 2019-06-01 | C51: =IF(OR('Process Data Entry'!C53="",'Process Data Entry'!C53=0),"",'Process Data Entry'!C53) -> 1.72 | D51: =IF(Table4[Avg Daily Flow]="","",_xlfn.DAYS(EOMONTH(B51,0),EOMONTH(B51,-1))*C51) -> 51.6 | E51: =IF('Process Data Entry'!F53="","",'Process Data Entry'!F53) -> 2353.26444 | F51: =IF(Table4[BOD removed]="","",Table4[BOD removed]*_xlfn.DAYS(EOMONTH(Table4[[#This Row],[Column2]],0),EOMONTH(Table4[[#This Row],[Column2]],-1))) -> 70597.9332 | G51: =IF(SUM('Energy Data Entry'!C72,'Energy Data Entry'!H72,'Energy Data Entry'!M72,'Energy Data Entry'!R72,'Energy Data Entry'!W72)=0,"",SUM('Energy Data Entry'!C72,'Energy Data Entry'!H72,'Energy Data Entry'!M72,'Energy Data Entry'!R72,'Energy Data Entry'!W72)) -> 130335 | H51: ='Energy Data Entry'!AG72 -> 0 | I51: =IF(Table4[[#This Row],[Electric kWh usage]]="","",Table4[[#This Row],[Gas kWh usage]]+Table4[[#This Row],[Electric kWh usage]]) -> 130335 | J51: =IF(OR(Table4[[#This Row],[Electric kWh usage]]="",Table4[[#This Row],[Monthly Flow]]=""),"",(Table4[[#This Row],[Electric kWh usage]]+Table4[[#This Row],[Gas kWh usage]])/Table4[[#This Row],[Monthly Flow]]) -> 2525.872093 | K51: =IFERROR(IF(Table4[[#This Row],[Electric kWh usage]]="","",(Table4[[#This Row],[Electric kWh usage]]+Table4[[#This Row],[Gas kWh usage]])/Table4[[#This Row],[Total BOD removed]]),"") -> 1.846158862 | L51: =IF('Energy Data Entry'!E72+'Energy Data Entry'!J72+'Energy Data Entry'!O72+'Energy Data Entry'!T72+'Energy Data Entry'!Y72=0,"",'Energy Data Entry'!E72+'Energy Data Entry'!J72+'Energy Data Entry'!O72+'Energy Data Entry'!T72+'Energy Data Entry'!Y72) -> 221 | M51: =IF('Energy Data Entry'!F72+'Energy Data Entry'!K72+'Energy Data Entry'!P72++'Energy Data Entry'!U72+'Energy Data Entry'!Z72=0,"",'Energy Data Entry'!F72+'Energy Data Entry'!K72+'Energy Data Entry'!P72++'Energy Data Entry'!U72+'Energy Data Entry'!Z72) -> 255 | N51: =IF('Energy Data Entry'!G72+'Energy Data Entry'!L72+'Energy Data Entry'!Q72+'Energy Data Entry'!V72+'Energy Data Entry'!AA72=0,"",'Energy Data Entry'!G72+'Energy Data Entry'!L72+'Energy Data Entry'!Q72+'Energy Data Entry'!V72+'Energy Data Entry'!AA72) -> 2932.5 | O51: =IF('Energy Data Entry'!D72+'Energy Data Entry'!I72+'Energy Data Entry'!N72+'Energy Data Entry'!S72+'Energy Data Entry'!X72=0,"",'Energy Data Entry'!D72+'Energy Data Entry'!I72+'Energy Data Entry'!N72+'Energy Data Entry'!S72+'Energy Data Entry'!X72) -> 11404.275 | P51: ='Energy Data Entry'!AF72 -> 0 | Q51: =IFERROR(Table4[[#This Row],[Total electric cost]]/Table4[[#This Row],[Electric kWh usage]],"") -> 0.08749971228 | R51: =IFERROR(Table4[[#This Row],[Electric Demand Cost]]/Table4[[#This Row],[Total Electric Demand (Billed)]],IFERROR(Table4[[#This Row],[Electric Demand Cost]]/Table4[[#This Row],[Total Electric Demand (Actual)]],"")) -> 11.5 | S51: =IFERROR(Table4[[#This Row],[Total Gas cost]]+Table4[[#This Row],[Total electric cost]],"") -> 11404.275 | U51: =IFERROR(Table4[[#This Row],[Total Energy Cost]]/Table4[[#This Row],[Monthly Flow]],"") -> 221.0130814 | V51: =IFERROR(Table4[[#This Row],[Total Energy Cost]]/Table4[[#This Row],[Total BOD removed]],"") -> 0.1615383692 | X51: =IF('Process Data Entry'!G53="","",'Process Data Entry'!G53) -> 39 | Y51: =IF('Process Data Entry'!H53="","",'Process Data Entry'!H53) -> 11 | Z51: =IF('Process Data Entry'!I53="",0,'Process Data Entry'!I53) -> 0 | AA51: =IF('Process Data Entry'!J53="","",'Process Data Entry'!J53) -> 3.2 | AB51: =IF('Process Data Entry'!K53="","",'Process Data Entry'!K53) -> 1.1 | AC51: =IF('Process Data Entry'!L53="","",'Process Data Entry'!L53) -> 8.6 | AD51: 27.2 | AE51: 11705.3568 | AF51: =IF('Process Data Entry'!M53="","",'Process Data Entry'!M53) -> 7.1 | AG51: =IF('Process Data Entry'!N53="","",'Process Data Entry'!N53) -> 1.2 | AH51: 2539.0296
A52: 5 | B52: ='Energy Data Entry'!B73 -> 2019-07-01 | C52: =IF(OR('Process Data Entry'!C54="",'Process Data Entry'!C54=0),"",'Process Data Entry'!C54) -> 2.36 | D52: =IF(Table4[Avg Daily Flow]="","",_xlfn.DAYS(EOMONTH(B52,0),EOMONTH(B52,-1))*C52) -> 73.16 | E52: =IF('Process Data Entry'!F54="","",'Process Data Entry'!F54) -> 2645.31456 | F52: =IF(Table4[BOD removed]="","",Table4[BOD removed]*_xlfn.DAYS(EOMONTH(Table4[[#This Row],[Column2]],0),EOMONTH(Table4[[#This Row],[Column2]],-1))) -> 82004.75136 | G52: =IF(SUM('Energy Data Entry'!C73,'Energy Data Entry'!H73,'Energy Data Entry'!M73,'Energy Data Entry'!R73,'Energy Data Entry'!W73)=0,"",SUM('Energy Data Entry'!C73,'Energy Data Entry'!H73,'Energy Data Entry'!M73,'Energy Data Entry'!R73,'Energy Data Entry'!W73)) -> 173301 | H52: ='Energy Data Entry'!AG73 -> 0 | I52: =IF(Table4[[#This Row],[Electric kWh usage]]="","",Table4[[#This Row],[Gas kWh usage]]+Table4[[#This Row],[Electric kWh usage]]) -> 173301 | J52: =IF(OR(Table4[[#This Row],[Electric kWh usage]]="",Table4[[#This Row],[Monthly Flow]]=""),"",(Table4[[#This Row],[Electric kWh usage]]+Table4[[#This Row],[Gas kWh usage]])/Table4[[#This Row],[Monthly Flow]]) -> 2368.794423 | K52: =IFERROR(IF(Table4[[#This Row],[Electric kWh usage]]="","",(Table4[[#This Row],[Electric kWh usage]]+Table4[[#This Row],[Gas kWh usage]])/Table4[[#This Row],[Total BOD removed]]),"") -> 2.113304377 | L52: =IF('Energy Data Entry'!E73+'Energy Data Entry'!J73+'Energy Data Entry'!O73+'Energy Data Entry'!T73+'Energy Data Entry'!Y73=0,"",'Energy Data Entry'!E73+'Energy Data Entry'!J73+'Energy Data Entry'!O73+'Energy Data Entry'!T73+'Energy Data Entry'!Y73) -> 297 | M52: =IF('Energy Data Entry'!F73+'Energy Data Entry'!K73+'Energy Data Entry'!P73++'Energy Data Entry'!U73+'Energy Data Entry'!Z73=0,"",'Energy Data Entry'!F73+'Energy Data Entry'!K73+'Energy Data Entry'!P73++'Energy Data Entry'!U73+'Energy Data Entry'!Z73) -> 297 | N52: =IF('Energy Data Entry'!G73+'Energy Data Entry'!L73+'Energy Data Entry'!Q73+'Energy Data Entry'!V73+'Energy Data Entry'!AA73=0,"",'Energy Data Entry'!G73+'Energy Data Entry'!L73+'Energy Data Entry'!Q73+'Energy Data Entry'!V73+'Energy Data Entry'!AA73) -> 3415.5 | O52: =IF('Energy Data Entry'!D73+'Energy Data Entry'!I73+'Energy Data Entry'!N73+'Energy Data Entry'!S73+'Energy Data Entry'!X73=0,"",'Energy Data Entry'!D73+'Energy Data Entry'!I73+'Energy Data Entry'!N73+'Energy Data Entry'!S73+'Energy Data Entry'!X73) -> 14680.065 | P52: ='Energy Data Entry'!AF73 -> 0 | Q52: =IFERROR(Table4[[#This Row],[Total electric cost]]/Table4[[#This Row],[Electric kWh usage]],"") -> 0.08470848408 | R52: =IFERROR(Table4[[#This Row],[Electric Demand Cost]]/Table4[[#This Row],[Total Electric Demand (Billed)]],IFERROR(Table4[[#This Row],[Electric Demand Cost]]/Table4[[#This Row],[Total Electric Demand (Actual)]],"")) -> 11.5 | S52: =IFERROR(Table4[[#This Row],[Total Gas cost]]+Table4[[#This Row],[Total electric cost]],"") -> 14680.065 | U52: =IFERROR(Table4[[#This Row],[Total Energy Cost]]/Table4[[#This Row],[Monthly Flow]],"") -> 200.6569847 | V52: =IFERROR(Table4[[#This Row],[Total Energy Cost]]/Table4[[#This Row],[Total BOD removed]],"") -> 0.1790148102 | X52: =IF('Process Data Entry'!G54="","",'Process Data Entry'!G54) -> 40 | Y52: =IF('Process Data Entry'!H54="","",'Process Data Entry'!H54) -> 14 | Z52: =IF('Process Data Entry'!I54="",0,'Process Data Entry'!I54) -> 0 | AA52: =IF('Process Data Entry'!J54="","",'Process Data Entry'!J54) -> 3.2 | AB52: =IF('Process Data Entry'!K54="","",'Process Data Entry'!K54) -> 0.9 | AC52: =IF('Process Data Entry'!L54="","",'Process Data Entry'!L54) -> 9.3 | AD52: 27.5 | AE52: 16779.246 | AF52: =IF('Process Data Entry'!M54="","",'Process Data Entry'!M54) -> 9.6 | AG52: =IF('Process Data Entry'!N54="","",'Process Data Entry'!N54) -> 0.8 | AH52: 5369.35872
A53: 5 | B53: ='Energy Data Entry'!B74 -> 2019-08-01 | C53: =IF(OR('Process Data Entry'!C55="",'Process Data Entry'!C55=0),"",'Process Data Entry'!C55) -> 1.96 | D53: =IF(Table4[Avg Daily Flow]="","",_xlfn.DAYS(EOMONTH(B53,0),EOMONTH(B53,-1))*C53) -> 60.76 | E53: =IF('Process Data Entry'!F55="","",'Process Data Entry'!F55) -> 3405.77244 | F53: =IF(Table4[BOD removed]="","",Table4[BOD removed]*_xlfn.DAYS(EOMONTH(Table4[[#This Row],[Column2]],0),EOMONTH(Table4[[#This Row],[Column2]],-1))) -> 105578.9456 | G53: =IF(SUM('Energy Data Entry'!C74,'Energy Data Entry'!H74,'Energy Data Entry'!M74,'Energy Data Entry'!R74,'Energy Data Entry'!W74)=0,"",SUM('Energy Data Entry'!C74,'Energy Data Entry'!H74,'Energy Data Entry'!M74,'Energy Data Entry'!R74,'Energy Data Entry'!W74)) -> 163674 | H53: ='Energy Data Entry'!AG74 -> 0 | I53: =IF(Table4[[#This Row],[Electric kWh usage]]="","",Table4[[#This Row],[Gas kWh usage]]+Table4[[#This Row],[Electric kWh usage]]) -> 163674 | J53: =IF(OR(Table4[[#This Row],[Electric kWh usage]]="",Table4[[#This Row],[Monthly Flow]]=""),"",(Table4[[#This Row],[Electric kWh usage]]+Table4[[#This Row],[Gas kWh usage]])/Table4[[#This Row],[Monthly Flow]]) -> 2693.778802 | K53: =IFERROR(IF(Table4[[#This Row],[Electric kWh usage]]="","",(Table4[[#This Row],[Electric kWh usage]]+Table4[[#This Row],[Gas kWh usage]])/Table4[[#This Row],[Total BOD removed]]),"") -> 1.550252269 | L53: =IF('Energy Data Entry'!E74+'Energy Data Entry'!J74+'Energy Data Entry'!O74+'Energy Data Entry'!T74+'Energy Data Entry'!Y74=0,"",'Energy Data Entry'!E74+'Energy Data Entry'!J74+'Energy Data Entry'!O74+'Energy Data Entry'!T74+'Energy Data Entry'!Y74) -> 293 | M53: =IF('Energy Data Entry'!F74+'Energy Data Entry'!K74+'Energy Data Entry'!P74++'Energy Data Entry'!U74+'Energy Data Entry'!Z74=0,"",'Energy Data Entry'!F74+'Energy Data Entry'!K74+'Energy Data Entry'!P74++'Energy Data Entry'!U74+'Energy Data Entry'!Z74) -> 293 | N53: =IF('Energy Data Entry'!G74+'Energy Data Entry'!L74+'Energy Data Entry'!Q74+'Energy Data Entry'!V74+'Energy Data Entry'!AA74=0,"",'Energy Data Entry'!G74+'Energy Data Entry'!L74+'Energy Data Entry'!Q74+'Energy Data Entry'!V74+'Energy Data Entry'!AA74) -> 3369.5 | O53: =IF('Energy Data Entry'!D74+'Energy Data Entry'!I74+'Energy Data Entry'!N74+'Energy Data Entry'!S74+'Energy Data Entry'!X74=0,"",'Energy Data Entry'!D74+'Energy Data Entry'!I74+'Energy Data Entry'!N74+'Energy Data Entry'!S74+'Energy Data Entry'!X74) -> 14008.31 | P53: ='Energy Data Entry'!AF74 -> 0 | Q53: =IFERROR(Table4[[#This Row],[Total electric cost]]/Table4[[#This Row],[Electric kWh usage]],"") -> 0.08558665396 | R53: =IFERROR(Table4[[#This Row],[Electric Demand Cost]]/Table4[[#This Row],[Total Electric Demand (Billed)]],IFERROR(Table4[[#This Row],[Electric Demand Cost]]/Table4[[#This Row],[Total Electric Demand (Actual)]],"")) -> 11.5 | S53: =IFERROR(Table4[[#This Row],[Total Gas cost]]+Table4[[#This Row],[Total electric cost]],"") -> 14008.31 | U53: =IFERROR(Table4[[#This Row],[Total Energy Cost]]/Table4[[#This Row],[Monthly Flow]],"") -> 230.5515142 | V53: =IFERROR(Table4[[#This Row],[Total Energy Cost]]/Table4[[#This Row],[Total BOD removed]],"") -> 0.1326809045 | X53: =IF('Process Data Entry'!G55="","",'Process Data Entry'!G55) -> 38 | Y53: =IF('Process Data Entry'!H55="","",'Process Data Entry'!H55) -> 11 | Z53: =IF('Process Data Entry'!I55="",0,'Process Data Entry'!I55) -> 0 | AA53: =IF('Process Data Entry'!J55="","",'Process Data Entry'!J55) -> 2.7 | AB53: =IF('Process Data Entry'!K55="","",'Process Data Entry'!K55) -> 1.3 | AC53: =IF('Process Data Entry'!L55="","",'Process Data Entry'!L55) -> 6.6 | AD53: 28.7 | AE53: 14543.39208 | AF53: =IF('Process Data Entry'!M55="","",'Process Data Entry'!M55) -> 8.2 | AG53: =IF('Process Data Entry'!N55="","",'Process Data Entry'!N55) -> 0.7 | AH53: 3800.538
A54: 5 | B54: ='Energy Data Entry'!B75 -> 2019-09-01 | C54: =IF(OR('Process Data Entry'!C56="",'Process Data Entry'!C56=0),"",'Process Data Entry'!C56) -> 1.92 | D54: =IF(Table4[Avg Daily Flow]="","",_xlfn.DAYS(EOMONTH(B54,0),EOMONTH(B54,-1))*C54) -> 57.6 | E54: =IF('Process Data Entry'!F56="","",'Process Data Entry'!F56) -> 2417.9328 | F54: =IF(Table4[BOD removed]="","",Table4[BOD removed]*_xlfn.DAYS(EOMONTH(Table4[[#This Row],[Column2]],0),EOMONTH(Table4[[#This Row],[Column2]],-1))) -> 72537.984 | G54: =IF(SUM('Energy Data Entry'!C75,'Energy Data Entry'!H75,'Energy Data Entry'!M75,'Energy Data Entry'!R75,'Energy Data Entry'!W75)=0,"",SUM('Energy Data Entry'!C75,'Energy Data Entry'!H75,'Energy Data Entry'!M75,'Energy Data Entry'!R75,'Energy Data Entry'!W75)) -> 123151 | H54: ='Energy Data Entry'!AG75 -> 0 | I54: =IF(Table4[[#This Row],[Electric kWh usage]]="","",Table4[[#This Row],[Gas kWh usage]]+Table4[[#This Row],[Electric kWh usage]]) -> 123151 | J54: =IF(OR(Table4[[#This Row],[Electric kWh usage]]="",Table4[[#This Row],[Monthly Flow]]=""),"",(Table4[[#This Row],[Electric kWh usage]]+Table4[[#This Row],[Gas kWh usage]])/Table4[[#This Row],[Monthly Flow]]) -> 2138.038194 | K54: =IFERROR(IF(Table4[[#This Row],[Electric kWh usage]]="","",(Table4[[#This Row],[Electric kWh usage]]+Table4[[#This Row],[Gas kWh usage]])/Table4[[#This Row],[Total BOD removed]]),"") -> 1.697745005 | L54: =IF('Energy Data Entry'!E75+'Energy Data Entry'!J75+'Energy Data Entry'!O75+'Energy Data Entry'!T75+'Energy Data Entry'!Y75=0,"",'Energy Data Entry'!E75+'Energy Data Entry'!J75+'Energy Data Entry'!O75+'Energy Data Entry'!T75+'Energy Data Entry'!Y75) -> 213 | M54: =IF('Energy Data Entry'!F75+'Energy Data Entry'!K75+'Energy Data Entry'!P75++'Energy Data Entry'!U75+'Energy Data Entry'!Z75=0,"",'Energy Data Entry'!F75+'Energy Data Entry'!K75+'Energy Data Entry'!P75++'Energy Data Entry'!U75+'Energy Data Entry'!Z75) -> 255 | N54: =IF('Energy Data Entry'!G75+'Energy Data Entry'!L75+'Energy Data Entry'!Q75+'Energy Data Entry'!V75+'Energy Data Entry'!AA75=0,"",'Energy Data Entry'!G75+'Energy Data Entry'!L75+'Energy Data Entry'!Q75+'Energy Data Entry'!V75+'Energy Data Entry'!AA75) -> 2932.5 | O54: =IF('Energy Data Entry'!D75+'Energy Data Entry'!I75+'Energy Data Entry'!N75+'Energy Data Entry'!S75+'Energy Data Entry'!X75=0,"",'Energy Data Entry'!D75+'Energy Data Entry'!I75+'Energy Data Entry'!N75+'Energy Data Entry'!S75+'Energy Data Entry'!X75) -> 10937.315 | P54: ='Energy Data Entry'!AF75 -> 0 | Q54: =IFERROR(Table4[[#This Row],[Total electric cost]]/Table4[[#This Row],[Electric kWh usage]],"") -> 0.08881223051 | R54: =IFERROR(Table4[[#This Row],[Electric Demand Cost]]/Table4[[#This Row],[Total Electric Demand (Billed)]],IFERROR(Table4[[#This Row],[Electric Demand Cost]]/Table4[[#This Row],[Total Electric Demand (Actual)]],"")) -> 11.5 | S54: =IFERROR(Table4[[#This Row],[Total Gas cost]]+Table4[[#This Row],[Total electric cost]],"") -> 10937.315 | U54: =IFERROR(Table4[[#This Row],[Total Energy Cost]]/Table4[[#This Row],[Monthly Flow]],"") -> 189.883941 | V54: =IFERROR(Table4[[#This Row],[Total Energy Cost]]/Table4[[#This Row],[Total BOD removed]],"") -> 0.1507805207 | X54: =IF('Process Data Entry'!G56="","",'Process Data Entry'!G56) -> 30 | Y54: =IF('Process Data Entry'!H56="","",'Process Data Entry'!H56) -> 15 | Z54: =IF('Process Data Entry'!I56="",0,'Process Data Entry'!I56) -> 0 | AA54: =IF('Process Data Entry'!J56="","",'Process Data Entry'!J56) -> 2.9 | AB54: =IF('Process Data Entry'!K56="","",'Process Data Entry'!K56) -> 1.2 | AC54: =IF('Process Data Entry'!L56="","",'Process Data Entry'!L56) -> 7.6 | AD54: 19.5 | AE54: 9367.488 | AF54: =IF('Process Data Entry'!M56="","",'Process Data Entry'!M56) -> 8.6 | AG54: =IF('Process Data Entry'!N56="","",'Process Data Entry'!N56) -> 0.6 | AH54: 3843.072
A55: 5 | B55: ='Energy Data Entry'!B76 -> 2019-10-01 | C55: =IF(OR('Process Data Entry'!C57="",'Process Data Entry'!C57=0),"",'Process Data Entry'!C57) -> 1.96 | D55: =IF(Table4[Avg Daily Flow]="","",_xlfn.DAYS(EOMONTH(B55,0),EOMONTH(B55,-1))*C55) -> 60.76 | E55: =IF('Process Data Entry'!F57="","",'Process Data Entry'!F57) -> 3386.15676 | F55: =IF(Table4[BOD removed]="","",Table4[BOD removed]*_xlfn.DAYS(EOMONTH(Table4[[#This Row],[Column2]],0),EOMONTH(Table4[[#This Row],[Column2]],-1))) -> 104970.8596 | G55: =IF(SUM('Energy Data Entry'!C76,'Energy Data Entry'!H76,'Energy Data Entry'!M76,'Energy Data Entry'!R76,'Energy Data Entry'!W76)=0,"",SUM('Energy Data Entry'!C76,'Energy Data Entry'!H76,'Energy Data Entry'!M76,'Energy Data Entry'!R76,'Energy Data Entry'!W76)) -> 127492 | H55: ='Energy Data Entry'!AG76 -> 0 | I55: =IF(Table4[[#This Row],[Electric kWh usage]]="","",Table4[[#This Row],[Gas kWh usage]]+Table4[[#This Row],[Electric kWh usage]]) -> 127492 | J55: =IF(OR(Table4[[#This Row],[Electric kWh usage]]="",Table4[[#This Row],[Monthly Flow]]=""),"",(Table4[[#This Row],[Electric kWh usage]]+Table4[[#This Row],[Gas kWh usage]])/Table4[[#This Row],[Monthly Flow]]) -> 2098.288348 | K55: =IFERROR(IF(Table4[[#This Row],[Electric kWh usage]]="","",(Table4[[#This Row],[Electric kWh usage]]+Table4[[#This Row],[Gas kWh usage]])/Table4[[#This Row],[Total BOD removed]]),"") -> 1.214546594 | L55: =IF('Energy Data Entry'!E76+'Energy Data Entry'!J76+'Energy Data Entry'!O76+'Energy Data Entry'!T76+'Energy Data Entry'!Y76=0,"",'Energy Data Entry'!E76+'Energy Data Entry'!J76+'Energy Data Entry'!O76+'Energy Data Entry'!T76+'Energy Data Entry'!Y76) -> 226 | M55: =IF('Energy Data Entry'!F76+'Energy Data Entry'!K76+'Energy Data Entry'!P76++'Energy Data Entry'!U76+'Energy Data Entry'!Z76=0,"",'Energy Data Entry'!F76+'Energy Data Entry'!K76+'Energy Data Entry'!P76++'Energy Data Entry'!U76+'Energy Data Entry'!Z76) -> 255 | N55: =IF('Energy Data Entry'!G76+'Energy Data Entry'!L76+'Energy Data Entry'!Q76+'Energy Data Entry'!V76+'Energy Data Entry'!AA76=0,"",'Energy Data Entry'!G76+'Energy Data Entry'!L76+'Energy Data Entry'!Q76+'Energy Data Entry'!V76+'Energy Data Entry'!AA76) -> 2932.5 | O55: =IF('Energy Data Entry'!D76+'Energy Data Entry'!I76+'Energy Data Entry'!N76+'Energy Data Entry'!S76+'Energy Data Entry'!X76=0,"",'Energy Data Entry'!D76+'Energy Data Entry'!I76+'Energy Data Entry'!N76+'Energy Data Entry'!S76+'Energy Data Entry'!X76) -> 11219.48 | P55: ='Energy Data Entry'!AF76 -> 0 | Q55: =IFERROR(Table4[[#This Row],[Total electric cost]]/Table4[[#This Row],[Electric kWh usage]],"") -> 0.08800144323 | R55: =IFERROR(Table4[[#This Row],[Electric Demand Cost]]/Table4[[#This Row],[Total Electric Demand (Billed)]],IFERROR(Table4[[#This Row],[Electric Demand Cost]]/Table4[[#This Row],[Total Electric Demand (Actual)]],"")) -> 11.5 | S55: =IFERROR(Table4[[#This Row],[Total Gas cost]]+Table4[[#This Row],[Total electric cost]],"") -> 11219.48 | U55: =IFERROR(Table4[[#This Row],[Total Energy Cost]]/Table4[[#This Row],[Monthly Flow]],"") -> 184.6524029 | V55: =IFERROR(Table4[[#This Row],[Total Energy Cost]]/Table4[[#This Row],[Total BOD removed]],"") -> 0.1068818532 | X55: =IF('Process Data Entry'!G57="","",'Process Data Entry'!G57) -> 37 | Y55: =IF('Process Data Entry'!H57="","",'Process Data Entry'!H57) -> 13 | Z55: =IF('Process Data Entry'!I57="",0,'Process Data Entry'!I57) -> 0 | AA55: =IF('Process Data Entry'!J57="","",'Process Data Entry'!J57) -> 3.2 | AB55: =IF('Process Data Entry'!K57="","",'Process Data Entry'!K57) -> 1.1 | AC55: =IF('Process Data Entry'!L57="","",'Process Data Entry'!L57) -> 7.8 | AD55: 26 | AE55: 13175.1984 | AF55: =IF('Process Data Entry'!M57="","",'Process Data Entry'!M57) -> 7 | AG55: =IF('Process Data Entry'!N57="","",'Process Data Entry'!N57) -> 1.4 | AH55: 2837.73504
A56: 5 | B56: ='Energy Data Entry'!B77 -> 2019-11-01 | C56: =IF(OR('Process Data Entry'!C58="",'Process Data Entry'!C58=0),"",'Process Data Entry'!C58) -> 2.26 | D56: =IF(Table4[Avg Daily Flow]="","",_xlfn.DAYS(EOMONTH(B56,0),EOMONTH(B56,-1))*C56) -> 67.8 | E56: =IF('Process Data Entry'!F58="","",'Process Data Entry'!F58) -> 3728.21352 | F56: =IF(Table4[BOD removed]="","",Table4[BOD removed]*_xlfn.DAYS(EOMONTH(Table4[[#This Row],[Column2]],0),EOMONTH(Table4[[#This Row],[Column2]],-1))) -> 111846.4056 | G56: =IF(SUM('Energy Data Entry'!C77,'Energy Data Entry'!H77,'Energy Data Entry'!M77,'Energy Data Entry'!R77,'Energy Data Entry'!W77)=0,"",SUM('Energy Data Entry'!C77,'Energy Data Entry'!H77,'Energy Data Entry'!M77,'Energy Data Entry'!R77,'Energy Data Entry'!W77)) -> 145542 | H56: ='Energy Data Entry'!AG77 -> 0 | I56: =IF(Table4[[#This Row],[Electric kWh usage]]="","",Table4[[#This Row],[Gas kWh usage]]+Table4[[#This Row],[Electric kWh usage]]) -> 145542 | J56: =IF(OR(Table4[[#This Row],[Electric kWh usage]]="",Table4[[#This Row],[Monthly Flow]]=""),"",(Table4[[#This Row],[Electric kWh usage]]+Table4[[#This Row],[Gas kWh usage]])/Table4[[#This Row],[Monthly Flow]]) -> 2146.637168 | K56: =IFERROR(IF(Table4[[#This Row],[Electric kWh usage]]="","",(Table4[[#This Row],[Electric kWh usage]]+Table4[[#This Row],[Gas kWh usage]])/Table4[[#This Row],[Total BOD removed]]),"") -> 1.301266672 | L56: =IF('Energy Data Entry'!E77+'Energy Data Entry'!J77+'Energy Data Entry'!O77+'Energy Data Entry'!T77+'Energy Data Entry'!Y77=0,"",'Energy Data Entry'!E77+'Energy Data Entry'!J77+'Energy Data Entry'!O77+'Energy Data Entry'!T77+'Energy Data Entry'!Y77) -> 247 | M56: =IF('Energy Data Entry'!F77+'Energy Data Entry'!K77+'Energy Data Entry'!P77++'Energy Data Entry'!U77+'Energy Data Entry'!Z77=0,"",'Energy Data Entry'!F77+'Energy Data Entry'!K77+'Energy Data Entry'!P77++'Energy Data Entry'!U77+'Energy Data Entry'!Z77) -> 255 | N56: =IF('Energy Data Entry'!G77+'Energy Data Entry'!L77+'Energy Data Entry'!Q77+'Energy Data Entry'!V77+'Energy Data Entry'!AA77=0,"",'Energy Data Entry'!G77+'Energy Data Entry'!L77+'Energy Data Entry'!Q77+'Energy Data Entry'!V77+'Energy Data Entry'!AA77) -> 2932.5 | O56: =IF('Energy Data Entry'!D77+'Energy Data Entry'!I77+'Energy Data Entry'!N77+'Energy Data Entry'!S77+'Energy Data Entry'!X77=0,"",'Energy Data Entry'!D77+'Energy Data Entry'!I77+'Energy Data Entry'!N77+'Energy Data Entry'!S77+'Energy Data Entry'!X77) -> 12392.73 | P56: ='Energy Data Entry'!AF77 -> 0 | Q56: =IFERROR(Table4[[#This Row],[Total electric cost]]/Table4[[#This Row],[Electric kWh usage]],"") -> 0.08514882302 | R56: =IFERROR(Table4[[#This Row],[Electric Demand Cost]]/Table4[[#This Row],[Total Electric Demand (Billed)]],IFERROR(Table4[[#This Row],[Electric Demand Cost]]/Table4[[#This Row],[Total Electric Demand (Actual)]],"")) -> 11.5 | S56: =IFERROR(Table4[[#This Row],[Total Gas cost]]+Table4[[#This Row],[Total electric cost]],"") -> 12392.73 | U56: =IFERROR(Table4[[#This Row],[Total Energy Cost]]/Table4[[#This Row],[Monthly Flow]],"") -> 182.7836283 | V56: =IFERROR(Table4[[#This Row],[Total Energy Cost]]/Table4[[#This Row],[Total BOD removed]],"") -> 0.1108013256 | X56: =IF('Process Data Entry'!G58="","",'Process Data Entry'!G58) -> 34 | Y56: =IF('Process Data Entry'!H58="","",'Process Data Entry'!H58) -> 17 | Z56: =IF('Process Data Entry'!I58="",0,'Process Data Entry'!I58) -> 0 | AA56: =IF('Process Data Entry'!J58="","",'Process Data Entry'!J58) -> 3.2 | AB56: =IF('Process Data Entry'!K58="","",'Process Data Entry'!K58) -> 0.8 | AC56: =IF('Process Data Entry'!L58="","",'Process Data Entry'!L58) -> 7 | AD56: 23.8 | AE56: 13457.7576 | AF56: =IF('Process Data Entry'!M58="","",'Process Data Entry'!M58) -> 7.4 | AG56: =IF('Process Data Entry'!N58="","",'Process Data Entry'!N58) -> 1.4 | AH56: 3392.712
A57: 5 | B57: ='Energy Data Entry'!B78 -> 2019-12-01 | C57: =IF(OR('Process Data Entry'!C59="",'Process Data Entry'!C59=0),"",'Process Data Entry'!C59) -> 1.78 | D57: =IF(Table4[Avg Daily Flow]="","",_xlfn.DAYS(EOMONTH(B57,0),EOMONTH(B57,-1))*C57) -> 55.18 | E57: =IF('Process Data Entry'!F59="","",'Process Data Entry'!F59) -> 2191.15152 | F57: =IF(Table4[BOD removed]="","",Table4[BOD removed]*_xlfn.DAYS(EOMONTH(Table4[[#This Row],[Column2]],0),EOMONTH(Table4[[#This Row],[Column2]],-1))) -> 67925.69712 | G57: =IF(SUM('Energy Data Entry'!C78,'Energy Data Entry'!H78,'Energy Data Entry'!M78,'Energy Data Entry'!R78,'Energy Data Entry'!W78)=0,"",SUM('Energy Data Entry'!C78,'Energy Data Entry'!H78,'Energy Data Entry'!M78,'Energy Data Entry'!R78,'Energy Data Entry'!W78)) -> 163408 | H57: ='Energy Data Entry'!AG78 -> 0 | I57: =IF(Table4[[#This Row],[Electric kWh usage]]="","",Table4[[#This Row],[Gas kWh usage]]+Table4[[#This Row],[Electric kWh usage]]) -> 163408 | J57: =IF(OR(Table4[[#This Row],[Electric kWh usage]]="",Table4[[#This Row],[Monthly Flow]]=""),"",(Table4[[#This Row],[Electric kWh usage]]+Table4[[#This Row],[Gas kWh usage]])/Table4[[#This Row],[Monthly Flow]]) -> 2961.362813 | K57: =IFERROR(IF(Table4[[#This Row],[Electric kWh usage]]="","",(Table4[[#This Row],[Electric kWh usage]]+Table4[[#This Row],[Gas kWh usage]])/Table4[[#This Row],[Total BOD removed]]),"") -> 2.405687493 | L57: =IF('Energy Data Entry'!E78+'Energy Data Entry'!J78+'Energy Data Entry'!O78+'Energy Data Entry'!T78+'Energy Data Entry'!Y78=0,"",'Energy Data Entry'!E78+'Energy Data Entry'!J78+'Energy Data Entry'!O78+'Energy Data Entry'!T78+'Energy Data Entry'!Y78) -> 283 | M57: =IF('Energy Data Entry'!F78+'Energy Data Entry'!K78+'Energy Data Entry'!P78++'Energy Data Entry'!U78+'Energy Data Entry'!Z78=0,"",'Energy Data Entry'!F78+'Energy Data Entry'!K78+'Energy Data Entry'!P78++'Energy Data Entry'!U78+'Energy Data Entry'!Z78) -> 283 | N57: =IF('Energy Data Entry'!G78+'Energy Data Entry'!L78+'Energy Data Entry'!Q78+'Energy Data Entry'!V78+'Energy Data Entry'!AA78=0,"",'Energy Data Entry'!G78+'Energy Data Entry'!L78+'Energy Data Entry'!Q78+'Energy Data Entry'!V78+'Energy Data Entry'!AA78) -> 3396 | O57: =IF('Energy Data Entry'!D78+'Energy Data Entry'!I78+'Energy Data Entry'!N78+'Energy Data Entry'!S78+'Energy Data Entry'!X78=0,"",'Energy Data Entry'!D78+'Energy Data Entry'!I78+'Energy Data Entry'!N78+'Energy Data Entry'!S78+'Energy Data Entry'!X78) -> 14017.52 | P57: ='Energy Data Entry'!AF78 -> 0 | Q57: =IFERROR(Table4[[#This Row],[Total electric cost]]/Table4[[#This Row],[Electric kWh usage]],"") -> 0.08578233624 | R57: =IFERROR(Table4[[#This Row],[Electric Demand Cost]]/Table4[[#This Row],[Total Electric Demand (Billed)]],IFERROR(Table4[[#This Row],[Electric Demand Cost]]/Table4[[#This Row],[Total Electric Demand (Actual)]],"")) -> 12 | S57: =IFERROR(Table4[[#This Row],[Total Gas cost]]+Table4[[#This Row],[Total electric cost]],"") -> 14017.52 | U57: =IFERROR(Table4[[#This Row],[Total Energy Cost]]/Table4[[#This Row],[Monthly Flow]],"") -> 254.0326205 | V57: =IFERROR(Table4[[#This Row],[Total Energy Cost]]/Table4[[#This Row],[Total BOD removed]],"") -> 0.2063654934 | X57: =IF('Process Data Entry'!G59="","",'Process Data Entry'!G59) -> 33 | Y57: =IF('Process Data Entry'!H59="","",'Process Data Entry'!H59) -> 16 | Z57: =IF('Process Data Entry'!I59="",0,'Process Data Entry'!I59) -> 0 | AA57: =IF('Process Data Entry'!J59="","",'Process Data Entry'!J59) -> 3.2 | AB57: =IF('Process Data Entry'!K59="","",'Process Data Entry'!K59) -> 1.6 | AC57: =IF('Process Data Entry'!L59="","",'Process Data Entry'!L59) -> 8.6 | AD57: 21.2 | AE57: 9756.26544 | AF57: =IF('Process Data Entry'!M59="","",'Process Data Entry'!M59) -> 7.5 | AG57: =IF('Process Data Entry'!N59="","",'Process Data Entry'!N59) -> 1.2 | AH57: 2899.26756
A58: 5 | B58: ='Energy Data Entry'!B79 -> 2020-01-01 | C58: =IF(OR('Process Data Entry'!C60="",'Process Data Entry'!C60=0),"",'Process Data Entry'!C60) -> 2.34 | D58: =IF(Table4[Avg Daily Flow]="","",_xlfn.DAYS(EOMONTH(B58,0),EOMONTH(B58,-1))*C58) -> 72.54 | E58: =IF('Process Data Entry'!F60="","",'Process Data Entry'!F60) -> 3438.64872 | F58: =IF(Table4[BOD removed]="","",Table4[BOD removed]*_xlfn.DAYS(EOMONTH(Table4[[#This Row],[Column2]],0),EOMONTH(Table4[[#This Row],[Column2]],-1))) -> 106598.1103 | G58: =IF(SUM('Energy Data Entry'!C79,'Energy Data Entry'!H79,'Energy Data Entry'!M79,'Energy Data Entry'!R79,'Energy Data Entry'!W79)=0,"",SUM('Energy Data Entry'!C79,'Energy Data Entry'!H79,'Energy Data Entry'!M79,'Energy Data Entry'!R79,'Energy Data Entry'!W79)) -> 148401 | H58: ='Energy Data Entry'!AG79 -> 0 | I58: =IF(Table4[[#This Row],[Electric kWh usage]]="","",Table4[[#This Row],[Gas kWh usage]]+Table4[[#This Row],[Electric kWh usage]]) -> 148401 | J58: =IF(OR(Table4[[#This Row],[Electric kWh usage]]="",Table4[[#This Row],[Monthly Flow]]=""),"",(Table4[[#This Row],[Electric kWh usage]]+Table4[[#This Row],[Gas kWh usage]])/Table4[[#This Row],[Monthly Flow]]) -> 2045.781638 | K58: =IFERROR(IF(Table4[[#This Row],[Electric kWh usage]]="","",(Table4[[#This Row],[Electric kWh usage]]+Table4[[#This Row],[Gas kWh usage]])/Table4[[#This Row],[Total BOD removed]]),"") -> 1.392154134 | L58: =IF('Energy Data Entry'!E79+'Energy Data Entry'!J79+'Energy Data Entry'!O79+'Energy Data Entry'!T79+'Energy Data Entry'!Y79=0,"",'Energy Data Entry'!E79+'Energy Data Entry'!J79+'Energy Data Entry'!O79+'Energy Data Entry'!T79+'Energy Data Entry'!Y79) -> 254 | M58: =IF('Energy Data Entry'!F79+'Energy Data Entry'!K79+'Energy Data Entry'!P79++'Energy Data Entry'!U79+'Energy Data Entry'!Z79=0,"",'Energy Data Entry'!F79+'Energy Data Entry'!K79+'Energy Data Entry'!P79++'Energy Data Entry'!U79+'Energy Data Entry'!Z79) -> 254 | N58: =IF('Energy Data Entry'!G79+'Energy Data Entry'!L79+'Energy Data Entry'!Q79+'Energy Data Entry'!V79+'Energy Data Entry'!AA79=0,"",'Energy Data Entry'!G79+'Energy Data Entry'!L79+'Energy Data Entry'!Q79+'Energy Data Entry'!V79+'Energy Data Entry'!AA79) -> 3048 | O58: =IF('Energy Data Entry'!D79+'Energy Data Entry'!I79+'Energy Data Entry'!N79+'Energy Data Entry'!S79+'Energy Data Entry'!X79=0,"",'Energy Data Entry'!D79+'Energy Data Entry'!I79+'Energy Data Entry'!N79+'Energy Data Entry'!S79+'Energy Data Entry'!X79) -> 12694.065 | P58: ='Energy Data Entry'!AF79 -> 0 | Q58: =IFERROR(Table4[[#This Row],[Total electric cost]]/Table4[[#This Row],[Electric kWh usage]],"") -> 0.08553894516 | R58: =IFERROR(Table4[[#This Row],[Electric Demand Cost]]/Table4[[#This Row],[Total Electric Demand (Billed)]],IFERROR(Table4[[#This Row],[Electric Demand Cost]]/Table4[[#This Row],[Total Electric Demand (Actual)]],"")) -> 12 | S58: =IFERROR(Table4[[#This Row],[Total Gas cost]]+Table4[[#This Row],[Total electric cost]],"") -> 12694.065 | U58: =IFERROR(Table4[[#This Row],[Total Energy Cost]]/Table4[[#This Row],[Monthly Flow]],"") -> 174.9940033 | V58: =IFERROR(Table4[[#This Row],[Total Energy Cost]]/Table4[[#This Row],[Total BOD removed]],"") -> 0.1190833961 | X58: =IF('Process Data Entry'!G60="","",'Process Data Entry'!G60) -> 37 | Y58: =IF('Process Data Entry'!H60="","",'Process Data Entry'!H60) -> 15 | Z58: =IF('Process Data Entry'!I60="",0,'Process Data Entry'!I60) -> 0 | AA58: =IF('Process Data Entry'!J60="","",'Process Data Entry'!J60) -> 3.3 | AB58: =IF('Process Data Entry'!K60="","",'Process Data Entry'!K60) -> 0.8 | AC58: =IF('Process Data Entry'!L60="","",'Process Data Entry'!L60) -> 7.8 | AD58: 25.9 | AE58: 15669.07524 | AF58: =IF('Process Data Entry'!M60="","",'Process Data Entry'!M60) -> 6.9 | AG58: =IF('Process Data Entry'!N60="","",'Process Data Entry'!N60) -> 1.1 | AH58: 3508.90488
A59: 5 | B59: ='Energy Data Entry'!B80 -> 2020-02-01 | C59: =IF(OR('Process Data Entry'!C61="",'Process Data Entry'!C61=0),"",'Process Data Entry'!C61) -> 2.42 | D59: =IF(Table4[Avg Daily Flow]="","",_xlfn.DAYS(EOMONTH(B59,0),EOMONTH(B59,-1))*C59) -> 70.18 | E59: =IF('Process Data Entry'!F61="","",'Process Data Entry'!F61) -> 3808.49436 | F59: =IF(Table4[BOD removed]="","",Table4[BOD removed]*_xlfn.DAYS(EOMONTH(Table4[[#This Row],[Column2]],0),EOMONTH(Table4[[#This Row],[Column2]],-1))) -> 110446.3364 | G59: =IF(SUM('Energy Data Entry'!C80,'Energy Data Entry'!H80,'Energy Data Entry'!M80,'Energy Data Entry'!R80,'Energy Data Entry'!W80)=0,"",SUM('Energy Data Entry'!C80,'Energy Data Entry'!H80,'Energy Data Entry'!M80,'Energy Data Entry'!R80,'Energy Data Entry'!W80)) -> 145356 | H59: ='Energy Data Entry'!AG80 -> 0 | I59: =IF(Table4[[#This Row],[Electric kWh usage]]="","",Table4[[#This Row],[Gas kWh usage]]+Table4[[#This Row],[Electric kWh usage]]) -> 145356 | J59: =IF(OR(Table4[[#This Row],[Electric kWh usage]]="",Table4[[#This Row],[Monthly Flow]]=""),"",(Table4[[#This Row],[Electric kWh usage]]+Table4[[#This Row],[Gas kWh usage]])/Table4[[#This Row],[Monthly Flow]]) -> 2071.188373 | K59: =IFERROR(IF(Table4[[#This Row],[Electric kWh usage]]="","",(Table4[[#This Row],[Electric kWh usage]]+Table4[[#This Row],[Gas kWh usage]])/Table4[[#This Row],[Total BOD removed]]),"") -> 1.316078058 | L59: =IF('Energy Data Entry'!E80+'Energy Data Entry'!J80+'Energy Data Entry'!O80+'Energy Data Entry'!T80+'Energy Data Entry'!Y80=0,"",'Energy Data Entry'!E80+'Energy Data Entry'!J80+'Energy Data Entry'!O80+'Energy Data Entry'!T80+'Energy Data Entry'!Y80) -> 252 | M59: =IF('Energy Data Entry'!F80+'Energy Data Entry'!K80+'Energy Data Entry'!P80++'Energy Data Entry'!U80+'Energy Data Entry'!Z80=0,"",'Energy Data Entry'!F80+'Energy Data Entry'!K80+'Energy Data Entry'!P80++'Energy Data Entry'!U80+'Energy Data Entry'!Z80) -> 252 | N59: =IF('Energy Data Entry'!G80+'Energy Data Entry'!L80+'Energy Data Entry'!Q80+'Energy Data Entry'!V80+'Energy Data Entry'!AA80=0,"",'Energy Data Entry'!G80+'Energy Data Entry'!L80+'Energy Data Entry'!Q80+'Energy Data Entry'!V80+'Energy Data Entry'!AA80) -> 3024 | O59: =IF('Energy Data Entry'!D80+'Energy Data Entry'!I80+'Energy Data Entry'!N80+'Energy Data Entry'!S80+'Energy Data Entry'!X80=0,"",'Energy Data Entry'!D80+'Energy Data Entry'!I80+'Energy Data Entry'!N80+'Energy Data Entry'!S80+'Energy Data Entry'!X80) -> 12472.14 | P59: ='Energy Data Entry'!AF80 -> 0 | Q59: =IFERROR(Table4[[#This Row],[Total electric cost]]/Table4[[#This Row],[Electric kWh usage]],"") -> 0.08580409477 | R59: =IFERROR(Table4[[#This Row],[Electric Demand Cost]]/Table4[[#This Row],[Total Electric Demand (Billed)]],IFERROR(Table4[[#This Row],[Electric Demand Cost]]/Table4[[#This Row],[Total Electric Demand (Actual)]],"")) -> 12 | S59: =IFERROR(Table4[[#This Row],[Total Gas cost]]+Table4[[#This Row],[Total electric cost]],"") -> 12472.14 | U59: =IFERROR(Table4[[#This Row],[Total Energy Cost]]/Table4[[#This Row],[Monthly Flow]],"") -> 177.7164434 | V59: =IFERROR(Table4[[#This Row],[Total Energy Cost]]/Table4[[#This Row],[Total BOD removed]],"") -> 0.1129248864 | X59: =IF('Process Data Entry'!G61="","",'Process Data Entry'!G61) -> 35 | Y59: =IF('Process Data Entry'!H61="","",'Process Data Entry'!H61) -> 15 | Z59: =IF('Process Data Entry'!I61="",0,'Process Data Entry'!I61) -> 0 | AA59: =IF('Process Data Entry'!J61="","",'Process Data Entry'!J61) -> 2.8 | AB59: =IF('Process Data Entry'!K61="","",'Process Data Entry'!K61) -> 1.4 | AC59: =IF('Process Data Entry'!L61="","",'Process Data Entry'!L61) -> 7.9 | AD59: 24.3 | AE59: 14222.81916 | AF59: =IF('Process Data Entry'!M61="","",'Process Data Entry'!M61) -> 7 | AG59: =IF('Process Data Entry'!N61="","",'Process Data Entry'!N61) -> 0.6 | AH59: 3745.92768
A60: 5 | B60: ='Energy Data Entry'!B81 -> 2020-03-01 | C60: =IF(OR('Process Data Entry'!C62="",'Process Data Entry'!C62=0),"",'Process Data Entry'!C62) -> 1.92 | D60: =IF(Table4[Avg Daily Flow]="","",_xlfn.DAYS(EOMONTH(B60,0),EOMONTH(B60,-1))*C60) -> 59.52 | E60: =IF('Process Data Entry'!F62="","",'Process Data Entry'!F62) -> 3095.27424 | F60: =IF(Table4[BOD removed]="","",Table4[BOD removed]*_xlfn.DAYS(EOMONTH(Table4[[#This Row],[Column2]],0),EOMONTH(Table4[[#This Row],[Column2]],-1))) -> 95953.50144 | G60: =IF(SUM('Energy Data Entry'!C81,'Energy Data Entry'!H81,'Energy Data Entry'!M81,'Energy Data Entry'!R81,'Energy Data Entry'!W81)=0,"",SUM('Energy Data Entry'!C81,'Energy Data Entry'!H81,'Energy Data Entry'!M81,'Energy Data Entry'!R81,'Energy Data Entry'!W81)) -> 171406 | H60: ='Energy Data Entry'!AG81 -> 0 | I60: =IF(Table4[[#This Row],[Electric kWh usage]]="","",Table4[[#This Row],[Gas kWh usage]]+Table4[[#This Row],[Electric kWh usage]]) -> 171406 | J60: =IF(OR(Table4[[#This Row],[Electric kWh usage]]="",Table4[[#This Row],[Monthly Flow]]=""),"",(Table4[[#This Row],[Electric kWh usage]]+Table4[[#This Row],[Gas kWh usage]])/Table4[[#This Row],[Monthly Flow]]) -> 2879.805108 | K60: =IFERROR(IF(Table4[[#This Row],[Electric kWh usage]]="","",(Table4[[#This Row],[Electric kWh usage]]+Table4[[#This Row],[Gas kWh usage]])/Table4[[#This Row],[Total BOD removed]]),"") -> 1.7863444 | L60: =IF('Energy Data Entry'!E81+'Energy Data Entry'!J81+'Energy Data Entry'!O81+'Energy Data Entry'!T81+'Energy Data Entry'!Y81=0,"",'Energy Data Entry'!E81+'Energy Data Entry'!J81+'Energy Data Entry'!O81+'Energy Data Entry'!T81+'Energy Data Entry'!Y81) -> 313 | M60: =IF('Energy Data Entry'!F81+'Energy Data Entry'!K81+'Energy Data Entry'!P81++'Energy Data Entry'!U81+'Energy Data Entry'!Z81=0,"",'Energy Data Entry'!F81+'Energy Data Entry'!K81+'Energy Data Entry'!P81++'Energy Data Entry'!U81+'Energy Data Entry'!Z81) -> 313 | N60: =IF('Energy Data Entry'!G81+'Energy Data Entry'!L81+'Energy Data Entry'!Q81+'Energy Data Entry'!V81+'Energy Data Entry'!AA81=0,"",'Energy Data Entry'!G81+'Energy Data Entry'!L81+'Energy Data Entry'!Q81+'Energy Data Entry'!V81+'Energy Data Entry'!AA81) -> 3756 | O60: =IF('Energy Data Entry'!D81+'Energy Data Entry'!I81+'Energy Data Entry'!N81+'Energy Data Entry'!S81+'Energy Data Entry'!X81=0,"",'Energy Data Entry'!D81+'Energy Data Entry'!I81+'Energy Data Entry'!N81+'Energy Data Entry'!S81+'Energy Data Entry'!X81) -> 14897.39 | P60: ='Energy Data Entry'!AF81 -> 0 | Q60: =IFERROR(Table4[[#This Row],[Total electric cost]]/Table4[[#This Row],[Electric kWh usage]],"") -> 0.0869128852 | R60: =IFERROR(Table4[[#This Row],[Electric Demand Cost]]/Table4[[#This Row],[Total Electric Demand (Billed)]],IFERROR(Table4[[#This Row],[Electric Demand Cost]]/Table4[[#This Row],[Total Electric Demand (Actual)]],"")) -> 12 | S60: =IFERROR(Table4[[#This Row],[Total Gas cost]]+Table4[[#This Row],[Total electric cost]],"") -> 14897.39 | U60: =IFERROR(Table4[[#This Row],[Total Energy Cost]]/Table4[[#This Row],[Monthly Flow]],"") -> 250.2921707 | V60: =IFERROR(Table4[[#This Row],[Total Energy Cost]]/Table4[[#This Row],[Total BOD removed]],"") -> 0.1552563458 | X60: =IF('Process Data Entry'!G62="","",'Process Data Entry'!G62) -> 30 | Y60: =IF('Process Data Entry'!H62="","",'Process Data Entry'!H62) -> 14 | Z60: =IF('Process Data Entry'!I62="",0,'Process Data Entry'!I62) -> 0 | AA60: =IF('Process Data Entry'!J62="","",'Process Data Entry'!J62) -> 3.2 | AB60: =IF('Process Data Entry'!K62="","",'Process Data Entry'!K62) -> 1 | AC60: =IF('Process Data Entry'!L62="","",'Process Data Entry'!L62) -> 7.9 | AD60: 18.9 | AE60: 9381.89952 | AF60: =IF('Process Data Entry'!M62="","",'Process Data Entry'!M62) -> 8 | AG60: =IF('Process Data Entry'!N62="","",'Process Data Entry'!N62) -> 1.3 | AH60: 3325.85856
A61: 5 | B61: ='Energy Data Entry'!B82 -> 2020-04-01 | C61: =IF(OR('Process Data Entry'!C63="",'Process Data Entry'!C63=0),"",'Process Data Entry'!C63) -> 1.74 | D61: =IF(Table4[Avg Daily Flow]="","",_xlfn.DAYS(EOMONTH(B61,0),EOMONTH(B61,-1))*C61) -> 52.2 | E61: =IF('Process Data Entry'!F63="","",'Process Data Entry'!F63) -> 2337.09318 | F61: =IF(Table4[BOD removed]="","",Table4[BOD removed]*_xlfn.DAYS(EOMONTH(Table4[[#This Row],[Column2]],0),EOMONTH(Table4[[#This Row],[Column2]],-1))) -> 70112.7954 | G61: =IF(SUM('Energy Data Entry'!C82,'Energy Data Entry'!H82,'Energy Data Entry'!M82,'Energy Data Entry'!R82,'Energy Data Entry'!W82)=0,"",SUM('Energy Data Entry'!C82,'Energy Data Entry'!H82,'Energy Data Entry'!M82,'Energy Data Entry'!R82,'Energy Data Entry'!W82)) -> 142572 | H61: ='Energy Data Entry'!AG82 -> 0 | I61: =IF(Table4[[#This Row],[Electric kWh usage]]="","",Table4[[#This Row],[Gas kWh usage]]+Table4[[#This Row],[Electric kWh usage]]) -> 142572 | J61: =IF(OR(Table4[[#This Row],[Electric kWh usage]]="",Table4[[#This Row],[Monthly Flow]]=""),"",(Table4[[#This Row],[Electric kWh usage]]+Table4[[#This Row],[Gas kWh usage]])/Table4[[#This Row],[Monthly Flow]]) -> 2731.264368 | K61: =IFERROR(IF(Table4[[#This Row],[Electric kWh usage]]="","",(Table4[[#This Row],[Electric kWh usage]]+Table4[[#This Row],[Gas kWh usage]])/Table4[[#This Row],[Total BOD removed]]),"") -> 2.033466205 | L61: =IF('Energy Data Entry'!E82+'Energy Data Entry'!J82+'Energy Data Entry'!O82+'Energy Data Entry'!T82+'Energy Data Entry'!Y82=0,"",'Energy Data Entry'!E82+'Energy Data Entry'!J82+'Energy Data Entry'!O82+'Energy Data Entry'!T82+'Energy Data Entry'!Y82) -> 230 | M61: =IF('Energy Data Entry'!F82+'Energy Data Entry'!K82+'Energy Data Entry'!P82++'Energy Data Entry'!U82+'Energy Data Entry'!Z82=0,"",'Energy Data Entry'!F82+'Energy Data Entry'!K82+'Energy Data Entry'!P82++'Energy Data Entry'!U82+'Energy Data Entry'!Z82) -> 230 | N61: =IF('Energy Data Entry'!G82+'Energy Data Entry'!L82+'Energy Data Entry'!Q82+'Energy Data Entry'!V82+'Energy Data Entry'!AA82=0,"",'Energy Data Entry'!G82+'Energy Data Entry'!L82+'Energy Data Entry'!Q82+'Energy Data Entry'!V82+'Energy Data Entry'!AA82) -> 2760 | O61: =IF('Energy Data Entry'!D82+'Energy Data Entry'!I82+'Energy Data Entry'!N82+'Energy Data Entry'!S82+'Energy Data Entry'!X82=0,"",'Energy Data Entry'!D82+'Energy Data Entry'!I82+'Energy Data Entry'!N82+'Energy Data Entry'!S82+'Energy Data Entry'!X82) -> 12027.18 | P61: ='Energy Data Entry'!AF82 -> 0 | Q61: =IFERROR(Table4[[#This Row],[Total electric cost]]/Table4[[#This Row],[Electric kWh usage]],"") -> 0.08435863985 | R61: =IFERROR(Table4[[#This Row],[Electric Demand Cost]]/Table4[[#This Row],[Total Electric Demand (Billed)]],IFERROR(Table4[[#This Row],[Electric Demand Cost]]/Table4[[#This Row],[Total Electric Demand (Actual)]],"")) -> 12 | S61: =IFERROR(Table4[[#This Row],[Total Gas cost]]+Table4[[#This Row],[Total electric cost]],"") -> 12027.18 | U61: =IFERROR(Table4[[#This Row],[Total Energy Cost]]/Table4[[#This Row],[Monthly Flow]],"") -> 230.4057471 | V61: =IFERROR(Table4[[#This Row],[Total Energy Cost]]/Table4[[#This Row],[Total BOD removed]],"") -> 0.1715404432 | X61: =IF('Process Data Entry'!G63="","",'Process Data Entry'!G63) -> 33 | Y61: =IF('Process Data Entry'!H63="","",'Process Data Entry'!H63) -> 18 | Z61: =IF('Process Data Entry'!I63="",0,'Process Data Entry'!I63) -> 0 | AA61: =IF('Process Data Entry'!J63="","",'Process Data Entry'!J63) -> 2.8 | AB61: =IF('Process Data Entry'!K63="","",'Process Data Entry'!K63) -> 1 | AC61: =IF('Process Data Entry'!L63="","",'Process Data Entry'!L63) -> 9 | AD61: 21.2 | AE61: 9229.3776 | AF61: =IF('Process Data Entry'!M63="","",'Process Data Entry'!M63) -> 9.3 | AG61: =IF('Process Data Entry'!N63="","",'Process Data Entry'!N63) -> 1 | AH61: 3613.3884
A62: 5 | B62: ='Energy Data Entry'!B83 -> 2020-05-01 | C62: =IF(OR('Process Data Entry'!C64="",'Process Data Entry'!C64=0),"",'Process Data Entry'!C64) -> 1.52 | D62: =IF(Table4[Avg Daily Flow]="","",_xlfn.DAYS(EOMONTH(B62,0),EOMONTH(B62,-1))*C62) -> 47.12 | E62: =IF('Process Data Entry'!F64="","",'Process Data Entry'!F64) -> 1855.88352 | F62: =IF(Table4[BOD removed]="","",Table4[BOD removed]*_xlfn.DAYS(EOMONTH(Table4[[#This Row],[Column2]],0),EOMONTH(Table4[[#This Row],[Column2]],-1))) -> 57532.38912 | G62: =IF(SUM('Energy Data Entry'!C83,'Energy Data Entry'!H83,'Energy Data Entry'!M83,'Energy Data Entry'!R83,'Energy Data Entry'!W83)=0,"",SUM('Energy Data Entry'!C83,'Energy Data Entry'!H83,'Energy Data Entry'!M83,'Energy Data Entry'!R83,'Energy Data Entry'!W83)) -> 115539 | H62: ='Energy Data Entry'!AG83 -> 0 | I62: =IF(Table4[[#This Row],[Electric kWh usage]]="","",Table4[[#This Row],[Gas kWh usage]]+Table4[[#This Row],[Electric kWh usage]]) -> 115539 | J62: =IF(OR(Table4[[#This Row],[Electric kWh usage]]="",Table4[[#This Row],[Monthly Flow]]=""),"",(Table4[[#This Row],[Electric kWh usage]]+Table4[[#This Row],[Gas kWh usage]])/Table4[[#This Row],[Monthly Flow]]) -> 2452.016129 | K62: =IFERROR(IF(Table4[[#This Row],[Electric kWh usage]]="","",(Table4[[#This Row],[Electric kWh usage]]+Table4[[#This Row],[Gas kWh usage]])/Table4[[#This Row],[Total BOD removed]]),"") -> 2.008242692 | L62: =IF('Energy Data Entry'!E83+'Energy Data Entry'!J83+'Energy Data Entry'!O83+'Energy Data Entry'!T83+'Energy Data Entry'!Y83=0,"",'Energy Data Entry'!E83+'Energy Data Entry'!J83+'Energy Data Entry'!O83+'Energy Data Entry'!T83+'Energy Data Entry'!Y83) -> 199 | M62: =IF('Energy Data Entry'!F83+'Energy Data Entry'!K83+'Energy Data Entry'!P83++'Energy Data Entry'!U83+'Energy Data Entry'!Z83=0,"",'Energy Data Entry'!F83+'Energy Data Entry'!K83+'Energy Data Entry'!P83++'Energy Data Entry'!U83+'Energy Data Entry'!Z83) -> 224 | N62: =IF('Energy Data Entry'!G83+'Energy Data Entry'!L83+'Energy Data Entry'!Q83+'Energy Data Entry'!V83+'Energy Data Entry'!AA83=0,"",'Energy Data Entry'!G83+'Energy Data Entry'!L83+'Energy Data Entry'!Q83+'Energy Data Entry'!V83+'Energy Data Entry'!AA83) -> 2688 | O62: =IF('Energy Data Entry'!D83+'Energy Data Entry'!I83+'Energy Data Entry'!N83+'Energy Data Entry'!S83+'Energy Data Entry'!X83=0,"",'Energy Data Entry'!D83+'Energy Data Entry'!I83+'Energy Data Entry'!N83+'Energy Data Entry'!S83+'Energy Data Entry'!X83) -> 10198.035 | P62: ='Energy Data Entry'!AF83 -> 0 | Q62: =IFERROR(Table4[[#This Row],[Total electric cost]]/Table4[[#This Row],[Electric kWh usage]],"") -> 0.0882648716 | R62: =IFERROR(Table4[[#This Row],[Electric Demand Cost]]/Table4[[#This Row],[Total Electric Demand (Billed)]],IFERROR(Table4[[#This Row],[Electric Demand Cost]]/Table4[[#This Row],[Total Electric Demand (Actual)]],"")) -> 12 | S62: =IFERROR(Table4[[#This Row],[Total Gas cost]]+Table4[[#This Row],[Total electric cost]],"") -> 10198.035 | U62: =IFERROR(Table4[[#This Row],[Total Energy Cost]]/Table4[[#This Row],[Monthly Flow]],"") -> 216.4268888 | V62: =IFERROR(Table4[[#This Row],[Total Energy Cost]]/Table4[[#This Row],[Total BOD removed]],"") -> 0.1772572833 | X62: =IF('Process Data Entry'!G64="","",'Process Data Entry'!G64) -> 38 | Y62: =IF('Process Data Entry'!H64="","",'Process Data Entry'!H64) -> 12 | Z62: =IF('Process Data Entry'!I64="",0,'Process Data Entry'!I64) -> 0 | AA62: =IF('Process Data Entry'!J64="","",'Process Data Entry'!J64) -> 2.8 | AB62: =IF('Process Data Entry'!K64="","",'Process Data Entry'!K64) -> 1 | AC62: =IF('Process Data Entry'!L64="","",'Process Data Entry'!L64) -> 9.3 | AD62: 25.9 | AE62: 10178.20272 | AF62: =IF('Process Data Entry'!M64="","",'Process Data Entry'!M64) -> 9 | AG62: =IF('Process Data Entry'!N64="","",'Process Data Entry'!N64) -> 1.5 | AH62: 2947.356
